Workbook

Sheet Presentacion
B4: Terreno | C4: Terreno El Rosario | I4: ZONA: | O4: IV REGIÓN
B6: Fecha Informe: | C6: 2020-05-18 | E6: Versión: | F6: 7.03 | I6: GTE. INMOBILIARIO: | O6: MANUEL QUINTEROS
B8: Año Compra: | C8: =MIN(Terreno[Año Compra]) -> 2019 | E8: Duración: | F8: =MAX(Etapas[Año Inicio])-C8 -> 33
G10: TERRENO | K10: VIVIENDA
C11: PRESUPUESTO ORIGINAL | E11: MEGA LOTEO | F11: Superficie total (m2) | G11: % Terreno | H11: Precio Venta Terreno (UF/m2) | I11: Precio Terreno (UF/m2) | J11: Precio MacroUrba (UF/m2) | K11: Cant. Unid. | L11: Superficie (m2/Un.) | M11: UF/m2 | N11: PPUnid (UF/un) | O11: Vel. Vta. Prom.
B12: INVENTARIO | E12: Cesion Av - Equip. - Circul. | F12: 140733.17 | G12: 0.2594370235 | H12: 0 | I12: 0 | J12: 0 | N12: 0 | O12: 0
B13: Superficie | C13: =Terreno[[#Totals],[Total (m2)]] -> 542456 | E13: Comercial | F13: 14458.54 | G13: 0.02665384842 | H13: 3.379511348 | I13: 1.959071932 | J13: 1.420439416 | K13: 68 | L13: 100 | M13: 60 | N13: 6000 | O13: 2.513518519
B14: Ingresos/m2 | C14: =C17/C13 -> 2.2808445 | E14: Casa1 | F14: 104476.47 | G14: 0.1925989758 | H14: 1.444568562 | I14: 0.8374032313 | J14: 0.6071653304 | K14: 184 | L14: 116 | M14: 47.14 | N14: 5468.24 | O14: 2
B15: Costos/m2 | C15: =C21/C13 -> 2.110201174 | E15: Casa2 | F15: 129654 | G15: 0.2390129338 | H15: 3.203109815 | I15: 1.856813571 | J15: 1.346296244 | K15: 824 | L15: 70 | M15: 48 | N15: 3360 | O15: 2.964028777
E16: TownHouse1 | F16: 18499 | G16: 0.03410230507 | H16: 2.884047786 | I16: 1.67185622 | J16: 1.212191566 | K16: 114 | L16: 60 | M16: 52 | N16: 3120 | O16: 2.235294118
B17: INGRESOS | C17: =SUM(C18:C19) -> 1237257.784 | E17: Depto1 | F17: 76154.62 | G17: 0.1403885661 | H17: 2.979997274 | I17: 1.727477264 | J17: 1.25252001 | K17: 532 | L17: 77 | M17: 55.4 | N17: 4265.8 | O17: 2.533333333
B18: Traspaso | C18: =MegaLoteo[[#Totals],[Ingresos por Vta. Terreno (UF)]] -> 1237257.784 | E18: Depto2 | F18: 4149 | G18: 0.00764854661 | H18: 7.35791757 | I18: 4.265317765 | J18: 3.092599805 | K18: 96 | L18: 60 | M18: 53 | N18: 3180 | O18: 3.2
B19: Otros Ingresos | E19: Depto3 | F19: 54331.2 | G19: 0.1001578008 | H19: 5.730685131 | I19: 3.322025948 | J19: 2.408659183 | K19: 1530 | L19: 55 | M19: 37 | N19: 2035 | O19: 7.846153846
E20: Total | F20: =SUBTOTAL(109,MegaLoteoResumen[Superficie total (m2)]) -> 542456 | K20: =SUBTOTAL(109,MegaLoteoResumen[Cant. Unid.]) -> 3348
B21: EGRESOS | C21: =SUM(C22:C32) -> 1144691.288
B22: Terreno | C22: =SUMIFS(ResumenCostos[Ppto Original (UF)],ResumenCostos[COSTOS FACT. TERRENO],Presentacion!$B22)+SUMIFS(ResumenCostos[Ppto Original (UF)],ResumenCostos[COSTOS FACT. TERRENO],"Corretaje") -> 398763.9746 | G22: TERRENO | K22: VIVIENDA
B23: Honorarios Y Proyectos | C23: =SUMIFS(ResumenCostos[Ppto Original (UF)],ResumenCostos[COSTOS FACT. TERRENO],Presentacion!$B23) -> 8319.88426 | E23: PROYECTO | F23: Tipo | G23: Superficie (m2) | H23: Valor Terreno (UF) | I23: Precio Venta Terreno (UF/m2) | J23: Año Inicio | K23: Cant. Unid. | L23: Vel. Venta Real (un/mes) | M23: Meses Vta.
B24: Permisos y Aportes | C24: =SUMIFS(ResumenCostos[Ppto Original (UF)],ResumenCostos[COSTOS FACT. TERRENO],Presentacion!$B24) -> 32374.68349 | E24: Cesion Av - Equip. - Circul. | G24: 140733.17 | H24: 0 | I24: 0 | K24: 0 | M24: 0
B25: Edificación | C25: =SUMIFS(ResumenCostos[Ppto Original (UF)],ResumenCostos[COSTOS FACT. TERRENO],Presentacion!$B25) -> 576 | E25: Rectificacion Deslinde | H25: 0 | I25: 0 | J25: 2020 | M25: 0
B26: Urbanización | C26: =SUMIFS(ResumenCostos[Ppto Original (UF)],ResumenCostos[COSTOS FACT. TERRENO],Presentacion!$B26) -> 443030.9015 | E26: Terreno a la Venta | H26: 0 | I26: 0 | J26: 2020 | M26: 0
B27: Adicionales | C27: =SUMIFS(ResumenCostos[Ppto Original (UF)],ResumenCostos[COSTOS FACT. TERRENO],Presentacion!$B27) -> 35729.25212 | E27: Rosario C6 | F27: Casa1 | G27: 53363.01 | H27: 77086.5266 | I27: 1.444568562 | J27: 2020 | K27: 89 | L27: 1.816326531 | M27: 49
B28: Comercialización | C28: =SUMIFS(ResumenCostos[Ppto Original (UF)],ResumenCostos[COSTOS FACT. TERRENO],Presentacion!$B28) -> 0 | E28: Rosario C7 | F28: Casa1 | G28: 51113.46 | H28: 73836.8974 | I28: 1.444568562 | J28: 2024 | K28: 95 | L28: 1.79245283 | M28: 53
B29: Operación | C29: =SUMIFS(ResumenCostos[Ppto Original (UF)],ResumenCostos[COSTOS FACT. TERRENO],Presentacion!$B29) -> 72513.95064 | E29: TSA 2 | F29: Casa2 | G29: 14406 | H29: 46144 | I29: 3.203109815 | J29: 2026 | K29: 91 | L29: 2.394736842 | M29: 38
B30: Post-venta | C30: =SUMIFS(ResumenCostos[Ppto Original (UF)],ResumenCostos[COSTOS FACT. TERRENO],Presentacion!$B30) -> 0 | E30: TSA 3 | F30: Casa2 | G30: 14406 | H30: 46144 | I30: 3.203109815 | J30: 2028 | K30: 92 | L30: 2.421052632 | M30: 38
B31: Administración | C31: =SUMIFS(ResumenCostos[Ppto Original (UF)],ResumenCostos[COSTOS FACT. TERRENO],Presentacion!$B31) -> 0 | E31: TSA 4 | F31: Casa2 | G31: 14406 | H31: 46144 | I31: 3.203109815 | J31: 2031 | K31: 92 | L31: 2.421052632 | M31: 38
B32: Financieros | C32: =SUMIFS(ResumenCostos[Ppto Original (UF)],ResumenCostos[COSTOS FACT. TERRENO],Presentacion!$B32) -> 153382.6414 | E32: TSA 5 | F32: Casa2 | G32: 14406 | H32: 46144 | I32: 3.203109815 | J32: 2033 | K32: 92 | L32: 2.421052632 | M32: 38
E33: TSA 6 | F33: Casa2 | G33: 14406 | H33: 46144 | I33: 3.203109815 | J33: 2036 | K33: 91 | L33: 2.394736842 | M33: 38
B34: EXCEDENTES TOTALES | C34: =C17-C21 -> 92566.49602 | E34: TSA 7 | F34: Casa2 | G34: 14406 | H34: 46144 | I34: 3.203109815 | J34: 2038 | K34: 92 | L34: 2.421052632 | M34: 38
B35: Rent. Sobre Costos | C35: =IFERROR(C$34/C21,0) -> 0.08086590419 | E35: TSA 8 | F35: Casa2 | G35: 14406 | H35: 46144 | I35: 3.203109815 | J35: 2041 | K35: 91 | L35: 2.394736842 | M35: 38
B36: TIR Anual | C36: =IRR('Flujo Terreno'!L150:'Flujo Terreno'!BM150,0.1) -> 0.0339574954 | E36: TSA 9 | F36: Casa2 | G36: 14406 | H36: 46144 | I36: 3.203109815 | J36: 2043 | K36: 92 | L36: 2.421052632 | M36: 38
E37: TSA 10 | F37: Casa2 | G37: 14406 | H37: 46144 | I37: 3.203109815 | J37: 2046 | K37: 91 | L37: 2.394736842 | M37: 38
B38: TERRENO PURO | E38: LC 1.1 | F38: Comercial | G38: 1085.54 | H38: 3668.594748 | I38: 3.379511348 | J38: 2027 | K38: 1 | L38: 0.1 | M38: 10
B39: Rent. Sobre Costos | C39: =C$34/SUM(C$22,C$29,C$32) -> 0.148186873 | E39: LC 2 | F39: Comercial | G39: 13373 | H39: 45194.20525 | I39: 3.379511348 | J39: 2040 | K39: 66.865 | L39: 3.933235294 | M39: 17
B40: TIR Anual | C40: =IRR('Flujo Terreno'!$L$153:$BM$153,0.1) -> 0.09265496225 | E40: Rosario D1 | F40: Depto1 | G40: 17819.62 | H40: 53102.41902 | I40: 2.979997274 | J40: 2021 | K40: 108 | L40: 2.204081633 | M40: 49
E41: Rosario D2 | F41: Depto1 | G41: 17401 | H41: 51854.93256 | I41: 2.979997274 | J41: 2024 | K41: 100 | L41: 2.222222222 | M41: 45
E42: Rosario D4 | F42: Depto1 | G42: 11569 | H42: 34475.58846 | I42: 2.979997274 | J42: 2027 | K42: 76 | L42: 2.171428571 | M42: 35
B43: Incidencia terreno sobre ventas inmob. | E43: Rosario D5 | F43: Depto1 | G43: 11569 | H43: 34475.58846 | I43: 2.979997274 | J43: 2029 | K43: 76 | L43: 2.171428571 | M43: 35
B44: Casas | C44: 0.15 | E44: Rosario D6 | F44: Depto1 | G44: 11569 | H44: 34475.58846 | I44: 2.979997274 | J44: 2031 | K44: 76 | L44: 2.171428571 | M44: 35
B45: Deptos | C45: 0.1 | E45: Rosario D9 | F45: Depto1 | G45: 6227 | H45: 18556.44302 | I45: 2.979997274 | J45: 2036 | K45: 96 | L45: 2.181818182 | M45: 44
E46: Rosario D7 | F46: Depto2 | G46: 2074.5 | H46: 15264 | I46: 7.35791757 | J46: 2034 | K46: 48 | L46: 2.823529412 | M46: 17
E47: Rosario D8 | F47: Depto2 | G47: 2074.5 | H47: 15264 | I47: 7.35791757 | J47: 2035 | K47: 48 | L47: 2.823529412 | M47: 17
B48: Inversión Terreno + Exced. | C48: =SUM(C22,C29,C32,C34)/C17 -> 0.5796908873 | E48: Rosario EA 1 | F48: Depto3 | G48: 6036.8 | H48: 34595 | I48: 5.730685131 | J48: 2038 | K48: 170 | L48: 6.296296296 | M48: 27
B49: Inversión MacroUrba | C49: =SUM(C23:C27,C28,C30,C31)/C17 -> 0.4203091127 | E49: Rosario EA 2 | F49: Depto3 | G49: 6036.8 | H49: 34595 | I49: 5.730685131 | J49: 2040 | K49: 170 | L49: 6.296296296 | M49: 27
E50: Rosario EA 3 | F50: Depto3 | G50: 6036.8 | H50: 34595 | I50: 5.730685131 | J50: 2042 | K50: 170 | L50: 6.296296296 | M50: 27
E51: Rosario EA 4 | F51: Depto3 | G51: 6036.8 | H51: 34595 | I51: 5.730685131 | J51: 2044 | K51: 170 | L51: 6.296296296 | M51: 27
E52: Rosario EA 5 | F52: Depto3 | G52: 6036.8 | H52: 34595 | I52: 5.730685131 | J52: 2045 | K52: 170 | L52: 6.296296296 | M52: 27
E53: Rosario EA 6 | F53: Depto3 | G53: 6036.8 | H53: 34595 | I53: 5.730685131 | J53: 2047 | K53: 170 | L53: 6.296296296 | M53: 27
E54: Rosario EA 7 | F54: Depto3 | G54: 6036.8 | H54: 34595 | I54: 5.730685131 | J54: 2049 | K54: 170 | L54: 6.296296296 | M54: 27
E55: Rosario EA 8 | F55: Depto3 | G55: 6036.8 | H55: 34595 | I55: 5.730685131 | J55: 2051 | K55: 170 | L55: 6.296296296 | M55: 27
E56: Rosario EA 9 | F56: Depto3 | G56: 6036.8 | H56: 34595 | I56: 5.730685131 | J56: 2052 | K56: 170 | L56: 6.296296296 | M56: 27
E57: Rosario TH1 | F57: TownHouse1 | G57: 9730 | H57: 28061.78496 | I57: 2.884047786 | J57: 2024 | K57: 60 | L57: 2 | M57: 30
E58: Rosario TH2 | F58: TownHouse1 | G58: 8769 | H58: 25290.21504 | I58: 2.884047786 | J58: 2026 | K58: 54 | L58: 2 | M58: 27
B59: Firmas Aprobación | E59: Total | H59: =SUBTOTAL(109,EtapasResumen[Valor Terreno (UF)]) -> 1237257.784 | J59: =SUBTOTAL(104,EtapasResumen[Año Inicio]) -> 2052 | K59: =SUBTOTAL(109,EtapasResumen[Cant. Unid.]) -> 3347.865
B66: Gerente de Proyectos | E66: Gerente Comercial | H66: Gerente Finanzas | M66: Director
C72: Gerente Desarrollo Inmobiliario | F72: Gerente General | K72: Contraloría
L74: Debe estar firmado y con nombre en el espacio establecido.

Sheet Venta
I3: =Presentacion!B34 -> EXCEDENTES TOTALES | K3: =Presentacion!C34 -> 92566.49602
I4: =Presentacion!B35 -> Rent. Sobre Costos | K4: =Presentacion!C35 -> 0.08086590419
I5: =Presentacion!B36 -> TIR Anual | K5: =Presentacion!C36 -> 0.0339574954
B8: MEGA LOTEO | C8: Superficie total (m2) | D8: % Terreno | E8: %Terreno Viv | F8: Cant. Unid. | G8: Viv+Circul.+Areas Comunes (m2) | H8: PPUnid (UF/un) | I8: Superficie (m2/Un.) | J8: UF/m2 | K8: Vel. Vta. Prom. | L8: Ingresos por Ventas Brutas (UF) | M8: Ingresos por Ventas Netas (UF) | N8: Incidencia Terreno sobre Vtas finales. | O8: Ingresos por Vta. Terreno (UF) | P8: Precio Venta Terreno (UF/m2) | Q8: Precio Terreno (UF/m2) | R8: Precio MacroUrba (UF/m2) | S8: UF/m2 terreno | U8: 06-2020 | V8: 07-2020 | W8: 08-2020 | X8: 09-2020 | Y8: 10-2020 | Z8: 11-2020 | AA8: 12-2020 | AB8: 01-2021 | AC8: 02-2021 | AD8: 03-2021 | AE8: 04-2021 | AF8: 05-2021 | AG8: 06-2021 | AH8: 07-2021 | AI8: 08-2021 | AJ8: 09-2021 | AK8: 10-2021 | AL8: 11-2021 | AM8: 12-2021 | AN8: 01-2022 | AO8: 02-2022 | AP8: 03-2022 | AQ8: 04-2022 | AR8: 05-2022 | AS8: 06-2022 | AT8: 07-2022 | AU8: 08-2022 | AV8: 09-2022 | AW8: 10-2022 | AX8: 11-2022 | AY8: 12-2022 | AZ8: 01-2023 | BA8: 02-2023 | BB8: 03-2023 | BC8: 04-2023 | BD8: 05-2023 | BE8: 06-2023 | BF8: 07-2023 | BG8: 08-2023 | BH8: 09-2023 | BI8: 10-2023 | BJ8: 11-2023 | BK8: 12-2023 | BL8: 01-2024 | BM8: 02-2024 | BN8: 03-2024 | BO8: 04-2024 | BP8: 05-2024 | BQ8: 06-2024 | BR8: 07-2024 | BS8: 08-2024 | BT8: 09-2024 | BU8: 10-2024 | BV8: 11-2024 | BW8: 12-2024 | BX8: 01-2025 | BY8: 02-2025 | BZ8: 03-2025 | CA8: 04-2025 | CB8: 05-2025 | CC8: 06-2025 | CD8: 07-2025 | CE8: 08-2025 | CF8: 09-2025 | CG8: 10-2025 | CH8: 11-2025 | CI8: 12-2025 | CJ8: 01-2026 | CK8: 02-2026 | CL8: 03-2026 | CM8: 04-2026 | CN8: 05-2026 | CO8: 06-2026 | CP8: 07-2026 | CQ8: 08-2026 | CR8: 09-2026 | CS8: 10-2026 | CT8: 11-2026 | CU8: 12-2026 | CV8: 01-2027 | CW8: 02-2027 | CX8: 03-2027 | CY8: 04-2027 | CZ8: 05-2027 | DA8: 06-2027 | DB8: 07-2027 | DC8: 08-2027 | DD8: 09-2027 | DE8: 10-2027 | DF8: 11-2027 | DG8: 12-2027 | DH8: 01-2028 | DI8: 02-2028 | DJ8: 03-2028 | DK8: 04-2028 | DL8: 05-2028 | DM8: 06-2028 | DN8: 07-2028 | DO8: 08-2028 | DP8: 09-2028 | DQ8: 10-2028 | DR8: 11-2028 | DS8: 12-2028 | DT8: 01-2029 | DU8: 02-2029 | DV8: 03-2029 | DW8: 04-2029 | DX8: 05-2029 | DY8: 06-2029 | DZ8: 07-2029 | EA8: 08-2029 | EB8: 09-2029 | EC8: 10-2029 | ED8: 11-2029 | EE8: 12-2029 | EF8: 01-2030 | EG8: 02-2030 | EH8: 03-2030 | EI8: 04-2030 | EJ8: 05-2030 | EK8: 06-2030 | EL8: 07-2030 | EM8: 08-2030 | EN8: 09-2030 | EO8: 10-2030 | EP8: 11-2030 | EQ8: 12-2030 | ER8: 01-2031 | ES8: 02-2031 | ET8: 03-2031 | EU8: 04-2031 | EV8: 05-2031 | EW8: 06-2031 | EX8: 07-2031 | EY8: 08-2031 | EZ8: 09-2031 | FA8: 10-2031 | FB8: 11-2031 | FC8: 12-2031 | FD8: 01-2032 | FE8: 02-2032 | FF8: 03-2032 | FG8: 04-2032 | FH8: 05-2032 | FI8: 06-2032 | FJ8: 07-2032 | FK8: 08-2032 | FL8: 09-2032 | FM8: 10-2032 | FN8: 11-2032 | FO8: 12-2032 | FP8: 01-2033 | FQ8: 02-2033 | FR8: 03-2033 | FS8: 04-2033 | FT8: 05-2033 | FU8: 06-2033 | FV8: 07-2033 | FW8: 08-2033 | FX8: 09-2033 | FY8: 10-2033 | FZ8: 11-2033 | GA8: 12-2033 | GB8: 01-2034 | GC8: 02-2034 | GD8: 03-2034 | GE8: 04-2034 | GF8: 05-2034 | GG8: 06-2034 | GH8: 07-2034 | GI8: 08-2034 | GJ8: 09-2034 | GK8: 10-2034 | GL8: 11-2034 | GM8: 12-2034 | GN8: 01-2035 | GO8: 02-2035 | GP8: 03-2035 | GQ8: 04-2035 | GR8: 05-2035 | GS8: 06-2035 | GT8: 07-2035 | GU8: 08-2035 | GV8: 09-2035 | GW8: 10-2035 | GX8: 11-2035 | GY8: 12-2035 | GZ8: 01-2036 | HA8: 02-2036 | HB8: 03-2036 | HC8: 04-2036 | HD8: 05-2036 | HE8: 06-2036 | HF8: 07-2036 | HG8: 08-2036 | HH8: 09-2036 | HI8: 10-2036 | HJ8: 11-2036 | HK8: 12-2036 | HL8: 01-2037 | HM8: 02-2037 | HN8: 03-2037 | HO8: 04-2037 | HP8: 05-2037 | HQ8: 06-2037 | HR8: 07-2037 | HS8: 08-2037 | HT8: 09-2037 | HU8: 10-2037 | HV8: 11-2037 | HW8: 12-2037 | HX8: 01-2038 | HY8: 02-2038 | HZ8: 03-2038 | IA8: 04-2038 | IB8: 05-2038 | IC8: 06-2038 | ID8: 07-2038 | IE8: 08-2038 | IF8: 09-2038 | IG8: 10-2038 | IH8: 11-2038 | II8: 12-2038 | IJ8: 01-2039 | IK8: 02-2039 | IL8: 03-2039 | IM8: 04-2039 | IN8: 05-2039 | IO8: 06-2039 | IP8: 07-2039 | IQ8: 08-2039 | IR8: 09-2039 | IS8: 10-2039 | IT8: 11-2039 | IU8: 12-2039 | IV8: 01-2040 | IW8: 02-2040 | IX8: 03-2040 | IY8: 04-2040 | IZ8: 05-2040 | JA8: 06-2040 | JB8: 07-2040 | JC8: 08-2040 | JD8: 09-2040 | JE8: 10-2040 | JF8: 11-2040 | JG8: 12-2040 | JH8: 01-2041 | JI8: 02-2041 | JJ8: 03-2041 | JK8: 04-2041 | JL8: 05-2041 | JM8: 06-2041 | JN8: 07-2041 | JO8: 08-2041 | JP8: 09-2041 | JQ8: 10-2041 | JR8: 11-2041 | JS8: 12-2041 | JT8: 01-2042 | JU8: 02-2042 | JV8: 03-2042 | JW8: 04-2042 | JX8: 05-2042 | JY8: 06-2042 | JZ8: 07-2042 | KA8: 08-2042 | KB8: 09-2042 | KC8: 10-2042 | KD8: 11-2042 | KE8: 12-2042 | KF8: 01-2043 | KG8: 02-2043 | KH8: 03-2043 | KI8: 04-2043 | KJ8: 05-2043 | KK8: 06-2043 | KL8: 07-2043 | KM8: 08-2043 | KN8: 09-2043 | KO8: 10-2043 | KP8: 11-2043 | KQ8: 12-2043 | KR8: 01-2044 | KS8: 02-2044 | KT8: 03-2044 | KU8: 04-2044 | KV8: 05-2044 | KW8: 06-2044 | KX8: 07-2044 | KY8: 08-2044 | KZ8: 09-2044 | LA8: 10-2044 | LB8: 11-2044 | LC8: 12-2044 | LD8: 01-2045 | LE8: 02-2045 | LF8: 03-2045 | LG8: 04-2045 | LH8: 05-2045 | LI8: 06-2045 | LJ8: 07-2045 | LK8: 08-2045 | LL8: 09-2045 | LM8: 10-2045 | LN8: 11-2045 | LO8: 12-2045 | LP8: 01-2046 | LQ8: 02-2046 | LR8: 03-2046 | LS8: 04-2046 | LT8: 05-2046 | LU8: 06-2046 | LV8: 07-2046 | LW8: 08-2046 | LX8: 09-2046 | LY8: 10-2046 | LZ8: 11-2046 | MA8: 12-2046 | MB8: 01-2047 | MC8: 02-2047 | MD8: 03-2047 | ME8: 04-2047 | MF8: 05-2047 | MG8: 06-2047 | MH8: 07-2047 | MI8: 08-2047 | MJ8: 09-2047 | MK8: 10-2047 | ML8: 11-2047 | MM8: 12-2047 | MN8: 01-2048 | MO8: 02-2048 | MP8: 03-2048 | MQ8: 04-2048 | MR8: 05-2048 | MS8: 06-2048 | MT8: 07-2048 | MU8: 08-2048 | MV8: 09-2048 | MW8: 10-2048 | MX8: 11-2048 | MY8: 12-2048 | MZ8: 01-2049 | NA8: 02-2049 | NB8: 03-2049 | NC8: 04-2049 | ND8: 05-2049 | NE8: 06-2049 | NF8: 07-2049 | NG8: 08-2049 | NH8: 09-2049 | NI8: 10-2049 | NJ8: 11-2049 | NK8: 12-2049 | NL8: 01-2050 | NM8: 02-2050 | NN8: 03-2050 | NO8: 04-2050 | NP8: 05-2050 | NQ8: 06-2050 | NR8: 07-2050 | NS8: 08-2050 | NT8: 09-2050 | NU8: 10-2050 | NV8: 11-2050 | NW8: 12-2050 | NX8: 01-2051 | NY8: 02-2051 | NZ8: 03-2051 | OA8: 04-2051 | OB8: 05-2051 | OC8: 06-2051 | OD8: 07-2051 | OE8: 08-2051 | OF8: 09-2051 | OG8: 10-2051 | OH8: 11-2051 | OI8: 12-2051 | OJ8: 01-2052 | OK8: 02-2052 | OL8: 03-2052 | OM8: 04-2052 | ON8: 05-2052 | OO8: 06-2052 | OP8: 07-2052 | OQ8: 08-2052 | OR8: 09-2052 | OS8: 10-2052 | OT8: 11-2052 | OU8: 12-2052 | OV8: 01-2053 | OW8: 02-2053 | OX8: 03-2053 | OY8: 04-2053 | OZ8: 05-2053 | PA8: 06-2053 | PB8: 07-2053 | PC8: 08-2053 | PD8: 09-2053 | PE8: 10-2053 | PF8: 11-2053 | PG8: 12-2053 | PH8: 01-2054 | PI8: 02-2054 | PJ8: 03-2054 | PK8: 04-2054 | PL8: 05-2054 | PM8: 06-2054 | PN8: 07-2054 | PO8: 08-2054 | PP8: 09-2054 | PQ8: 10-2054 | PR8: 11-2054 | PS8: 12-2054 | PT8: 01-2055 | PU8: 02-2055 | PV8: 03-2055 | PW8: 04-2055 | PX8: 05-2055 | PY8: 06-2055 | PZ8: 07-2055 | QA8: 08-2055 | QB8: 09-2055 | QC8: 10-2055 | QD8: 11-2055 | QE8: 12-2055
B9: Cesion Av - Equip. - Circul. | C9: =SUMIFS(Etapas[Superficie (m2)],Etapas[Tipo],MegaLoteo[[#This Row],[MEGA LOTEO]])+SUMIFS(Etapas[Superficie (m2)],Etapas[PROYECTO],MegaLoteo[[#This Row],[MEGA LOTEO]]) -> 140733.17 | D9: =MegaLoteo[[#This Row],[Superficie total (m2)]]/MegaLoteo[[#Totals],[Superficie total (m2)]] -> 0.2594370235 | E9: =_xlfn.IFNA(IF(MATCH(MegaLoteo[[#This Row],[MEGA LOTEO]],TipoVivienda[TipoProyecto],0)>0,MegaLoteo[[#This Row],[Superficie total (m2)]]/SUM(SUMIFS(MegaLoteo[Superficie total (m2)],MegaLoteo[MEGA LOTEO],TipoVivienda[TipoProyecto])),0),0) -> 0 | G9: =IFERROR(MegaLoteo[[#This Row],[Superficie total (m2)]]/MegaLoteo[[#This Row],[Cant. Unid.]],0) -> 0 | H9: =MegaLoteo[[#This Row],[Superficie (m2/Un.)]]*MegaLoteo[[#This Row],[UF/m2]] -> 0 | K9: =IFERROR(MegaLoteo[[#This Row],[Cant. Unid.]]/COUNTIFS(FlujoVentasProductos[#This Row],">0"),0) -> 0 | L9: =MegaLoteo[[#This Row],[PPUnid (UF/un)]]*MegaLoteo[[#This Row],[Cant. Unid.]] -> 0 | M9: 0 | O9: =MegaLoteo[[#This Row],[Incidencia Terreno sobre Vtas finales.]]*MegaLoteo[[#This Row],[Ingresos por Ventas Brutas (UF)]] -> 0 | P9: =IFERROR(MegaLoteo[[#This Row],[Ingresos por Vta. Terreno (UF)]]/MegaLoteo[[#This Row],[Superficie total (m2)]],) -> 0 | Q9: =MegaLoteo[[#This Row],[Precio Venta Terreno (UF/m2)]]*Presentacion!$C$48 -> 0 | R9: =MegaLoteo[[#This Row],[Precio Venta Terreno (UF/m2)]]*Presentacion!$C$49 -> 0 | S9: =IFERROR(MegaLoteo[[#This Row],[PPUnid (UF/un)]]/MegaLoteo[[#This Row],[Viv+Circul.+Areas Comunes (m2)]],0) -> 0 | U9: =SUMIFS(FlujoVentasEtapas[06-2020],Etapas[[Tipo]:[Tipo]],MegaLoteo[[#This Row],[MEGA LOTEO]:[MEGA LOTEO]]) -> 0 | V9: =SUMIFS(FlujoVentasEtapas[07-2020],Etapas[[Tipo]:[Tipo]],MegaLoteo[[#This Row],[MEGA LOTEO]:[MEGA LOTEO]]) -> 0 | W9: =SUMIFS(FlujoVentasEtapas[08-2020],Etapas[[Tipo]:[Tipo]],MegaLoteo[[#This Row],[MEGA LOTEO]:[MEGA LOTEO]]) -> 0 | X9: =SUMIFS(FlujoVentasEtapas[09-2020],Etapas[[Tipo]:[Tipo]],MegaLoteo[[#This Row],[MEGA LOTEO]:[MEGA LOTEO]]) -> 0 | Y9: =SUMIFS(FlujoVentasEtapas[10-2020],Etapas[[Tipo]:[Tipo]],MegaLoteo[[#This Row],[MEGA LOTEO]:[MEGA LOTEO]]) -> 0 | Z9: =SUMIFS(FlujoVentasEtapas[11-2020],Etapas[[Tipo]:[Tipo]],MegaLoteo[[#This Row],[MEGA LOTEO]:[MEGA LOTEO]]) -> 0 | AA9: =SUMIFS(FlujoVentasEtapas[12-2020],Etapas[[Tipo]:[Tipo]],MegaLoteo[[#This Row],[MEGA LOTEO]:[MEGA LOTEO]]) -> 0 | AB9: =SUMIFS(FlujoVentasEtapas[01-2021],Etapas[[Tipo]:[Tipo]],MegaLoteo[[#This Row],[MEGA LOTEO]:[MEGA LOTEO]]) -> 0 | AC9: =SUMIFS(FlujoVentasEtapas[02-2021],Etapas[[Tipo]:[Tipo]],MegaLoteo[[#This Row],[MEGA LOTEO]:[MEGA LOTEO]]) -> 0 | AD9: =SUMIFS(FlujoVentasEtapas[03-2021],Etapas[[Tipo]:[Tipo]],MegaLoteo[[#This Row],[MEGA LOTEO]:[MEGA LOTEO]]) -> 0 | AE9: =SUMIFS(FlujoVentasEtapas[04-2021],Etapas[[Tipo]:[Tipo]],MegaLoteo[[#This Row],[MEGA LOTEO]:[MEGA LOTEO]]) -> 0 | AF9: =SUMIFS(FlujoVentasEtapas[05-2021],Etapas[[Tipo]:[Tipo]],MegaLoteo[[#This Row],[MEGA LOTEO]:[MEGA LOTEO]]) -> 0 | AG9: =SUMIFS(FlujoVentasEtapas[06-2021],Etapas[[Tipo]:[Tipo]],MegaLoteo[[#This Row],[MEGA LOTEO]:[MEGA LOTEO]]) -> 0 | AH9: =SUMIFS(FlujoVentasEtapas[07-2021],Etapas[[Tipo]:[Tipo]],MegaLoteo[[#This Row],[MEGA LOTEO]:[MEGA LOTEO]]) -> 0 | AI9: =SUMIFS(FlujoVentasEtapas[08-2021],Etapas[[Tipo]:[Tipo]],MegaLoteo[[#This Row],[MEGA LOTEO]:[MEGA LOTEO]]) -> 0 | AJ9: =SUMIFS(FlujoVentasEtapas[09-2021],Etapas[[Tipo]:[Tipo]],MegaLoteo[[#This Row],[MEGA LOTEO]:[MEGA LOTEO]]) -> 0 | AK9: =SUMIFS(FlujoVentasEtapas[10-2021],Etapas[[Tipo]:[Tipo]],MegaLoteo[[#This Row],[MEGA LOTEO]:[MEGA LOTEO]]) -> 0 | AL9: =SUMIFS(FlujoVentasEtapas[11-2021],Etapas[[Tipo]:[Tipo]],MegaLoteo[[#This Row],[MEGA LOTEO]:[MEGA LOTEO]]) -> 0 | AM9: =SUMIFS(FlujoVentasEtapas[12-2021],Etapas[[Tipo]:[Tipo]],MegaLoteo[[#This Row],[MEGA LOTEO]:[MEGA LOTEO]]) -> 0 | AN9: =SUMIFS(FlujoVentasEtapas[01-2022],Etapas[[Tipo]:[Tipo]],MegaLoteo[[#This Row],[MEGA LOTEO]:[MEGA LOTEO]]) -> 0 | AO9: =SUMIFS(FlujoVentasEtapas[02-2022],Etapas[[Tipo]:[Tipo]],MegaLoteo[[#This Row],[MEGA LOTEO]:[MEGA LOTEO]]) -> 0 | AP9: =SUMIFS(FlujoVentasEtapas[03-2022],Etapas[[Tipo]:[Tipo]],MegaLoteo[[#This Row],[MEGA LOTEO]:[MEGA LOTEO]]) -> 0 | AQ9: =SUMIFS(FlujoVentasEtapas[04-2022],Etapas[[Tipo]:[Tipo]],MegaLoteo[[#This Row],[MEGA LOTEO]:[MEGA LOTEO]]) -> 0 | AR9: =SUMIFS(FlujoVentasEtapas[05-2022],Etapas[[Tipo]:[Tipo]],MegaLoteo[[#This Row],[MEGA LOTEO]:[MEGA LOTEO]]) -> 0 | AS9: =SUMIFS(FlujoVentasEtapas[06-2022],Etapas[[Tipo]:[Tipo]],MegaLoteo[[#This Row],[MEGA LOTEO]:[MEGA LOTEO]]) -> 0 | AT9: =SUMIFS(FlujoVentasEtapas[07-2022],Etapas[[Tipo]:[Tipo]],MegaLoteo[[#This Row],[MEGA LOTEO]:[MEGA LOTEO]]) -> 0 | AU9: =SUMIFS(FlujoVentasEtapas[08-2022],Etapas[[Tipo]:[Tipo]],MegaLoteo[[#This Row],[MEGA LOTEO]:[MEGA LOTEO]]) -> 0 | AV9: =SUMIFS(FlujoVentasEtapas[09-2022],Etapas[[Tipo]:[Tipo]],MegaLoteo[[#This Row],[MEGA LOTEO]:[MEGA LOTEO]]) -> 0 | AW9: =SUMIFS(FlujoVentasEtapas[10-2022],Etapas[[Tipo]:[Tipo]],MegaLoteo[[#This Row],[MEGA LOTEO]:[MEGA LOTEO]]) -> 0 | AX9: =SUMIFS(FlujoVentasEtapas[11-2022],Etapas[[Tipo]:[Tipo]],MegaLoteo[[#This Row],[MEGA LOTEO]:[MEGA LOTEO]]) -> 0 | AY9: =SUMIFS(FlujoVentasEtapas[12-2022],Etapas[[Tipo]:[Tipo]],MegaLoteo[[#This Row],[MEGA LOTEO]:[MEGA LOTEO]]) -> 0 | AZ9: =SUMIFS(FlujoVentasEtapas[01-2023],Etapas[[Tipo]:[Tipo]],MegaLoteo[[#This Row],[MEGA LOTEO]:[MEGA LOTEO]]) -> 0 | BA9: =SUMIFS(FlujoVentasEtapas[02-2023],Etapas[[Tipo]:[Tipo]],MegaLoteo[[#This Row],[MEGA LOTEO]:[MEGA LOTEO]]) -> 0 | BB9: =SUMIFS(FlujoVentasEtapas[03-2023],Etapas[[Tipo]:[Tipo]],MegaLoteo[[#This Row],[MEGA LOTEO]:[MEGA LOTEO]]) -> 0 | BC9: =SUMIFS(FlujoVentasEtapas[04-2023],Etapas[[Tipo]:[Tipo]],MegaLoteo[[#This Row],[MEGA LOTEO]:[MEGA LOTEO]]) -> 0 | BD9: =SUMIFS(FlujoVentasEtapas[05-2023],Etapas[[Tipo]:[Tipo]],MegaLoteo[[#This Row],[MEGA LOTEO]:[MEGA LOTEO]]) -> 0 | BE9: =SUMIFS(FlujoVentasEtapas[06-2023],Etapas[[Tipo]:[Tipo]],MegaLoteo[[#This Row],[MEGA LOTEO]:[MEGA LOTEO]]) -> 0 | BF9: =SUMIFS(FlujoVentasEtapas[07-2023],Etapas[[Tipo]:[Tipo]],MegaLoteo[[#This Row],[MEGA LOTEO]:[MEGA LOTEO]]) -> 0 | BG9: =SUMIFS(FlujoVentasEtapas[08-2023],Etapas[[Tipo]:[Tipo]],MegaLoteo[[#This Row],[MEGA LOTEO]:[MEGA LOTEO]]) -> 0 | BH9: =SUMIFS(FlujoVentasEtapas[09-2023],Etapas[[Tipo]:[Tipo]],MegaLoteo[[#This Row],[MEGA LOTEO]:[MEGA LOTEO]]) -> 0 | BI9: =SUMIFS(FlujoVentasEtapas[10-2023],Etapas[[Tipo]:[Tipo]],MegaLoteo[[#This Row],[MEGA LOTEO]:[MEGA LOTEO]]) -> 0 | BJ9: =SUMIFS(FlujoVentasEtapas[11-2023],Etapas[[Tipo]:[Tipo]],MegaLoteo[[#This Row],[MEGA LOTEO]:[MEGA LOTEO]]) -> 0 | BK9: =SUMIFS(FlujoVentasEtapas[12-2023],Etapas[[Tipo]:[Tipo]],MegaLoteo[[#This Row],[MEGA LOTEO]:[MEGA LOTEO]]) -> 0 | BL9: =SUMIFS(FlujoVentasEtapas[01-2024],Etapas[[Tipo]:[Tipo]],MegaLoteo[[#This Row],[MEGA LOTEO]:[MEGA LOTEO]]) -> 0 | BM9: =SUMIFS(FlujoVentasEtapas[02-2024],Etapas[[Tipo]:[Tipo]],MegaLoteo[[#This Row],[MEGA LOTEO]:[MEGA LOTEO]]) -> 0 | BN9: =SUMIFS(FlujoVentasEtapas[03-2024],Etapas[[Tipo]:[Tipo]],MegaLoteo[[#This Row],[MEGA LOTEO]:[MEGA LOTEO]]) -> 0 | BO9: =SUMIFS(FlujoVentasEtapas[04-2024],Etapas[[Tipo]:[Tipo]],MegaLoteo[[#This Row],[MEGA LOTEO]:[MEGA LOTEO]]) -> 0 | BP9: =SUMIFS(FlujoVentasEtapas[05-2024],Etapas[[Tipo]:[Tipo]],MegaLoteo[[#This Row],[MEGA LOTEO]:[MEGA LOTEO]]) -> 0 | BQ9: =SUMIFS(FlujoVentasEtapas[06-2024],Etapas[[Tipo]:[Tipo]],MegaLoteo[[#This Row],[MEGA LOTEO]:[MEGA LOTEO]]) -> 0 | BR9: =SUMIFS(FlujoVentasEtapas[07-2024],Etapas[[Tipo]:[Tipo]],MegaLoteo[[#This Row],[MEGA LOTEO]:[MEGA LOTEO]]) -> 0 | BS9: =SUMIFS(FlujoVentasEtapas[08-2024],Etapas[[Tipo]:[Tipo]],MegaLoteo[[#This Row],[MEGA LOTEO]:[MEGA LOTEO]]) -> 0 | BT9: =SUMIFS(FlujoVentasEtapas[09-2024],Etapas[[Tipo]:[Tipo]],MegaLoteo[[#This Row],[MEGA LOTEO]:[MEGA LOTEO]]) -> 0 | BU9: =SUMIFS(FlujoVentasEtapas[10-2024],Etapas[[Tipo]:[Tipo]],MegaLoteo[[#This Row],[MEGA LOTEO]:[MEGA LOTEO]]) -> 0 | BV9: =SUMIFS(FlujoVentasEtapas[11-2024],Etapas[[Tipo]:[Tipo]],MegaLoteo[[#This Row],[MEGA LOTEO]:[MEGA LOTEO]]) -> 0 | BW9: =SUMIFS(FlujoVentasEtapas[12-2024],Etapas[[Tipo]:[Tipo]],MegaLoteo[[#This Row],[MEGA LOTEO]:[MEGA LOTEO]]) -> 0 | BX9: =SUMIFS(FlujoVentasEtapas[01-2025],Etapas[[Tipo]:[Tipo]],MegaLoteo[[#This Row],[MEGA LOTEO]:[MEGA LOTEO]]) -> 0 | BY9: =SUMIFS(FlujoVentasEtapas[02-2025],Etapas[[Tipo]:[Tipo]],MegaLoteo[[#This Row],[MEGA LOTEO]:[MEGA LOTEO]]) -> 0 | BZ9: =SUMIFS(FlujoVentasEtapas[03-2025],Etapas[[Tipo]:[Tipo]],MegaLoteo[[#This Row],[MEGA LOTEO]:[MEGA LOTEO]]) -> 0 | CA9: =SUMIFS(FlujoVentasEtapas[04-2025],Etapas[[Tipo]:[Tipo]],MegaLoteo[[#This Row],[MEGA LOTEO]:[MEGA LOTEO]]) -> 0 | CB9: =SUMIFS(FlujoVentasEtapas[05-2025],Etapas[[Tipo]:[Tipo]],MegaLoteo[[#This Row],[MEGA LOTEO]:[MEGA LOTEO]]) -> 0 | CC9: =SUMIFS(FlujoVentasEtapas[06-2025],Etapas[[Tipo]:[Tipo]],MegaLoteo[[#This Row],[MEGA LOTEO]:[MEGA LOTEO]]) -> 0 | CD9: =SUMIFS(FlujoVentasEtapas[07-2025],Etapas[[Tipo]:[Tipo]],MegaLoteo[[#This Row],[MEGA LOTEO]:[MEGA LOTEO]]) -> 0 | CE9: =SUMIFS(FlujoVentasEtapas[08-2025],Etapas[[Tipo]:[Tipo]],MegaLoteo[[#This Row],[MEGA LOTEO]:[MEGA LOTEO]]) -> 0 | CF9: =SUMIFS(FlujoVentasEtapas[09-2025],Etapas[[Tipo]:[Tipo]],MegaLoteo[[#This Row],[MEGA LOTEO]:[MEGA LOTEO]]) -> 0 | CG9: =SUMIFS(FlujoVentasEtapas[10-2025],Etapas[[Tipo]:[Tipo]],MegaLoteo[[#This Row],[MEGA LOTEO]:[MEGA LOTEO]]) -> 0 | CH9: =SUMIFS(FlujoVentasEtapas[11-2025],Etapas[[Tipo]:[Tipo]],MegaLoteo[[#This Row],[MEGA LOTEO]:[MEGA LOTEO]]) -> 0 | CI9: =SUMIFS(FlujoVentasEtapas[12-2025],Etapas[[Tipo]:[Tipo]],MegaLoteo[[#This Row],[MEGA LOTEO]:[MEGA LOTEO]]) -> 0 | CJ9: =SUMIFS(FlujoVentasEtapas[01-2026],Etapas[[Tipo]:[Tipo]],MegaLoteo[[#This Row],[MEGA LOTEO]:[MEGA LOTEO]]) -> 0 | CK9: =SUMIFS(FlujoVentasEtapas[02-2026],Etapas[[Tipo]:[Tipo]],MegaLoteo[[#This Row],[MEGA LOTEO]:[MEGA LOTEO]]) -> 0 | CL9: =SUMIFS(FlujoVentasEtapas[03-2026],Etapas[[Tipo]:[Tipo]],MegaLoteo[[#This Row],[MEGA LOTEO]:[MEGA LOTEO]]) -> 0 | CM9: =SUMIFS(FlujoVentasEtapas[04-2026],Etapas[[Tipo]:[Tipo]],MegaLoteo[[#This Row],[MEGA LOTEO]:[MEGA LOTEO]]) -> 0 | CN9: =SUMIFS(FlujoVentasEtapas[05-2026],Etapas[[Tipo]:[Tipo]],MegaLoteo[[#This Row],[MEGA LOTEO]:[MEGA LOTEO]]) -> 0 | CO9: =SUMIFS(FlujoVentasEtapas[06-2026],Etapas[[Tipo]:[Tipo]],MegaLoteo[[#This Row],[MEGA LOTEO]:[MEGA LOTEO]]) -> 0 | CP9: =SUMIFS(FlujoVentasEtapas[07-2026],Etapas[[Tipo]:[Tipo]],MegaLoteo[[#This Row],[MEGA LOTEO]:[MEGA LOTEO]]) -> 0 | CQ9: =SUMIFS(FlujoVentasEtapas[08-2026],Etapas[[Tipo]:[Tipo]],MegaLoteo[[#This Row],[MEGA LOTEO]:[MEGA LOTEO]]) -> 0 | CR9: =SUMIFS(FlujoVentasEtapas[09-2026],Etapas[[Tipo]:[Tipo]],MegaLoteo[[#This Row],[MEGA LOTEO]:[MEGA LOTEO]]) -> 0 | CS9: =SUMIFS(FlujoVentasEtapas[10-2026],Etapas[[Tipo]:[Tipo]],MegaLoteo[[#This Row],[MEGA LOTEO]:[MEGA LOTEO]]) -> 0 | CT9: =SUMIFS(FlujoVentasEtapas[11-2026],Etapas[[Tipo]:[Tipo]],MegaLoteo[[#This Row],[MEGA LOTEO]:[MEGA LOTEO]]) -> 0 | CU9: =SUMIFS(FlujoVentasEtapas[12-2026],Etapas[[Tipo]:[Tipo]],MegaLoteo[[#This Row],[MEGA LOTEO]:[MEGA LOTEO]]) -> 0 | CV9: =SUMIFS(FlujoVentasEtapas[01-2027],Etapas[[Tipo]:[Tipo]],MegaLoteo[[#This Row],[MEGA LOTEO]:[MEGA LOTEO]]) -> 0 | CW9: =SUMIFS(FlujoVentasEtapas[02-2027],Etapas[[Tipo]:[Tipo]],MegaLoteo[[#This Row],[MEGA LOTEO]:[MEGA LOTEO]]) -> 0 | CX9: =SUMIFS(FlujoVentasEtapas[03-2027],Etapas[[Tipo]:[Tipo]],MegaLoteo[[#This Row],[MEGA LOTEO]:[MEGA LOTEO]]) -> 0 | CY9: =SUMIFS(FlujoVentasEtapas[04-2027],Etapas[[Tipo]:[Tipo]],MegaLoteo[[#This Row],[MEGA LOTEO]:[MEGA LOTEO]]) -> 0 | CZ9: =SUMIFS(FlujoVentasEtapas[05-2027],Etapas[[Tipo]:[Tipo]],MegaLoteo[[#This Row],[MEGA LOTEO]:[MEGA LOTEO]]) -> 0 | DA9: =SUMIFS(FlujoVentasEtapas[06-2027],Etapas[[Tipo]:[Tipo]],MegaLoteo[[#This Row],[MEGA LOTEO]:[MEGA LOTEO]]) -> 0 | DB9: =SUMIFS(FlujoVentasEtapas[07-2027],Etapas[[Tipo]:[Tipo]],MegaLoteo[[#This Row],[MEGA LOTEO]:[MEGA LOTEO]]) -> 0 | DC9: =SUMIFS(FlujoVentasEtapas[08-2027],Etapas[[Tipo]:[Tipo]],MegaLoteo[[#This Row],[MEGA LOTEO]:[MEGA LOTEO]]) -> 0 | DD9: =SUMIFS(FlujoVentasEtapas[09-2027],Etapas[[Tipo]:[Tipo]],MegaLoteo[[#This Row],[MEGA LOTEO]:[MEGA LOTEO]]) -> 0 | DE9: =SUMIFS(FlujoVentasEtapas[10-2027],Etapas[[Tipo]:[Tipo]],MegaLoteo[[#This Row],[MEGA LOTEO]:[MEGA LOTEO]]) -> 0 | DF9: =SUMIFS(FlujoVentasEtapas[11-2027],Etapas[[Tipo]:[Tipo]],MegaLoteo[[#This Row],[MEGA LOTEO]:[MEGA LOTEO]]) -> 0 | DG9: =SUMIFS(FlujoVentasEtapas[12-2027],Etapas[[Tipo]:[Tipo]],MegaLoteo[[#This Row],[MEGA LOTEO]:[MEGA LOTEO]]) -> 0 | DH9: =SUMIFS(FlujoVentasEtapas[01-2028],Etapas[[Tipo]:[Tipo]],MegaLoteo[[#This Row],[MEGA LOTEO]:[MEGA LOTEO]]) -> 0 | DI9: =SUMIFS(FlujoVentasEtapas[02-2028],Etapas[[Tipo]:[Tipo]],MegaLoteo[[#This Row],[MEGA LOTEO]:[MEGA LOTEO]]) -> 0 | DJ9: =SUMIFS(FlujoVentasEtapas[03-2028],Etapas[[Tipo]:[Tipo]],MegaLoteo[[#This Row],[MEGA LOTEO]:[MEGA LOTEO]]) -> 0 | DK9: =SUMIFS(FlujoVentasEtapas[04-2028],Etapas[[Tipo]:[Tipo]],MegaLoteo[[#This Row],[MEGA LOTEO]:[MEGA LOTEO]]) -> 0 | DL9: =SUMIFS(FlujoVentasEtapas[05-2028],Etapas[[Tipo]:[Tipo]],MegaLoteo[[#This Row],[MEGA LOTEO]:[MEGA LOTEO]]) -> 0 | DM9: =SUMIFS(FlujoVentasEtapas[06-2028],Etapas[[Tipo]:[Tipo]],MegaLoteo[[#This Row],[MEGA LOTEO]:[MEGA LOTEO]]) -> 0 | DN9: =SUMIFS(FlujoVentasEtapas[07-2028],Etapas[[Tipo]:[Tipo]],MegaLoteo[[#This Row],[MEGA LOTEO]:[MEGA LOTEO]]) -> 0 | DO9: =SUMIFS(FlujoVentasEtapas[08-2028],Etapas[[Tipo]:[Tipo]],MegaLoteo[[#This Row],[MEGA LOTEO]:[MEGA LOTEO]]) -> 0 | DP9: =SUMIFS(FlujoVentasEtapas[09-2028],Etapas[[Tipo]:[Tipo]],MegaLoteo[[#This Row],[MEGA LOTEO]:[MEGA LOTEO]]) -> 0 | DQ9: =SUMIFS(FlujoVentasEtapas[10-2028],Etapas[[Tipo]:[Tipo]],MegaLoteo[[#This Row],[MEGA LOTEO]:[MEGA LOTEO]]) -> 0 | DR9: =SUMIFS(FlujoVentasEtapas[11-2028],Etapas[[Tipo]:[Tipo]],MegaLoteo[[#This Row],[MEGA LOTEO]:[MEGA LOTEO]]) -> 0 | DS9: =SUMIFS(FlujoVentasEtapas[12-2028],Etapas[[Tipo]:[Tipo]],MegaLoteo[[#This Row],[MEGA LOTEO]:[MEGA LOTEO]]) -> 0 | DT9: =SUMIFS(FlujoVentasEtapas[01-2029],Etapas[[Tipo]:[Tipo]],MegaLoteo[[#This Row],[MEGA LOTEO]:[MEGA LOTEO]]) -> 0 | DU9: =SUMIFS(FlujoVentasEtapas[02-2029],Etapas[[Tipo]:[Tipo]],MegaLoteo[[#This Row],[MEGA LOTEO]:[MEGA LOTEO]]) -> 0 | DV9: =SUMIFS(FlujoVentasEtapas[03-2029],Etapas[[Tipo]:[Tipo]],MegaLoteo[[#This Row],[MEGA LOTEO]:[MEGA LOTEO]]) -> 0 | DW9: =SUMIFS(FlujoVentasEtapas[04-2029],Etapas[[Tipo]:[Tipo]],MegaLoteo[[#This Row],[MEGA LOTEO]:[MEGA LOTEO]]) -> 0 | DX9: =SUMIFS(FlujoVentasEtapas[05-2029],Etapas[[Tipo]:[Tipo]],MegaLoteo[[#This Row],[MEGA LOTEO]:[MEGA LOTEO]]) -> 0 | DY9: =SUMIFS(FlujoVentasEtapas[06-2029],Etapas[[Tipo]:[Tipo]],MegaLoteo[[#This Row],[MEGA LOTEO]:[MEGA LOTEO]]) -> 0 | DZ9: =SUMIFS(FlujoVentasEtapas[07-2029],Etapas[[Tipo]:[Tipo]],MegaLoteo[[#This Row],[MEGA LOTEO]:[MEGA LOTEO]]) -> 0 | EA9: =SUMIFS(FlujoVentasEtapas[08-2029],Etapas[[Tipo]:[Tipo]],MegaLoteo[[#This Row],[MEGA LOTEO]:[MEGA LOTEO]]) -> 0 | EB9: =SUMIFS(FlujoVentasEtapas[09-2029],Etapas[[Tipo]:[Tipo]],MegaLoteo[[#This Row],[MEGA LOTEO]:[MEGA LOTEO]]) -> 0 | EC9: =SUMIFS(FlujoVentasEtapas[10-2029],Etapas[[Tipo]:[Tipo]],MegaLoteo[[#This Row],[MEGA LOTEO]:[MEGA LOTEO]]) -> 0 | ED9: =SUMIFS(FlujoVentasEtapas[11-2029],Etapas[[Tipo]:[Tipo]],MegaLoteo[[#This Row],[MEGA LOTEO]:[MEGA LOTEO]]) -> 0 | EE9: =SUMIFS(FlujoVentasEtapas[12-2029],Etapas[[Tipo]:[Tipo]],MegaLoteo[[#This Row],[MEGA LOTEO]:[MEGA LOTEO]]) -> 0 | EF9: =SUMIFS(FlujoVentasEtapas[01-2030],Etapas[[Tipo]:[Tipo]],MegaLoteo[[#This Row],[MEGA LOTEO]:[MEGA LOTEO]]) -> 0 | EG9: =SUMIFS(FlujoVentasEtapas[02-2030],Etapas[[Tipo]:[Tipo]],MegaLoteo[[#This Row],[MEGA LOTEO]:[MEGA LOTEO]]) -> 0 | EH9: =SUMIFS(FlujoVentasEtapas[03-2030],Etapas[[Tipo]:[Tipo]],MegaLoteo[[#This Row],[MEGA LOTEO]:[MEGA LOTEO]]) -> 0 | EI9: =SUMIFS(FlujoVentasEtapas[04-2030],Etapas[[Tipo]:[Tipo]],MegaLoteo[[#This Row],[MEGA LOTEO]:[MEGA LOTEO]]) -> 0 | EJ9: =SUMIFS(FlujoVentasEtapas[05-2030],Etapas[[Tipo]:[Tipo]],MegaLoteo[[#This Row],[MEGA LOTEO]:[MEGA LOTEO]]) -> 0 | EK9: =SUMIFS(FlujoVentasEtapas[06-2030],Etapas[[Tipo]:[Tipo]],MegaLoteo[[#This Row],[MEGA LOTEO]:[MEGA LOTEO]]) -> 0 | EL9: =SUMIFS(FlujoVentasEtapas[07-2030],Etapas[[Tipo]:[Tipo]],MegaLoteo[[#This Row],[MEGA LOTEO]:[MEGA LOTEO]]) -> 0 | EM9: =SUMIFS(FlujoVentasEtapas[08-2030],Etapas[[Tipo]:[Tipo]],MegaLoteo[[#This Row],[MEGA LOTEO]:[MEGA LOTEO]]) -> 0 | EN9: =SUMIFS(FlujoVentasEtapas[09-2030],Etapas[[Tipo]:[Tipo]],MegaLoteo[[#This Row],[MEGA LOTEO]:[MEGA LOTEO]]) -> 0 | EO9: =SUMIFS(FlujoVentasEtapas[10-2030],Etapas[[Tipo]:[Tipo]],MegaLoteo[[#This Row],[MEGA LOTEO]:[MEGA LOTEO]]) -> 0 | EP9: =SUMIFS(FlujoVentasEtapas[11-2030],Etapas[[Tipo]:[Tipo]],MegaLoteo[[#This Row],[MEGA LOTEO]:[MEGA LOTEO]]) -> 0 | EQ9: =SUMIFS(FlujoVentasEtapas[12-2030],Etapas[[Tipo]:[Tipo]],MegaLoteo[[#This Row],[MEGA LOTEO]:[MEGA LOTEO]]) -> 0 | ER9: =SUMIFS(FlujoVentasEtapas[01-2031],Etapas[[Tipo]:[Tipo]],MegaLoteo[[#This Row],[MEGA LOTEO]:[MEGA LOTEO]]) -> 0 | ES9: =SUMIFS(FlujoVentasEtapas[02-2031],Etapas[[Tipo]:[Tipo]],MegaLoteo[[#This Row],[MEGA LOTEO]:[MEGA LOTEO]]) -> 0 | ET9: =SUMIFS(FlujoVentasEtapas[03-2031],Etapas[[Tipo]:[Tipo]],MegaLoteo[[#This Row],[MEGA LOTEO]:[MEGA LOTEO]]) -> 0 | EU9: =SUMIFS(FlujoVentasEtapas[04-2031],Etapas[[Tipo]:[Tipo]],MegaLoteo[[#This Row],[MEGA LOTEO]:[MEGA LOTEO]]) -> 0 | EV9: =SUMIFS(FlujoVentasEtapas[05-2031],Etapas[[Tipo]:[Tipo]],MegaLoteo[[#This Row],[MEGA LOTEO]:[MEGA LOTEO]]) -> 0 | EW9: =SUMIFS(FlujoVentasEtapas[06-2031],Etapas[[Tipo]:[Tipo]],MegaLoteo[[#This Row],[MEGA LOTEO]:[MEGA LOTEO]]) -> 0 | EX9: =SUMIFS(FlujoVentasEtapas[07-2031],Etapas[[Tipo]:[Tipo]],MegaLoteo[[#This Row],[MEGA LOTEO]:[MEGA LOTEO]]) -> 0 | EY9: =SUMIFS(FlujoVentasEtapas[08-2031],Etapas[[Tipo]:[Tipo]],MegaLoteo[[#This Row],[MEGA LOTEO]:[MEGA LOTEO]]) -> 0 | EZ9: =SUMIFS(FlujoVentasEtapas[09-2031],Etapas[[Tipo]:[Tipo]],MegaLoteo[[#This Row],[MEGA LOTEO]:[MEGA LOTEO]]) -> 0 | FA9: =SUMIFS(FlujoVentasEtapas[10-2031],Etapas[[Tipo]:[Tipo]],MegaLoteo[[#This Row],[MEGA LOTEO]:[MEGA LOTEO]]) -> 0 | FB9: =SUMIFS(FlujoVentasEtapas[11-2031],Etapas[[Tipo]:[Tipo]],MegaLoteo[[#This Row],[MEGA LOTEO]:[MEGA LOTEO]]) -> 0 | FC9: =SUMIFS(FlujoVentasEtapas[12-2031],Etapas[[Tipo]:[Tipo]],MegaLoteo[[#This Row],[MEGA LOTEO]:[MEGA LOTEO]]) -> 0 | FD9: =SUMIFS(FlujoVentasEtapas[01-2032],Etapas[[Tipo]:[Tipo]],MegaLoteo[[#This Row],[MEGA LOTEO]:[MEGA LOTEO]]) -> 0 | FE9: =SUMIFS(FlujoVentasEtapas[02-2032],Etapas[[Tipo]:[Tipo]],MegaLoteo[[#This Row],[MEGA LOTEO]:[MEGA LOTEO]]) -> 0 | FF9: =SUMIFS(FlujoVentasEtapas[03-2032],Etapas[[Tipo]:[Tipo]],MegaLoteo[[#This Row],[MEGA LOTEO]:[MEGA LOTEO]]) -> 0 | FG9: =SUMIFS(FlujoVentasEtapas[04-2032],Etapas[[Tipo]:[Tipo]],MegaLoteo[[#This Row],[MEGA LOTEO]:[MEGA LOTEO]]) -> 0 | FH9: =SUMIFS(FlujoVentasEtapas[05-2032],Etapas[[Tipo]:[Tipo]],MegaLoteo[[#This Row],[MEGA LOTEO]:[MEGA LOTEO]]) -> 0 | FI9: =SUMIFS(FlujoVentasEtapas[06-2032],Etapas[[Tipo]:[Tipo]],MegaLoteo[[#This Row],[MEGA LOTEO]:[MEGA LOTEO]]) -> 0 | FJ9: =SUMIFS(FlujoVentasEtapas[07-2032],Etapas[[Tipo]:[Tipo]],MegaLoteo[[#This Row],[MEGA LOTEO]:[MEGA LOTEO]]) -> 0 | FK9: =SUMIFS(FlujoVentasEtapas[08-2032],Etapas[[Tipo]:[Tipo]],MegaLoteo[[#This Row],[MEGA LOTEO]:[MEGA LOTEO]]) -> 0 | FL9: =SUMIFS(FlujoVentasEtapas[09-2032],Etapas[[Tipo]:[Tipo]],MegaLoteo[[#This Row],[MEGA LOTEO]:[MEGA LOTEO]]) -> 0 | FM9: =SUMIFS(FlujoVentasEtapas[10-2032],Etapas[[Tipo]:[Tipo]],MegaLoteo[[#This Row],[MEGA LOTEO]:[MEGA LOTEO]]) -> 0 | FN9: =SUMIFS(FlujoVentasEtapas[11-2032],Etapas[[Tipo]:[Tipo]],MegaLoteo[[#This Row],[MEGA LOTEO]:[MEGA LOTEO]]) -> 0 | FO9: =SUMIFS(FlujoVentasEtapas[12-2032],Etapas[[Tipo]:[Tipo]],MegaLoteo[[#This Row],[MEGA LOTEO]:[MEGA LOTEO]]) -> 0 | FP9: =SUMIFS(FlujoVentasEtapas[01-2033],Etapas[[Tipo]:[Tipo]],MegaLoteo[[#This Row],[MEGA LOTEO]:[MEGA LOTEO]]) -> 0 | FQ9: =SUMIFS(FlujoVentasEtapas[02-2033],Etapas[[Tipo]:[Tipo]],MegaLoteo[[#This Row],[MEGA LOTEO]:[MEGA LOTEO]]) -> 0 | FR9: =SUMIFS(FlujoVentasEtapas[03-2033],Etapas[[Tipo]:[Tipo]],MegaLoteo[[#This Row],[MEGA LOTEO]:[MEGA LOTEO]]) -> 0 | FS9: =SUMIFS(FlujoVentasEtapas[04-2033],Etapas[[Tipo]:[Tipo]],MegaLoteo[[#This Row],[MEGA LOTEO]:[MEGA LOTEO]]) -> 0 | FT9: =SUMIFS(FlujoVentasEtapas[05-2033],Etapas[[Tipo]:[Tipo]],MegaLoteo[[#This Row],[MEGA LOTEO]:[MEGA LOTEO]]) -> 0 | FU9: =SUMIFS(FlujoVentasEtapas[06-2033],Etapas[[Tipo]:[Tipo]],MegaLoteo[[#This Row],[MEGA LOTEO]:[MEGA LOTEO]]) -> 0 | FV9: =SUMIFS(FlujoVentasEtapas[07-2033],Etapas[[Tipo]:[Tipo]],MegaLoteo[[#This Row],[MEGA LOTEO]:[MEGA LOTEO]]) -> 0 | FW9: =SUMIFS(FlujoVentasEtapas[08-2033],Etapas[[Tipo]:[Tipo]],MegaLoteo[[#This Row],[MEGA LOTEO]:[MEGA LOTEO]]) -> 0 | FX9: =SUMIFS(FlujoVentasEtapas[09-2033],Etapas[[Tipo]:[Tipo]],MegaLoteo[[#This Row],[MEGA LOTEO]:[MEGA LOTEO]]) -> 0 | FY9: =SUMIFS(FlujoVentasEtapas[10-2033],Etapas[[Tipo]:[Tipo]],MegaLoteo[[#This Row],[MEGA LOTEO]:[MEGA LOTEO]]) -> 0 | FZ9: =SUMIFS(FlujoVentasEtapas[11-2033],Etapas[[Tipo]:[Tipo]],MegaLoteo[[#This Row],[MEGA LOTEO]:[MEGA LOTEO]]) -> 0 | GA9: =SUMIFS(FlujoVentasEtapas[12-2033],Etapas[[Tipo]:[Tipo]],MegaLoteo[[#This Row],[MEGA LOTEO]:[MEGA LOTEO]]) -> 0 | GB9: =SUMIFS(FlujoVentasEtapas[01-2034],Etapas[[Tipo]:[Tipo]],MegaLoteo[[#This Row],[MEGA LOTEO]:[MEGA LOTEO]]) -> 0 | GC9: =SUMIFS(FlujoVentasEtapas[02-2034],Etapas[[Tipo]:[Tipo]],MegaLoteo[[#This Row],[MEGA LOTEO]:[MEGA LOTEO]]) -> 0 | GD9: =SUMIFS(FlujoVentasEtapas[03-2034],Etapas[[Tipo]:[Tipo]],MegaLoteo[[#This Row],[MEGA LOTEO]:[MEGA LOTEO]]) -> 0 | GE9: =SUMIFS(FlujoVentasEtapas[04-2034],Etapas[[Tipo]:[Tipo]],MegaLoteo[[#This Row],[MEGA LOTEO]:[MEGA LOTEO]]) -> 0 | GF9: =SUMIFS(FlujoVentasEtapas[05-2034],Etapas[[Tipo]:[Tipo]],MegaLoteo[[#This Row],[MEGA LOTEO]:[MEGA LOTEO]]) -> 0 | GG9: =SUMIFS(FlujoVentasEtapas[06-2034],Etapas[[Tipo]:[Tipo]],MegaLoteo[[#This Row],[MEGA LOTEO]:[MEGA LOTEO]]) -> 0 | GH9: =SUMIFS(FlujoVentasEtapas[07-2034],Etapas[[Tipo]:[Tipo]],MegaLoteo[[#This Row],[MEGA LOTEO]:[MEGA LOTEO]]) -> 0 | GI9: =SUMIFS(FlujoVentasEtapas[08-2034],Etapas[[Tipo]:[Tipo]],MegaLoteo[[#This Row],[MEGA LOTEO]:[MEGA LOTEO]]) -> 0 | GJ9: =SUMIFS(FlujoVentasEtapas[09-2034],Etapas[[Tipo]:[Tipo]],MegaLoteo[[#This Row],[MEGA LOTEO]:[MEGA LOTEO]]) -> 0 | GK9: =SUMIFS(FlujoVentasEtapas[10-2034],Etapas[[Tipo]:[Tipo]],MegaLoteo[[#This Row],[MEGA LOTEO]:[MEGA LOTEO]]) -> 0 | GL9: =SUMIFS(FlujoVentasEtapas[11-2034],Etapas[[Tipo]:[Tipo]],MegaLoteo[[#This Row],[MEGA LOTEO]:[MEGA LOTEO]]) -> 0 | GM9: =SUMIFS(FlujoVentasEtapas[12-2034],Etapas[[Tipo]:[Tipo]],MegaLoteo[[#This Row],[MEGA LOTEO]:[MEGA LOTEO]]) -> 0 | GN9: =SUMIFS(FlujoVentasEtapas[01-2035],Etapas[[Tipo]:[Tipo]],MegaLoteo[[#This Row],[MEGA LOTEO]:[MEGA LOTEO]]) -> 0 | GO9: =SUMIFS(FlujoVentasEtapas[02-2035],Etapas[[Tipo]:[Tipo]],MegaLoteo[[#This Row],[MEGA LOTEO]:[MEGA LOTEO]]) -> 0 | GP9: =SUMIFS(FlujoVentasEtapas[03-2035],Etapas[[Tipo]:[Tipo]],MegaLoteo[[#This Row],[MEGA LOTEO]:[MEGA LOTEO]]) -> 0 | GQ9: =SUMIFS(FlujoVentasEtapas[04-2035],Etapas[[Tipo]:[Tipo]],MegaLoteo[[#This Row],[MEGA LOTEO]:[MEGA LOTEO]]) -> 0 | GR9: =SUMIFS(FlujoVentasEtapas[05-2035],Etapas[[Tipo]:[Tipo]],MegaLoteo[[#This Row],[MEGA LOTEO]:[MEGA LOTEO]]) -> 0 | GS9: =SUMIFS(FlujoVentasEtapas[06-2035],Etapas[[Tipo]:[Tipo]],MegaLoteo[[#This Row],[MEGA LOTEO]:[MEGA LOTEO]]) -> 0 | GT9: =SUMIFS(FlujoVentasEtapas[07-2035],Etapas[[Tipo]:[Tipo]],MegaLoteo[[#This Row],[MEGA LOTEO]:[MEGA LOTEO]]) -> 0 | GU9: =SUMIFS(FlujoVentasEtapas[08-2035],Etapas[[Tipo]:[Tipo]],MegaLoteo[[#This Row],[MEGA LOTEO]:[MEGA LOTEO]]) -> 0 | GV9: =SUMIFS(FlujoVentasEtapas[09-2035],Etapas[[Tipo]:[Tipo]],MegaLoteo[[#This Row],[MEGA LOTEO]:[MEGA LOTEO]]) -> 0 | GW9: =SUMIFS(FlujoVentasEtapas[10-2035],Etapas[[Tipo]:[Tipo]],MegaLoteo[[#This Row],[MEGA LOTEO]:[MEGA LOTEO]]) -> 0 | GX9: =SUMIFS(FlujoVentasEtapas[11-2035],Etapas[[Tipo]:[Tipo]],MegaLoteo[[#This Row],[MEGA LOTEO]:[MEGA LOTEO]]) -> 0 | GY9: =SUMIFS(FlujoVentasEtapas[12-2035],Etapas[[Tipo]:[Tipo]],MegaLoteo[[#This Row],[MEGA LOTEO]:[MEGA LOTEO]]) -> 0 | GZ9: =SUMIFS(FlujoVentasEtapas[01-2036],Etapas[[Tipo]:[Tipo]],MegaLoteo[[#This Row],[MEGA LOTEO]:[MEGA LOTEO]]) -> 0 | HA9: =SUMIFS(FlujoVentasEtapas[02-2036],Etapas[[Tipo]:[Tipo]],MegaLoteo[[#This Row],[MEGA LOTEO]:[MEGA LOTEO]]) -> 0 | HB9: =SUMIFS(FlujoVentasEtapas[03-2036],Etapas[[Tipo]:[Tipo]],MegaLoteo[[#This Row],[MEGA LOTEO]:[MEGA LOTEO]]) -> 0 | HC9: =SUMIFS(FlujoVentasEtapas[04-2036],Etapas[[Tipo]:[Tipo]],MegaLoteo[[#This Row],[MEGA LOTEO]:[MEGA LOTEO]]) -> 0 | HD9: =SUMIFS(FlujoVentasEtapas[05-2036],Etapas[[Tipo]:[Tipo]],MegaLoteo[[#This Row],[MEGA LOTEO]:[MEGA LOTEO]]) -> 0 | HE9: =SUMIFS(FlujoVentasEtapas[06-2036],Etapas[[Tipo]:[Tipo]],MegaLoteo[[#This Row],[MEGA LOTEO]:[MEGA LOTEO]]) -> 0 | HF9: =SUMIFS(FlujoVentasEtapas[07-2036],Etapas[[Tipo]:[Tipo]],MegaLoteo[[#This Row],[MEGA LOTEO]:[MEGA LOTEO]]) -> 0 | HG9: =SUMIFS(FlujoVentasEtapas[08-2036],Etapas[[Tipo]:[Tipo]],MegaLoteo[[#This Row],[MEGA LOTEO]:[MEGA LOTEO]]) -> 0 | HH9: =SUMIFS(FlujoVentasEtapas[09-2036],Etapas[[Tipo]:[Tipo]],MegaLoteo[[#This Row],[MEGA LOTEO]:[MEGA LOTEO]]) -> 0 | HI9: =SUMIFS(FlujoVentasEtapas[10-2036],Etapas[[Tipo]:[Tipo]],MegaLoteo[[#This Row],[MEGA LOTEO]:[MEGA LOTEO]]) -> 0 | HJ9: =SUMIFS(FlujoVentasEtapas[11-2036],Etapas[[Tipo]:[Tipo]],MegaLoteo[[#This Row],[MEGA LOTEO]:[MEGA LOTEO]]) -> 0 | HK9: =SUMIFS(FlujoVentasEtapas[12-2036],Etapas[[Tipo]:[Tipo]],MegaLoteo[[#This Row],[MEGA LOTEO]:[MEGA LOTEO]]) -> 0 | HL9: =SUMIFS(FlujoVentasEtapas[01-2037],Etapas[[Tipo]:[Tipo]],MegaLoteo[[#This Row],[MEGA LOTEO]:[MEGA LOTEO]]) -> 0 | HM9: =SUMIFS(FlujoVentasEtapas[02-2037],Etapas[[Tipo]:[Tipo]],MegaLoteo[[#This Row],[MEGA LOTEO]:[MEGA LOTEO]]) -> 0 | HN9: =SUMIFS(FlujoVentasEtapas[03-2037],Etapas[[Tipo]:[Tipo]],MegaLoteo[[#This Row],[MEGA LOTEO]:[MEGA LOTEO]]) -> 0 | HO9: =SUMIFS(FlujoVentasEtapas[04-2037],Etapas[[Tipo]:[Tipo]],MegaLoteo[[#This Row],[MEGA LOTEO]:[MEGA LOTEO]]) -> 0 | HP9: =SUMIFS(FlujoVentasEtapas[05-2037],Etapas[[Tipo]:[Tipo]],MegaLoteo[[#This Row],[MEGA LOTEO]:[MEGA LOTEO]]) -> 0 | HQ9: =SUMIFS(FlujoVentasEtapas[06-2037],Etapas[[Tipo]:[Tipo]],MegaLoteo[[#This Row],[MEGA LOTEO]:[MEGA LOTEO]]) -> 0 | HR9: =SUMIFS(FlujoVentasEtapas[07-2037],Etapas[[Tipo]:[Tipo]],MegaLoteo[[#This Row],[MEGA LOTEO]:[MEGA LOTEO]]) -> 0 | HS9: =SUMIFS(FlujoVentasEtapas[08-2037],Etapas[[Tipo]:[Tipo]],MegaLoteo[[#This Row],[MEGA LOTEO]:[MEGA LOTEO]]) -> 0 | HT9: =SUMIFS(FlujoVentasEtapas[09-2037],Etapas[[Tipo]:[Tipo]],MegaLoteo[[#This Row],[MEGA LOTEO]:[MEGA LOTEO]]) -> 0 | HU9: =SUMIFS(FlujoVentasEtapas[10-2037],Etapas[[Tipo]:[Tipo]],MegaLoteo[[#This Row],[MEGA LOTEO]:[MEGA LOTEO]]) -> 0 | HV9: =SUMIFS(FlujoVentasEtapas[11-2037],Etapas[[Tipo]:[Tipo]],MegaLoteo[[#This Row],[MEGA LOTEO]:[MEGA LOTEO]]) -> 0 | HW9: =SUMIFS(FlujoVentasEtapas[12-2037],Etapas[[Tipo]:[Tipo]],MegaLoteo[[#This Row],[MEGA LOTEO]:[MEGA LOTEO]]) -> 0 | HX9: =SUMIFS(FlujoVentasEtapas[01-2038],Etapas[[Tipo]:[Tipo]],MegaLoteo[[#This Row],[MEGA LOTEO]:[MEGA LOTEO]]) -> 0 | HY9: =SUMIFS(FlujoVentasEtapas[02-2038],Etapas[[Tipo]:[Tipo]],MegaLoteo[[#This Row],[MEGA LOTEO]:[MEGA LOTEO]]) -> 0 | HZ9: =SUMIFS(FlujoVentasEtapas[03-2038],Etapas[[Tipo]:[Tipo]],MegaLoteo[[#This Row],[MEGA LOTEO]:[MEGA LOTEO]]) -> 0 | IA9: =SUMIFS(FlujoVentasEtapas[04-2038],Etapas[[Tipo]:[Tipo]],MegaLoteo[[#This Row],[MEGA LOTEO]:[MEGA LOTEO]]) -> 0 | IB9: =SUMIFS(FlujoVentasEtapas[05-2038],Etapas[[Tipo]:[Tipo]],MegaLoteo[[#This Row],[MEGA LOTEO]:[MEGA LOTEO]]) -> 0 | IC9: =SUMIFS(FlujoVentasEtapas[06-2038],Etapas[[Tipo]:[Tipo]],MegaLoteo[[#This Row],[MEGA LOTEO]:[MEGA LOTEO]]) -> 0 | ID9: =SUMIFS(FlujoVentasEtapas[07-2038],Etapas[[Tipo]:[Tipo]],MegaLoteo[[#This Row],[MEGA LOTEO]:[MEGA LOTEO]]) -> 0 | IE9: =SUMIFS(FlujoVentasEtapas[08-2038],Etapas[[Tipo]:[Tipo]],MegaLoteo[[#This Row],[MEGA LOTEO]:[MEGA LOTEO]]) -> 0 | IF9: =SUMIFS(FlujoVentasEtapas[09-2038],Etapas[[Tipo]:[Tipo]],MegaLoteo[[#This Row],[MEGA LOTEO]:[MEGA LOTEO]]) -> 0 | IG9: =SUMIFS(FlujoVentasEtapas[10-2038],Etapas[[Tipo]:[Tipo]],MegaLoteo[[#This Row],[MEGA LOTEO]:[MEGA LOTEO]]) -> 0 | IH9: =SUMIFS(FlujoVentasEtapas[11-2038],Etapas[[Tipo]:[Tipo]],MegaLoteo[[#This Row],[MEGA LOTEO]:[MEGA LOTEO]]) -> 0 | II9: =SUMIFS(FlujoVentasEtapas[12-2038],Etapas[[Tipo]:[Tipo]],MegaLoteo[[#This Row],[MEGA LOTEO]:[MEGA LOTEO]]) -> 0 | IJ9: =SUMIFS(FlujoVentasEtapas[01-2039],Etapas[[Tipo]:[Tipo]],MegaLoteo[[#This Row],[MEGA LOTEO]:[MEGA LOTEO]]) -> 0 | IK9: =SUMIFS(FlujoVentasEtapas[02-2039],Etapas[[Tipo]:[Tipo]],MegaLoteo[[#This Row],[MEGA LOTEO]:[MEGA LOTEO]]) -> 0 | IL9: =SUMIFS(FlujoVentasEtapas[03-2039],Etapas[[Tipo]:[Tipo]],MegaLoteo[[#This Row],[MEGA LOTEO]:[MEGA LOTEO]]) -> 0 | IM9: =SUMIFS(FlujoVentasEtapas[04-2039],Etapas[[Tipo]:[Tipo]],MegaLoteo[[#This Row],[MEGA LOTEO]:[MEGA LOTEO]]) -> 0 | IN9: =SUMIFS(FlujoVentasEtapas[05-2039],Etapas[[Tipo]:[Tipo]],MegaLoteo[[#This Row],[MEGA LOTEO]:[MEGA LOTEO]]) -> 0 | IO9: =SUMIFS(FlujoVentasEtapas[06-2039],Etapas[[Tipo]:[Tipo]],MegaLoteo[[#This Row],[MEGA LOTEO]:[MEGA LOTEO]]) -> 0 | IP9: =SUMIFS(FlujoVentasEtapas[07-2039],Etapas[[Tipo]:[Tipo]],MegaLoteo[[#This Row],[MEGA LOTEO]:[MEGA LOTEO]]) -> 0 | IQ9: =SUMIFS(FlujoVentasEtapas[08-2039],Etapas[[Tipo]:[Tipo]],MegaLoteo[[#This Row],[MEGA LOTEO]:[MEGA LOTEO]]) -> 0 | IR9: =SUMIFS(FlujoVentasEtapas[09-2039],Etapas[[Tipo]:[Tipo]],MegaLoteo[[#This Row],[MEGA LOTEO]:[MEGA LOTEO]]) -> 0 | IS9: =SUMIFS(FlujoVentasEtapas[10-2039],Etapas[[Tipo]:[Tipo]],MegaLoteo[[#This Row],[MEGA LOTEO]:[MEGA LOTEO]]) -> 0 | IT9: =SUMIFS(FlujoVentasEtapas[11-2039],Etapas[[Tipo]:[Tipo]],MegaLoteo[[#This Row],[MEGA LOTEO]:[MEGA LOTEO]]) -> 0 | IU9: =SUMIFS(FlujoVentasEtapas[12-2039],Etapas[[Tipo]:[Tipo]],MegaLoteo[[#This Row],[MEGA LOTEO]:[MEGA LOTEO]]) -> 0 | IV9: =SUMIFS(FlujoVentasEtapas[01-2040],Etapas[[Tipo]:[Tipo]],MegaLoteo[[#This Row],[MEGA LOTEO]:[MEGA LOTEO]]) -> 0 | IW9: =SUMIFS(FlujoVentasEtapas[02-2040],Etapas[[Tipo]:[Tipo]],MegaLoteo[[#This Row],[MEGA LOTEO]:[MEGA LOTEO]]) -> 0 | IX9: =SUMIFS(FlujoVentasEtapas[03-2040],Etapas[[Tipo]:[Tipo]],MegaLoteo[[#This Row],[MEGA LOTEO]:[MEGA LOTEO]]) -> 0 | IY9: =SUMIFS(FlujoVentasEtapas[04-2040],Etapas[[Tipo]:[Tipo]],MegaLoteo[[#This Row],[MEGA LOTEO]:[MEGA LOTEO]]) -> 0 | IZ9: =SUMIFS(FlujoVentasEtapas[05-2040],Etapas[[Tipo]:[Tipo]],MegaLoteo[[#This Row],[MEGA LOTEO]:[MEGA LOTEO]]) -> 0 | JA9: =SUMIFS(FlujoVentasEtapas[06-2040],Etapas[[Tipo]:[Tipo]],MegaLoteo[[#This Row],[MEGA LOTEO]:[MEGA LOTEO]]) -> 0 | JB9: =SUMIFS(FlujoVentasEtapas[07-2040],Etapas[[Tipo]:[Tipo]],MegaLoteo[[#This Row],[MEGA LOTEO]:[MEGA LOTEO]]) -> 0 | JC9: =SUMIFS(FlujoVentasEtapas[08-2040],Etapas[[Tipo]:[Tipo]],MegaLoteo[[#This Row],[MEGA LOTEO]:[MEGA LOTEO]]) -> 0 | JD9: =SUMIFS(FlujoVentasEtapas[09-2040],Etapas[[Tipo]:[Tipo]],MegaLoteo[[#This Row],[MEGA LOTEO]:[MEGA LOTEO]]) -> 0 | JE9: =SUMIFS(FlujoVentasEtapas[10-2040],Etapas[[Tipo]:[Tipo]],MegaLoteo[[#This Row],[MEGA LOTEO]:[MEGA LOTEO]]) -> 0 | JF9: =SUMIFS(FlujoVentasEtapas[11-2040],Etapas[[Tipo]:[Tipo]],MegaLoteo[[#This Row],[MEGA LOTEO]:[MEGA LOTEO]]) -> 0 | JG9: =SUMIFS(FlujoVentasEtapas[12-2040],Etapas[[Tipo]:[Tipo]],MegaLoteo[[#This Row],[MEGA LOTEO]:[MEGA LOTEO]]) -> 0 | JH9: =SUMIFS(FlujoVentasEtapas[01-2041],Etapas[[Tipo]:[Tipo]],MegaLoteo[[#This Row],[MEGA LOTEO]:[MEGA LOTEO]]) -> 0 | JI9: =SUMIFS(FlujoVentasEtapas[02-2041],Etapas[[Tipo]:[Tipo]],MegaLoteo[[#This Row],[MEGA LOTEO]:[MEGA LOTEO]]) -> 0 | JJ9: =SUMIFS(FlujoVentasEtapas[03-2041],Etapas[[Tipo]:[Tipo]],MegaLoteo[[#This Row],[MEGA LOTEO]:[MEGA LOTEO]]) -> 0 | JK9: =SUMIFS(FlujoVentasEtapas[04-2041],Etapas[[Tipo]:[Tipo]],MegaLoteo[[#This Row],[MEGA LOTEO]:[MEGA LOTEO]]) -> 0 | JL9: =SUMIFS(FlujoVentasEtapas[05-2041],Etapas[[Tipo]:[Tipo]],MegaLoteo[[#This Row],[MEGA LOTEO]:[MEGA LOTEO]]) -> 0 | JM9: =SUMIFS(FlujoVentasEtapas[06-2041],Etapas[[Tipo]:[Tipo]],MegaLoteo[[#This Row],[MEGA LOTEO]:[MEGA LOTEO]]) -> 0 | JN9: =SUMIFS(FlujoVentasEtapas[07-2041],Etapas[[Tipo]:[Tipo]],MegaLoteo[[#This Row],[MEGA LOTEO]:[MEGA LOTEO]]) -> 0 | JO9: =SUMIFS(FlujoVentasEtapas[08-2041],Etapas[[Tipo]:[Tipo]],MegaLoteo[[#This Row],[MEGA LOTEO]:[MEGA LOTEO]]) -> 0 | JP9: =SUMIFS(FlujoVentasEtapas[09-2041],Etapas[[Tipo]:[Tipo]],MegaLoteo[[#This Row],[MEGA LOTEO]:[MEGA LOTEO]]) -> 0 | JQ9: =SUMIFS(FlujoVentasEtapas[10-2041],Etapas[[Tipo]:[Tipo]],MegaLoteo[[#This Row],[MEGA LOTEO]:[MEGA LOTEO]]) -> 0 | JR9: =SUMIFS(FlujoVentasEtapas[11-2041],Etapas[[Tipo]:[Tipo]],MegaLoteo[[#This Row],[MEGA LOTEO]:[MEGA LOTEO]]) -> 0 | JS9: =SUMIFS(FlujoVentasEtapas[12-2041],Etapas[[Tipo]:[Tipo]],MegaLoteo[[#This Row],[MEGA LOTEO]:[MEGA LOTEO]]) -> 0 | JT9: =SUMIFS(FlujoVentasEtapas[01-2042],Etapas[[Tipo]:[Tipo]],MegaLoteo[[#This Row],[MEGA LOTEO]:[MEGA LOTEO]]) -> 0 | JU9: =SUMIFS(FlujoVentasEtapas[02-2042],Etapas[[Tipo]:[Tipo]],MegaLoteo[[#This Row],[MEGA LOTEO]:[MEGA LOTEO]]) -> 0 | JV9: =SUMIFS(FlujoVentasEtapas[03-2042],Etapas[[Tipo]:[Tipo]],MegaLoteo[[#This Row],[MEGA LOTEO]:[MEGA LOTEO]]) -> 0 | JW9: =SUMIFS(FlujoVentasEtapas[04-2042],Etapas[[Tipo]:[Tipo]],MegaLoteo[[#This Row],[MEGA LOTEO]:[MEGA LOTEO]]) -> 0 | JX9: =SUMIFS(FlujoVentasEtapas[05-2042],Etapas[[Tipo]:[Tipo]],MegaLoteo[[#This Row],[MEGA LOTEO]:[MEGA LOTEO]]) -> 0 | JY9: =SUMIFS(FlujoVentasEtapas[06-2042],Etapas[[Tipo]:[Tipo]],MegaLoteo[[#This Row],[MEGA LOTEO]:[MEGA LOTEO]]) -> 0 | JZ9: =SUMIFS(FlujoVentasEtapas[07-2042],Etapas[[Tipo]:[Tipo]],MegaLoteo[[#This Row],[MEGA LOTEO]:[MEGA LOTEO]]) -> 0 | KA9: =SUMIFS(FlujoVentasEtapas[08-2042],Etapas[[Tipo]:[Tipo]],MegaLoteo[[#This Row],[MEGA LOTEO]:[MEGA LOTEO]]) -> 0 | KB9: =SUMIFS(FlujoVentasEtapas[09-2042],Etapas[[Tipo]:[Tipo]],MegaLoteo[[#This Row],[MEGA LOTEO]:[MEGA LOTEO]]) -> 0 | KC9: =SUMIFS(FlujoVentasEtapas[10-2042],Etapas[[Tipo]:[Tipo]],MegaLoteo[[#This Row],[MEGA LOTEO]:[MEGA LOTEO]]) -> 0 | KD9: =SUMIFS(FlujoVentasEtapas[11-2042],Etapas[[Tipo]:[Tipo]],MegaLoteo[[#This Row],[MEGA LOTEO]:[MEGA LOTEO]]) -> 0 | KE9: =SUMIFS(FlujoVentasEtapas[12-2042],Etapas[[Tipo]:[Tipo]],MegaLoteo[[#This Row],[MEGA LOTEO]:[MEGA LOTEO]]) -> 0 | KF9: =SUMIFS(FlujoVentasEtapas[01-2043],Etapas[[Tipo]:[Tipo]],MegaLoteo[[#This Row],[MEGA LOTEO]:[MEGA LOTEO]]) -> 0 | KG9: =SUMIFS(FlujoVentasEtapas[02-2043],Etapas[[Tipo]:[Tipo]],MegaLoteo[[#This Row],[MEGA LOTEO]:[MEGA LOTEO]]) -> 0 | KH9: =SUMIFS(FlujoVentasEtapas[03-2043],Etapas[[Tipo]:[Tipo]],MegaLoteo[[#This Row],[MEGA LOTEO]:[MEGA LOTEO]]) -> 0 | KI9: =SUMIFS(FlujoVentasEtapas[04-2043],Etapas[[Tipo]:[Tipo]],MegaLoteo[[#This Row],[MEGA LOTEO]:[MEGA LOTEO]]) -> 0 | KJ9: =SUMIFS(FlujoVentasEtapas[05-2043],Etapas[[Tipo]:[Tipo]],MegaLoteo[[#This Row],[MEGA LOTEO]:[MEGA LOTEO]]) -> 0 | KK9: =SUMIFS(FlujoVentasEtapas[06-2043],Etapas[[Tipo]:[Tipo]],MegaLoteo[[#This Row],[MEGA LOTEO]:[MEGA LOTEO]]) -> 0 | KL9: =SUMIFS(FlujoVentasEtapas[07-2043],Etapas[[Tipo]:[Tipo]],MegaLoteo[[#This Row],[MEGA LOTEO]:[MEGA LOTEO]]) -> 0 | KM9: =SUMIFS(FlujoVentasEtapas[08-2043],Etapas[[Tipo]:[Tipo]],MegaLoteo[[#This Row],[MEGA LOTEO]:[MEGA LOTEO]]) -> 0 | KN9: =SUMIFS(FlujoVentasEtapas[09-2043],Etapas[[Tipo]:[Tipo]],MegaLoteo[[#This Row],[MEGA LOTEO]:[MEGA LOTEO]]) -> 0 | KO9: =SUMIFS(FlujoVentasEtapas[10-2043],Etapas[[Tipo]:[Tipo]],MegaLoteo[[#This Row],[MEGA LOTEO]:[MEGA LOTEO]]) -> 0 | KP9: =SUMIFS(FlujoVentasEtapas[11-2043],Etapas[[Tipo]:[Tipo]],MegaLoteo[[#This Row],[MEGA LOTEO]:[MEGA LOTEO]]) -> 0 | KQ9: =SUMIFS(FlujoVentasEtapas[12-2043],Etapas[[Tipo]:[Tipo]],MegaLoteo[[#This Row],[MEGA LOTEO]:[MEGA LOTEO]]) -> 0 | KR9: =SUMIFS(FlujoVentasEtapas[01-2044],Etapas[[Tipo]:[Tipo]],MegaLoteo[[#This Row],[MEGA LOTEO]:[MEGA LOTEO]]) -> 0 | KS9: =SUMIFS(FlujoVentasEtapas[02-2044],Etapas[[Tipo]:[Tipo]],MegaLoteo[[#This Row],[MEGA LOTEO]:[MEGA LOTEO]]) -> 0 | KT9: =SUMIFS(FlujoVentasEtapas[03-2044],Etapas[[Tipo]:[Tipo]],MegaLoteo[[#This Row],[MEGA LOTEO]:[MEGA LOTEO]]) -> 0 | KU9: =SUMIFS(FlujoVentasEtapas[04-2044],Etapas[[Tipo]:[Tipo]],MegaLoteo[[#This Row],[MEGA LOTEO]:[MEGA LOTEO]]) -> 0 | KV9: =SUMIFS(FlujoVentasEtapas[05-2044],Etapas[[Tipo]:[Tipo]],MegaLoteo[[#This Row],[MEGA LOTEO]:[MEGA LOTEO]]) -> 0 | KW9: =SUMIFS(FlujoVentasEtapas[06-2044],Etapas[[Tipo]:[Tipo]],MegaLoteo[[#This Row],[MEGA LOTEO]:[MEGA LOTEO]]) -> 0 | KX9: =SUMIFS(FlujoVentasEtapas[07-2044],Etapas[[Tipo]:[Tipo]],MegaLoteo[[#This Row],[MEGA LOTEO]:[MEGA LOTEO]]) -> 0 | KY9: =SUMIFS(FlujoVentasEtapas[08-2044],Etapas[[Tipo]:[Tipo]],MegaLoteo[[#This Row],[MEGA LOTEO]:[MEGA LOTEO]]) -> 0 | KZ9: =SUMIFS(FlujoVentasEtapas[09-2044],Etapas[[Tipo]:[Tipo]],MegaLoteo[[#This Row],[MEGA LOTEO]:[MEGA LOTEO]]) -> 0 | LA9: =SUMIFS(FlujoVentasEtapas[10-2044],Etapas[[Tipo]:[Tipo]],MegaLoteo[[#This Row],[MEGA LOTEO]:[MEGA LOTEO]]) -> 0 | LB9: =SUMIFS(FlujoVentasEtapas[11-2044],Etapas[[Tipo]:[Tipo]],MegaLoteo[[#This Row],[MEGA LOTEO]:[MEGA LOTEO]]) -> 0 | LC9: =SUMIFS(FlujoVentasEtapas[12-2044],Etapas[[Tipo]:[Tipo]],MegaLoteo[[#This Row],[MEGA LOTEO]:[MEGA LOTEO]]) -> 0 | LD9: =SUMIFS(FlujoVentasEtapas[01-2045],Etapas[[Tipo]:[Tipo]],MegaLoteo[[#This Row],[MEGA LOTEO]:[MEGA LOTEO]]) -> 0 | LE9: =SUMIFS(FlujoVentasEtapas[02-2045],Etapas[[Tipo]:[Tipo]],MegaLoteo[[#This Row],[MEGA LOTEO]:[MEGA LOTEO]]) -> 0 | LF9: =SUMIFS(FlujoVentasEtapas[03-2045],Etapas[[Tipo]:[Tipo]],MegaLoteo[[#This Row],[MEGA LOTEO]:[MEGA LOTEO]]) -> 0 | LG9: =SUMIFS(FlujoVentasEtapas[04-2045],Etapas[[Tipo]:[Tipo]],MegaLoteo[[#This Row],[MEGA LOTEO]:[MEGA LOTEO]]) -> 0 | LH9: =SUMIFS(FlujoVentasEtapas[05-2045],Etapas[[Tipo]:[Tipo]],MegaLoteo[[#This Row],[MEGA LOTEO]:[MEGA LOTEO]]) -> 0 | LI9: =SUMIFS(FlujoVentasEtapas[06-2045],Etapas[[Tipo]:[Tipo]],MegaLoteo[[#This Row],[MEGA LOTEO]:[MEGA LOTEO]]) -> 0 | LJ9: =SUMIFS(FlujoVentasEtapas[07-2045],Etapas[[Tipo]:[Tipo]],MegaLoteo[[#This Row],[MEGA LOTEO]:[MEGA LOTEO]]) -> 0 | LK9: =SUMIFS(FlujoVentasEtapas[08-2045],Etapas[[Tipo]:[Tipo]],MegaLoteo[[#This Row],[MEGA LOTEO]:[MEGA LOTEO]]) -> 0 | LL9: =SUMIFS(FlujoVentasEtapas[09-2045],Etapas[[Tipo]:[Tipo]],MegaLoteo[[#This Row],[MEGA LOTEO]:[MEGA LOTEO]]) -> 0 | LM9: =SUMIFS(FlujoVentasEtapas[10-2045],Etapas[[Tipo]:[Tipo]],MegaLoteo[[#This Row],[MEGA LOTEO]:[MEGA LOTEO]]) -> 0 | LN9: =SUMIFS(FlujoVentasEtapas[11-2045],Etapas[[Tipo]:[Tipo]],MegaLoteo[[#This Row],[MEGA LOTEO]:[MEGA LOTEO]]) -> 0 | LO9: =SUMIFS(FlujoVentasEtapas[12-2045],Etapas[[Tipo]:[Tipo]],MegaLoteo[[#This Row],[MEGA LOTEO]:[MEGA LOTEO]]) -> 0 | LP9: =SUMIFS(FlujoVentasEtapas[01-2046],Etapas[[Tipo]:[Tipo]],MegaLoteo[[#This Row],[MEGA LOTEO]:[MEGA LOTEO]]) -> 0 | LQ9: =SUMIFS(FlujoVentasEtapas[02-2046],Etapas[[Tipo]:[Tipo]],MegaLoteo[[#This Row],[MEGA LOTEO]:[MEGA LOTEO]]) -> 0 | LR9: =SUMIFS(FlujoVentasEtapas[03-2046],Etapas[[Tipo]:[Tipo]],MegaLoteo[[#This Row],[MEGA LOTEO]:[MEGA LOTEO]]) -> 0 | LS9: =SUMIFS(FlujoVentasEtapas[04-2046],Etapas[[Tipo]:[Tipo]],MegaLoteo[[#This Row],[MEGA LOTEO]:[MEGA LOTEO]]) -> 0 | LT9: =SUMIFS(FlujoVentasEtapas[05-2046],Etapas[[Tipo]:[Tipo]],MegaLoteo[[#This Row],[MEGA LOTEO]:[MEGA LOTEO]]) -> 0 | LU9: =SUMIFS(FlujoVentasEtapas[06-2046],Etapas[[Tipo]:[Tipo]],MegaLoteo[[#This Row],[MEGA LOTEO]:[MEGA LOTEO]]) -> 0 | LV9: =SUMIFS(FlujoVentasEtapas[07-2046],Etapas[[Tipo]:[Tipo]],MegaLoteo[[#This Row],[MEGA LOTEO]:[MEGA LOTEO]]) -> 0 | LW9: =SUMIFS(FlujoVentasEtapas[08-2046],Etapas[[Tipo]:[Tipo]],MegaLoteo[[#This Row],[MEGA LOTEO]:[MEGA LOTEO]]) -> 0 | LX9: =SUMIFS(FlujoVentasEtapas[09-2046],Etapas[[Tipo]:[Tipo]],MegaLoteo[[#This Row],[MEGA LOTEO]:[MEGA LOTEO]]) -> 0 | LY9: =SUMIFS(FlujoVentasEtapas[10-2046],Etapas[[Tipo]:[Tipo]],MegaLoteo[[#This Row],[MEGA LOTEO]:[MEGA LOTEO]]) -> 0 | LZ9: =SUMIFS(FlujoVentasEtapas[11-2046],Etapas[[Tipo]:[Tipo]],MegaLoteo[[#This Row],[MEGA LOTEO]:[MEGA LOTEO]]) -> 0 | MA9: =SUMIFS(FlujoVentasEtapas[12-2046],Etapas[[Tipo]:[Tipo]],MegaLoteo[[#This Row],[MEGA LOTEO]:[MEGA LOTEO]]) -> 0 | MB9: =SUMIFS(FlujoVentasEtapas[01-2047],Etapas[[Tipo]:[Tipo]],MegaLoteo[[#This Row],[MEGA LOTEO]:[MEGA LOTEO]]) -> 0 | MC9: =SUMIFS(FlujoVentasEtapas[02-2047],Etapas[[Tipo]:[Tipo]],MegaLoteo[[#This Row],[MEGA LOTEO]:[MEGA LOTEO]]) -> 0 | MD9: =SUMIFS(FlujoVentasEtapas[03-2047],Etapas[[Tipo]:[Tipo]],MegaLoteo[[#This Row],[MEGA LOTEO]:[MEGA LOTEO]]) -> 0 | ME9: =SUMIFS(FlujoVentasEtapas[04-2047],Etapas[[Tipo]:[Tipo]],MegaLoteo[[#This Row],[MEGA LOTEO]:[MEGA LOTEO]]) -> 0 | MF9: =SUMIFS(FlujoVentasEtapas[05-2047],Etapas[[Tipo]:[Tipo]],MegaLoteo[[#This Row],[MEGA LOTEO]:[MEGA LOTEO]]) -> 0 | MG9: =SUMIFS(FlujoVentasEtapas[06-2047],Etapas[[Tipo]:[Tipo]],MegaLoteo[[#This Row],[MEGA LOTEO]:[MEGA LOTEO]]) -> 0 | MH9: =SUMIFS(FlujoVentasEtapas[07-2047],Etapas[[Tipo]:[Tipo]],MegaLoteo[[#This Row],[MEGA LOTEO]:[MEGA LOTEO]]) -> 0 | MI9: =SUMIFS(FlujoVentasEtapas[08-2047],Etapas[[Tipo]:[Tipo]],MegaLoteo[[#This Row],[MEGA LOTEO]:[MEGA LOTEO]]) -> 0 | MJ9: =SUMIFS(FlujoVentasEtapas[09-2047],Etapas[[Tipo]:[Tipo]],MegaLoteo[[#This Row],[MEGA LOTEO]:[MEGA LOTEO]]) -> 0 | MK9: =SUMIFS(FlujoVentasEtapas[10-2047],Etapas[[Tipo]:[Tipo]],MegaLoteo[[#This Row],[MEGA LOTEO]:[MEGA LOTEO]]) -> 0 | ML9: =SUMIFS(FlujoVentasEtapas[11-2047],Etapas[[Tipo]:[Tipo]],MegaLoteo[[#This Row],[MEGA LOTEO]:[MEGA LOTEO]]) -> 0 | MM9: =SUMIFS(FlujoVentasEtapas[12-2047],Etapas[[Tipo]:[Tipo]],MegaLoteo[[#This Row],[MEGA LOTEO]:[MEGA LOTEO]]) -> 0 | MN9: =SUMIFS(FlujoVentasEtapas[01-2048],Etapas[[Tipo]:[Tipo]],MegaLoteo[[#This Row],[MEGA LOTEO]:[MEGA LOTEO]]) -> 0 | MO9: =SUMIFS(FlujoVentasEtapas[02-2048],Etapas[[Tipo]:[Tipo]],MegaLoteo[[#This Row],[MEGA LOTEO]:[MEGA LOTEO]]) -> 0 | MP9: =SUMIFS(FlujoVentasEtapas[03-2048],Etapas[[Tipo]:[Tipo]],MegaLoteo[[#This Row],[MEGA LOTEO]:[MEGA LOTEO]]) -> 0 | MQ9: =SUMIFS(FlujoVentasEtapas[04-2048],Etapas[[Tipo]:[Tipo]],MegaLoteo[[#This Row],[MEGA LOTEO]:[MEGA LOTEO]]) -> 0 | MR9: =SUMIFS(FlujoVentasEtapas[05-2048],Etapas[[Tipo]:[Tipo]],MegaLoteo[[#This Row],[MEGA LOTEO]:[MEGA LOTEO]]) -> 0 | MS9: =SUMIFS(FlujoVentasEtapas[06-2048],Etapas[[Tipo]:[Tipo]],MegaLoteo[[#This Row],[MEGA LOTEO]:[MEGA LOTEO]]) -> 0 | MT9: =SUMIFS(FlujoVentasEtapas[07-2048],Etapas[[Tipo]:[Tipo]],MegaLoteo[[#This Row],[MEGA LOTEO]:[MEGA LOTEO]]) -> 0 | MU9: =SUMIFS(FlujoVentasEtapas[08-2048],Etapas[[Tipo]:[Tipo]],MegaLoteo[[#This Row],[MEGA LOTEO]:[MEGA LOTEO]]) -> 0 | MV9: =SUMIFS(FlujoVentasEtapas[09-2048],Etapas[[Tipo]:[Tipo]],MegaLoteo[[#This Row],[MEGA LOTEO]:[MEGA LOTEO]]) -> 0 | MW9: =SUMIFS(FlujoVentasEtapas[10-2048],Etapas[[Tipo]:[Tipo]],MegaLoteo[[#This Row],[MEGA LOTEO]:[MEGA LOTEO]]) -> 0 | MX9: =SUMIFS(FlujoVentasEtapas[11-2048],Etapas[[Tipo]:[Tipo]],MegaLoteo[[#This Row],[MEGA LOTEO]:[MEGA LOTEO]]) -> 0 | MY9: =SUMIFS(FlujoVentasEtapas[12-2048],Etapas[[Tipo]:[Tipo]],MegaLoteo[[#This Row],[MEGA LOTEO]:[MEGA LOTEO]]) -> 0 | MZ9: =SUMIFS(FlujoVentasEtapas[01-2049],Etapas[[Tipo]:[Tipo]],MegaLoteo[[#This Row],[MEGA LOTEO]:[MEGA LOTEO]]) -> 0 | NA9: =SUMIFS(FlujoVentasEtapas[02-2049],Etapas[[Tipo]:[Tipo]],MegaLoteo[[#This Row],[MEGA LOTEO]:[MEGA LOTEO]]) -> 0 | NB9: =SUMIFS(FlujoVentasEtapas[03-2049],Etapas[[Tipo]:[Tipo]],MegaLoteo[[#This Row],[MEGA LOTEO]:[MEGA LOTEO]]) -> 0 | NC9: =SUMIFS(FlujoVentasEtapas[04-2049],Etapas[[Tipo]:[Tipo]],MegaLoteo[[#This Row],[MEGA LOTEO]:[MEGA LOTEO]]) -> 0 | ND9: =SUMIFS(FlujoVentasEtapas[05-2049],Etapas[[Tipo]:[Tipo]],MegaLoteo[[#This Row],[MEGA LOTEO]:[MEGA LOTEO]]) -> 0 | NE9: =SUMIFS(FlujoVentasEtapas[06-2049],Etapas[[Tipo]:[Tipo]],MegaLoteo[[#This Row],[MEGA LOTEO]:[MEGA LOTEO]]) -> 0 | NF9: =SUMIFS(FlujoVentasEtapas[07-2049],Etapas[[Tipo]:[Tipo]],MegaLoteo[[#This Row],[MEGA LOTEO]:[MEGA LOTEO]]) -> 0 | NG9: =SUMIFS(FlujoVentasEtapas[08-2049],Etapas[[Tipo]:[Tipo]],MegaLoteo[[#This Row],[MEGA LOTEO]:[MEGA LOTEO]]) -> 0 | NH9: =SUMIFS(FlujoVentasEtapas[09-2049],Etapas[[Tipo]:[Tipo]],MegaLoteo[[#This Row],[MEGA LOTEO]:[MEGA LOTEO]]) -> 0 | NI9: =SUMIFS(FlujoVentasEtapas[10-2049],Etapas[[Tipo]:[Tipo]],MegaLoteo[[#This Row],[MEGA LOTEO]:[MEGA LOTEO]]) -> 0 | NJ9: =SUMIFS(FlujoVentasEtapas[11-2049],Etapas[[Tipo]:[Tipo]],MegaLoteo[[#This Row],[MEGA LOTEO]:[MEGA LOTEO]]) -> 0 | NK9: =SUMIFS(FlujoVentasEtapas[12-2049],Etapas[[Tipo]:[Tipo]],MegaLoteo[[#This Row],[MEGA LOTEO]:[MEGA LOTEO]]) -> 0 | NL9: =SUMIFS(FlujoVentasEtapas[01-2050],Etapas[[Tipo]:[Tipo]],MegaLoteo[[#This Row],[MEGA LOTEO]:[MEGA LOTEO]]) -> 0 | NM9: =SUMIFS(FlujoVentasEtapas[02-2050],Etapas[[Tipo]:[Tipo]],MegaLoteo[[#This Row],[MEGA LOTEO]:[MEGA LOTEO]]) -> 0 | NN9: =SUMIFS(FlujoVentasEtapas[03-2050],Etapas[[Tipo]:[Tipo]],MegaLoteo[[#This Row],[MEGA LOTEO]:[MEGA LOTEO]]) -> 0 | NO9: =SUMIFS(FlujoVentasEtapas[04-2050],Etapas[[Tipo]:[Tipo]],MegaLoteo[[#This Row],[MEGA LOTEO]:[MEGA LOTEO]]) -> 0 | NP9: =SUMIFS(FlujoVentasEtapas[05-2050],Etapas[[Tipo]:[Tipo]],MegaLoteo[[#This Row],[MEGA LOTEO]:[MEGA LOTEO]]) -> 0 | NQ9: =SUMIFS(FlujoVentasEtapas[06-2050],Etapas[[Tipo]:[Tipo]],MegaLoteo[[#This Row],[MEGA LOTEO]:[MEGA LOTEO]]) -> 0 | NR9: =SUMIFS(FlujoVentasEtapas[07-2050],Etapas[[Tipo]:[Tipo]],MegaLoteo[[#This Row],[MEGA LOTEO]:[MEGA LOTEO]]) -> 0 | NS9: =SUMIFS(FlujoVentasEtapas[08-2050],Etapas[[Tipo]:[Tipo]],MegaLoteo[[#This Row],[MEGA LOTEO]:[MEGA LOTEO]]) -> 0 | NT9: =SUMIFS(FlujoVentasEtapas[09-2050],Etapas[[Tipo]:[Tipo]],MegaLoteo[[#This Row],[MEGA LOTEO]:[MEGA LOTEO]]) -> 0 | NU9: =SUMIFS(FlujoVentasEtapas[10-2050],Etapas[[Tipo]:[Tipo]],MegaLoteo[[#This Row],[MEGA LOTEO]:[MEGA LOTEO]]) -> 0 | NV9: =SUMIFS(FlujoVentasEtapas[11-2050],Etapas[[Tipo]:[Tipo]],MegaLoteo[[#This Row],[MEGA LOTEO]:[MEGA LOTEO]]) -> 0 | NW9: =SUMIFS(FlujoVentasEtapas[12-2050],Etapas[[Tipo]:[Tipo]],MegaLoteo[[#This Row],[MEGA LOTEO]:[MEGA LOTEO]]) -> 0 | NX9: =SUMIFS(FlujoVentasEtapas[01-2051],Etapas[[Tipo]:[Tipo]],MegaLoteo[[#This Row],[MEGA LOTEO]:[MEGA LOTEO]]) -> 0 | NY9: =SUMIFS(FlujoVentasEtapas[02-2051],Etapas[[Tipo]:[Tipo]],MegaLoteo[[#This Row],[MEGA LOTEO]:[MEGA LOTEO]]) -> 0 | NZ9: =SUMIFS(FlujoVentasEtapas[03-2051],Etapas[[Tipo]:[Tipo]],MegaLoteo[[#This Row],[MEGA LOTEO]:[MEGA LOTEO]]) -> 0 | OA9: =SUMIFS(FlujoVentasEtapas[04-2051],Etapas[[Tipo]:[Tipo]],MegaLoteo[[#This Row],[MEGA LOTEO]:[MEGA LOTEO]]) -> 0 | OB9: =SUMIFS(FlujoVentasEtapas[05-2051],Etapas[[Tipo]:[Tipo]],MegaLoteo[[#This Row],[MEGA LOTEO]:[MEGA LOTEO]]) -> 0 | OC9: =SUMIFS(FlujoVentasEtapas[06-2051],Etapas[[Tipo]:[Tipo]],MegaLoteo[[#This Row],[MEGA LOTEO]:[MEGA LOTEO]]) -> 0 | OD9: =SUMIFS(FlujoVentasEtapas[07-2051],Etapas[[Tipo]:[Tipo]],MegaLoteo[[#This Row],[MEGA LOTEO]:[MEGA LOTEO]]) -> 0 | OE9: =SUMIFS(FlujoVentasEtapas[08-2051],Etapas[[Tipo]:[Tipo]],MegaLoteo[[#This Row],[MEGA LOTEO]:[MEGA LOTEO]]) -> 0 | OF9: =SUMIFS(FlujoVentasEtapas[09-2051],Etapas[[Tipo]:[Tipo]],MegaLoteo[[#This Row],[MEGA LOTEO]:[MEGA LOTEO]]) -> 0 | OG9: =SUMIFS(FlujoVentasEtapas[10-2051],Etapas[[Tipo]:[Tipo]],MegaLoteo[[#This Row],[MEGA LOTEO]:[MEGA LOTEO]]) -> 0 | OH9: =SUMIFS(FlujoVentasEtapas[11-2051],Etapas[[Tipo]:[Tipo]],MegaLoteo[[#This Row],[MEGA LOTEO]:[MEGA LOTEO]]) -> 0 | OI9: =SUMIFS(FlujoVentasEtapas[12-2051],Etapas[[Tipo]:[Tipo]],MegaLoteo[[#This Row],[MEGA LOTEO]:[MEGA LOTEO]]) -> 0 | OJ9: =SUMIFS(FlujoVentasEtapas[01-2052],Etapas[[Tipo]:[Tipo]],MegaLoteo[[#This Row],[MEGA LOTEO]:[MEGA LOTEO]]) -> 0 | OK9: =SUMIFS(FlujoVentasEtapas[02-2052],Etapas[[Tipo]:[Tipo]],MegaLoteo[[#This Row],[MEGA LOTEO]:[MEGA LOTEO]]) -> 0 | OL9: =SUMIFS(FlujoVentasEtapas[03-2052],Etapas[[Tipo]:[Tipo]],MegaLoteo[[#This Row],[MEGA LOTEO]:[MEGA LOTEO]]) -> 0 | OM9: =SUMIFS(FlujoVentasEtapas[04-2052],Etapas[[Tipo]:[Tipo]],MegaLoteo[[#This Row],[MEGA LOTEO]:[MEGA LOTEO]]) -> 0 | ON9: =SUMIFS(FlujoVentasEtapas[05-2052],Etapas[[Tipo]:[Tipo]],MegaLoteo[[#This Row],[MEGA LOTEO]:[MEGA LOTEO]]) -> 0 | OO9: =SUMIFS(FlujoVentasEtapas[06-2052],Etapas[[Tipo]:[Tipo]],MegaLoteo[[#This Row],[MEGA LOTEO]:[MEGA LOTEO]]) -> 0 | OP9: =SUMIFS(FlujoVentasEtapas[07-2052],Etapas[[Tipo]:[Tipo]],MegaLoteo[[#This Row],[MEGA LOTEO]:[MEGA LOTEO]]) -> 0 | OQ9: =SUMIFS(FlujoVentasEtapas[08-2052],Etapas[[Tipo]:[Tipo]],MegaLoteo[[#This Row],[MEGA LOTEO]:[MEGA LOTEO]]) -> 0 | OR9: =SUMIFS(FlujoVentasEtapas[09-2052],Etapas[[Tipo]:[Tipo]],MegaLoteo[[#This Row],[MEGA LOTEO]:[MEGA LOTEO]]) -> 0 | OS9: =SUMIFS(FlujoVentasEtapas[10-2052],Etapas[[Tipo]:[Tipo]],MegaLoteo[[#This Row],[MEGA LOTEO]:[MEGA LOTEO]]) -> 0 | OT9: =SUMIFS(FlujoVentasEtapas[11-2052],Etapas[[Tipo]:[Tipo]],MegaLoteo[[#This Row],[MEGA LOTEO]:[MEGA LOTEO]]) -> 0 | OU9: =SUMIFS(FlujoVentasEtapas[12-2052],Etapas[[Tipo]:[Tipo]],MegaLoteo[[#This Row],[MEGA LOTEO]:[MEGA LOTEO]]) -> 0 | OV9: =SUMIFS(FlujoVentasEtapas[01-2053],Etapas[[Tipo]:[Tipo]],MegaLoteo[[#This Row],[MEGA LOTEO]:[MEGA LOTEO]]) -> 0 | OW9: =SUMIFS(FlujoVentasEtapas[02-2053],Etapas[[Tipo]:[Tipo]],MegaLoteo[[#This Row],[MEGA LOTEO]:[MEGA LOTEO]]) -> 0 | OX9: =SUMIFS(FlujoVentasEtapas[03-2053],Etapas[[Tipo]:[Tipo]],MegaLoteo[[#This Row],[MEGA LOTEO]:[MEGA LOTEO]]) -> 0 | OY9: =SUMIFS(FlujoVentasEtapas[04-2053],Etapas[[Tipo]:[Tipo]],MegaLoteo[[#This Row],[MEGA LOTEO]:[MEGA LOTEO]]) -> 0 | OZ9: =SUMIFS(FlujoVentasEtapas[05-2053],Etapas[[Tipo]:[Tipo]],MegaLoteo[[#This Row],[MEGA LOTEO]:[MEGA LOTEO]]) -> 0 | PA9: =SUMIFS(FlujoVentasEtapas[06-2053],Etapas[[Tipo]:[Tipo]],MegaLoteo[[#This Row],[MEGA LOTEO]:[MEGA LOTEO]]) -> 0 | PB9: =SUMIFS(FlujoVentasEtapas[07-2053],Etapas[[Tipo]:[Tipo]],MegaLoteo[[#This Row],[MEGA LOTEO]:[MEGA LOTEO]]) -> 0 | PC9: =SUMIFS(FlujoVentasEtapas[08-2053],Etapas[[Tipo]:[Tipo]],MegaLoteo[[#This Row],[MEGA LOTEO]:[MEGA LOTEO]]) -> 0 | PD9: =SUMIFS(FlujoVentasEtapas[09-2053],Etapas[[Tipo]:[Tipo]],MegaLoteo[[#This Row],[MEGA LOTEO]:[MEGA LOTEO]]) -> 0 | PE9: =SUMIFS(FlujoVentasEtapas[10-2053],Etapas[[Tipo]:[Tipo]],MegaLoteo[[#This Row],[MEGA LOTEO]:[MEGA LOTEO]]) -> 0 | PF9: =SUMIFS(FlujoVentasEtapas[11-2053],Etapas[[Tipo]:[Tipo]],MegaLoteo[[#This Row],[MEGA LOTEO]:[MEGA LOTEO]]) -> 0 | PG9: =SUMIFS(FlujoVentasEtapas[12-2053],Etapas[[Tipo]:[Tipo]],MegaLoteo[[#This Row],[MEGA LOTEO]:[MEGA LOTEO]]) -> 0 | PH9: =SUMIFS(FlujoVentasEtapas[01-2054],Etapas[[Tipo]:[Tipo]],MegaLoteo[[#This Row],[MEGA LOTEO]:[MEGA LOTEO]]) -> 0 | PI9: =SUMIFS(FlujoVentasEtapas[02-2054],Etapas[[Tipo]:[Tipo]],MegaLoteo[[#This Row],[MEGA LOTEO]:[MEGA LOTEO]]) -> 0 | PJ9: =SUMIFS(FlujoVentasEtapas[03-2054],Etapas[[Tipo]:[Tipo]],MegaLoteo[[#This Row],[MEGA LOTEO]:[MEGA LOTEO]]) -> 0 | PK9: =SUMIFS(FlujoVentasEtapas[04-2054],Etapas[[Tipo]:[Tipo]],MegaLoteo[[#This Row],[MEGA LOTEO]:[MEGA LOTEO]]) -> 0 | PL9: =SUMIFS(FlujoVentasEtapas[05-2054],Etapas[[Tipo]:[Tipo]],MegaLoteo[[#This Row],[MEGA LOTEO]:[MEGA LOTEO]]) -> 0 | PM9: =SUMIFS(FlujoVentasEtapas[06-2054],Etapas[[Tipo]:[Tipo]],MegaLoteo[[#This Row],[MEGA LOTEO]:[MEGA LOTEO]]) -> 0 | PN9: =SUMIFS(FlujoVentasEtapas[07-2054],Etapas[[Tipo]:[Tipo]],MegaLoteo[[#This Row],[MEGA LOTEO]:[MEGA LOTEO]]) -> 0 | PO9: =SUMIFS(FlujoVentasEtapas[08-2054],Etapas[[Tipo]:[Tipo]],MegaLoteo[[#This Row],[MEGA LOTEO]:[MEGA LOTEO]]) -> 0 | PP9: =SUMIFS(FlujoVentasEtapas[09-2054],Etapas[[Tipo]:[Tipo]],MegaLoteo[[#This Row],[MEGA LOTEO]:[MEGA LOTEO]]) -> 0 | PQ9: =SUMIFS(FlujoVentasEtapas[10-2054],Etapas[[Tipo]:[Tipo]],MegaLoteo[[#This Row],[MEGA LOTEO]:[MEGA LOTEO]]) -> 0 | PR9: =SUMIFS(FlujoVentasEtapas[11-2054],Etapas[[Tipo]:[Tipo]],MegaLoteo[[#This Row],[MEGA LOTEO]:[MEGA LOTEO]]) -> 0 | PS9: =SUMIFS(FlujoVentasEtapas[12-2054],Etapas[[Tipo]:[Tipo]],MegaLoteo[[#This Row],[MEGA LOTEO]:[MEGA LOTEO]]) -> 0 | PT9: =SUMIFS(FlujoVentasEtapas[01-2055],Etapas[[Tipo]:[Tipo]],MegaLoteo[[#This Row],[MEGA LOTEO]:[MEGA LOTEO]]) -> 0 | PU9: =SUMIFS(FlujoVentasEtapas[02-2055],Etapas[[Tipo]:[Tipo]],MegaLoteo[[#This Row],[MEGA LOTEO]:[MEGA LOTEO]]) -> 0 | PV9: =SUMIFS(FlujoVentasEtapas[03-2055],Etapas[[Tipo]:[Tipo]],MegaLoteo[[#This Row],[MEGA LOTEO]:[MEGA LOTEO]]) -> 0 | PW9: =SUMIFS(FlujoVentasEtapas[04-2055],Etapas[[Tipo]:[Tipo]],MegaLoteo[[#This Row],[MEGA LOTEO]:[MEGA LOTEO]]) -> 0 | PX9: =SUMIFS(FlujoVentasEtapas[05-2055],Etapas[[Tipo]:[Tipo]],MegaLoteo[[#This Row],[MEGA LOTEO]:[MEGA LOTEO]]) -> 0 | PY9: =SUMIFS(FlujoVentasEtapas[06-2055],Etapas[[Tipo]:[Tipo]],MegaLoteo[[#This Row],[MEGA LOTEO]:[MEGA LOTEO]]) -> 0 | PZ9: =SUMIFS(FlujoVentasEtapas[07-2055],Etapas[[Tipo]:[Tipo]],MegaLoteo[[#This Row],[MEGA LOTEO]:[MEGA LOTEO]]) -> 0 | QA9: =SUMIFS(FlujoVentasEtapas[08-2055],Etapas[[Tipo]:[Tipo]],MegaLoteo[[#This Row],[MEGA LOTEO]:[MEGA LOTEO]]) -> 0 | QB9: =SUMIFS(FlujoVentasEtapas[09-2055],Etapas[[Tipo]:[Tipo]],MegaLoteo[[#This Row],[MEGA LOTEO]:[MEGA LOTEO]]) -> 0 | QC9: =SUMIFS(FlujoVentasEtapas[10-2055],Etapas[[Tipo]:[Tipo]],MegaLoteo[[#This Row],[MEGA LOTEO]:[MEGA LOTEO]]) -> 0 | QD9: =SUMIFS(FlujoVentasEtapas[11-2055],Etapas[[Tipo]:[Tipo]],MegaLoteo[[#This Row],[MEGA LOTEO]:[MEGA LOTEO]]) -> 0 | QE9: =SUMIFS(FlujoVentasEtapas[12-2055],Etapas[[Tipo]:[Tipo]],MegaLoteo[[#This Row],[MEGA LOTEO]:[MEGA LOTEO]]) -> 0
B10: Terreno a la Venta | C10: =SUMIFS(Etapas[Superficie (m2)],Etapas[Tipo],MegaLoteo[[#This Row],[MEGA LOTEO]])+SUMIFS(Etapas[Superficie (m2)],Etapas[PROYECTO],MegaLoteo[[#This Row],[MEGA LOTEO]]) -> 0 | D10: =MegaLoteo[[#This Row],[Superficie total (m2)]]/MegaLoteo[[#Totals],[Superficie total (m2)]] -> 0 | E10: =_xlfn.IFNA(IF(MATCH(MegaLoteo[[#This Row],[MEGA LOTEO]],TipoVivienda[TipoProyecto],0)>0,MegaLoteo[[#This Row],[Superficie total (m2)]]/SUM(SUMIFS(MegaLoteo[Superficie total (m2)],MegaLoteo[MEGA LOTEO],TipoVivienda[TipoProyecto])),0),0) -> 0 | G10: =IFERROR(MegaLoteo[[#This Row],[Superficie total (m2)]]/MegaLoteo[[#This Row],[Cant. Unid.]],0) -> 0 | H10: =MegaLoteo[[#This Row],[Superficie (m2/Un.)]]*MegaLoteo[[#This Row],[UF/m2]] -> 0 | K10: =IFERROR(MegaLoteo[[#This Row],[Cant. Unid.]]/COUNTIFS(FlujoVentasProductos[#This Row],">0"),0) -> 0 | L10: =MegaLoteo[[#This Row],[PPUnid (UF/un)]]*MegaLoteo[[#This Row],[Cant. Unid.]] -> 0 | M10: =MegaLoteo[[#This Row],[Ingresos por Ventas Brutas (UF)]] -> 0 | N10: 1 | O10: =MegaLoteo[[#This Row],[Incidencia Terreno sobre Vtas finales.]]*MegaLoteo[[#This Row],[Ingresos por Ventas Brutas (UF)]] -> 0 | P10: =IFERROR(MegaLoteo[[#This Row],[Ingresos por Vta. Terreno (UF)]]/MegaLoteo[[#This Row],[Superficie total (m2)]],) -> 0 | Q10: =MegaLoteo[[#This Row],[Precio Venta Terreno (UF/m2)]]*Presentacion!$C$48 -> 0 | R10: =MegaLoteo[[#This Row],[Precio Venta Terreno (UF/m2)]]*Presentacion!$C$49 -> 0 | S10: =IFERROR(MegaLoteo[[#This Row],[PPUnid (UF/un)]]/MegaLoteo[[#This Row],[Viv+Circul.+Areas Comunes (m2)]],0) -> 0 | U10: =SUMIFS(FlujoVentasEtapas[06-2020],Etapas[[Tipo]:[Tipo]],MegaLoteo[[#This Row],[MEGA LOTEO]:[MEGA LOTEO]]) -> 0 | V10: =SUMIFS(FlujoVentasEtapas[07-2020],Etapas[[Tipo]:[Tipo]],MegaLoteo[[#This Row],[MEGA LOTEO]:[MEGA LOTEO]]) -> 0 | W10: =SUMIFS(FlujoVentasEtapas[08-2020],Etapas[[Tipo]:[Tipo]],MegaLoteo[[#This Row],[MEGA LOTEO]:[MEGA LOTEO]]) -> 0 | X10: =SUMIFS(FlujoVentasEtapas[09-2020],Etapas[[Tipo]:[Tipo]],MegaLoteo[[#This Row],[MEGA LOTEO]:[MEGA LOTEO]]) -> 0 | Y10: =SUMIFS(FlujoVentasEtapas[10-2020],Etapas[[Tipo]:[Tipo]],MegaLoteo[[#This Row],[MEGA LOTEO]:[MEGA LOTEO]]) -> 0 | Z10: =SUMIFS(FlujoVentasEtapas[11-2020],Etapas[[Tipo]:[Tipo]],MegaLoteo[[#This Row],[MEGA LOTEO]:[MEGA LOTEO]]) -> 0 | AA10: =SUMIFS(FlujoVentasEtapas[12-2020],Etapas[[Tipo]:[Tipo]],MegaLoteo[[#This Row],[MEGA LOTEO]:[MEGA LOTEO]]) -> 0 | AB10: =SUMIFS(FlujoVentasEtapas[01-2021],Etapas[[Tipo]:[Tipo]],MegaLoteo[[#This Row],[MEGA LOTEO]:[MEGA LOTEO]]) -> 0 | AC10: =SUMIFS(FlujoVentasEtapas[02-2021],Etapas[[Tipo]:[Tipo]],MegaLoteo[[#This Row],[MEGA LOTEO]:[MEGA LOTEO]]) -> 0 | AD10: =SUMIFS(FlujoVentasEtapas[03-2021],Etapas[[Tipo]:[Tipo]],MegaLoteo[[#This Row],[MEGA LOTEO]:[MEGA LOTEO]]) -> 0 | AE10: =SUMIFS(FlujoVentasEtapas[04-2021],Etapas[[Tipo]:[Tipo]],MegaLoteo[[#This Row],[MEGA LOTEO]:[MEGA LOTEO]]) -> 0 | AF10: =SUMIFS(FlujoVentasEtapas[05-2021],Etapas[[Tipo]:[Tipo]],MegaLoteo[[#This Row],[MEGA LOTEO]:[MEGA LOTEO]]) -> 0 | AG10: =SUMIFS(FlujoVentasEtapas[06-2021],Etapas[[Tipo]:[Tipo]],MegaLoteo[[#This Row],[MEGA LOTEO]:[MEGA LOTEO]]) -> 0 | AH10: =SUMIFS(FlujoVentasEtapas[07-2021],Etapas[[Tipo]:[Tipo]],MegaLoteo[[#This Row],[MEGA LOTEO]:[MEGA LOTEO]]) -> 0 | AI10: =SUMIFS(FlujoVentasEtapas[08-2021],Etapas[[Tipo]:[Tipo]],MegaLoteo[[#This Row],[MEGA LOTEO]:[MEGA LOTEO]]) -> 0 | AJ10: =SUMIFS(FlujoVentasEtapas[09-2021],Etapas[[Tipo]:[Tipo]],MegaLoteo[[#This Row],[MEGA LOTEO]:[MEGA LOTEO]]) -> 0 | AK10: =SUMIFS(FlujoVentasEtapas[10-2021],Etapas[[Tipo]:[Tipo]],MegaLoteo[[#This Row],[MEGA LOTEO]:[MEGA LOTEO]]) -> 0 | AL10: =SUMIFS(FlujoVentasEtapas[11-2021],Etapas[[Tipo]:[Tipo]],MegaLoteo[[#This Row],[MEGA LOTEO]:[MEGA LOTEO]]) -> 0 | AM10: =SUMIFS(FlujoVentasEtapas[12-2021],Etapas[[Tipo]:[Tipo]],MegaLoteo[[#This Row],[MEGA LOTEO]:[MEGA LOTEO]]) -> 0 | AN10: =SUMIFS(FlujoVentasEtapas[01-2022],Etapas[[Tipo]:[Tipo]],MegaLoteo[[#This Row],[MEGA LOTEO]:[MEGA LOTEO]]) -> 0 | AO10: =SUMIFS(FlujoVentasEtapas[02-2022],Etapas[[Tipo]:[Tipo]],MegaLoteo[[#This Row],[MEGA LOTEO]:[MEGA LOTEO]]) -> 0 | AP10: =SUMIFS(FlujoVentasEtapas[03-2022],Etapas[[Tipo]:[Tipo]],MegaLoteo[[#This Row],[MEGA LOTEO]:[MEGA LOTEO]]) -> 0 | AQ10: =SUMIFS(FlujoVentasEtapas[04-2022],Etapas[[Tipo]:[Tipo]],MegaLoteo[[#This Row],[MEGA LOTEO]:[MEGA LOTEO]]) -> 0 | AR10: =SUMIFS(FlujoVentasEtapas[05-2022],Etapas[[Tipo]:[Tipo]],MegaLoteo[[#This Row],[MEGA LOTEO]:[MEGA LOTEO]]) -> 0 | AS10: =SUMIFS(FlujoVentasEtapas[06-2022],Etapas[[Tipo]:[Tipo]],MegaLoteo[[#This Row],[MEGA LOTEO]:[MEGA LOTEO]]) -> 0 | AT10: =SUMIFS(FlujoVentasEtapas[07-2022],Etapas[[Tipo]:[Tipo]],MegaLoteo[[#This Row],[MEGA LOTEO]:[MEGA LOTEO]]) -> 0 | AU10: =SUMIFS(FlujoVentasEtapas[08-2022],Etapas[[Tipo]:[Tipo]],MegaLoteo[[#This Row],[MEGA LOTEO]:[MEGA LOTEO]]) -> 0 | AV10: =SUMIFS(FlujoVentasEtapas[09-2022],Etapas[[Tipo]:[Tipo]],MegaLoteo[[#This Row],[MEGA LOTEO]:[MEGA LOTEO]]) -> 0 | AW10: =SUMIFS(FlujoVentasEtapas[10-2022],Etapas[[Tipo]:[Tipo]],MegaLoteo[[#This Row],[MEGA LOTEO]:[MEGA LOTEO]]) -> 0 | AX10: =SUMIFS(FlujoVentasEtapas[11-2022],Etapas[[Tipo]:[Tipo]],MegaLoteo[[#This Row],[MEGA LOTEO]:[MEGA LOTEO]]) -> 0 | AY10: =SUMIFS(FlujoVentasEtapas[12-2022],Etapas[[Tipo]:[Tipo]],MegaLoteo[[#This Row],[MEGA LOTEO]:[MEGA LOTEO]]) -> 0 | AZ10: =SUMIFS(FlujoVentasEtapas[01-2023],Etapas[[Tipo]:[Tipo]],MegaLoteo[[#This Row],[MEGA LOTEO]:[MEGA LOTEO]]) -> 0 | BA10: =SUMIFS(FlujoVentasEtapas[02-2023],Etapas[[Tipo]:[Tipo]],MegaLoteo[[#This Row],[MEGA LOTEO]:[MEGA LOTEO]]) -> 0 | BB10: =SUMIFS(FlujoVentasEtapas[03-2023],Etapas[[Tipo]:[Tipo]],MegaLoteo[[#This Row],[MEGA LOTEO]:[MEGA LOTEO]]) -> 0 | BC10: =SUMIFS(FlujoVentasEtapas[04-2023],Etapas[[Tipo]:[Tipo]],MegaLoteo[[#This Row],[MEGA LOTEO]:[MEGA LOTEO]]) -> 0 | BD10: =SUMIFS(FlujoVentasEtapas[05-2023],Etapas[[Tipo]:[Tipo]],MegaLoteo[[#This Row],[MEGA LOTEO]:[MEGA LOTEO]]) -> 0 | BE10: =SUMIFS(FlujoVentasEtapas[06-2023],Etapas[[Tipo]:[Tipo]],MegaLoteo[[#This Row],[MEGA LOTEO]:[MEGA LOTEO]]) -> 0 | BF10: =SUMIFS(FlujoVentasEtapas[07-2023],Etapas[[Tipo]:[Tipo]],MegaLoteo[[#This Row],[MEGA LOTEO]:[MEGA LOTEO]]) -> 0 | BG10: =SUMIFS(FlujoVentasEtapas[08-2023],Etapas[[Tipo]:[Tipo]],MegaLoteo[[#This Row],[MEGA LOTEO]:[MEGA LOTEO]]) -> 0 | BH10: =SUMIFS(FlujoVentasEtapas[09-2023],Etapas[[Tipo]:[Tipo]],MegaLoteo[[#This Row],[MEGA LOTEO]:[MEGA LOTEO]]) -> 0 | BI10: =SUMIFS(FlujoVentasEtapas[10-2023],Etapas[[Tipo]:[Tipo]],MegaLoteo[[#This Row],[MEGA LOTEO]:[MEGA LOTEO]]) -> 0 | BJ10: =SUMIFS(FlujoVentasEtapas[11-2023],Etapas[[Tipo]:[Tipo]],MegaLoteo[[#This Row],[MEGA LOTEO]:[MEGA LOTEO]]) -> 0 | BK10: =SUMIFS(FlujoVentasEtapas[12-2023],Etapas[[Tipo]:[Tipo]],MegaLoteo[[#This Row],[MEGA LOTEO]:[MEGA LOTEO]]) -> 0 | BL10: =SUMIFS(FlujoVentasEtapas[01-2024],Etapas[[Tipo]:[Tipo]],MegaLoteo[[#This Row],[MEGA LOTEO]:[MEGA LOTEO]]) -> 0 | BM10: =SUMIFS(FlujoVentasEtapas[02-2024],Etapas[[Tipo]:[Tipo]],MegaLoteo[[#This Row],[MEGA LOTEO]:[MEGA LOTEO]]) -> 0 | BN10: =SUMIFS(FlujoVentasEtapas[03-2024],Etapas[[Tipo]:[Tipo]],MegaLoteo[[#This Row],[MEGA LOTEO]:[MEGA LOTEO]]) -> 0 | BO10: =SUMIFS(FlujoVentasEtapas[04-2024],Etapas[[Tipo]:[Tipo]],MegaLoteo[[#This Row],[MEGA LOTEO]:[MEGA LOTEO]]) -> 0 | BP10: =SUMIFS(FlujoVentasEtapas[05-2024],Etapas[[Tipo]:[Tipo]],MegaLoteo[[#This Row],[MEGA LOTEO]:[MEGA LOTEO]]) -> 0 | BQ10: =SUMIFS(FlujoVentasEtapas[06-2024],Etapas[[Tipo]:[Tipo]],MegaLoteo[[#This Row],[MEGA LOTEO]:[MEGA LOTEO]]) -> 0 | BR10: =SUMIFS(FlujoVentasEtapas[07-2024],Etapas[[Tipo]:[Tipo]],MegaLoteo[[#This Row],[MEGA LOTEO]:[MEGA LOTEO]]) -> 0 | BS10: =SUMIFS(FlujoVentasEtapas[08-2024],Etapas[[Tipo]:[Tipo]],MegaLoteo[[#This Row],[MEGA LOTEO]:[MEGA LOTEO]]) -> 0 | BT10: =SUMIFS(FlujoVentasEtapas[09-2024],Etapas[[Tipo]:[Tipo]],MegaLoteo[[#This Row],[MEGA LOTEO]:[MEGA LOTEO]]) -> 0 | BU10: =SUMIFS(FlujoVentasEtapas[10-2024],Etapas[[Tipo]:[Tipo]],MegaLoteo[[#This Row],[MEGA LOTEO]:[MEGA LOTEO]]) -> 0 | BV10: =SUMIFS(FlujoVentasEtapas[11-2024],Etapas[[Tipo]:[Tipo]],MegaLoteo[[#This Row],[MEGA LOTEO]:[MEGA LOTEO]]) -> 0 | BW10: =SUMIFS(FlujoVentasEtapas[12-2024],Etapas[[Tipo]:[Tipo]],MegaLoteo[[#This Row],[MEGA LOTEO]:[MEGA LOTEO]]) -> 0 | BX10: =SUMIFS(FlujoVentasEtapas[01-2025],Etapas[[Tipo]:[Tipo]],MegaLoteo[[#This Row],[MEGA LOTEO]:[MEGA LOTEO]]) -> 0 | BY10: =SUMIFS(FlujoVentasEtapas[02-2025],Etapas[[Tipo]:[Tipo]],MegaLoteo[[#This Row],[MEGA LOTEO]:[MEGA LOTEO]]) -> 0 | BZ10: =SUMIFS(FlujoVentasEtapas[03-2025],Etapas[[Tipo]:[Tipo]],MegaLoteo[[#This Row],[MEGA LOTEO]:[MEGA LOTEO]]) -> 0 | CA10: =SUMIFS(FlujoVentasEtapas[04-2025],Etapas[[Tipo]:[Tipo]],MegaLoteo[[#This Row],[MEGA LOTEO]:[MEGA LOTEO]]) -> 0 | CB10: =SUMIFS(FlujoVentasEtapas[05-2025],Etapas[[Tipo]:[Tipo]],MegaLoteo[[#This Row],[MEGA LOTEO]:[MEGA LOTEO]]) -> 0 | CC10: =SUMIFS(FlujoVentasEtapas[06-2025],Etapas[[Tipo]:[Tipo]],MegaLoteo[[#This Row],[MEGA LOTEO]:[MEGA LOTEO]]) -> 0 | CD10: =SUMIFS(FlujoVentasEtapas[07-2025],Etapas[[Tipo]:[Tipo]],MegaLoteo[[#This Row],[MEGA LOTEO]:[MEGA LOTEO]]) -> 0 | CE10: =SUMIFS(FlujoVentasEtapas[08-2025],Etapas[[Tipo]:[Tipo]],MegaLoteo[[#This Row],[MEGA LOTEO]:[MEGA LOTEO]]) -> 0 | CF10: =SUMIFS(FlujoVentasEtapas[09-2025],Etapas[[Tipo]:[Tipo]],MegaLoteo[[#This Row],[MEGA LOTEO]:[MEGA LOTEO]]) -> 0 | CG10: =SUMIFS(FlujoVentasEtapas[10-2025],Etapas[[Tipo]:[Tipo]],MegaLoteo[[#This Row],[MEGA LOTEO]:[MEGA LOTEO]]) -> 0 | CH10: =SUMIFS(FlujoVentasEtapas[11-2025],Etapas[[Tipo]:[Tipo]],MegaLoteo[[#This Row],[MEGA LOTEO]:[MEGA LOTEO]]) -> 0 | CI10: =SUMIFS(FlujoVentasEtapas[12-2025],Etapas[[Tipo]:[Tipo]],MegaLoteo[[#This Row],[MEGA LOTEO]:[MEGA LOTEO]]) -> 0 | CJ10: =SUMIFS(FlujoVentasEtapas[01-2026],Etapas[[Tipo]:[Tipo]],MegaLoteo[[#This Row],[MEGA LOTEO]:[MEGA LOTEO]]) -> 0 | CK10: =SUMIFS(FlujoVentasEtapas[02-2026],Etapas[[Tipo]:[Tipo]],MegaLoteo[[#This Row],[MEGA LOTEO]:[MEGA LOTEO]]) -> 0 | CL10: =SUMIFS(FlujoVentasEtapas[03-2026],Etapas[[Tipo]:[Tipo]],MegaLoteo[[#This Row],[MEGA LOTEO]:[MEGA LOTEO]]) -> 0 | CM10: =SUMIFS(FlujoVentasEtapas[04-2026],Etapas[[Tipo]:[Tipo]],MegaLoteo[[#This Row],[MEGA LOTEO]:[MEGA LOTEO]]) -> 0 | CN10: =SUMIFS(FlujoVentasEtapas[05-2026],Etapas[[Tipo]:[Tipo]],MegaLoteo[[#This Row],[MEGA LOTEO]:[MEGA LOTEO]]) -> 0 | CO10: =SUMIFS(FlujoVentasEtapas[06-2026],Etapas[[Tipo]:[Tipo]],MegaLoteo[[#This Row],[MEGA LOTEO]:[MEGA LOTEO]]) -> 0 | CP10: =SUMIFS(FlujoVentasEtapas[07-2026],Etapas[[Tipo]:[Tipo]],MegaLoteo[[#This Row],[MEGA LOTEO]:[MEGA LOTEO]]) -> 0 | CQ10: =SUMIFS(FlujoVentasEtapas[08-2026],Etapas[[Tipo]:[Tipo]],MegaLoteo[[#This Row],[MEGA LOTEO]:[MEGA LOTEO]]) -> 0 | CR10: =SUMIFS(FlujoVentasEtapas[09-2026],Etapas[[Tipo]:[Tipo]],MegaLoteo[[#This Row],[MEGA LOTEO]:[MEGA LOTEO]]) -> 0 | CS10: =SUMIFS(FlujoVentasEtapas[10-2026],Etapas[[Tipo]:[Tipo]],MegaLoteo[[#This Row],[MEGA LOTEO]:[MEGA LOTEO]]) -> 0 | CT10: =SUMIFS(FlujoVentasEtapas[11-2026],Etapas[[Tipo]:[Tipo]],MegaLoteo[[#This Row],[MEGA LOTEO]:[MEGA LOTEO]]) -> 0 | CU10: =SUMIFS(FlujoVentasEtapas[12-2026],Etapas[[Tipo]:[Tipo]],MegaLoteo[[#This Row],[MEGA LOTEO]:[MEGA LOTEO]]) -> 0 | CV10: =SUMIFS(FlujoVentasEtapas[01-2027],Etapas[[Tipo]:[Tipo]],MegaLoteo[[#This Row],[MEGA LOTEO]:[MEGA LOTEO]]) -> 0 | CW10: =SUMIFS(FlujoVentasEtapas[02-2027],Etapas[[Tipo]:[Tipo]],MegaLoteo[[#This Row],[MEGA LOTEO]:[MEGA LOTEO]]) -> 0 | CX10: =SUMIFS(FlujoVentasEtapas[03-2027],Etapas[[Tipo]:[Tipo]],MegaLoteo[[#This Row],[MEGA LOTEO]:[MEGA LOTEO]]) -> 0 | CY10: =SUMIFS(FlujoVentasEtapas[04-2027],Etapas[[Tipo]:[Tipo]],MegaLoteo[[#This Row],[MEGA LOTEO]:[MEGA LOTEO]]) -> 0 | CZ10: =SUMIFS(FlujoVentasEtapas[05-2027],Etapas[[Tipo]:[Tipo]],MegaLoteo[[#This Row],[MEGA LOTEO]:[MEGA LOTEO]]) -> 0 | DA10: =SUMIFS(FlujoVentasEtapas[06-2027],Etapas[[Tipo]:[Tipo]],MegaLoteo[[#This Row],[MEGA LOTEO]:[MEGA LOTEO]]) -> 0 | DB10: =SUMIFS(FlujoVentasEtapas[07-2027],Etapas[[Tipo]:[Tipo]],MegaLoteo[[#This Row],[MEGA LOTEO]:[MEGA LOTEO]]) -> 0 | DC10: =SUMIFS(FlujoVentasEtapas[08-2027],Etapas[[Tipo]:[Tipo]],MegaLoteo[[#This Row],[MEGA LOTEO]:[MEGA LOTEO]]) -> 0 | DD10: =SUMIFS(FlujoVentasEtapas[09-2027],Etapas[[Tipo]:[Tipo]],MegaLoteo[[#This Row],[MEGA LOTEO]:[MEGA LOTEO]]) -> 0 | DE10: =SUMIFS(FlujoVentasEtapas[10-2027],Etapas[[Tipo]:[Tipo]],MegaLoteo[[#This Row],[MEGA LOTEO]:[MEGA LOTEO]]) -> 0 | DF10: =SUMIFS(FlujoVentasEtapas[11-2027],Etapas[[Tipo]:[Tipo]],MegaLoteo[[#This Row],[MEGA LOTEO]:[MEGA LOTEO]]) -> 0 | DG10: =SUMIFS(FlujoVentasEtapas[12-2027],Etapas[[Tipo]:[Tipo]],MegaLoteo[[#This Row],[MEGA LOTEO]:[MEGA LOTEO]]) -> 0 | DH10: =SUMIFS(FlujoVentasEtapas[01-2028],Etapas[[Tipo]:[Tipo]],MegaLoteo[[#This Row],[MEGA LOTEO]:[MEGA LOTEO]]) -> 0 | DI10: =SUMIFS(FlujoVentasEtapas[02-2028],Etapas[[Tipo]:[Tipo]],MegaLoteo[[#This Row],[MEGA LOTEO]:[MEGA LOTEO]]) -> 0 | DJ10: =SUMIFS(FlujoVentasEtapas[03-2028],Etapas[[Tipo]:[Tipo]],MegaLoteo[[#This Row],[MEGA LOTEO]:[MEGA LOTEO]]) -> 0 | DK10: =SUMIFS(FlujoVentasEtapas[04-2028],Etapas[[Tipo]:[Tipo]],MegaLoteo[[#This Row],[MEGA LOTEO]:[MEGA LOTEO]]) -> 0 | DL10: =SUMIFS(FlujoVentasEtapas[05-2028],Etapas[[Tipo]:[Tipo]],MegaLoteo[[#This Row],[MEGA LOTEO]:[MEGA LOTEO]]) -> 0 | DM10: =SUMIFS(FlujoVentasEtapas[06-2028],Etapas[[Tipo]:[Tipo]],MegaLoteo[[#This Row],[MEGA LOTEO]:[MEGA LOTEO]]) -> 0 | DN10: =SUMIFS(FlujoVentasEtapas[07-2028],Etapas[[Tipo]:[Tipo]],MegaLoteo[[#This Row],[MEGA LOTEO]:[MEGA LOTEO]]) -> 0 | DO10: =SUMIFS(FlujoVentasEtapas[08-2028],Etapas[[Tipo]:[Tipo]],MegaLoteo[[#This Row],[MEGA LOTEO]:[MEGA LOTEO]]) -> 0 | DP10: =SUMIFS(FlujoVentasEtapas[09-2028],Etapas[[Tipo]:[Tipo]],MegaLoteo[[#This Row],[MEGA LOTEO]:[MEGA LOTEO]]) -> 0 | DQ10: =SUMIFS(FlujoVentasEtapas[10-2028],Etapas[[Tipo]:[Tipo]],MegaLoteo[[#This Row],[MEGA LOTEO]:[MEGA LOTEO]]) -> 0 | DR10: =SUMIFS(FlujoVentasEtapas[11-2028],Etapas[[Tipo]:[Tipo]],MegaLoteo[[#This Row],[MEGA LOTEO]:[MEGA LOTEO]]) -> 0 | DS10: =SUMIFS(FlujoVentasEtapas[12-2028],Etapas[[Tipo]:[Tipo]],MegaLoteo[[#This Row],[MEGA LOTEO]:[MEGA LOTEO]]) -> 0 | DT10: =SUMIFS(FlujoVentasEtapas[01-2029],Etapas[[Tipo]:[Tipo]],MegaLoteo[[#This Row],[MEGA LOTEO]:[MEGA LOTEO]]) -> 0 | DU10: =SUMIFS(FlujoVentasEtapas[02-2029],Etapas[[Tipo]:[Tipo]],MegaLoteo[[#This Row],[MEGA LOTEO]:[MEGA LOTEO]]) -> 0 | DV10: =SUMIFS(FlujoVentasEtapas[03-2029],Etapas[[Tipo]:[Tipo]],MegaLoteo[[#This Row],[MEGA LOTEO]:[MEGA LOTEO]]) -> 0 | DW10: =SUMIFS(FlujoVentasEtapas[04-2029],Etapas[[Tipo]:[Tipo]],MegaLoteo[[#This Row],[MEGA LOTEO]:[MEGA LOTEO]]) -> 0 | DX10: =SUMIFS(FlujoVentasEtapas[05-2029],Etapas[[Tipo]:[Tipo]],MegaLoteo[[#This Row],[MEGA LOTEO]:[MEGA LOTEO]]) -> 0 | DY10: =SUMIFS(FlujoVentasEtapas[06-2029],Etapas[[Tipo]:[Tipo]],MegaLoteo[[#This Row],[MEGA LOTEO]:[MEGA LOTEO]]) -> 0 | DZ10: =SUMIFS(FlujoVentasEtapas[07-2029],Etapas[[Tipo]:[Tipo]],MegaLoteo[[#This Row],[MEGA LOTEO]:[MEGA LOTEO]]) -> 0 | EA10: =SUMIFS(FlujoVentasEtapas[08-2029],Etapas[[Tipo]:[Tipo]],MegaLoteo[[#This Row],[MEGA LOTEO]:[MEGA LOTEO]]) -> 0 | EB10: =SUMIFS(FlujoVentasEtapas[09-2029],Etapas[[Tipo]:[Tipo]],MegaLoteo[[#This Row],[MEGA LOTEO]:[MEGA LOTEO]]) -> 0 | EC10: =SUMIFS(FlujoVentasEtapas[10-2029],Etapas[[Tipo]:[Tipo]],MegaLoteo[[#This Row],[MEGA LOTEO]:[MEGA LOTEO]]) -> 0 | ED10: =SUMIFS(FlujoVentasEtapas[11-2029],Etapas[[Tipo]:[Tipo]],MegaLoteo[[#This Row],[MEGA LOTEO]:[MEGA LOTEO]]) -> 0 | EE10: =SUMIFS(FlujoVentasEtapas[12-2029],Etapas[[Tipo]:[Tipo]],MegaLoteo[[#This Row],[MEGA LOTEO]:[MEGA LOTEO]]) -> 0 | EF10: =SUMIFS(FlujoVentasEtapas[01-2030],Etapas[[Tipo]:[Tipo]],MegaLoteo[[#This Row],[MEGA LOTEO]:[MEGA LOTEO]]) -> 0 | EG10: =SUMIFS(FlujoVentasEtapas[02-2030],Etapas[[Tipo]:[Tipo]],MegaLoteo[[#This Row],[MEGA LOTEO]:[MEGA LOTEO]]) -> 0 | EH10: =SUMIFS(FlujoVentasEtapas[03-2030],Etapas[[Tipo]:[Tipo]],MegaLoteo[[#This Row],[MEGA LOTEO]:[MEGA LOTEO]]) -> 0 | EI10: =SUMIFS(FlujoVentasEtapas[04-2030],Etapas[[Tipo]:[Tipo]],MegaLoteo[[#This Row],[MEGA LOTEO]:[MEGA LOTEO]]) -> 0 | EJ10: =SUMIFS(FlujoVentasEtapas[05-2030],Etapas[[Tipo]:[Tipo]],MegaLoteo[[#This Row],[MEGA LOTEO]:[MEGA LOTEO]]) -> 0 | EK10: =SUMIFS(FlujoVentasEtapas[06-2030],Etapas[[Tipo]:[Tipo]],MegaLoteo[[#This Row],[MEGA LOTEO]:[MEGA LOTEO]]) -> 0 | EL10: =SUMIFS(FlujoVentasEtapas[07-2030],Etapas[[Tipo]:[Tipo]],MegaLoteo[[#This Row],[MEGA LOTEO]:[MEGA LOTEO]]) -> 0 | EM10: =SUMIFS(FlujoVentasEtapas[08-2030],Etapas[[Tipo]:[Tipo]],MegaLoteo[[#This Row],[MEGA LOTEO]:[MEGA LOTEO]]) -> 0 | EN10: =SUMIFS(FlujoVentasEtapas[09-2030],Etapas[[Tipo]:[Tipo]],MegaLoteo[[#This Row],[MEGA LOTEO]:[MEGA LOTEO]]) -> 0 | EO10: =SUMIFS(FlujoVentasEtapas[10-2030],Etapas[[Tipo]:[Tipo]],MegaLoteo[[#This Row],[MEGA LOTEO]:[MEGA LOTEO]]) -> 0 | EP10: =SUMIFS(FlujoVentasEtapas[11-2030],Etapas[[Tipo]:[Tipo]],MegaLoteo[[#This Row],[MEGA LOTEO]:[MEGA LOTEO]]) -> 0 | EQ10: =SUMIFS(FlujoVentasEtapas[12-2030],Etapas[[Tipo]:[Tipo]],MegaLoteo[[#This Row],[MEGA LOTEO]:[MEGA LOTEO]]) -> 0 | ER10: =SUMIFS(FlujoVentasEtapas[01-2031],Etapas[[Tipo]:[Tipo]],MegaLoteo[[#This Row],[MEGA LOTEO]:[MEGA LOTEO]]) -> 0 | ES10: =SUMIFS(FlujoVentasEtapas[02-2031],Etapas[[Tipo]:[Tipo]],MegaLoteo[[#This Row],[MEGA LOTEO]:[MEGA LOTEO]]) -> 0 | ET10: =SUMIFS(FlujoVentasEtapas[03-2031],Etapas[[Tipo]:[Tipo]],MegaLoteo[[#This Row],[MEGA LOTEO]:[MEGA LOTEO]]) -> 0 | EU10: =SUMIFS(FlujoVentasEtapas[04-2031],Etapas[[Tipo]:[Tipo]],MegaLoteo[[#This Row],[MEGA LOTEO]:[MEGA LOTEO]]) -> 0 | EV10: =SUMIFS(FlujoVentasEtapas[05-2031],Etapas[[Tipo]:[Tipo]],MegaLoteo[[#This Row],[MEGA LOTEO]:[MEGA LOTEO]]) -> 0 | EW10: =SUMIFS(FlujoVentasEtapas[06-2031],Etapas[[Tipo]:[Tipo]],MegaLoteo[[#This Row],[MEGA LOTEO]:[MEGA LOTEO]]) -> 0 | EX10: =SUMIFS(FlujoVentasEtapas[07-2031],Etapas[[Tipo]:[Tipo]],MegaLoteo[[#This Row],[MEGA LOTEO]:[MEGA LOTEO]]) -> 0 | EY10: =SUMIFS(FlujoVentasEtapas[08-2031],Etapas[[Tipo]:[Tipo]],MegaLoteo[[#This Row],[MEGA LOTEO]:[MEGA LOTEO]]) -> 0 | EZ10: =SUMIFS(FlujoVentasEtapas[09-2031],Etapas[[Tipo]:[Tipo]],MegaLoteo[[#This Row],[MEGA LOTEO]:[MEGA LOTEO]]) -> 0 | FA10: =SUMIFS(FlujoVentasEtapas[10-2031],Etapas[[Tipo]:[Tipo]],MegaLoteo[[#This Row],[MEGA LOTEO]:[MEGA LOTEO]]) -> 0 | FB10: =SUMIFS(FlujoVentasEtapas[11-2031],Etapas[[Tipo]:[Tipo]],MegaLoteo[[#This Row],[MEGA LOTEO]:[MEGA LOTEO]]) -> 0 | FC10: =SUMIFS(FlujoVentasEtapas[12-2031],Etapas[[Tipo]:[Tipo]],MegaLoteo[[#This Row],[MEGA LOTEO]:[MEGA LOTEO]]) -> 0 | FD10: =SUMIFS(FlujoVentasEtapas[01-2032],Etapas[[Tipo]:[Tipo]],MegaLoteo[[#This Row],[MEGA LOTEO]:[MEGA LOTEO]]) -> 0 | FE10: =SUMIFS(FlujoVentasEtapas[02-2032],Etapas[[Tipo]:[Tipo]],MegaLoteo[[#This Row],[MEGA LOTEO]:[MEGA LOTEO]]) -> 0 | FF10: =SUMIFS(FlujoVentasEtapas[03-2032],Etapas[[Tipo]:[Tipo]],MegaLoteo[[#This Row],[MEGA LOTEO]:[MEGA LOTEO]]) -> 0 | FG10: =SUMIFS(FlujoVentasEtapas[04-2032],Etapas[[Tipo]:[Tipo]],MegaLoteo[[#This Row],[MEGA LOTEO]:[MEGA LOTEO]]) -> 0 | FH10: =SUMIFS(FlujoVentasEtapas[05-2032],Etapas[[Tipo]:[Tipo]],MegaLoteo[[#This Row],[MEGA LOTEO]:[MEGA LOTEO]]) -> 0 | FI10: =SUMIFS(FlujoVentasEtapas[06-2032],Etapas[[Tipo]:[Tipo]],MegaLoteo[[#This Row],[MEGA LOTEO]:[MEGA LOTEO]]) -> 0 | FJ10: =SUMIFS(FlujoVentasEtapas[07-2032],Etapas[[Tipo]:[Tipo]],MegaLoteo[[#This Row],[MEGA LOTEO]:[MEGA LOTEO]]) -> 0 | FK10: =SUMIFS(FlujoVentasEtapas[08-2032],Etapas[[Tipo]:[Tipo]],MegaLoteo[[#This Row],[MEGA LOTEO]:[MEGA LOTEO]]) -> 0 | FL10: =SUMIFS(FlujoVentasEtapas[09-2032],Etapas[[Tipo]:[Tipo]],MegaLoteo[[#This Row],[MEGA LOTEO]:[MEGA LOTEO]]) -> 0 | FM10: =SUMIFS(FlujoVentasEtapas[10-2032],Etapas[[Tipo]:[Tipo]],MegaLoteo[[#This Row],[MEGA LOTEO]:[MEGA LOTEO]]) -> 0 | FN10: =SUMIFS(FlujoVentasEtapas[11-2032],Etapas[[Tipo]:[Tipo]],MegaLoteo[[#This Row],[MEGA LOTEO]:[MEGA LOTEO]]) -> 0 | FO10: =SUMIFS(FlujoVentasEtapas[12-2032],Etapas[[Tipo]:[Tipo]],MegaLoteo[[#This Row],[MEGA LOTEO]:[MEGA LOTEO]]) -> 0 | FP10: =SUMIFS(FlujoVentasEtapas[01-2033],Etapas[[Tipo]:[Tipo]],MegaLoteo[[#This Row],[MEGA LOTEO]:[MEGA LOTEO]]) -> 0 | FQ10: =SUMIFS(FlujoVentasEtapas[02-2033],Etapas[[Tipo]:[Tipo]],MegaLoteo[[#This Row],[MEGA LOTEO]:[MEGA LOTEO]]) -> 0 | FR10: =SUMIFS(FlujoVentasEtapas[03-2033],Etapas[[Tipo]:[Tipo]],MegaLoteo[[#This Row],[MEGA LOTEO]:[MEGA LOTEO]]) -> 0 | FS10: =SUMIFS(FlujoVentasEtapas[04-2033],Etapas[[Tipo]:[Tipo]],MegaLoteo[[#This Row],[MEGA LOTEO]:[MEGA LOTEO]]) -> 0 | FT10: =SUMIFS(FlujoVentasEtapas[05-2033],Etapas[[Tipo]:[Tipo]],MegaLoteo[[#This Row],[MEGA LOTEO]:[MEGA LOTEO]]) -> 0 | FU10: =SUMIFS(FlujoVentasEtapas[06-2033],Etapas[[Tipo]:[Tipo]],MegaLoteo[[#This Row],[MEGA LOTEO]:[MEGA LOTEO]]) -> 0 | FV10: =SUMIFS(FlujoVentasEtapas[07-2033],Etapas[[Tipo]:[Tipo]],MegaLoteo[[#This Row],[MEGA LOTEO]:[MEGA LOTEO]]) -> 0 | FW10: =SUMIFS(FlujoVentasEtapas[08-2033],Etapas[[Tipo]:[Tipo]],MegaLoteo[[#This Row],[MEGA LOTEO]:[MEGA LOTEO]]) -> 0 | FX10: =SUMIFS(FlujoVentasEtapas[09-2033],Etapas[[Tipo]:[Tipo]],MegaLoteo[[#This Row],[MEGA LOTEO]:[MEGA LOTEO]]) -> 0 | FY10: =SUMIFS(FlujoVentasEtapas[10-2033],Etapas[[Tipo]:[Tipo]],MegaLoteo[[#This Row],[MEGA LOTEO]:[MEGA LOTEO]]) -> 0 | FZ10: =SUMIFS(FlujoVentasEtapas[11-2033],Etapas[[Tipo]:[Tipo]],MegaLoteo[[#This Row],[MEGA LOTEO]:[MEGA LOTEO]]) -> 0 | GA10: =SUMIFS(FlujoVentasEtapas[12-2033],Etapas[[Tipo]:[Tipo]],MegaLoteo[[#This Row],[MEGA LOTEO]:[MEGA LOTEO]]) -> 0 | GB10: =SUMIFS(FlujoVentasEtapas[01-2034],Etapas[[Tipo]:[Tipo]],MegaLoteo[[#This Row],[MEGA LOTEO]:[MEGA LOTEO]]) -> 0 | GC10: =SUMIFS(FlujoVentasEtapas[02-2034],Etapas[[Tipo]:[Tipo]],MegaLoteo[[#This Row],[MEGA LOTEO]:[MEGA LOTEO]]) -> 0 | GD10: =SUMIFS(FlujoVentasEtapas[03-2034],Etapas[[Tipo]:[Tipo]],MegaLoteo[[#This Row],[MEGA LOTEO]:[MEGA LOTEO]]) -> 0 | GE10: =SUMIFS(FlujoVentasEtapas[04-2034],Etapas[[Tipo]:[Tipo]],MegaLoteo[[#This Row],[MEGA LOTEO]:[MEGA LOTEO]]) -> 0 | GF10: =SUMIFS(FlujoVentasEtapas[05-2034],Etapas[[Tipo]:[Tipo]],MegaLoteo[[#This Row],[MEGA LOTEO]:[MEGA LOTEO]]) -> 0 | GG10: =SUMIFS(FlujoVentasEtapas[06-2034],Etapas[[Tipo]:[Tipo]],MegaLoteo[[#This Row],[MEGA LOTEO]:[MEGA LOTEO]]) -> 0 | GH10: =SUMIFS(FlujoVentasEtapas[07-2034],Etapas[[Tipo]:[Tipo]],MegaLoteo[[#This Row],[MEGA LOTEO]:[MEGA LOTEO]]) -> 0 | GI10: =SUMIFS(FlujoVentasEtapas[08-2034],Etapas[[Tipo]:[Tipo]],MegaLoteo[[#This Row],[MEGA LOTEO]:[MEGA LOTEO]]) -> 0 | GJ10: =SUMIFS(FlujoVentasEtapas[09-2034],Etapas[[Tipo]:[Tipo]],MegaLoteo[[#This Row],[MEGA LOTEO]:[MEGA LOTEO]]) -> 0 | GK10: =SUMIFS(FlujoVentasEtapas[10-2034],Etapas[[Tipo]:[Tipo]],MegaLoteo[[#This Row],[MEGA LOTEO]:[MEGA LOTEO]]) -> 0 | GL10: =SUMIFS(FlujoVentasEtapas[11-2034],Etapas[[Tipo]:[Tipo]],MegaLoteo[[#This Row],[MEGA LOTEO]:[MEGA LOTEO]]) -> 0 | GM10: =SUMIFS(FlujoVentasEtapas[12-2034],Etapas[[Tipo]:[Tipo]],MegaLoteo[[#This Row],[MEGA LOTEO]:[MEGA LOTEO]]) -> 0 | GN10: =SUMIFS(FlujoVentasEtapas[01-2035],Etapas[[Tipo]:[Tipo]],MegaLoteo[[#This Row],[MEGA LOTEO]:[MEGA LOTEO]]) -> 0 | GO10: =SUMIFS(FlujoVentasEtapas[02-2035],Etapas[[Tipo]:[Tipo]],MegaLoteo[[#This Row],[MEGA LOTEO]:[MEGA LOTEO]]) -> 0 | GP10: =SUMIFS(FlujoVentasEtapas[03-2035],Etapas[[Tipo]:[Tipo]],MegaLoteo[[#This Row],[MEGA LOTEO]:[MEGA LOTEO]]) -> 0 | GQ10: =SUMIFS(FlujoVentasEtapas[04-2035],Etapas[[Tipo]:[Tipo]],MegaLoteo[[#This Row],[MEGA LOTEO]:[MEGA LOTEO]]) -> 0 | GR10: =SUMIFS(FlujoVentasEtapas[05-2035],Etapas[[Tipo]:[Tipo]],MegaLoteo[[#This Row],[MEGA LOTEO]:[MEGA LOTEO]]) -> 0 | GS10: =SUMIFS(FlujoVentasEtapas[06-2035],Etapas[[Tipo]:[Tipo]],MegaLoteo[[#This Row],[MEGA LOTEO]:[MEGA LOTEO]]) -> 0 | GT10: =SUMIFS(FlujoVentasEtapas[07-2035],Etapas[[Tipo]:[Tipo]],MegaLoteo[[#This Row],[MEGA LOTEO]:[MEGA LOTEO]]) -> 0 | GU10: =SUMIFS(FlujoVentasEtapas[08-2035],Etapas[[Tipo]:[Tipo]],MegaLoteo[[#This Row],[MEGA LOTEO]:[MEGA LOTEO]]) -> 0 | GV10: =SUMIFS(FlujoVentasEtapas[09-2035],Etapas[[Tipo]:[Tipo]],MegaLoteo[[#This Row],[MEGA LOTEO]:[MEGA LOTEO]]) -> 0 | GW10: =SUMIFS(FlujoVentasEtapas[10-2035],Etapas[[Tipo]:[Tipo]],MegaLoteo[[#This Row],[MEGA LOTEO]:[MEGA LOTEO]]) -> 0 | GX10: =SUMIFS(FlujoVentasEtapas[11-2035],Etapas[[Tipo]:[Tipo]],MegaLoteo[[#This Row],[MEGA LOTEO]:[MEGA LOTEO]]) -> 0 | GY10: =SUMIFS(FlujoVentasEtapas[12-2035],Etapas[[Tipo]:[Tipo]],MegaLoteo[[#This Row],[MEGA LOTEO]:[MEGA LOTEO]]) -> 0 | GZ10: =SUMIFS(FlujoVentasEtapas[01-2036],Etapas[[Tipo]:[Tipo]],MegaLoteo[[#This Row],[MEGA LOTEO]:[MEGA LOTEO]]) -> 0 | HA10: =SUMIFS(FlujoVentasEtapas[02-2036],Etapas[[Tipo]:[Tipo]],MegaLoteo[[#This Row],[MEGA LOTEO]:[MEGA LOTEO]]) -> 0 | HB10: =SUMIFS(FlujoVentasEtapas[03-2036],Etapas[[Tipo]:[Tipo]],MegaLoteo[[#This Row],[MEGA LOTEO]:[MEGA LOTEO]]) -> 0 | HC10: =SUMIFS(FlujoVentasEtapas[04-2036],Etapas[[Tipo]:[Tipo]],MegaLoteo[[#This Row],[MEGA LOTEO]:[MEGA LOTEO]]) -> 0 | HD10: =SUMIFS(FlujoVentasEtapas[05-2036],Etapas[[Tipo]:[Tipo]],MegaLoteo[[#This Row],[MEGA LOTEO]:[MEGA LOTEO]]) -> 0 | HE10: =SUMIFS(FlujoVentasEtapas[06-2036],Etapas[[Tipo]:[Tipo]],MegaLoteo[[#This Row],[MEGA LOTEO]:[MEGA LOTEO]]) -> 0 | HF10: =SUMIFS(FlujoVentasEtapas[07-2036],Etapas[[Tipo]:[Tipo]],MegaLoteo[[#This Row],[MEGA LOTEO]:[MEGA LOTEO]]) -> 0 | HG10: =SUMIFS(FlujoVentasEtapas[08-2036],Etapas[[Tipo]:[Tipo]],MegaLoteo[[#This Row],[MEGA LOTEO]:[MEGA LOTEO]]) -> 0 | HH10: =SUMIFS(FlujoVentasEtapas[09-2036],Etapas[[Tipo]:[Tipo]],MegaLoteo[[#This Row],[MEGA LOTEO]:[MEGA LOTEO]]) -> 0 | HI10: =SUMIFS(FlujoVentasEtapas[10-2036],Etapas[[Tipo]:[Tipo]],MegaLoteo[[#This Row],[MEGA LOTEO]:[MEGA LOTEO]]) -> 0 | HJ10: =SUMIFS(FlujoVentasEtapas[11-2036],Etapas[[Tipo]:[Tipo]],MegaLoteo[[#This Row],[MEGA LOTEO]:[MEGA LOTEO]]) -> 0 | HK10: =SUMIFS(FlujoVentasEtapas[12-2036],Etapas[[Tipo]:[Tipo]],MegaLoteo[[#This Row],[MEGA LOTEO]:[MEGA LOTEO]]) -> 0 | HL10: =SUMIFS(FlujoVentasEtapas[01-2037],Etapas[[Tipo]:[Tipo]],MegaLoteo[[#This Row],[MEGA LOTEO]:[MEGA LOTEO]]) -> 0 | HM10: =SUMIFS(FlujoVentasEtapas[02-2037],Etapas[[Tipo]:[Tipo]],MegaLoteo[[#This Row],[MEGA LOTEO]:[MEGA LOTEO]]) -> 0 | HN10: =SUMIFS(FlujoVentasEtapas[03-2037],Etapas[[Tipo]:[Tipo]],MegaLoteo[[#This Row],[MEGA LOTEO]:[MEGA LOTEO]]) -> 0 | HO10: =SUMIFS(FlujoVentasEtapas[04-2037],Etapas[[Tipo]:[Tipo]],MegaLoteo[[#This Row],[MEGA LOTEO]:[MEGA LOTEO]]) -> 0 | HP10: =SUMIFS(FlujoVentasEtapas[05-2037],Etapas[[Tipo]:[Tipo]],MegaLoteo[[#This Row],[MEGA LOTEO]:[MEGA LOTEO]]) -> 0 | HQ10: =SUMIFS(FlujoVentasEtapas[06-2037],Etapas[[Tipo]:[Tipo]],MegaLoteo[[#This Row],[MEGA LOTEO]:[MEGA LOTEO]]) -> 0 | HR10: =SUMIFS(FlujoVentasEtapas[07-2037],Etapas[[Tipo]:[Tipo]],MegaLoteo[[#This Row],[MEGA LOTEO]:[MEGA LOTEO]]) -> 0 | HS10: =SUMIFS(FlujoVentasEtapas[08-2037],Etapas[[Tipo]:[Tipo]],MegaLoteo[[#This Row],[MEGA LOTEO]:[MEGA LOTEO]]) -> 0 | HT10: =SUMIFS(FlujoVentasEtapas[09-2037],Etapas[[Tipo]:[Tipo]],MegaLoteo[[#This Row],[MEGA LOTEO]:[MEGA LOTEO]]) -> 0 | HU10: =SUMIFS(FlujoVentasEtapas[10-2037],Etapas[[Tipo]:[Tipo]],MegaLoteo[[#This Row],[MEGA LOTEO]:[MEGA LOTEO]]) -> 0 | HV10: =SUMIFS(FlujoVentasEtapas[11-2037],Etapas[[Tipo]:[Tipo]],MegaLoteo[[#This Row],[MEGA LOTEO]:[MEGA LOTEO]]) -> 0 | HW10: =SUMIFS(FlujoVentasEtapas[12-2037],Etapas[[Tipo]:[Tipo]],MegaLoteo[[#This Row],[MEGA LOTEO]:[MEGA LOTEO]]) -> 0 | HX10: =SUMIFS(FlujoVentasEtapas[01-2038],Etapas[[Tipo]:[Tipo]],MegaLoteo[[#This Row],[MEGA LOTEO]:[MEGA LOTEO]]) -> 0 | HY10: =SUMIFS(FlujoVentasEtapas[02-2038],Etapas[[Tipo]:[Tipo]],MegaLoteo[[#This Row],[MEGA LOTEO]:[MEGA LOTEO]]) -> 0 | HZ10: =SUMIFS(FlujoVentasEtapas[03-2038],Etapas[[Tipo]:[Tipo]],MegaLoteo[[#This Row],[MEGA LOTEO]:[MEGA LOTEO]]) -> 0 | IA10: =SUMIFS(FlujoVentasEtapas[04-2038],Etapas[[Tipo]:[Tipo]],MegaLoteo[[#This Row],[MEGA LOTEO]:[MEGA LOTEO]]) -> 0 | IB10: =SUMIFS(FlujoVentasEtapas[05-2038],Etapas[[Tipo]:[Tipo]],MegaLoteo[[#This Row],[MEGA LOTEO]:[MEGA LOTEO]]) -> 0 | IC10: =SUMIFS(FlujoVentasEtapas[06-2038],Etapas[[Tipo]:[Tipo]],MegaLoteo[[#This Row],[MEGA LOTEO]:[MEGA LOTEO]]) -> 0 | ID10: =SUMIFS(FlujoVentasEtapas[07-2038],Etapas[[Tipo]:[Tipo]],MegaLoteo[[#This Row],[MEGA LOTEO]:[MEGA LOTEO]]) -> 0 | IE10: =SUMIFS(FlujoVentasEtapas[08-2038],Etapas[[Tipo]:[Tipo]],MegaLoteo[[#This Row],[MEGA LOTEO]:[MEGA LOTEO]]) -> 0 | IF10: =SUMIFS(FlujoVentasEtapas[09-2038],Etapas[[Tipo]:[Tipo]],MegaLoteo[[#This Row],[MEGA LOTEO]:[MEGA LOTEO]]) -> 0 | IG10: =SUMIFS(FlujoVentasEtapas[10-2038],Etapas[[Tipo]:[Tipo]],MegaLoteo[[#This Row],[MEGA LOTEO]:[MEGA LOTEO]]) -> 0 | IH10: =SUMIFS(FlujoVentasEtapas[11-2038],Etapas[[Tipo]:[Tipo]],MegaLoteo[[#This Row],[MEGA LOTEO]:[MEGA LOTEO]]) -> 0 | II10: =SUMIFS(FlujoVentasEtapas[12-2038],Etapas[[Tipo]:[Tipo]],MegaLoteo[[#This Row],[MEGA LOTEO]:[MEGA LOTEO]]) -> 0 | IJ10: =SUMIFS(FlujoVentasEtapas[01-2039],Etapas[[Tipo]:[Tipo]],MegaLoteo[[#This Row],[MEGA LOTEO]:[MEGA LOTEO]]) -> 0 | IK10: =SUMIFS(FlujoVentasEtapas[02-2039],Etapas[[Tipo]:[Tipo]],MegaLoteo[[#This Row],[MEGA LOTEO]:[MEGA LOTEO]]) -> 0 | IL10: =SUMIFS(FlujoVentasEtapas[03-2039],Etapas[[Tipo]:[Tipo]],MegaLoteo[[#This Row],[MEGA LOTEO]:[MEGA LOTEO]]) -> 0 | IM10: =SUMIFS(FlujoVentasEtapas[04-2039],Etapas[[Tipo]:[Tipo]],MegaLoteo[[#This Row],[MEGA LOTEO]:[MEGA LOTEO]]) -> 0 | IN10: =SUMIFS(FlujoVentasEtapas[05-2039],Etapas[[Tipo]:[Tipo]],MegaLoteo[[#This Row],[MEGA LOTEO]:[MEGA LOTEO]]) -> 0 | IO10: =SUMIFS(FlujoVentasEtapas[06-2039],Etapas[[Tipo]:[Tipo]],MegaLoteo[[#This Row],[MEGA LOTEO]:[MEGA LOTEO]]) -> 0 | IP10: =SUMIFS(FlujoVentasEtapas[07-2039],Etapas[[Tipo]:[Tipo]],MegaLoteo[[#This Row],[MEGA LOTEO]:[MEGA LOTEO]]) -> 0 | IQ10: =SUMIFS(FlujoVentasEtapas[08-2039],Etapas[[Tipo]:[Tipo]],MegaLoteo[[#This Row],[MEGA LOTEO]:[MEGA LOTEO]]) -> 0 | IR10: =SUMIFS(FlujoVentasEtapas[09-2039],Etapas[[Tipo]:[Tipo]],MegaLoteo[[#This Row],[MEGA LOTEO]:[MEGA LOTEO]]) -> 0 | IS10: =SUMIFS(FlujoVentasEtapas[10-2039],Etapas[[Tipo]:[Tipo]],MegaLoteo[[#This Row],[MEGA LOTEO]:[MEGA LOTEO]]) -> 0 | IT10: =SUMIFS(FlujoVentasEtapas[11-2039],Etapas[[Tipo]:[Tipo]],MegaLoteo[[#This Row],[MEGA LOTEO]:[MEGA LOTEO]]) -> 0 | IU10: =SUMIFS(FlujoVentasEtapas[12-2039],Etapas[[Tipo]:[Tipo]],MegaLoteo[[#This Row],[MEGA LOTEO]:[MEGA LOTEO]]) -> 0 | IV10: =SUMIFS(FlujoVentasEtapas[01-2040],Etapas[[Tipo]:[Tipo]],MegaLoteo[[#This Row],[MEGA LOTEO]:[MEGA LOTEO]]) -> 0 | IW10: =SUMIFS(FlujoVentasEtapas[02-2040],Etapas[[Tipo]:[Tipo]],MegaLoteo[[#This Row],[MEGA LOTEO]:[MEGA LOTEO]]) -> 0 | IX10: =SUMIFS(FlujoVentasEtapas[03-2040],Etapas[[Tipo]:[Tipo]],MegaLoteo[[#This Row],[MEGA LOTEO]:[MEGA LOTEO]]) -> 0 | IY10: =SUMIFS(FlujoVentasEtapas[04-2040],Etapas[[Tipo]:[Tipo]],MegaLoteo[[#This Row],[MEGA LOTEO]:[MEGA LOTEO]]) -> 0 | IZ10: =SUMIFS(FlujoVentasEtapas[05-2040],Etapas[[Tipo]:[Tipo]],MegaLoteo[[#This Row],[MEGA LOTEO]:[MEGA LOTEO]]) -> 0 | JA10: =SUMIFS(FlujoVentasEtapas[06-2040],Etapas[[Tipo]:[Tipo]],MegaLoteo[[#This Row],[MEGA LOTEO]:[MEGA LOTEO]]) -> 0 | JB10: =SUMIFS(FlujoVentasEtapas[07-2040],Etapas[[Tipo]:[Tipo]],MegaLoteo[[#This Row],[MEGA LOTEO]:[MEGA LOTEO]]) -> 0 | JC10: =SUMIFS(FlujoVentasEtapas[08-2040],Etapas[[Tipo]:[Tipo]],MegaLoteo[[#This Row],[MEGA LOTEO]:[MEGA LOTEO]]) -> 0 | JD10: =SUMIFS(FlujoVentasEtapas[09-2040],Etapas[[Tipo]:[Tipo]],MegaLoteo[[#This Row],[MEGA LOTEO]:[MEGA LOTEO]]) -> 0 | JE10: =SUMIFS(FlujoVentasEtapas[10-2040],Etapas[[Tipo]:[Tipo]],MegaLoteo[[#This Row],[MEGA LOTEO]:[MEGA LOTEO]]) -> 0 | JF10: =SUMIFS(FlujoVentasEtapas[11-2040],Etapas[[Tipo]:[Tipo]],MegaLoteo[[#This Row],[MEGA LOTEO]:[MEGA LOTEO]]) -> 0 | JG10: =SUMIFS(FlujoVentasEtapas[12-2040],Etapas[[Tipo]:[Tipo]],MegaLoteo[[#This Row],[MEGA LOTEO]:[MEGA LOTEO]]) -> 0 | JH10: =SUMIFS(FlujoVentasEtapas[01-2041],Etapas[[Tipo]:[Tipo]],MegaLoteo[[#This Row],[MEGA LOTEO]:[MEGA LOTEO]]) -> 0 | JI10: =SUMIFS(FlujoVentasEtapas[02-2041],Etapas[[Tipo]:[Tipo]],MegaLoteo[[#This Row],[MEGA LOTEO]:[MEGA LOTEO]]) -> 0 | JJ10: =SUMIFS(FlujoVentasEtapas[03-2041],Etapas[[Tipo]:[Tipo]],MegaLoteo[[#This Row],[MEGA LOTEO]:[MEGA LOTEO]]) -> 0 | JK10: =SUMIFS(FlujoVentasEtapas[04-2041],Etapas[[Tipo]:[Tipo]],MegaLoteo[[#This Row],[MEGA LOTEO]:[MEGA LOTEO]]) -> 0 | JL10: =SUMIFS(FlujoVentasEtapas[05-2041],Etapas[[Tipo]:[Tipo]],MegaLoteo[[#This Row],[MEGA LOTEO]:[MEGA LOTEO]]) -> 0 | JM10: =SUMIFS(FlujoVentasEtapas[06-2041],Etapas[[Tipo]:[Tipo]],MegaLoteo[[#This Row],[MEGA LOTEO]:[MEGA LOTEO]]) -> 0 | JN10: =SUMIFS(FlujoVentasEtapas[07-2041],Etapas[[Tipo]:[Tipo]],MegaLoteo[[#This Row],[MEGA LOTEO]:[MEGA LOTEO]]) -> 0 | JO10: =SUMIFS(FlujoVentasEtapas[08-2041],Etapas[[Tipo]:[Tipo]],MegaLoteo[[#This Row],[MEGA LOTEO]:[MEGA LOTEO]]) -> 0 | JP10: =SUMIFS(FlujoVentasEtapas[09-2041],Etapas[[Tipo]:[Tipo]],MegaLoteo[[#This Row],[MEGA LOTEO]:[MEGA LOTEO]]) -> 0 | JQ10: =SUMIFS(FlujoVentasEtapas[10-2041],Etapas[[Tipo]:[Tipo]],MegaLoteo[[#This Row],[MEGA LOTEO]:[MEGA LOTEO]]) -> 0 | JR10: =SUMIFS(FlujoVentasEtapas[11-2041],Etapas[[Tipo]:[Tipo]],MegaLoteo[[#This Row],[MEGA LOTEO]:[MEGA LOTEO]]) -> 0 | JS10: =SUMIFS(FlujoVentasEtapas[12-2041],Etapas[[Tipo]:[Tipo]],MegaLoteo[[#This Row],[MEGA LOTEO]:[MEGA LOTEO]]) -> 0 | JT10: =SUMIFS(FlujoVentasEtapas[01-2042],Etapas[[Tipo]:[Tipo]],MegaLoteo[[#This Row],[MEGA LOTEO]:[MEGA LOTEO]]) -> 0 | JU10: =SUMIFS(FlujoVentasEtapas[02-2042],Etapas[[Tipo]:[Tipo]],MegaLoteo[[#This Row],[MEGA LOTEO]:[MEGA LOTEO]]) -> 0 | JV10: =SUMIFS(FlujoVentasEtapas[03-2042],Etapas[[Tipo]:[Tipo]],MegaLoteo[[#This Row],[MEGA LOTEO]:[MEGA LOTEO]]) -> 0 | JW10: =SUMIFS(FlujoVentasEtapas[04-2042],Etapas[[Tipo]:[Tipo]],MegaLoteo[[#This Row],[MEGA LOTEO]:[MEGA LOTEO]]) -> 0 | JX10: =SUMIFS(FlujoVentasEtapas[05-2042],Etapas[[Tipo]:[Tipo]],MegaLoteo[[#This Row],[MEGA LOTEO]:[MEGA LOTEO]]) -> 0 | JY10: =SUMIFS(FlujoVentasEtapas[06-2042],Etapas[[Tipo]:[Tipo]],MegaLoteo[[#This Row],[MEGA LOTEO]:[MEGA LOTEO]]) -> 0 | JZ10: =SUMIFS(FlujoVentasEtapas[07-2042],Etapas[[Tipo]:[Tipo]],MegaLoteo[[#This Row],[MEGA LOTEO]:[MEGA LOTEO]]) -> 0 | KA10: =SUMIFS(FlujoVentasEtapas[08-2042],Etapas[[Tipo]:[Tipo]],MegaLoteo[[#This Row],[MEGA LOTEO]:[MEGA LOTEO]]) -> 0 | KB10: =SUMIFS(FlujoVentasEtapas[09-2042],Etapas[[Tipo]:[Tipo]],MegaLoteo[[#This Row],[MEGA LOTEO]:[MEGA LOTEO]]) -> 0 | KC10: =SUMIFS(FlujoVentasEtapas[10-2042],Etapas[[Tipo]:[Tipo]],MegaLoteo[[#This Row],[MEGA LOTEO]:[MEGA LOTEO]]) -> 0 | KD10: =SUMIFS(FlujoVentasEtapas[11-2042],Etapas[[Tipo]:[Tipo]],MegaLoteo[[#This Row],[MEGA LOTEO]:[MEGA LOTEO]]) -> 0 | KE10: =SUMIFS(FlujoVentasEtapas[12-2042],Etapas[[Tipo]:[Tipo]],MegaLoteo[[#This Row],[MEGA LOTEO]:[MEGA LOTEO]]) -> 0 | KF10: =SUMIFS(FlujoVentasEtapas[01-2043],Etapas[[Tipo]:[Tipo]],MegaLoteo[[#This Row],[MEGA LOTEO]:[MEGA LOTEO]]) -> 0 | KG10: =SUMIFS(FlujoVentasEtapas[02-2043],Etapas[[Tipo]:[Tipo]],MegaLoteo[[#This Row],[MEGA LOTEO]:[MEGA LOTEO]]) -> 0 | KH10: =SUMIFS(FlujoVentasEtapas[03-2043],Etapas[[Tipo]:[Tipo]],MegaLoteo[[#This Row],[MEGA LOTEO]:[MEGA LOTEO]]) -> 0 | KI10: =SUMIFS(FlujoVentasEtapas[04-2043],Etapas[[Tipo]:[Tipo]],MegaLoteo[[#This Row],[MEGA LOTEO]:[MEGA LOTEO]]) -> 0 | KJ10: =SUMIFS(FlujoVentasEtapas[05-2043],Etapas[[Tipo]:[Tipo]],MegaLoteo[[#This Row],[MEGA LOTEO]:[MEGA LOTEO]]) -> 0 | KK10: =SUMIFS(FlujoVentasEtapas[06-2043],Etapas[[Tipo]:[Tipo]],MegaLoteo[[#This Row],[MEGA LOTEO]:[MEGA LOTEO]]) -> 0 | KL10: =SUMIFS(FlujoVentasEtapas[07-2043],Etapas[[Tipo]:[Tipo]],MegaLoteo[[#This Row],[MEGA LOTEO]:[MEGA LOTEO]]) -> 0 | KM10: =SUMIFS(FlujoVentasEtapas[08-2043],Etapas[[Tipo]:[Tipo]],MegaLoteo[[#This Row],[MEGA LOTEO]:[MEGA LOTEO]]) -> 0 | KN10: =SUMIFS(FlujoVentasEtapas[09-2043],Etapas[[Tipo]:[Tipo]],MegaLoteo[[#This Row],[MEGA LOTEO]:[MEGA LOTEO]]) -> 0 | KO10: =SUMIFS(FlujoVentasEtapas[10-2043],Etapas[[Tipo]:[Tipo]],MegaLoteo[[#This Row],[MEGA LOTEO]:[MEGA LOTEO]]) -> 0 | KP10: =SUMIFS(FlujoVentasEtapas[11-2043],Etapas[[Tipo]:[Tipo]],MegaLoteo[[#This Row],[MEGA LOTEO]:[MEGA LOTEO]]) -> 0 | KQ10: =SUMIFS(FlujoVentasEtapas[12-2043],Etapas[[Tipo]:[Tipo]],MegaLoteo[[#This Row],[MEGA LOTEO]:[MEGA LOTEO]]) -> 0 | KR10: =SUMIFS(FlujoVentasEtapas[01-2044],Etapas[[Tipo]:[Tipo]],MegaLoteo[[#This Row],[MEGA LOTEO]:[MEGA LOTEO]]) -> 0 | KS10: =SUMIFS(FlujoVentasEtapas[02-2044],Etapas[[Tipo]:[Tipo]],MegaLoteo[[#This Row],[MEGA LOTEO]:[MEGA LOTEO]]) -> 0 | KT10: =SUMIFS(FlujoVentasEtapas[03-2044],Etapas[[Tipo]:[Tipo]],MegaLoteo[[#This Row],[MEGA LOTEO]:[MEGA LOTEO]]) -> 0 | KU10: =SUMIFS(FlujoVentasEtapas[04-2044],Etapas[[Tipo]:[Tipo]],MegaLoteo[[#This Row],[MEGA LOTEO]:[MEGA LOTEO]]) -> 0 | KV10: =SUMIFS(FlujoVentasEtapas[05-2044],Etapas[[Tipo]:[Tipo]],MegaLoteo[[#This Row],[MEGA LOTEO]:[MEGA LOTEO]]) -> 0 | KW10: =SUMIFS(FlujoVentasEtapas[06-2044],Etapas[[Tipo]:[Tipo]],MegaLoteo[[#This Row],[MEGA LOTEO]:[MEGA LOTEO]]) -> 0 | KX10: =SUMIFS(FlujoVentasEtapas[07-2044],Etapas[[Tipo]:[Tipo]],MegaLoteo[[#This Row],[MEGA LOTEO]:[MEGA LOTEO]]) -> 0 | KY10: =SUMIFS(FlujoVentasEtapas[08-2044],Etapas[[Tipo]:[Tipo]],MegaLoteo[[#This Row],[MEGA LOTEO]:[MEGA LOTEO]]) -> 0 | KZ10: =SUMIFS(FlujoVentasEtapas[09-2044],Etapas[[Tipo]:[Tipo]],MegaLoteo[[#This Row],[MEGA LOTEO]:[MEGA LOTEO]]) -> 0 | LA10: =SUMIFS(FlujoVentasEtapas[10-2044],Etapas[[Tipo]:[Tipo]],MegaLoteo[[#This Row],[MEGA LOTEO]:[MEGA LOTEO]]) -> 0 | LB10: =SUMIFS(FlujoVentasEtapas[11-2044],Etapas[[Tipo]:[Tipo]],MegaLoteo[[#This Row],[MEGA LOTEO]:[MEGA LOTEO]]) -> 0 | LC10: =SUMIFS(FlujoVentasEtapas[12-2044],Etapas[[Tipo]:[Tipo]],MegaLoteo[[#This Row],[MEGA LOTEO]:[MEGA LOTEO]]) -> 0 | LD10: =SUMIFS(FlujoVentasEtapas[01-2045],Etapas[[Tipo]:[Tipo]],MegaLoteo[[#This Row],[MEGA LOTEO]:[MEGA LOTEO]]) -> 0 | LE10: =SUMIFS(FlujoVentasEtapas[02-2045],Etapas[[Tipo]:[Tipo]],MegaLoteo[[#This Row],[MEGA LOTEO]:[MEGA LOTEO]]) -> 0 | LF10: =SUMIFS(FlujoVentasEtapas[03-2045],Etapas[[Tipo]:[Tipo]],MegaLoteo[[#This Row],[MEGA LOTEO]:[MEGA LOTEO]]) -> 0 | LG10: =SUMIFS(FlujoVentasEtapas[04-2045],Etapas[[Tipo]:[Tipo]],MegaLoteo[[#This Row],[MEGA LOTEO]:[MEGA LOTEO]]) -> 0 | LH10: =SUMIFS(FlujoVentasEtapas[05-2045],Etapas[[Tipo]:[Tipo]],MegaLoteo[[#This Row],[MEGA LOTEO]:[MEGA LOTEO]]) -> 0 | LI10: =SUMIFS(FlujoVentasEtapas[06-2045],Etapas[[Tipo]:[Tipo]],MegaLoteo[[#This Row],[MEGA LOTEO]:[MEGA LOTEO]]) -> 0 | LJ10: =SUMIFS(FlujoVentasEtapas[07-2045],Etapas[[Tipo]:[Tipo]],MegaLoteo[[#This Row],[MEGA LOTEO]:[MEGA LOTEO]]) -> 0 | LK10: =SUMIFS(FlujoVentasEtapas[08-2045],Etapas[[Tipo]:[Tipo]],MegaLoteo[[#This Row],[MEGA LOTEO]:[MEGA LOTEO]]) -> 0 | LL10: =SUMIFS(FlujoVentasEtapas[09-2045],Etapas[[Tipo]:[Tipo]],MegaLoteo[[#This Row],[MEGA LOTEO]:[MEGA LOTEO]]) -> 0 | LM10: =SUMIFS(FlujoVentasEtapas[10-2045],Etapas[[Tipo]:[Tipo]],MegaLoteo[[#This Row],[MEGA LOTEO]:[MEGA LOTEO]]) -> 0 | LN10: =SUMIFS(FlujoVentasEtapas[11-2045],Etapas[[Tipo]:[Tipo]],MegaLoteo[[#This Row],[MEGA LOTEO]:[MEGA LOTEO]]) -> 0 | LO10: =SUMIFS(FlujoVentasEtapas[12-2045],Etapas[[Tipo]:[Tipo]],MegaLoteo[[#This Row],[MEGA LOTEO]:[MEGA LOTEO]]) -> 0 | LP10: =SUMIFS(FlujoVentasEtapas[01-2046],Etapas[[Tipo]:[Tipo]],MegaLoteo[[#This Row],[MEGA LOTEO]:[MEGA LOTEO]]) -> 0 | LQ10: =SUMIFS(FlujoVentasEtapas[02-2046],Etapas[[Tipo]:[Tipo]],MegaLoteo[[#This Row],[MEGA LOTEO]:[MEGA LOTEO]]) -> 0 | LR10: =SUMIFS(FlujoVentasEtapas[03-2046],Etapas[[Tipo]:[Tipo]],MegaLoteo[[#This Row],[MEGA LOTEO]:[MEGA LOTEO]]) -> 0 | LS10: =SUMIFS(FlujoVentasEtapas[04-2046],Etapas[[Tipo]:[Tipo]],MegaLoteo[[#This Row],[MEGA LOTEO]:[MEGA LOTEO]]) -> 0 | LT10: =SUMIFS(FlujoVentasEtapas[05-2046],Etapas[[Tipo]:[Tipo]],MegaLoteo[[#This Row],[MEGA LOTEO]:[MEGA LOTEO]]) -> 0 | LU10: =SUMIFS(FlujoVentasEtapas[06-2046],Etapas[[Tipo]:[Tipo]],MegaLoteo[[#This Row],[MEGA LOTEO]:[MEGA LOTEO]]) -> 0 | LV10: =SUMIFS(FlujoVentasEtapas[07-2046],Etapas[[Tipo]:[Tipo]],MegaLoteo[[#This Row],[MEGA LOTEO]:[MEGA LOTEO]]) -> 0 | LW10: =SUMIFS(FlujoVentasEtapas[08-2046],Etapas[[Tipo]:[Tipo]],MegaLoteo[[#This Row],[MEGA LOTEO]:[MEGA LOTEO]]) -> 0 | LX10: =SUMIFS(FlujoVentasEtapas[09-2046],Etapas[[Tipo]:[Tipo]],MegaLoteo[[#This Row],[MEGA LOTEO]:[MEGA LOTEO]]) -> 0 | LY10: =SUMIFS(FlujoVentasEtapas[10-2046],Etapas[[Tipo]:[Tipo]],MegaLoteo[[#This Row],[MEGA LOTEO]:[MEGA LOTEO]]) -> 0 | LZ10: =SUMIFS(FlujoVentasEtapas[11-2046],Etapas[[Tipo]:[Tipo]],MegaLoteo[[#This Row],[MEGA LOTEO]:[MEGA LOTEO]]) -> 0 | MA10: =SUMIFS(FlujoVentasEtapas[12-2046],Etapas[[Tipo]:[Tipo]],MegaLoteo[[#This Row],[MEGA LOTEO]:[MEGA LOTEO]]) -> 0 | MB10: =SUMIFS(FlujoVentasEtapas[01-2047],Etapas[[Tipo]:[Tipo]],MegaLoteo[[#This Row],[MEGA LOTEO]:[MEGA LOTEO]]) -> 0 | MC10: =SUMIFS(FlujoVentasEtapas[02-2047],Etapas[[Tipo]:[Tipo]],MegaLoteo[[#This Row],[MEGA LOTEO]:[MEGA LOTEO]]) -> 0 | MD10: =SUMIFS(FlujoVentasEtapas[03-2047],Etapas[[Tipo]:[Tipo]],MegaLoteo[[#This Row],[MEGA LOTEO]:[MEGA LOTEO]]) -> 0 | ME10: =SUMIFS(FlujoVentasEtapas[04-2047],Etapas[[Tipo]:[Tipo]],MegaLoteo[[#This Row],[MEGA LOTEO]:[MEGA LOTEO]]) -> 0 | MF10: =SUMIFS(FlujoVentasEtapas[05-2047],Etapas[[Tipo]:[Tipo]],MegaLoteo[[#This Row],[MEGA LOTEO]:[MEGA LOTEO]]) -> 0 | MG10: =SUMIFS(FlujoVentasEtapas[06-2047],Etapas[[Tipo]:[Tipo]],MegaLoteo[[#This Row],[MEGA LOTEO]:[MEGA LOTEO]]) -> 0 | MH10: =SUMIFS(FlujoVentasEtapas[07-2047],Etapas[[Tipo]:[Tipo]],MegaLoteo[[#This Row],[MEGA LOTEO]:[MEGA LOTEO]]) -> 0 | MI10: =SUMIFS(FlujoVentasEtapas[08-2047],Etapas[[Tipo]:[Tipo]],MegaLoteo[[#This Row],[MEGA LOTEO]:[MEGA LOTEO]]) -> 0 | MJ10: =SUMIFS(FlujoVentasEtapas[09-2047],Etapas[[Tipo]:[Tipo]],MegaLoteo[[#This Row],[MEGA LOTEO]:[MEGA LOTEO]]) -> 0 | MK10: =SUMIFS(FlujoVentasEtapas[10-2047],Etapas[[Tipo]:[Tipo]],MegaLoteo[[#This Row],[MEGA LOTEO]:[MEGA LOTEO]]) -> 0 | ML10: =SUMIFS(FlujoVentasEtapas[11-2047],Etapas[[Tipo]:[Tipo]],MegaLoteo[[#This Row],[MEGA LOTEO]:[MEGA LOTEO]]) -> 0 | MM10: =SUMIFS(FlujoVentasEtapas[12-2047],Etapas[[Tipo]:[Tipo]],MegaLoteo[[#This Row],[MEGA LOTEO]:[MEGA LOTEO]]) -> 0 | MN10: =SUMIFS(FlujoVentasEtapas[01-2048],Etapas[[Tipo]:[Tipo]],MegaLoteo[[#This Row],[MEGA LOTEO]:[MEGA LOTEO]]) -> 0 | MO10: =SUMIFS(FlujoVentasEtapas[02-2048],Etapas[[Tipo]:[Tipo]],MegaLoteo[[#This Row],[MEGA LOTEO]:[MEGA LOTEO]]) -> 0 | MP10: =SUMIFS(FlujoVentasEtapas[03-2048],Etapas[[Tipo]:[Tipo]],MegaLoteo[[#This Row],[MEGA LOTEO]:[MEGA LOTEO]]) -> 0 | MQ10: =SUMIFS(FlujoVentasEtapas[04-2048],Etapas[[Tipo]:[Tipo]],MegaLoteo[[#This Row],[MEGA LOTEO]:[MEGA LOTEO]]) -> 0 | MR10: =SUMIFS(FlujoVentasEtapas[05-2048],Etapas[[Tipo]:[Tipo]],MegaLoteo[[#This Row],[MEGA LOTEO]:[MEGA LOTEO]]) -> 0 | MS10: =SUMIFS(FlujoVentasEtapas[06-2048],Etapas[[Tipo]:[Tipo]],MegaLoteo[[#This Row],[MEGA LOTEO]:[MEGA LOTEO]]) -> 0 | MT10: =SUMIFS(FlujoVentasEtapas[07-2048],Etapas[[Tipo]:[Tipo]],MegaLoteo[[#This Row],[MEGA LOTEO]:[MEGA LOTEO]]) -> 0 | MU10: =SUMIFS(FlujoVentasEtapas[08-2048],Etapas[[Tipo]:[Tipo]],MegaLoteo[[#This Row],[MEGA LOTEO]:[MEGA LOTEO]]) -> 0 | MV10: =SUMIFS(FlujoVentasEtapas[09-2048],Etapas[[Tipo]:[Tipo]],MegaLoteo[[#This Row],[MEGA LOTEO]:[MEGA LOTEO]]) -> 0 | MW10: =SUMIFS(FlujoVentasEtapas[10-2048],Etapas[[Tipo]:[Tipo]],MegaLoteo[[#This Row],[MEGA LOTEO]:[MEGA LOTEO]]) -> 0 | MX10: =SUMIFS(FlujoVentasEtapas[11-2048],Etapas[[Tipo]:[Tipo]],MegaLoteo[[#This Row],[MEGA LOTEO]:[MEGA LOTEO]]) -> 0 | MY10: =SUMIFS(FlujoVentasEtapas[12-2048],Etapas[[Tipo]:[Tipo]],MegaLoteo[[#This Row],[MEGA LOTEO]:[MEGA LOTEO]]) -> 0 | MZ10: =SUMIFS(FlujoVentasEtapas[01-2049],Etapas[[Tipo]:[Tipo]],MegaLoteo[[#This Row],[MEGA LOTEO]:[MEGA LOTEO]]) -> 0 | NA10: =SUMIFS(FlujoVentasEtapas[02-2049],Etapas[[Tipo]:[Tipo]],MegaLoteo[[#This Row],[MEGA LOTEO]:[MEGA LOTEO]]) -> 0 | NB10: =SUMIFS(FlujoVentasEtapas[03-2049],Etapas[[Tipo]:[Tipo]],MegaLoteo[[#This Row],[MEGA LOTEO]:[MEGA LOTEO]]) -> 0 | NC10: =SUMIFS(FlujoVentasEtapas[04-2049],Etapas[[Tipo]:[Tipo]],MegaLoteo[[#This Row],[MEGA LOTEO]:[MEGA LOTEO]]) -> 0 | ND10: =SUMIFS(FlujoVentasEtapas[05-2049],Etapas[[Tipo]:[Tipo]],MegaLoteo[[#This Row],[MEGA LOTEO]:[MEGA LOTEO]]) -> 0 | NE10: =SUMIFS(FlujoVentasEtapas[06-2049],Etapas[[Tipo]:[Tipo]],MegaLoteo[[#This Row],[MEGA LOTEO]:[MEGA LOTEO]]) -> 0 | NF10: =SUMIFS(FlujoVentasEtapas[07-2049],Etapas[[Tipo]:[Tipo]],MegaLoteo[[#This Row],[MEGA LOTEO]:[MEGA LOTEO]]) -> 0 | NG10: =SUMIFS(FlujoVentasEtapas[08-2049],Etapas[[Tipo]:[Tipo]],MegaLoteo[[#This Row],[MEGA LOTEO]:[MEGA LOTEO]]) -> 0 | NH10: =SUMIFS(FlujoVentasEtapas[09-2049],Etapas[[Tipo]:[Tipo]],MegaLoteo[[#This Row],[MEGA LOTEO]:[MEGA LOTEO]]) -> 0 | NI10: =SUMIFS(FlujoVentasEtapas[10-2049],Etapas[[Tipo]:[Tipo]],MegaLoteo[[#This Row],[MEGA LOTEO]:[MEGA LOTEO]]) -> 0 | NJ10: =SUMIFS(FlujoVentasEtapas[11-2049],Etapas[[Tipo]:[Tipo]],MegaLoteo[[#This Row],[MEGA LOTEO]:[MEGA LOTEO]]) -> 0 | NK10: =SUMIFS(FlujoVentasEtapas[12-2049],Etapas[[Tipo]:[Tipo]],MegaLoteo[[#This Row],[MEGA LOTEO]:[MEGA LOTEO]]) -> 0 | NL10: =SUMIFS(FlujoVentasEtapas[01-2050],Etapas[[Tipo]:[Tipo]],MegaLoteo[[#This Row],[MEGA LOTEO]:[MEGA LOTEO]]) -> 0 | NM10: =SUMIFS(FlujoVentasEtapas[02-2050],Etapas[[Tipo]:[Tipo]],MegaLoteo[[#This Row],[MEGA LOTEO]:[MEGA LOTEO]]) -> 0 | NN10: =SUMIFS(FlujoVentasEtapas[03-2050],Etapas[[Tipo]:[Tipo]],MegaLoteo[[#This Row],[MEGA LOTEO]:[MEGA LOTEO]]) -> 0 | NO10: =SUMIFS(FlujoVentasEtapas[04-2050],Etapas[[Tipo]:[Tipo]],MegaLoteo[[#This Row],[MEGA LOTEO]:[MEGA LOTEO]]) -> 0 | NP10: =SUMIFS(FlujoVentasEtapas[05-2050],Etapas[[Tipo]:[Tipo]],MegaLoteo[[#This Row],[MEGA LOTEO]:[MEGA LOTEO]]) -> 0 | NQ10: =SUMIFS(FlujoVentasEtapas[06-2050],Etapas[[Tipo]:[Tipo]],MegaLoteo[[#This Row],[MEGA LOTEO]:[MEGA LOTEO]]) -> 0 | NR10: =SUMIFS(FlujoVentasEtapas[07-2050],Etapas[[Tipo]:[Tipo]],MegaLoteo[[#This Row],[MEGA LOTEO]:[MEGA LOTEO]]) -> 0 | NS10: =SUMIFS(FlujoVentasEtapas[08-2050],Etapas[[Tipo]:[Tipo]],MegaLoteo[[#This Row],[MEGA LOTEO]:[MEGA LOTEO]]) -> 0 | NT10: =SUMIFS(FlujoVentasEtapas[09-2050],Etapas[[Tipo]:[Tipo]],MegaLoteo[[#This Row],[MEGA LOTEO]:[MEGA LOTEO]]) -> 0 | NU10: =SUMIFS(FlujoVentasEtapas[10-2050],Etapas[[Tipo]:[Tipo]],MegaLoteo[[#This Row],[MEGA LOTEO]:[MEGA LOTEO]]) -> 0 | NV10: =SUMIFS(FlujoVentasEtapas[11-2050],Etapas[[Tipo]:[Tipo]],MegaLoteo[[#This Row],[MEGA LOTEO]:[MEGA LOTEO]]) -> 0 | NW10: =SUMIFS(FlujoVentasEtapas[12-2050],Etapas[[Tipo]:[Tipo]],MegaLoteo[[#This Row],[MEGA LOTEO]:[MEGA LOTEO]]) -> 0 | NX10: =SUMIFS(FlujoVentasEtapas[01-2051],Etapas[[Tipo]:[Tipo]],MegaLoteo[[#This Row],[MEGA LOTEO]:[MEGA LOTEO]]) -> 0 | NY10: =SUMIFS(FlujoVentasEtapas[02-2051],Etapas[[Tipo]:[Tipo]],MegaLoteo[[#This Row],[MEGA LOTEO]:[MEGA LOTEO]]) -> 0 | NZ10: =SUMIFS(FlujoVentasEtapas[03-2051],Etapas[[Tipo]:[Tipo]],MegaLoteo[[#This Row],[MEGA LOTEO]:[MEGA LOTEO]]) -> 0 | OA10: =SUMIFS(FlujoVentasEtapas[04-2051],Etapas[[Tipo]:[Tipo]],MegaLoteo[[#This Row],[MEGA LOTEO]:[MEGA LOTEO]]) -> 0 | OB10: =SUMIFS(FlujoVentasEtapas[05-2051],Etapas[[Tipo]:[Tipo]],MegaLoteo[[#This Row],[MEGA LOTEO]:[MEGA LOTEO]]) -> 0 | OC10: =SUMIFS(FlujoVentasEtapas[06-2051],Etapas[[Tipo]:[Tipo]],MegaLoteo[[#This Row],[MEGA LOTEO]:[MEGA LOTEO]]) -> 0 | OD10: =SUMIFS(FlujoVentasEtapas[07-2051],Etapas[[Tipo]:[Tipo]],MegaLoteo[[#This Row],[MEGA LOTEO]:[MEGA LOTEO]]) -> 0 | OE10: =SUMIFS(FlujoVentasEtapas[08-2051],Etapas[[Tipo]:[Tipo]],MegaLoteo[[#This Row],[MEGA LOTEO]:[MEGA LOTEO]]) -> 0 | OF10: =SUMIFS(FlujoVentasEtapas[09-2051],Etapas[[Tipo]:[Tipo]],MegaLoteo[[#This Row],[MEGA LOTEO]:[MEGA LOTEO]]) -> 0 | OG10: =SUMIFS(FlujoVentasEtapas[10-2051],Etapas[[Tipo]:[Tipo]],MegaLoteo[[#This Row],[MEGA LOTEO]:[MEGA LOTEO]]) -> 0 | OH10: =SUMIFS(FlujoVentasEtapas[11-2051],Etapas[[Tipo]:[Tipo]],MegaLoteo[[#This Row],[MEGA LOTEO]:[MEGA LOTEO]]) -> 0 | OI10: =SUMIFS(FlujoVentasEtapas[12-2051],Etapas[[Tipo]:[Tipo]],MegaLoteo[[#This Row],[MEGA LOTEO]:[MEGA LOTEO]]) -> 0 | OJ10: =SUMIFS(FlujoVentasEtapas[01-2052],Etapas[[Tipo]:[Tipo]],MegaLoteo[[#This Row],[MEGA LOTEO]:[MEGA LOTEO]]) -> 0 | OK10: =SUMIFS(FlujoVentasEtapas[02-2052],Etapas[[Tipo]:[Tipo]],MegaLoteo[[#This Row],[MEGA LOTEO]:[MEGA LOTEO]]) -> 0 | OL10: =SUMIFS(FlujoVentasEtapas[03-2052],Etapas[[Tipo]:[Tipo]],MegaLoteo[[#This Row],[MEGA LOTEO]:[MEGA LOTEO]]) -> 0 | OM10: =SUMIFS(FlujoVentasEtapas[04-2052],Etapas[[Tipo]:[Tipo]],MegaLoteo[[#This Row],[MEGA LOTEO]:[MEGA LOTEO]]) -> 0 | ON10: =SUMIFS(FlujoVentasEtapas[05-2052],Etapas[[Tipo]:[Tipo]],MegaLoteo[[#This Row],[MEGA LOTEO]:[MEGA LOTEO]]) -> 0 | OO10: =SUMIFS(FlujoVentasEtapas[06-2052],Etapas[[Tipo]:[Tipo]],MegaLoteo[[#This Row],[MEGA LOTEO]:[MEGA LOTEO]]) -> 0 | OP10: =SUMIFS(FlujoVentasEtapas[07-2052],Etapas[[Tipo]:[Tipo]],MegaLoteo[[#This Row],[MEGA LOTEO]:[MEGA LOTEO]]) -> 0 | OQ10: =SUMIFS(FlujoVentasEtapas[08-2052],Etapas[[Tipo]:[Tipo]],MegaLoteo[[#This Row],[MEGA LOTEO]:[MEGA LOTEO]]) -> 0 | OR10: =SUMIFS(FlujoVentasEtapas[09-2052],Etapas[[Tipo]:[Tipo]],MegaLoteo[[#This Row],[MEGA LOTEO]:[MEGA LOTEO]]) -> 0 | OS10: =SUMIFS(FlujoVentasEtapas[10-2052],Etapas[[Tipo]:[Tipo]],MegaLoteo[[#This Row],[MEGA LOTEO]:[MEGA LOTEO]]) -> 0 | OT10: =SUMIFS(FlujoVentasEtapas[11-2052],Etapas[[Tipo]:[Tipo]],MegaLoteo[[#This Row],[MEGA LOTEO]:[MEGA LOTEO]]) -> 0 | OU10: =SUMIFS(FlujoVentasEtapas[12-2052],Etapas[[Tipo]:[Tipo]],MegaLoteo[[#This Row],[MEGA LOTEO]:[MEGA LOTEO]]) -> 0 | OV10: =SUMIFS(FlujoVentasEtapas[01-2053],Etapas[[Tipo]:[Tipo]],MegaLoteo[[#This Row],[MEGA LOTEO]:[MEGA LOTEO]]) -> 0 | OW10: =SUMIFS(FlujoVentasEtapas[02-2053],Etapas[[Tipo]:[Tipo]],MegaLoteo[[#This Row],[MEGA LOTEO]:[MEGA LOTEO]]) -> 0 | OX10: =SUMIFS(FlujoVentasEtapas[03-2053],Etapas[[Tipo]:[Tipo]],MegaLoteo[[#This Row],[MEGA LOTEO]:[MEGA LOTEO]]) -> 0 | OY10: =SUMIFS(FlujoVentasEtapas[04-2053],Etapas[[Tipo]:[Tipo]],MegaLoteo[[#This Row],[MEGA LOTEO]:[MEGA LOTEO]]) -> 0 | OZ10: =SUMIFS(FlujoVentasEtapas[05-2053],Etapas[[Tipo]:[Tipo]],MegaLoteo[[#This Row],[MEGA LOTEO]:[MEGA LOTEO]]) -> 0 | PA10: =SUMIFS(FlujoVentasEtapas[06-2053],Etapas[[Tipo]:[Tipo]],MegaLoteo[[#This Row],[MEGA LOTEO]:[MEGA LOTEO]]) -> 0 | PB10: =SUMIFS(FlujoVentasEtapas[07-2053],Etapas[[Tipo]:[Tipo]],MegaLoteo[[#This Row],[MEGA LOTEO]:[MEGA LOTEO]]) -> 0 | PC10: =SUMIFS(FlujoVentasEtapas[08-2053],Etapas[[Tipo]:[Tipo]],MegaLoteo[[#This Row],[MEGA LOTEO]:[MEGA LOTEO]]) -> 0 | PD10: =SUMIFS(FlujoVentasEtapas[09-2053],Etapas[[Tipo]:[Tipo]],MegaLoteo[[#This Row],[MEGA LOTEO]:[MEGA LOTEO]]) -> 0 | PE10: =SUMIFS(FlujoVentasEtapas[10-2053],Etapas[[Tipo]:[Tipo]],MegaLoteo[[#This Row],[MEGA LOTEO]:[MEGA LOTEO]]) -> 0 | PF10: =SUMIFS(FlujoVentasEtapas[11-2053],Etapas[[Tipo]:[Tipo]],MegaLoteo[[#This Row],[MEGA LOTEO]:[MEGA LOTEO]]) -> 0 | PG10: =SUMIFS(FlujoVentasEtapas[12-2053],Etapas[[Tipo]:[Tipo]],MegaLoteo[[#This Row],[MEGA LOTEO]:[MEGA LOTEO]]) -> 0 | PH10: =SUMIFS(FlujoVentasEtapas[01-2054],Etapas[[Tipo]:[Tipo]],MegaLoteo[[#This Row],[MEGA LOTEO]:[MEGA LOTEO]]) -> 0 | PI10: =SUMIFS(FlujoVentasEtapas[02-2054],Etapas[[Tipo]:[Tipo]],MegaLoteo[[#This Row],[MEGA LOTEO]:[MEGA LOTEO]]) -> 0 | PJ10: =SUMIFS(FlujoVentasEtapas[03-2054],Etapas[[Tipo]:[Tipo]],MegaLoteo[[#This Row],[MEGA LOTEO]:[MEGA LOTEO]]) -> 0 | PK10: =SUMIFS(FlujoVentasEtapas[04-2054],Etapas[[Tipo]:[Tipo]],MegaLoteo[[#This Row],[MEGA LOTEO]:[MEGA LOTEO]]) -> 0 | PL10: =SUMIFS(FlujoVentasEtapas[05-2054],Etapas[[Tipo]:[Tipo]],MegaLoteo[[#This Row],[MEGA LOTEO]:[MEGA LOTEO]]) -> 0 | PM10: =SUMIFS(FlujoVentasEtapas[06-2054],Etapas[[Tipo]:[Tipo]],MegaLoteo[[#This Row],[MEGA LOTEO]:[MEGA LOTEO]]) -> 0 | PN10: =SUMIFS(FlujoVentasEtapas[07-2054],Etapas[[Tipo]:[Tipo]],MegaLoteo[[#This Row],[MEGA LOTEO]:[MEGA LOTEO]]) -> 0 | PO10: =SUMIFS(FlujoVentasEtapas[08-2054],Etapas[[Tipo]:[Tipo]],MegaLoteo[[#This Row],[MEGA LOTEO]:[MEGA LOTEO]]) -> 0 | PP10: =SUMIFS(FlujoVentasEtapas[09-2054],Etapas[[Tipo]:[Tipo]],MegaLoteo[[#This Row],[MEGA LOTEO]:[MEGA LOTEO]]) -> 0 | PQ10: =SUMIFS(FlujoVentasEtapas[10-2054],Etapas[[Tipo]:[Tipo]],MegaLoteo[[#This Row],[MEGA LOTEO]:[MEGA LOTEO]]) -> 0 | PR10: =SUMIFS(FlujoVentasEtapas[11-2054],Etapas[[Tipo]:[Tipo]],MegaLoteo[[#This Row],[MEGA LOTEO]:[MEGA LOTEO]]) -> 0 | PS10: =SUMIFS(FlujoVentasEtapas[12-2054],Etapas[[Tipo]:[Tipo]],MegaLoteo[[#This Row],[MEGA LOTEO]:[MEGA LOTEO]]) -> 0 | PT10: =SUMIFS(FlujoVentasEtapas[01-2055],Etapas[[Tipo]:[Tipo]],MegaLoteo[[#This Row],[MEGA LOTEO]:[MEGA LOTEO]]) -> 0 | PU10: =SUMIFS(FlujoVentasEtapas[02-2055],Etapas[[Tipo]:[Tipo]],MegaLoteo[[#This Row],[MEGA LOTEO]:[MEGA LOTEO]]) -> 0 | PV10: =SUMIFS(FlujoVentasEtapas[03-2055],Etapas[[Tipo]:[Tipo]],MegaLoteo[[#This Row],[MEGA LOTEO]:[MEGA LOTEO]]) -> 0 | PW10: =SUMIFS(FlujoVentasEtapas[04-2055],Etapas[[Tipo]:[Tipo]],MegaLoteo[[#This Row],[MEGA LOTEO]:[MEGA LOTEO]]) -> 0 | PX10: =SUMIFS(FlujoVentasEtapas[05-2055],Etapas[[Tipo]:[Tipo]],MegaLoteo[[#This Row],[MEGA LOTEO]:[MEGA LOTEO]]) -> 0 | PY10: =SUMIFS(FlujoVentasEtapas[06-2055],Etapas[[Tipo]:[Tipo]],MegaLoteo[[#This Row],[MEGA LOTEO]:[MEGA LOTEO]]) -> 0 | PZ10: =SUMIFS(FlujoVentasEtapas[07-2055],Etapas[[Tipo]:[Tipo]],MegaLoteo[[#This Row],[MEGA LOTEO]:[MEGA LOTEO]]) -> 0 | QA10: =SUMIFS(FlujoVentasEtapas[08-2055],Etapas[[Tipo]:[Tipo]],MegaLoteo[[#This Row],[MEGA LOTEO]:[MEGA LOTEO]]) -> 0 | QB10: =SUMIFS(FlujoVentasEtapas[09-2055],Etapas[[Tipo]:[Tipo]],MegaLoteo[[#This Row],[MEGA LOTEO]:[MEGA LOTEO]]) -> 0 | QC10: =SUMIFS(FlujoVentasEtapas[10-2055],Etapas[[Tipo]:[Tipo]],MegaLoteo[[#This Row],[MEGA LOTEO]:[MEGA LOTEO]]) -> 0 | QD10: =SUMIFS(FlujoVentasEtapas[11-2055],Etapas[[Tipo]:[Tipo]],MegaLoteo[[#This Row],[MEGA LOTEO]:[MEGA LOTEO]]) -> 0 | QE10: =SUMIFS(FlujoVentasEtapas[12-2055],Etapas[[Tipo]:[Tipo]],MegaLoteo[[#This Row],[MEGA LOTEO]:[MEGA LOTEO]]) -> 0
B11: Rectificacion Deslinde | C11: =SUMIFS(Etapas[Superficie (m2)],Etapas[Tipo],MegaLoteo[[#This Row],[MEGA LOTEO]])+SUMIFS(Etapas[Superficie (m2)],Etapas[PROYECTO],MegaLoteo[[#This Row],[MEGA LOTEO]]) -> 0 | D11: =MegaLoteo[[#This Row],[Superficie total (m2)]]/MegaLoteo[[#Totals],[Superficie total (m2)]] -> 0 | E11: =_xlfn.IFNA(IF(MATCH(MegaLoteo[[#This Row],[MEGA LOTEO]],TipoVivienda[TipoProyecto],0)>0,MegaLoteo[[#This Row],[Superficie total (m2)]]/SUM(SUMIFS(MegaLoteo[Superficie total (m2)],MegaLoteo[MEGA LOTEO],TipoVivienda[TipoProyecto])),0),0) -> 0 | G11: =IFERROR(MegaLoteo[[#This Row],[Superficie total (m2)]]/MegaLoteo[[#This Row],[Cant. Unid.]],0) -> 0 | H11: =MegaLoteo[[#This Row],[Superficie (m2/Un.)]]*MegaLoteo[[#This Row],[UF/m2]] -> 0 | K11: =IFERROR(MegaLoteo[[#This Row],[Cant. Unid.]]/COUNTIFS(FlujoVentasProductos[#This Row],">0"),0) -> 0 | L11: =MegaLoteo[[#This Row],[PPUnid (UF/un)]]*MegaLoteo[[#This Row],[Cant. Unid.]] -> 0 | M11: 0 | O11: =MegaLoteo[[#This Row],[Incidencia Terreno sobre Vtas finales.]]*MegaLoteo[[#This Row],[Ingresos por Ventas Brutas (UF)]] -> 0 | P11: =IFERROR(MegaLoteo[[#This Row],[Ingresos por Vta. Terreno (UF)]]/MegaLoteo[[#This Row],[Superficie total (m2)]],) -> 0 | Q11: =MegaLoteo[[#This Row],[Precio Venta Terreno (UF/m2)]]*Presentacion!$C$48 -> 0 | R11: =MegaLoteo[[#This Row],[Precio Venta Terreno (UF/m2)]]*Presentacion!$C$49 -> 0 | S11: =IFERROR(MegaLoteo[[#This Row],[PPUnid (UF/un)]]/MegaLoteo[[#This Row],[Viv+Circul.+Areas Comunes (m2)]],0) -> 0 | U11: =SUMIFS(FlujoVentasEtapas[06-2020],Etapas[[Tipo]:[Tipo]],MegaLoteo[[#This Row],[MEGA LOTEO]:[MEGA LOTEO]]) -> 0 | V11: =SUMIFS(FlujoVentasEtapas[07-2020],Etapas[[Tipo]:[Tipo]],MegaLoteo[[#This Row],[MEGA LOTEO]:[MEGA LOTEO]]) -> 0 | W11: =SUMIFS(FlujoVentasEtapas[08-2020],Etapas[[Tipo]:[Tipo]],MegaLoteo[[#This Row],[MEGA LOTEO]:[MEGA LOTEO]]) -> 0 | X11: =SUMIFS(FlujoVentasEtapas[09-2020],Etapas[[Tipo]:[Tipo]],MegaLoteo[[#This Row],[MEGA LOTEO]:[MEGA LOTEO]]) -> 0 | Y11: =SUMIFS(FlujoVentasEtapas[10-2020],Etapas[[Tipo]:[Tipo]],MegaLoteo[[#This Row],[MEGA LOTEO]:[MEGA LOTEO]]) -> 0 | Z11: =SUMIFS(FlujoVentasEtapas[11-2020],Etapas[[Tipo]:[Tipo]],MegaLoteo[[#This Row],[MEGA LOTEO]:[MEGA LOTEO]]) -> 0 | AA11: =SUMIFS(FlujoVentasEtapas[12-2020],Etapas[[Tipo]:[Tipo]],MegaLoteo[[#This Row],[MEGA LOTEO]:[MEGA LOTEO]]) -> 0 | AB11: =SUMIFS(FlujoVentasEtapas[01-2021],Etapas[[Tipo]:[Tipo]],MegaLoteo[[#This Row],[MEGA LOTEO]:[MEGA LOTEO]]) -> 0 | AC11: =SUMIFS(FlujoVentasEtapas[02-2021],Etapas[[Tipo]:[Tipo]],MegaLoteo[[#This Row],[MEGA LOTEO]:[MEGA LOTEO]]) -> 0 | AD11: =SUMIFS(FlujoVentasEtapas[03-2021],Etapas[[Tipo]:[Tipo]],MegaLoteo[[#This Row],[MEGA LOTEO]:[MEGA LOTEO]]) -> 0 | AE11: =SUMIFS(FlujoVentasEtapas[04-2021],Etapas[[Tipo]:[Tipo]],MegaLoteo[[#This Row],[MEGA LOTEO]:[MEGA LOTEO]]) -> 0 | AF11: =SUMIFS(FlujoVentasEtapas[05-2021],Etapas[[Tipo]:[Tipo]],MegaLoteo[[#This Row],[MEGA LOTEO]:[MEGA LOTEO]]) -> 0 | AG11: =SUMIFS(FlujoVentasEtapas[06-2021],Etapas[[Tipo]:[Tipo]],MegaLoteo[[#This Row],[MEGA LOTEO]:[MEGA LOTEO]]) -> 0 | AH11: =SUMIFS(FlujoVentasEtapas[07-2021],Etapas[[Tipo]:[Tipo]],MegaLoteo[[#This Row],[MEGA LOTEO]:[MEGA LOTEO]]) -> 0 | AI11: =SUMIFS(FlujoVentasEtapas[08-2021],Etapas[[Tipo]:[Tipo]],MegaLoteo[[#This Row],[MEGA LOTEO]:[MEGA LOTEO]]) -> 0 | AJ11: =SUMIFS(FlujoVentasEtapas[09-2021],Etapas[[Tipo]:[Tipo]],MegaLoteo[[#This Row],[MEGA LOTEO]:[MEGA LOTEO]]) -> 0 | AK11: =SUMIFS(FlujoVentasEtapas[10-2021],Etapas[[Tipo]:[Tipo]],MegaLoteo[[#This Row],[MEGA LOTEO]:[MEGA LOTEO]]) -> 0 | AL11: =SUMIFS(FlujoVentasEtapas[11-2021],Etapas[[Tipo]:[Tipo]],MegaLoteo[[#This Row],[MEGA LOTEO]:[MEGA LOTEO]]) -> 0 | AM11: =SUMIFS(FlujoVentasEtapas[12-2021],Etapas[[Tipo]:[Tipo]],MegaLoteo[[#This Row],[MEGA LOTEO]:[MEGA LOTEO]]) -> 0 | AN11: =SUMIFS(FlujoVentasEtapas[01-2022],Etapas[[Tipo]:[Tipo]],MegaLoteo[[#This Row],[MEGA LOTEO]:[MEGA LOTEO]]) -> 0 | AO11: =SUMIFS(FlujoVentasEtapas[02-2022],Etapas[[Tipo]:[Tipo]],MegaLoteo[[#This Row],[MEGA LOTEO]:[MEGA LOTEO]]) -> 0 | AP11: =SUMIFS(FlujoVentasEtapas[03-2022],Etapas[[Tipo]:[Tipo]],MegaLoteo[[#This Row],[MEGA LOTEO]:[MEGA LOTEO]]) -> 0 | AQ11: =SUMIFS(FlujoVentasEtapas[04-2022],Etapas[[Tipo]:[Tipo]],MegaLoteo[[#This Row],[MEGA LOTEO]:[MEGA LOTEO]]) -> 0 | AR11: =SUMIFS(FlujoVentasEtapas[05-2022],Etapas[[Tipo]:[Tipo]],MegaLoteo[[#This Row],[MEGA LOTEO]:[MEGA LOTEO]]) -> 0 | AS11: =SUMIFS(FlujoVentasEtapas[06-2022],Etapas[[Tipo]:[Tipo]],MegaLoteo[[#This Row],[MEGA LOTEO]:[MEGA LOTEO]]) -> 0 | AT11: =SUMIFS(FlujoVentasEtapas[07-2022],Etapas[[Tipo]:[Tipo]],MegaLoteo[[#This Row],[MEGA LOTEO]:[MEGA LOTEO]]) -> 0 | AU11: =SUMIFS(FlujoVentasEtapas[08-2022],Etapas[[Tipo]:[Tipo]],MegaLoteo[[#This Row],[MEGA LOTEO]:[MEGA LOTEO]]) -> 0 | AV11: =SUMIFS(FlujoVentasEtapas[09-2022],Etapas[[Tipo]:[Tipo]],MegaLoteo[[#This Row],[MEGA LOTEO]:[MEGA LOTEO]]) -> 0 | AW11: =SUMIFS(FlujoVentasEtapas[10-2022],Etapas[[Tipo]:[Tipo]],MegaLoteo[[#This Row],[MEGA LOTEO]:[MEGA LOTEO]]) -> 0 | AX11: =SUMIFS(FlujoVentasEtapas[11-2022],Etapas[[Tipo]:[Tipo]],MegaLoteo[[#This Row],[MEGA LOTEO]:[MEGA LOTEO]]) -> 0 | AY11: =SUMIFS(FlujoVentasEtapas[12-2022],Etapas[[Tipo]:[Tipo]],MegaLoteo[[#This Row],[MEGA LOTEO]:[MEGA LOTEO]]) -> 0 | AZ11: =SUMIFS(FlujoVentasEtapas[01-2023],Etapas[[Tipo]:[Tipo]],MegaLoteo[[#This Row],[MEGA LOTEO]:[MEGA LOTEO]]) -> 0 | BA11: =SUMIFS(FlujoVentasEtapas[02-2023],Etapas[[Tipo]:[Tipo]],MegaLoteo[[#This Row],[MEGA LOTEO]:[MEGA LOTEO]]) -> 0 | BB11: =SUMIFS(FlujoVentasEtapas[03-2023],Etapas[[Tipo]:[Tipo]],MegaLoteo[[#This Row],[MEGA LOTEO]:[MEGA LOTEO]]) -> 0 | BC11: =SUMIFS(FlujoVentasEtapas[04-2023],Etapas[[Tipo]:[Tipo]],MegaLoteo[[#This Row],[MEGA LOTEO]:[MEGA LOTEO]]) -> 0 | BD11: =SUMIFS(FlujoVentasEtapas[05-2023],Etapas[[Tipo]:[Tipo]],MegaLoteo[[#This Row],[MEGA LOTEO]:[MEGA LOTEO]]) -> 0 | BE11: =SUMIFS(FlujoVentasEtapas[06-2023],Etapas[[Tipo]:[Tipo]],MegaLoteo[[#This Row],[MEGA LOTEO]:[MEGA LOTEO]]) -> 0 | BF11: =SUMIFS(FlujoVentasEtapas[07-2023],Etapas[[Tipo]:[Tipo]],MegaLoteo[[#This Row],[MEGA LOTEO]:[MEGA LOTEO]]) -> 0 | BG11: =SUMIFS(FlujoVentasEtapas[08-2023],Etapas[[Tipo]:[Tipo]],MegaLoteo[[#This Row],[MEGA LOTEO]:[MEGA LOTEO]]) -> 0 | BH11: =SUMIFS(FlujoVentasEtapas[09-2023],Etapas[[Tipo]:[Tipo]],MegaLoteo[[#This Row],[MEGA LOTEO]:[MEGA LOTEO]]) -> 0 | BI11: =SUMIFS(FlujoVentasEtapas[10-2023],Etapas[[Tipo]:[Tipo]],MegaLoteo[[#This Row],[MEGA LOTEO]:[MEGA LOTEO]]) -> 0 | BJ11: =SUMIFS(FlujoVentasEtapas[11-2023],Etapas[[Tipo]:[Tipo]],MegaLoteo[[#This Row],[MEGA LOTEO]:[MEGA LOTEO]]) -> 0 | BK11: =SUMIFS(FlujoVentasEtapas[12-2023],Etapas[[Tipo]:[Tipo]],MegaLoteo[[#This Row],[MEGA LOTEO]:[MEGA LOTEO]]) -> 0 | BL11: =SUMIFS(FlujoVentasEtapas[01-2024],Etapas[[Tipo]:[Tipo]],MegaLoteo[[#This Row],[MEGA LOTEO]:[MEGA LOTEO]]) -> 0 | BM11: =SUMIFS(FlujoVentasEtapas[02-2024],Etapas[[Tipo]:[Tipo]],MegaLoteo[[#This Row],[MEGA LOTEO]:[MEGA LOTEO]]) -> 0 | BN11: =SUMIFS(FlujoVentasEtapas[03-2024],Etapas[[Tipo]:[Tipo]],MegaLoteo[[#This Row],[MEGA LOTEO]:[MEGA LOTEO]]) -> 0 | BO11: =SUMIFS(FlujoVentasEtapas[04-2024],Etapas[[Tipo]:[Tipo]],MegaLoteo[[#This Row],[MEGA LOTEO]:[MEGA LOTEO]]) -> 0 | BP11: =SUMIFS(FlujoVentasEtapas[05-2024],Etapas[[Tipo]:[Tipo]],MegaLoteo[[#This Row],[MEGA LOTEO]:[MEGA LOTEO]]) -> 0 | BQ11: =SUMIFS(FlujoVentasEtapas[06-2024],Etapas[[Tipo]:[Tipo]],MegaLoteo[[#This Row],[MEGA LOTEO]:[MEGA LOTEO]]) -> 0 | BR11: =SUMIFS(FlujoVentasEtapas[07-2024],Etapas[[Tipo]:[Tipo]],MegaLoteo[[#This Row],[MEGA LOTEO]:[MEGA LOTEO]]) -> 0 | BS11: =SUMIFS(FlujoVentasEtapas[08-2024],Etapas[[Tipo]:[Tipo]],MegaLoteo[[#This Row],[MEGA LOTEO]:[MEGA LOTEO]]) -> 0 | BT11: =SUMIFS(FlujoVentasEtapas[09-2024],Etapas[[Tipo]:[Tipo]],MegaLoteo[[#This Row],[MEGA LOTEO]:[MEGA LOTEO]]) -> 0 | BU11: =SUMIFS(FlujoVentasEtapas[10-2024],Etapas[[Tipo]:[Tipo]],MegaLoteo[[#This Row],[MEGA LOTEO]:[MEGA LOTEO]]) -> 0 | BV11: =SUMIFS(FlujoVentasEtapas[11-2024],Etapas[[Tipo]:[Tipo]],MegaLoteo[[#This Row],[MEGA LOTEO]:[MEGA LOTEO]]) -> 0 | BW11: =SUMIFS(FlujoVentasEtapas[12-2024],Etapas[[Tipo]:[Tipo]],MegaLoteo[[#This Row],[MEGA LOTEO]:[MEGA LOTEO]]) -> 0 | BX11: =SUMIFS(FlujoVentasEtapas[01-2025],Etapas[[Tipo]:[Tipo]],MegaLoteo[[#This Row],[MEGA LOTEO]:[MEGA LOTEO]]) -> 0 | BY11: =SUMIFS(FlujoVentasEtapas[02-2025],Etapas[[Tipo]:[Tipo]],MegaLoteo[[#This Row],[MEGA LOTEO]:[MEGA LOTEO]]) -> 0 | BZ11: =SUMIFS(FlujoVentasEtapas[03-2025],Etapas[[Tipo]:[Tipo]],MegaLoteo[[#This Row],[MEGA LOTEO]:[MEGA LOTEO]]) -> 0 | CA11: =SUMIFS(FlujoVentasEtapas[04-2025],Etapas[[Tipo]:[Tipo]],MegaLoteo[[#This Row],[MEGA LOTEO]:[MEGA LOTEO]]) -> 0 | CB11: =SUMIFS(FlujoVentasEtapas[05-2025],Etapas[[Tipo]:[Tipo]],MegaLoteo[[#This Row],[MEGA LOTEO]:[MEGA LOTEO]]) -> 0 | CC11: =SUMIFS(FlujoVentasEtapas[06-2025],Etapas[[Tipo]:[Tipo]],MegaLoteo[[#This Row],[MEGA LOTEO]:[MEGA LOTEO]]) -> 0 | CD11: =SUMIFS(FlujoVentasEtapas[07-2025],Etapas[[Tipo]:[Tipo]],MegaLoteo[[#This Row],[MEGA LOTEO]:[MEGA LOTEO]]) -> 0 | CE11: =SUMIFS(FlujoVentasEtapas[08-2025],Etapas[[Tipo]:[Tipo]],MegaLoteo[[#This Row],[MEGA LOTEO]:[MEGA LOTEO]]) -> 0 | CF11: =SUMIFS(FlujoVentasEtapas[09-2025],Etapas[[Tipo]:[Tipo]],MegaLoteo[[#This Row],[MEGA LOTEO]:[MEGA LOTEO]]) -> 0 | CG11: =SUMIFS(FlujoVentasEtapas[10-2025],Etapas[[Tipo]:[Tipo]],MegaLoteo[[#This Row],[MEGA LOTEO]:[MEGA LOTEO]]) -> 0 | CH11: =SUMIFS(FlujoVentasEtapas[11-2025],Etapas[[Tipo]:[Tipo]],MegaLoteo[[#This Row],[MEGA LOTEO]:[MEGA LOTEO]]) -> 0 | CI11: =SUMIFS(FlujoVentasEtapas[12-2025],Etapas[[Tipo]:[Tipo]],MegaLoteo[[#This Row],[MEGA LOTEO]:[MEGA LOTEO]]) -> 0 | CJ11: =SUMIFS(FlujoVentasEtapas[01-2026],Etapas[[Tipo]:[Tipo]],MegaLoteo[[#This Row],[MEGA LOTEO]:[MEGA LOTEO]]) -> 0 | CK11: =SUMIFS(FlujoVentasEtapas[02-2026],Etapas[[Tipo]:[Tipo]],MegaLoteo[[#This Row],[MEGA LOTEO]:[MEGA LOTEO]]) -> 0 | CL11: =SUMIFS(FlujoVentasEtapas[03-2026],Etapas[[Tipo]:[Tipo]],MegaLoteo[[#This Row],[MEGA LOTEO]:[MEGA LOTEO]]) -> 0 | CM11: =SUMIFS(FlujoVentasEtapas[04-2026],Etapas[[Tipo]:[Tipo]],MegaLoteo[[#This Row],[MEGA LOTEO]:[MEGA LOTEO]]) -> 0 | CN11: =SUMIFS(FlujoVentasEtapas[05-2026],Etapas[[Tipo]:[Tipo]],MegaLoteo[[#This Row],[MEGA LOTEO]:[MEGA LOTEO]]) -> 0 | CO11: =SUMIFS(FlujoVentasEtapas[06-2026],Etapas[[Tipo]:[Tipo]],MegaLoteo[[#This Row],[MEGA LOTEO]:[MEGA LOTEO]]) -> 0 | CP11: =SUMIFS(FlujoVentasEtapas[07-2026],Etapas[[Tipo]:[Tipo]],MegaLoteo[[#This Row],[MEGA LOTEO]:[MEGA LOTEO]]) -> 0 | CQ11: =SUMIFS(FlujoVentasEtapas[08-2026],Etapas[[Tipo]:[Tipo]],MegaLoteo[[#This Row],[MEGA LOTEO]:[MEGA LOTEO]]) -> 0 | CR11: =SUMIFS(FlujoVentasEtapas[09-2026],Etapas[[Tipo]:[Tipo]],MegaLoteo[[#This Row],[MEGA LOTEO]:[MEGA LOTEO]]) -> 0 | CS11: =SUMIFS(FlujoVentasEtapas[10-2026],Etapas[[Tipo]:[Tipo]],MegaLoteo[[#This Row],[MEGA LOTEO]:[MEGA LOTEO]]) -> 0 | CT11: =SUMIFS(FlujoVentasEtapas[11-2026],Etapas[[Tipo]:[Tipo]],MegaLoteo[[#This Row],[MEGA LOTEO]:[MEGA LOTEO]]) -> 0 | CU11: =SUMIFS(FlujoVentasEtapas[12-2026],Etapas[[Tipo]:[Tipo]],MegaLoteo[[#This Row],[MEGA LOTEO]:[MEGA LOTEO]]) -> 0 | CV11: =SUMIFS(FlujoVentasEtapas[01-2027],Etapas[[Tipo]:[Tipo]],MegaLoteo[[#This Row],[MEGA LOTEO]:[MEGA LOTEO]]) -> 0 | CW11: =SUMIFS(FlujoVentasEtapas[02-2027],Etapas[[Tipo]:[Tipo]],MegaLoteo[[#This Row],[MEGA LOTEO]:[MEGA LOTEO]]) -> 0 | CX11: =SUMIFS(FlujoVentasEtapas[03-2027],Etapas[[Tipo]:[Tipo]],MegaLoteo[[#This Row],[MEGA LOTEO]:[MEGA LOTEO]]) -> 0 | CY11: =SUMIFS(FlujoVentasEtapas[04-2027],Etapas[[Tipo]:[Tipo]],MegaLoteo[[#This Row],[MEGA LOTEO]:[MEGA LOTEO]]) -> 0 | CZ11: =SUMIFS(FlujoVentasEtapas[05-2027],Etapas[[Tipo]:[Tipo]],MegaLoteo[[#This Row],[MEGA LOTEO]:[MEGA LOTEO]]) -> 0 | DA11: =SUMIFS(FlujoVentasEtapas[06-2027],Etapas[[Tipo]:[Tipo]],MegaLoteo[[#This Row],[MEGA LOTEO]:[MEGA LOTEO]]) -> 0 | DB11: =SUMIFS(FlujoVentasEtapas[07-2027],Etapas[[Tipo]:[Tipo]],MegaLoteo[[#This Row],[MEGA LOTEO]:[MEGA LOTEO]]) -> 0 | DC11: =SUMIFS(FlujoVentasEtapas[08-2027],Etapas[[Tipo]:[Tipo]],MegaLoteo[[#This Row],[MEGA LOTEO]:[MEGA LOTEO]]) -> 0 | DD11: =SUMIFS(FlujoVentasEtapas[09-2027],Etapas[[Tipo]:[Tipo]],MegaLoteo[[#This Row],[MEGA LOTEO]:[MEGA LOTEO]]) -> 0 | DE11: =SUMIFS(FlujoVentasEtapas[10-2027],Etapas[[Tipo]:[Tipo]],MegaLoteo[[#This Row],[MEGA LOTEO]:[MEGA LOTEO]]) -> 0 | DF11: =SUMIFS(FlujoVentasEtapas[11-2027],Etapas[[Tipo]:[Tipo]],MegaLoteo[[#This Row],[MEGA LOTEO]:[MEGA LOTEO]]) -> 0 | DG11: =SUMIFS(FlujoVentasEtapas[12-2027],Etapas[[Tipo]:[Tipo]],MegaLoteo[[#This Row],[MEGA LOTEO]:[MEGA LOTEO]]) -> 0 | DH11: =SUMIFS(FlujoVentasEtapas[01-2028],Etapas[[Tipo]:[Tipo]],MegaLoteo[[#This Row],[MEGA LOTEO]:[MEGA LOTEO]]) -> 0 | DI11: =SUMIFS(FlujoVentasEtapas[02-2028],Etapas[[Tipo]:[Tipo]],MegaLoteo[[#This Row],[MEGA LOTEO]:[MEGA LOTEO]]) -> 0 | DJ11: =SUMIFS(FlujoVentasEtapas[03-2028],Etapas[[Tipo]:[Tipo]],MegaLoteo[[#This Row],[MEGA LOTEO]:[MEGA LOTEO]]) -> 0 | DK11: =SUMIFS(FlujoVentasEtapas[04-2028],Etapas[[Tipo]:[Tipo]],MegaLoteo[[#This Row],[MEGA LOTEO]:[MEGA LOTEO]]) -> 0 | DL11: =SUMIFS(FlujoVentasEtapas[05-2028],Etapas[[Tipo]:[Tipo]],MegaLoteo[[#This Row],[MEGA LOTEO]:[MEGA LOTEO]]) -> 0 | DM11: =SUMIFS(FlujoVentasEtapas[06-2028],Etapas[[Tipo]:[Tipo]],MegaLoteo[[#This Row],[MEGA LOTEO]:[MEGA LOTEO]]) -> 0 | DN11: =SUMIFS(FlujoVentasEtapas[07-2028],Etapas[[Tipo]:[Tipo]],MegaLoteo[[#This Row],[MEGA LOTEO]:[MEGA LOTEO]]) -> 0 | DO11: =SUMIFS(FlujoVentasEtapas[08-2028],Etapas[[Tipo]:[Tipo]],MegaLoteo[[#This Row],[MEGA LOTEO]:[MEGA LOTEO]]) -> 0 | DP11: =SUMIFS(FlujoVentasEtapas[09-2028],Etapas[[Tipo]:[Tipo]],MegaLoteo[[#This Row],[MEGA LOTEO]:[MEGA LOTEO]]) -> 0 | DQ11: =SUMIFS(FlujoVentasEtapas[10-2028],Etapas[[Tipo]:[Tipo]],MegaLoteo[[#This Row],[MEGA LOTEO]:[MEGA LOTEO]]) -> 0 | DR11: =SUMIFS(FlujoVentasEtapas[11-2028],Etapas[[Tipo]:[Tipo]],MegaLoteo[[#This Row],[MEGA LOTEO]:[MEGA LOTEO]]) -> 0 | DS11: =SUMIFS(FlujoVentasEtapas[12-2028],Etapas[[Tipo]:[Tipo]],MegaLoteo[[#This Row],[MEGA LOTEO]:[MEGA LOTEO]]) -> 0 | DT11: =SUMIFS(FlujoVentasEtapas[01-2029],Etapas[[Tipo]:[Tipo]],MegaLoteo[[#This Row],[MEGA LOTEO]:[MEGA LOTEO]]) -> 0 | DU11: =SUMIFS(FlujoVentasEtapas[02-2029],Etapas[[Tipo]:[Tipo]],MegaLoteo[[#This Row],[MEGA LOTEO]:[MEGA LOTEO]]) -> 0 | DV11: =SUMIFS(FlujoVentasEtapas[03-2029],Etapas[[Tipo]:[Tipo]],MegaLoteo[[#This Row],[MEGA LOTEO]:[MEGA LOTEO]]) -> 0 | DW11: =SUMIFS(FlujoVentasEtapas[04-2029],Etapas[[Tipo]:[Tipo]],MegaLoteo[[#This Row],[MEGA LOTEO]:[MEGA LOTEO]]) -> 0 | DX11: =SUMIFS(FlujoVentasEtapas[05-2029],Etapas[[Tipo]:[Tipo]],MegaLoteo[[#This Row],[MEGA LOTEO]:[MEGA LOTEO]]) -> 0 | DY11: =SUMIFS(FlujoVentasEtapas[06-2029],Etapas[[Tipo]:[Tipo]],MegaLoteo[[#This Row],[MEGA LOTEO]:[MEGA LOTEO]]) -> 0 | DZ11: =SUMIFS(FlujoVentasEtapas[07-2029],Etapas[[Tipo]:[Tipo]],MegaLoteo[[#This Row],[MEGA LOTEO]:[MEGA LOTEO]]) -> 0 | EA11: =SUMIFS(FlujoVentasEtapas[08-2029],Etapas[[Tipo]:[Tipo]],MegaLoteo[[#This Row],[MEGA LOTEO]:[MEGA LOTEO]]) -> 0 | EB11: =SUMIFS(FlujoVentasEtapas[09-2029],Etapas[[Tipo]:[Tipo]],MegaLoteo[[#This Row],[MEGA LOTEO]:[MEGA LOTEO]]) -> 0 | EC11: =SUMIFS(FlujoVentasEtapas[10-2029],Etapas[[Tipo]:[Tipo]],MegaLoteo[[#This Row],[MEGA LOTEO]:[MEGA LOTEO]]) -> 0 | ED11: =SUMIFS(FlujoVentasEtapas[11-2029],Etapas[[Tipo]:[Tipo]],MegaLoteo[[#This Row],[MEGA LOTEO]:[MEGA LOTEO]]) -> 0 | EE11: =SUMIFS(FlujoVentasEtapas[12-2029],Etapas[[Tipo]:[Tipo]],MegaLoteo[[#This Row],[MEGA LOTEO]:[MEGA LOTEO]]) -> 0 | EF11: =SUMIFS(FlujoVentasEtapas[01-2030],Etapas[[Tipo]:[Tipo]],MegaLoteo[[#This Row],[MEGA LOTEO]:[MEGA LOTEO]]) -> 0 | EG11: =SUMIFS(FlujoVentasEtapas[02-2030],Etapas[[Tipo]:[Tipo]],MegaLoteo[[#This Row],[MEGA LOTEO]:[MEGA LOTEO]]) -> 0 | EH11: =SUMIFS(FlujoVentasEtapas[03-2030],Etapas[[Tipo]:[Tipo]],MegaLoteo[[#This Row],[MEGA LOTEO]:[MEGA LOTEO]]) -> 0 | EI11: =SUMIFS(FlujoVentasEtapas[04-2030],Etapas[[Tipo]:[Tipo]],MegaLoteo[[#This Row],[MEGA LOTEO]:[MEGA LOTEO]]) -> 0 | EJ11: =SUMIFS(FlujoVentasEtapas[05-2030],Etapas[[Tipo]:[Tipo]],MegaLoteo[[#This Row],[MEGA LOTEO]:[MEGA LOTEO]]) -> 0 | EK11: =SUMIFS(FlujoVentasEtapas[06-2030],Etapas[[Tipo]:[Tipo]],MegaLoteo[[#This Row],[MEGA LOTEO]:[MEGA LOTEO]]) -> 0 | EL11: =SUMIFS(FlujoVentasEtapas[07-2030],Etapas[[Tipo]:[Tipo]],MegaLoteo[[#This Row],[MEGA LOTEO]:[MEGA LOTEO]]) -> 0 | EM11: =SUMIFS(FlujoVentasEtapas[08-2030],Etapas[[Tipo]:[Tipo]],MegaLoteo[[#This Row],[MEGA LOTEO]:[MEGA LOTEO]]) -> 0 | EN11: =SUMIFS(FlujoVentasEtapas[09-2030],Etapas[[Tipo]:[Tipo]],MegaLoteo[[#This Row],[MEGA LOTEO]:[MEGA LOTEO]]) -> 0 | EO11: =SUMIFS(FlujoVentasEtapas[10-2030],Etapas[[Tipo]:[Tipo]],MegaLoteo[[#This Row],[MEGA LOTEO]:[MEGA LOTEO]]) -> 0 | EP11: =SUMIFS(FlujoVentasEtapas[11-2030],Etapas[[Tipo]:[Tipo]],MegaLoteo[[#This Row],[MEGA LOTEO]:[MEGA LOTEO]]) -> 0 | EQ11: =SUMIFS(FlujoVentasEtapas[12-2030],Etapas[[Tipo]:[Tipo]],MegaLoteo[[#This Row],[MEGA LOTEO]:[MEGA LOTEO]]) -> 0 | ER11: =SUMIFS(FlujoVentasEtapas[01-2031],Etapas[[Tipo]:[Tipo]],MegaLoteo[[#This Row],[MEGA LOTEO]:[MEGA LOTEO]]) -> 0 | ES11: =SUMIFS(FlujoVentasEtapas[02-2031],Etapas[[Tipo]:[Tipo]],MegaLoteo[[#This Row],[MEGA LOTEO]:[MEGA LOTEO]]) -> 0 | ET11: =SUMIFS(FlujoVentasEtapas[03-2031],Etapas[[Tipo]:[Tipo]],MegaLoteo[[#This Row],[MEGA LOTEO]:[MEGA LOTEO]]) -> 0 | EU11: =SUMIFS(FlujoVentasEtapas[04-2031],Etapas[[Tipo]:[Tipo]],MegaLoteo[[#This Row],[MEGA LOTEO]:[MEGA LOTEO]]) -> 0 | EV11: =SUMIFS(FlujoVentasEtapas[05-2031],Etapas[[Tipo]:[Tipo]],MegaLoteo[[#This Row],[MEGA LOTEO]:[MEGA LOTEO]]) -> 0 | EW11: =SUMIFS(FlujoVentasEtapas[06-2031],Etapas[[Tipo]:[Tipo]],MegaLoteo[[#This Row],[MEGA LOTEO]:[MEGA LOTEO]]) -> 0 | EX11: =SUMIFS(FlujoVentasEtapas[07-2031],Etapas[[Tipo]:[Tipo]],MegaLoteo[[#This Row],[MEGA LOTEO]:[MEGA LOTEO]]) -> 0 | EY11: =SUMIFS(FlujoVentasEtapas[08-2031],Etapas[[Tipo]:[Tipo]],MegaLoteo[[#This Row],[MEGA LOTEO]:[MEGA LOTEO]]) -> 0 | EZ11: =SUMIFS(FlujoVentasEtapas[09-2031],Etapas[[Tipo]:[Tipo]],MegaLoteo[[#This Row],[MEGA LOTEO]:[MEGA LOTEO]]) -> 0 | FA11: =SUMIFS(FlujoVentasEtapas[10-2031],Etapas[[Tipo]:[Tipo]],MegaLoteo[[#This Row],[MEGA LOTEO]:[MEGA LOTEO]]) -> 0 | FB11: =SUMIFS(FlujoVentasEtapas[11-2031],Etapas[[Tipo]:[Tipo]],MegaLoteo[[#This Row],[MEGA LOTEO]:[MEGA LOTEO]]) -> 0 | FC11: =SUMIFS(FlujoVentasEtapas[12-2031],Etapas[[Tipo]:[Tipo]],MegaLoteo[[#This Row],[MEGA LOTEO]:[MEGA LOTEO]]) -> 0 | FD11: =SUMIFS(FlujoVentasEtapas[01-2032],Etapas[[Tipo]:[Tipo]],MegaLoteo[[#This Row],[MEGA LOTEO]:[MEGA LOTEO]]) -> 0 | FE11: =SUMIFS(FlujoVentasEtapas[02-2032],Etapas[[Tipo]:[Tipo]],MegaLoteo[[#This Row],[MEGA LOTEO]:[MEGA LOTEO]]) -> 0 | FF11: =SUMIFS(FlujoVentasEtapas[03-2032],Etapas[[Tipo]:[Tipo]],MegaLoteo[[#This Row],[MEGA LOTEO]:[MEGA LOTEO]]) -> 0 | FG11: =SUMIFS(FlujoVentasEtapas[04-2032],Etapas[[Tipo]:[Tipo]],MegaLoteo[[#This Row],[MEGA LOTEO]:[MEGA LOTEO]]) -> 0 | FH11: =SUMIFS(FlujoVentasEtapas[05-2032],Etapas[[Tipo]:[Tipo]],MegaLoteo[[#This Row],[MEGA LOTEO]:[MEGA LOTEO]]) -> 0 | FI11: =SUMIFS(FlujoVentasEtapas[06-2032],Etapas[[Tipo]:[Tipo]],MegaLoteo[[#This Row],[MEGA LOTEO]:[MEGA LOTEO]]) -> 0 | FJ11: =SUMIFS(FlujoVentasEtapas[07-2032],Etapas[[Tipo]:[Tipo]],MegaLoteo[[#This Row],[MEGA LOTEO]:[MEGA LOTEO]]) -> 0 | FK11: =SUMIFS(FlujoVentasEtapas[08-2032],Etapas[[Tipo]:[Tipo]],MegaLoteo[[#This Row],[MEGA LOTEO]:[MEGA LOTEO]]) -> 0 | FL11: =SUMIFS(FlujoVentasEtapas[09-2032],Etapas[[Tipo]:[Tipo]],MegaLoteo[[#This Row],[MEGA LOTEO]:[MEGA LOTEO]]) -> 0 | FM11: =SUMIFS(FlujoVentasEtapas[10-2032],Etapas[[Tipo]:[Tipo]],MegaLoteo[[#This Row],[MEGA LOTEO]:[MEGA LOTEO]]) -> 0 | FN11: =SUMIFS(FlujoVentasEtapas[11-2032],Etapas[[Tipo]:[Tipo]],MegaLoteo[[#This Row],[MEGA LOTEO]:[MEGA LOTEO]]) -> 0 | FO11: =SUMIFS(FlujoVentasEtapas[12-2032],Etapas[[Tipo]:[Tipo]],MegaLoteo[[#This Row],[MEGA LOTEO]:[MEGA LOTEO]]) -> 0 | FP11: =SUMIFS(FlujoVentasEtapas[01-2033],Etapas[[Tipo]:[Tipo]],MegaLoteo[[#This Row],[MEGA LOTEO]:[MEGA LOTEO]]) -> 0 | FQ11: =SUMIFS(FlujoVentasEtapas[02-2033],Etapas[[Tipo]:[Tipo]],MegaLoteo[[#This Row],[MEGA LOTEO]:[MEGA LOTEO]]) -> 0 | FR11: =SUMIFS(FlujoVentasEtapas[03-2033],Etapas[[Tipo]:[Tipo]],MegaLoteo[[#This Row],[MEGA LOTEO]:[MEGA LOTEO]]) -> 0 | FS11: =SUMIFS(FlujoVentasEtapas[04-2033],Etapas[[Tipo]:[Tipo]],MegaLoteo[[#This Row],[MEGA LOTEO]:[MEGA LOTEO]]) -> 0 | FT11: =SUMIFS(FlujoVentasEtapas[05-2033],Etapas[[Tipo]:[Tipo]],MegaLoteo[[#This Row],[MEGA LOTEO]:[MEGA LOTEO]]) -> 0 | FU11: =SUMIFS(FlujoVentasEtapas[06-2033],Etapas[[Tipo]:[Tipo]],MegaLoteo[[#This Row],[MEGA LOTEO]:[MEGA LOTEO]]) -> 0 | FV11: =SUMIFS(FlujoVentasEtapas[07-2033],Etapas[[Tipo]:[Tipo]],MegaLoteo[[#This Row],[MEGA LOTEO]:[MEGA LOTEO]]) -> 0 | FW11: =SUMIFS(FlujoVentasEtapas[08-2033],Etapas[[Tipo]:[Tipo]],MegaLoteo[[#This Row],[MEGA LOTEO]:[MEGA LOTEO]]) -> 0 | FX11: =SUMIFS(FlujoVentasEtapas[09-2033],Etapas[[Tipo]:[Tipo]],MegaLoteo[[#This Row],[MEGA LOTEO]:[MEGA LOTEO]]) -> 0 | FY11: =SUMIFS(FlujoVentasEtapas[10-2033],Etapas[[Tipo]:[Tipo]],MegaLoteo[[#This Row],[MEGA LOTEO]:[MEGA LOTEO]]) -> 0 | FZ11: =SUMIFS(FlujoVentasEtapas[11-2033],Etapas[[Tipo]:[Tipo]],MegaLoteo[[#This Row],[MEGA LOTEO]:[MEGA LOTEO]]) -> 0 | GA11: =SUMIFS(FlujoVentasEtapas[12-2033],Etapas[[Tipo]:[Tipo]],MegaLoteo[[#This Row],[MEGA LOTEO]:[MEGA LOTEO]]) -> 0 | GB11: =SUMIFS(FlujoVentasEtapas[01-2034],Etapas[[Tipo]:[Tipo]],MegaLoteo[[#This Row],[MEGA LOTEO]:[MEGA LOTEO]]) -> 0 | GC11: =SUMIFS(FlujoVentasEtapas[02-2034],Etapas[[Tipo]:[Tipo]],MegaLoteo[[#This Row],[MEGA LOTEO]:[MEGA LOTEO]]) -> 0 | GD11: =SUMIFS(FlujoVentasEtapas[03-2034],Etapas[[Tipo]:[Tipo]],MegaLoteo[[#This Row],[MEGA LOTEO]:[MEGA LOTEO]]) -> 0 | GE11: =SUMIFS(FlujoVentasEtapas[04-2034],Etapas[[Tipo]:[Tipo]],MegaLoteo[[#This Row],[MEGA LOTEO]:[MEGA LOTEO]]) -> 0 | GF11: =SUMIFS(FlujoVentasEtapas[05-2034],Etapas[[Tipo]:[Tipo]],MegaLoteo[[#This Row],[MEGA LOTEO]:[MEGA LOTEO]]) -> 0 | GG11: =SUMIFS(FlujoVentasEtapas[06-2034],Etapas[[Tipo]:[Tipo]],MegaLoteo[[#This Row],[MEGA LOTEO]:[MEGA LOTEO]]) -> 0 | GH11: =SUMIFS(FlujoVentasEtapas[07-2034],Etapas[[Tipo]:[Tipo]],MegaLoteo[[#This Row],[MEGA LOTEO]:[MEGA LOTEO]]) -> 0 | GI11: =SUMIFS(FlujoVentasEtapas[08-2034],Etapas[[Tipo]:[Tipo]],MegaLoteo[[#This Row],[MEGA LOTEO]:[MEGA LOTEO]]) -> 0 | GJ11: =SUMIFS(FlujoVentasEtapas[09-2034],Etapas[[Tipo]:[Tipo]],MegaLoteo[[#This Row],[MEGA LOTEO]:[MEGA LOTEO]]) -> 0 | GK11: =SUMIFS(FlujoVentasEtapas[10-2034],Etapas[[Tipo]:[Tipo]],MegaLoteo[[#This Row],[MEGA LOTEO]:[MEGA LOTEO]]) -> 0 | GL11: =SUMIFS(FlujoVentasEtapas[11-2034],Etapas[[Tipo]:[Tipo]],MegaLoteo[[#This Row],[MEGA LOTEO]:[MEGA LOTEO]]) -> 0 | GM11: =SUMIFS(FlujoVentasEtapas[12-2034],Etapas[[Tipo]:[Tipo]],MegaLoteo[[#This Row],[MEGA LOTEO]:[MEGA LOTEO]]) -> 0 | GN11: =SUMIFS(FlujoVentasEtapas[01-2035],Etapas[[Tipo]:[Tipo]],MegaLoteo[[#This Row],[MEGA LOTEO]:[MEGA LOTEO]]) -> 0 | GO11: =SUMIFS(FlujoVentasEtapas[02-2035],Etapas[[Tipo]:[Tipo]],MegaLoteo[[#This Row],[MEGA LOTEO]:[MEGA LOTEO]]) -> 0 | GP11: =SUMIFS(FlujoVentasEtapas[03-2035],Etapas[[Tipo]:[Tipo]],MegaLoteo[[#This Row],[MEGA LOTEO]:[MEGA LOTEO]]) -> 0 | GQ11: =SUMIFS(FlujoVentasEtapas[04-2035],Etapas[[Tipo]:[Tipo]],MegaLoteo[[#This Row],[MEGA LOTEO]:[MEGA LOTEO]]) -> 0 | GR11: =SUMIFS(FlujoVentasEtapas[05-2035],Etapas[[Tipo]:[Tipo]],MegaLoteo[[#This Row],[MEGA LOTEO]:[MEGA LOTEO]]) -> 0 | GS11: =SUMIFS(FlujoVentasEtapas[06-2035],Etapas[[Tipo]:[Tipo]],MegaLoteo[[#This Row],[MEGA LOTEO]:[MEGA LOTEO]]) -> 0 | GT11: =SUMIFS(FlujoVentasEtapas[07-2035],Etapas[[Tipo]:[Tipo]],MegaLoteo[[#This Row],[MEGA LOTEO]:[MEGA LOTEO]]) -> 0 | GU11: =SUMIFS(FlujoVentasEtapas[08-2035],Etapas[[Tipo]:[Tipo]],MegaLoteo[[#This Row],[MEGA LOTEO]:[MEGA LOTEO]]) -> 0 | GV11: =SUMIFS(FlujoVentasEtapas[09-2035],Etapas[[Tipo]:[Tipo]],MegaLoteo[[#This Row],[MEGA LOTEO]:[MEGA LOTEO]]) -> 0 | GW11: =SUMIFS(FlujoVentasEtapas[10-2035],Etapas[[Tipo]:[Tipo]],MegaLoteo[[#This Row],[MEGA LOTEO]:[MEGA LOTEO]]) -> 0 | GX11: =SUMIFS(FlujoVentasEtapas[11-2035],Etapas[[Tipo]:[Tipo]],MegaLoteo[[#This Row],[MEGA LOTEO]:[MEGA LOTEO]]) -> 0 | GY11: =SUMIFS(FlujoVentasEtapas[12-2035],Etapas[[Tipo]:[Tipo]],MegaLoteo[[#This Row],[MEGA LOTEO]:[MEGA LOTEO]]) -> 0 | GZ11: =SUMIFS(FlujoVentasEtapas[01-2036],Etapas[[Tipo]:[Tipo]],MegaLoteo[[#This Row],[MEGA LOTEO]:[MEGA LOTEO]]) -> 0 | HA11: =SUMIFS(FlujoVentasEtapas[02-2036],Etapas[[Tipo]:[Tipo]],MegaLoteo[[#This Row],[MEGA LOTEO]:[MEGA LOTEO]]) -> 0 | HB11: =SUMIFS(FlujoVentasEtapas[03-2036],Etapas[[Tipo]:[Tipo]],MegaLoteo[[#This Row],[MEGA LOTEO]:[MEGA LOTEO]]) -> 0 | HC11: =SUMIFS(FlujoVentasEtapas[04-2036],Etapas[[Tipo]:[Tipo]],MegaLoteo[[#This Row],[MEGA LOTEO]:[MEGA LOTEO]]) -> 0 | HD11: =SUMIFS(FlujoVentasEtapas[05-2036],Etapas[[Tipo]:[Tipo]],MegaLoteo[[#This Row],[MEGA LOTEO]:[MEGA LOTEO]]) -> 0 | HE11: =SUMIFS(FlujoVentasEtapas[06-2036],Etapas[[Tipo]:[Tipo]],MegaLoteo[[#This Row],[MEGA LOTEO]:[MEGA LOTEO]]) -> 0 | HF11: =SUMIFS(FlujoVentasEtapas[07-2036],Etapas[[Tipo]:[Tipo]],MegaLoteo[[#This Row],[MEGA LOTEO]:[MEGA LOTEO]]) -> 0 | HG11: =SUMIFS(FlujoVentasEtapas[08-2036],Etapas[[Tipo]:[Tipo]],MegaLoteo[[#This Row],[MEGA LOTEO]:[MEGA LOTEO]]) -> 0 | HH11: =SUMIFS(FlujoVentasEtapas[09-2036],Etapas[[Tipo]:[Tipo]],MegaLoteo[[#This Row],[MEGA LOTEO]:[MEGA LOTEO]]) -> 0 | HI11: =SUMIFS(FlujoVentasEtapas[10-2036],Etapas[[Tipo]:[Tipo]],MegaLoteo[[#This Row],[MEGA LOTEO]:[MEGA LOTEO]]) -> 0 | HJ11: =SUMIFS(FlujoVentasEtapas[11-2036],Etapas[[Tipo]:[Tipo]],MegaLoteo[[#This Row],[MEGA LOTEO]:[MEGA LOTEO]]) -> 0 | HK11: =SUMIFS(FlujoVentasEtapas[12-2036],Etapas[[Tipo]:[Tipo]],MegaLoteo[[#This Row],[MEGA LOTEO]:[MEGA LOTEO]]) -> 0 | HL11: =SUMIFS(FlujoVentasEtapas[01-2037],Etapas[[Tipo]:[Tipo]],MegaLoteo[[#This Row],[MEGA LOTEO]:[MEGA LOTEO]]) -> 0 | HM11: =SUMIFS(FlujoVentasEtapas[02-2037],Etapas[[Tipo]:[Tipo]],MegaLoteo[[#This Row],[MEGA LOTEO]:[MEGA LOTEO]]) -> 0 | HN11: =SUMIFS(FlujoVentasEtapas[03-2037],Etapas[[Tipo]:[Tipo]],MegaLoteo[[#This Row],[MEGA LOTEO]:[MEGA LOTEO]]) -> 0 | HO11: =SUMIFS(FlujoVentasEtapas[04-2037],Etapas[[Tipo]:[Tipo]],MegaLoteo[[#This Row],[MEGA LOTEO]:[MEGA LOTEO]]) -> 0 | HP11: =SUMIFS(FlujoVentasEtapas[05-2037],Etapas[[Tipo]:[Tipo]],MegaLoteo[[#This Row],[MEGA LOTEO]:[MEGA LOTEO]]) -> 0 | HQ11: =SUMIFS(FlujoVentasEtapas[06-2037],Etapas[[Tipo]:[Tipo]],MegaLoteo[[#This Row],[MEGA LOTEO]:[MEGA LOTEO]]) -> 0 | HR11: =SUMIFS(FlujoVentasEtapas[07-2037],Etapas[[Tipo]:[Tipo]],MegaLoteo[[#This Row],[MEGA LOTEO]:[MEGA LOTEO]]) -> 0 | HS11: =SUMIFS(FlujoVentasEtapas[08-2037],Etapas[[Tipo]:[Tipo]],MegaLoteo[[#This Row],[MEGA LOTEO]:[MEGA LOTEO]]) -> 0 | HT11: =SUMIFS(FlujoVentasEtapas[09-2037],Etapas[[Tipo]:[Tipo]],MegaLoteo[[#This Row],[MEGA LOTEO]:[MEGA LOTEO]]) -> 0 | HU11: =SUMIFS(FlujoVentasEtapas[10-2037],Etapas[[Tipo]:[Tipo]],MegaLoteo[[#This Row],[MEGA LOTEO]:[MEGA LOTEO]]) -> 0 | HV11: =SUMIFS(FlujoVentasEtapas[11-2037],Etapas[[Tipo]:[Tipo]],MegaLoteo[[#This Row],[MEGA LOTEO]:[MEGA LOTEO]]) -> 0 | HW11: =SUMIFS(FlujoVentasEtapas[12-2037],Etapas[[Tipo]:[Tipo]],MegaLoteo[[#This Row],[MEGA LOTEO]:[MEGA LOTEO]]) -> 0 | HX11: =SUMIFS(FlujoVentasEtapas[01-2038],Etapas[[Tipo]:[Tipo]],MegaLoteo[[#This Row],[MEGA LOTEO]:[MEGA LOTEO]]) -> 0 | HY11: =SUMIFS(FlujoVentasEtapas[02-2038],Etapas[[Tipo]:[Tipo]],MegaLoteo[[#This Row],[MEGA LOTEO]:[MEGA LOTEO]]) -> 0 | HZ11: =SUMIFS(FlujoVentasEtapas[03-2038],Etapas[[Tipo]:[Tipo]],MegaLoteo[[#This Row],[MEGA LOTEO]:[MEGA LOTEO]]) -> 0 | IA11: =SUMIFS(FlujoVentasEtapas[04-2038],Etapas[[Tipo]:[Tipo]],MegaLoteo[[#This Row],[MEGA LOTEO]:[MEGA LOTEO]]) -> 0 | IB11: =SUMIFS(FlujoVentasEtapas[05-2038],Etapas[[Tipo]:[Tipo]],MegaLoteo[[#This Row],[MEGA LOTEO]:[MEGA LOTEO]]) -> 0 | IC11: =SUMIFS(FlujoVentasEtapas[06-2038],Etapas[[Tipo]:[Tipo]],MegaLoteo[[#This Row],[MEGA LOTEO]:[MEGA LOTEO]]) -> 0 | ID11: =SUMIFS(FlujoVentasEtapas[07-2038],Etapas[[Tipo]:[Tipo]],MegaLoteo[[#This Row],[MEGA LOTEO]:[MEGA LOTEO]]) -> 0 | IE11: =SUMIFS(FlujoVentasEtapas[08-2038],Etapas[[Tipo]:[Tipo]],MegaLoteo[[#This Row],[MEGA LOTEO]:[MEGA LOTEO]]) -> 0 | IF11: =SUMIFS(FlujoVentasEtapas[09-2038],Etapas[[Tipo]:[Tipo]],MegaLoteo[[#This Row],[MEGA LOTEO]:[MEGA LOTEO]]) -> 0 | IG11: =SUMIFS(FlujoVentasEtapas[10-2038],Etapas[[Tipo]:[Tipo]],MegaLoteo[[#This Row],[MEGA LOTEO]:[MEGA LOTEO]]) -> 0 | IH11: =SUMIFS(FlujoVentasEtapas[11-2038],Etapas[[Tipo]:[Tipo]],MegaLoteo[[#This Row],[MEGA LOTEO]:[MEGA LOTEO]]) -> 0 | II11: =SUMIFS(FlujoVentasEtapas[12-2038],Etapas[[Tipo]:[Tipo]],MegaLoteo[[#This Row],[MEGA LOTEO]:[MEGA LOTEO]]) -> 0 | IJ11: =SUMIFS(FlujoVentasEtapas[01-2039],Etapas[[Tipo]:[Tipo]],MegaLoteo[[#This Row],[MEGA LOTEO]:[MEGA LOTEO]]) -> 0 | IK11: =SUMIFS(FlujoVentasEtapas[02-2039],Etapas[[Tipo]:[Tipo]],MegaLoteo[[#This Row],[MEGA LOTEO]:[MEGA LOTEO]]) -> 0 | IL11: =SUMIFS(FlujoVentasEtapas[03-2039],Etapas[[Tipo]:[Tipo]],MegaLoteo[[#This Row],[MEGA LOTEO]:[MEGA LOTEO]]) -> 0 | IM11: =SUMIFS(FlujoVentasEtapas[04-2039],Etapas[[Tipo]:[Tipo]],MegaLoteo[[#This Row],[MEGA LOTEO]:[MEGA LOTEO]]) -> 0 | IN11: =SUMIFS(FlujoVentasEtapas[05-2039],Etapas[[Tipo]:[Tipo]],MegaLoteo[[#This Row],[MEGA LOTEO]:[MEGA LOTEO]]) -> 0 | IO11: =SUMIFS(FlujoVentasEtapas[06-2039],Etapas[[Tipo]:[Tipo]],MegaLoteo[[#This Row],[MEGA LOTEO]:[MEGA LOTEO]]) -> 0 | IP11: =SUMIFS(FlujoVentasEtapas[07-2039],Etapas[[Tipo]:[Tipo]],MegaLoteo[[#This Row],[MEGA LOTEO]:[MEGA LOTEO]]) -> 0 | IQ11: =SUMIFS(FlujoVentasEtapas[08-2039],Etapas[[Tipo]:[Tipo]],MegaLoteo[[#This Row],[MEGA LOTEO]:[MEGA LOTEO]]) -> 0 | IR11: =SUMIFS(FlujoVentasEtapas[09-2039],Etapas[[Tipo]:[Tipo]],MegaLoteo[[#This Row],[MEGA LOTEO]:[MEGA LOTEO]]) -> 0 | IS11: =SUMIFS(FlujoVentasEtapas[10-2039],Etapas[[Tipo]:[Tipo]],MegaLoteo[[#This Row],[MEGA LOTEO]:[MEGA LOTEO]]) -> 0 | IT11: =SUMIFS(FlujoVentasEtapas[11-2039],Etapas[[Tipo]:[Tipo]],MegaLoteo[[#This Row],[MEGA LOTEO]:[MEGA LOTEO]]) -> 0 | IU11: =SUMIFS(FlujoVentasEtapas[12-2039],Etapas[[Tipo]:[Tipo]],MegaLoteo[[#This Row],[MEGA LOTEO]:[MEGA LOTEO]]) -> 0 | IV11: =SUMIFS(FlujoVentasEtapas[01-2040],Etapas[[Tipo]:[Tipo]],MegaLoteo[[#This Row],[MEGA LOTEO]:[MEGA LOTEO]]) -> 0 | IW11: =SUMIFS(FlujoVentasEtapas[02-2040],Etapas[[Tipo]:[Tipo]],MegaLoteo[[#This Row],[MEGA LOTEO]:[MEGA LOTEO]]) -> 0 | IX11: =SUMIFS(FlujoVentasEtapas[03-2040],Etapas[[Tipo]:[Tipo]],MegaLoteo[[#This Row],[MEGA LOTEO]:[MEGA LOTEO]]) -> 0 | IY11: =SUMIFS(FlujoVentasEtapas[04-2040],Etapas[[Tipo]:[Tipo]],MegaLoteo[[#This Row],[MEGA LOTEO]:[MEGA LOTEO]]) -> 0 | IZ11: =SUMIFS(FlujoVentasEtapas[05-2040],Etapas[[Tipo]:[Tipo]],MegaLoteo[[#This Row],[MEGA LOTEO]:[MEGA LOTEO]]) -> 0 | JA11: =SUMIFS(FlujoVentasEtapas[06-2040],Etapas[[Tipo]:[Tipo]],MegaLoteo[[#This Row],[MEGA LOTEO]:[MEGA LOTEO]]) -> 0 | JB11: =SUMIFS(FlujoVentasEtapas[07-2040],Etapas[[Tipo]:[Tipo]],MegaLoteo[[#This Row],[MEGA LOTEO]:[MEGA LOTEO]]) -> 0 | JC11: =SUMIFS(FlujoVentasEtapas[08-2040],Etapas[[Tipo]:[Tipo]],MegaLoteo[[#This Row],[MEGA LOTEO]:[MEGA LOTEO]]) -> 0 | JD11: =SUMIFS(FlujoVentasEtapas[09-2040],Etapas[[Tipo]:[Tipo]],MegaLoteo[[#This Row],[MEGA LOTEO]:[MEGA LOTEO]]) -> 0 | JE11: =SUMIFS(FlujoVentasEtapas[10-2040],Etapas[[Tipo]:[Tipo]],MegaLoteo[[#This Row],[MEGA LOTEO]:[MEGA LOTEO]]) -> 0 | JF11: =SUMIFS(FlujoVentasEtapas[11-2040],Etapas[[Tipo]:[Tipo]],MegaLoteo[[#This Row],[MEGA LOTEO]:[MEGA LOTEO]]) -> 0 | JG11: =SUMIFS(FlujoVentasEtapas[12-2040],Etapas[[Tipo]:[Tipo]],MegaLoteo[[#This Row],[MEGA LOTEO]:[MEGA LOTEO]]) -> 0 | JH11: =SUMIFS(FlujoVentasEtapas[01-2041],Etapas[[Tipo]:[Tipo]],MegaLoteo[[#This Row],[MEGA LOTEO]:[MEGA LOTEO]]) -> 0 | JI11: =SUMIFS(FlujoVentasEtapas[02-2041],Etapas[[Tipo]:[Tipo]],MegaLoteo[[#This Row],[MEGA LOTEO]:[MEGA LOTEO]]) -> 0 | JJ11: =SUMIFS(FlujoVentasEtapas[03-2041],Etapas[[Tipo]:[Tipo]],MegaLoteo[[#This Row],[MEGA LOTEO]:[MEGA LOTEO]]) -> 0 | JK11: =SUMIFS(FlujoVentasEtapas[04-2041],Etapas[[Tipo]:[Tipo]],MegaLoteo[[#This Row],[MEGA LOTEO]:[MEGA LOTEO]]) -> 0 | JL11: =SUMIFS(FlujoVentasEtapas[05-2041],Etapas[[Tipo]:[Tipo]],MegaLoteo[[#This Row],[MEGA LOTEO]:[MEGA LOTEO]]) -> 0 | JM11: =SUMIFS(FlujoVentasEtapas[06-2041],Etapas[[Tipo]:[Tipo]],MegaLoteo[[#This Row],[MEGA LOTEO]:[MEGA LOTEO]]) -> 0 | JN11: =SUMIFS(FlujoVentasEtapas[07-2041],Etapas[[Tipo]:[Tipo]],MegaLoteo[[#This Row],[MEGA LOTEO]:[MEGA LOTEO]]) -> 0 | JO11: =SUMIFS(FlujoVentasEtapas[08-2041],Etapas[[Tipo]:[Tipo]],MegaLoteo[[#This Row],[MEGA LOTEO]:[MEGA LOTEO]]) -> 0 | JP11: =SUMIFS(FlujoVentasEtapas[09-2041],Etapas[[Tipo]:[Tipo]],MegaLoteo[[#This Row],[MEGA LOTEO]:[MEGA LOTEO]]) -> 0 | JQ11: =SUMIFS(FlujoVentasEtapas[10-2041],Etapas[[Tipo]:[Tipo]],MegaLoteo[[#This Row],[MEGA LOTEO]:[MEGA LOTEO]]) -> 0 | JR11: =SUMIFS(FlujoVentasEtapas[11-2041],Etapas[[Tipo]:[Tipo]],MegaLoteo[[#This Row],[MEGA LOTEO]:[MEGA LOTEO]]) -> 0 | JS11: =SUMIFS(FlujoVentasEtapas[12-2041],Etapas[[Tipo]:[Tipo]],MegaLoteo[[#This Row],[MEGA LOTEO]:[MEGA LOTEO]]) -> 0 | JT11: =SUMIFS(FlujoVentasEtapas[01-2042],Etapas[[Tipo]:[Tipo]],MegaLoteo[[#This Row],[MEGA LOTEO]:[MEGA LOTEO]]) -> 0 | JU11: =SUMIFS(FlujoVentasEtapas[02-2042],Etapas[[Tipo]:[Tipo]],MegaLoteo[[#This Row],[MEGA LOTEO]:[MEGA LOTEO]]) -> 0 | JV11: =SUMIFS(FlujoVentasEtapas[03-2042],Etapas[[Tipo]:[Tipo]],MegaLoteo[[#This Row],[MEGA LOTEO]:[MEGA LOTEO]]) -> 0 | JW11: =SUMIFS(FlujoVentasEtapas[04-2042],Etapas[[Tipo]:[Tipo]],MegaLoteo[[#This Row],[MEGA LOTEO]:[MEGA LOTEO]]) -> 0 | JX11: =SUMIFS(FlujoVentasEtapas[05-2042],Etapas[[Tipo]:[Tipo]],MegaLoteo[[#This Row],[MEGA LOTEO]:[MEGA LOTEO]]) -> 0 | JY11: =SUMIFS(FlujoVentasEtapas[06-2042],Etapas[[Tipo]:[Tipo]],MegaLoteo[[#This Row],[MEGA LOTEO]:[MEGA LOTEO]]) -> 0 | JZ11: =SUMIFS(FlujoVentasEtapas[07-2042],Etapas[[Tipo]:[Tipo]],MegaLoteo[[#This Row],[MEGA LOTEO]:[MEGA LOTEO]]) -> 0 | KA11: =SUMIFS(FlujoVentasEtapas[08-2042],Etapas[[Tipo]:[Tipo]],MegaLoteo[[#This Row],[MEGA LOTEO]:[MEGA LOTEO]]) -> 0 | KB11: =SUMIFS(FlujoVentasEtapas[09-2042],Etapas[[Tipo]:[Tipo]],MegaLoteo[[#This Row],[MEGA LOTEO]:[MEGA LOTEO]]) -> 0 | KC11: =SUMIFS(FlujoVentasEtapas[10-2042],Etapas[[Tipo]:[Tipo]],MegaLoteo[[#This Row],[MEGA LOTEO]:[MEGA LOTEO]]) -> 0 | KD11: =SUMIFS(FlujoVentasEtapas[11-2042],Etapas[[Tipo]:[Tipo]],MegaLoteo[[#This Row],[MEGA LOTEO]:[MEGA LOTEO]]) -> 0 | KE11: =SUMIFS(FlujoVentasEtapas[12-2042],Etapas[[Tipo]:[Tipo]],MegaLoteo[[#This Row],[MEGA LOTEO]:[MEGA LOTEO]]) -> 0 | KF11: =SUMIFS(FlujoVentasEtapas[01-2043],Etapas[[Tipo]:[Tipo]],MegaLoteo[[#This Row],[MEGA LOTEO]:[MEGA LOTEO]]) -> 0 | KG11: =SUMIFS(FlujoVentasEtapas[02-2043],Etapas[[Tipo]:[Tipo]],MegaLoteo[[#This Row],[MEGA LOTEO]:[MEGA LOTEO]]) -> 0 | KH11: =SUMIFS(FlujoVentasEtapas[03-2043],Etapas[[Tipo]:[Tipo]],MegaLoteo[[#This Row],[MEGA LOTEO]:[MEGA LOTEO]]) -> 0 | KI11: =SUMIFS(FlujoVentasEtapas[04-2043],Etapas[[Tipo]:[Tipo]],MegaLoteo[[#This Row],[MEGA LOTEO]:[MEGA LOTEO]]) -> 0 | KJ11: =SUMIFS(FlujoVentasEtapas[05-2043],Etapas[[Tipo]:[Tipo]],MegaLoteo[[#This Row],[MEGA LOTEO]:[MEGA LOTEO]]) -> 0 | KK11: =SUMIFS(FlujoVentasEtapas[06-2043],Etapas[[Tipo]:[Tipo]],MegaLoteo[[#This Row],[MEGA LOTEO]:[MEGA LOTEO]]) -> 0 | KL11: =SUMIFS(FlujoVentasEtapas[07-2043],Etapas[[Tipo]:[Tipo]],MegaLoteo[[#This Row],[MEGA LOTEO]:[MEGA LOTEO]]) -> 0 | KM11: =SUMIFS(FlujoVentasEtapas[08-2043],Etapas[[Tipo]:[Tipo]],MegaLoteo[[#This Row],[MEGA LOTEO]:[MEGA LOTEO]]) -> 0 | KN11: =SUMIFS(FlujoVentasEtapas[09-2043],Etapas[[Tipo]:[Tipo]],MegaLoteo[[#This Row],[MEGA LOTEO]:[MEGA LOTEO]]) -> 0 | KO11: =SUMIFS(FlujoVentasEtapas[10-2043],Etapas[[Tipo]:[Tipo]],MegaLoteo[[#This Row],[MEGA LOTEO]:[MEGA LOTEO]]) -> 0 | KP11: =SUMIFS(FlujoVentasEtapas[11-2043],Etapas[[Tipo]:[Tipo]],MegaLoteo[[#This Row],[MEGA LOTEO]:[MEGA LOTEO]]) -> 0 | KQ11: =SUMIFS(FlujoVentasEtapas[12-2043],Etapas[[Tipo]:[Tipo]],MegaLoteo[[#This Row],[MEGA LOTEO]:[MEGA LOTEO]]) -> 0 | KR11: =SUMIFS(FlujoVentasEtapas[01-2044],Etapas[[Tipo]:[Tipo]],MegaLoteo[[#This Row],[MEGA LOTEO]:[MEGA LOTEO]]) -> 0 | KS11: =SUMIFS(FlujoVentasEtapas[02-2044],Etapas[[Tipo]:[Tipo]],MegaLoteo[[#This Row],[MEGA LOTEO]:[MEGA LOTEO]]) -> 0 | KT11: =SUMIFS(FlujoVentasEtapas[03-2044],Etapas[[Tipo]:[Tipo]],MegaLoteo[[#This Row],[MEGA LOTEO]:[MEGA LOTEO]]) -> 0 | KU11: =SUMIFS(FlujoVentasEtapas[04-2044],Etapas[[Tipo]:[Tipo]],MegaLoteo[[#This Row],[MEGA LOTEO]:[MEGA LOTEO]]) -> 0 | KV11: =SUMIFS(FlujoVentasEtapas[05-2044],Etapas[[Tipo]:[Tipo]],MegaLoteo[[#This Row],[MEGA LOTEO]:[MEGA LOTEO]]) -> 0 | KW11: =SUMIFS(FlujoVentasEtapas[06-2044],Etapas[[Tipo]:[Tipo]],MegaLoteo[[#This Row],[MEGA LOTEO]:[MEGA LOTEO]]) -> 0 | KX11: =SUMIFS(FlujoVentasEtapas[07-2044],Etapas[[Tipo]:[Tipo]],MegaLoteo[[#This Row],[MEGA LOTEO]:[MEGA LOTEO]]) -> 0 | KY11: =SUMIFS(FlujoVentasEtapas[08-2044],Etapas[[Tipo]:[Tipo]],MegaLoteo[[#This Row],[MEGA LOTEO]:[MEGA LOTEO]]) -> 0 | KZ11: =SUMIFS(FlujoVentasEtapas[09-2044],Etapas[[Tipo]:[Tipo]],MegaLoteo[[#This Row],[MEGA LOTEO]:[MEGA LOTEO]]) -> 0 | LA11: =SUMIFS(FlujoVentasEtapas[10-2044],Etapas[[Tipo]:[Tipo]],MegaLoteo[[#This Row],[MEGA LOTEO]:[MEGA LOTEO]]) -> 0 | LB11: =SUMIFS(FlujoVentasEtapas[11-2044],Etapas[[Tipo]:[Tipo]],MegaLoteo[[#This Row],[MEGA LOTEO]:[MEGA LOTEO]]) -> 0 | LC11: =SUMIFS(FlujoVentasEtapas[12-2044],Etapas[[Tipo]:[Tipo]],MegaLoteo[[#This Row],[MEGA LOTEO]:[MEGA LOTEO]]) -> 0 | LD11: =SUMIFS(FlujoVentasEtapas[01-2045],Etapas[[Tipo]:[Tipo]],MegaLoteo[[#This Row],[MEGA LOTEO]:[MEGA LOTEO]]) -> 0 | LE11: =SUMIFS(FlujoVentasEtapas[02-2045],Etapas[[Tipo]:[Tipo]],MegaLoteo[[#This Row],[MEGA LOTEO]:[MEGA LOTEO]]) -> 0 | LF11: =SUMIFS(FlujoVentasEtapas[03-2045],Etapas[[Tipo]:[Tipo]],MegaLoteo[[#This Row],[MEGA LOTEO]:[MEGA LOTEO]]) -> 0 | LG11: =SUMIFS(FlujoVentasEtapas[04-2045],Etapas[[Tipo]:[Tipo]],MegaLoteo[[#This Row],[MEGA LOTEO]:[MEGA LOTEO]]) -> 0 | LH11: =SUMIFS(FlujoVentasEtapas[05-2045],Etapas[[Tipo]:[Tipo]],MegaLoteo[[#This Row],[MEGA LOTEO]:[MEGA LOTEO]]) -> 0 | LI11: =SUMIFS(FlujoVentasEtapas[06-2045],Etapas[[Tipo]:[Tipo]],MegaLoteo[[#This Row],[MEGA LOTEO]:[MEGA LOTEO]]) -> 0 | LJ11: =SUMIFS(FlujoVentasEtapas[07-2045],Etapas[[Tipo]:[Tipo]],MegaLoteo[[#This Row],[MEGA LOTEO]:[MEGA LOTEO]]) -> 0 | LK11: =SUMIFS(FlujoVentasEtapas[08-2045],Etapas[[Tipo]:[Tipo]],MegaLoteo[[#This Row],[MEGA LOTEO]:[MEGA LOTEO]]) -> 0 | LL11: =SUMIFS(FlujoVentasEtapas[09-2045],Etapas[[Tipo]:[Tipo]],MegaLoteo[[#This Row],[MEGA LOTEO]:[MEGA LOTEO]]) -> 0 | LM11: =SUMIFS(FlujoVentasEtapas[10-2045],Etapas[[Tipo]:[Tipo]],MegaLoteo[[#This Row],[MEGA LOTEO]:[MEGA LOTEO]]) -> 0 | LN11: =SUMIFS(FlujoVentasEtapas[11-2045],Etapas[[Tipo]:[Tipo]],MegaLoteo[[#This Row],[MEGA LOTEO]:[MEGA LOTEO]]) -> 0 | LO11: =SUMIFS(FlujoVentasEtapas[12-2045],Etapas[[Tipo]:[Tipo]],MegaLoteo[[#This Row],[MEGA LOTEO]:[MEGA LOTEO]]) -> 0 | LP11: =SUMIFS(FlujoVentasEtapas[01-2046],Etapas[[Tipo]:[Tipo]],MegaLoteo[[#This Row],[MEGA LOTEO]:[MEGA LOTEO]]) -> 0 | LQ11: =SUMIFS(FlujoVentasEtapas[02-2046],Etapas[[Tipo]:[Tipo]],MegaLoteo[[#This Row],[MEGA LOTEO]:[MEGA LOTEO]]) -> 0 | LR11: =SUMIFS(FlujoVentasEtapas[03-2046],Etapas[[Tipo]:[Tipo]],MegaLoteo[[#This Row],[MEGA LOTEO]:[MEGA LOTEO]]) -> 0 | LS11: =SUMIFS(FlujoVentasEtapas[04-2046],Etapas[[Tipo]:[Tipo]],MegaLoteo[[#This Row],[MEGA LOTEO]:[MEGA LOTEO]]) -> 0 | LT11: =SUMIFS(FlujoVentasEtapas[05-2046],Etapas[[Tipo]:[Tipo]],MegaLoteo[[#This Row],[MEGA LOTEO]:[MEGA LOTEO]]) -> 0 | LU11: =SUMIFS(FlujoVentasEtapas[06-2046],Etapas[[Tipo]:[Tipo]],MegaLoteo[[#This Row],[MEGA LOTEO]:[MEGA LOTEO]]) -> 0 | LV11: =SUMIFS(FlujoVentasEtapas[07-2046],Etapas[[Tipo]:[Tipo]],MegaLoteo[[#This Row],[MEGA LOTEO]:[MEGA LOTEO]]) -> 0 | LW11: =SUMIFS(FlujoVentasEtapas[08-2046],Etapas[[Tipo]:[Tipo]],MegaLoteo[[#This Row],[MEGA LOTEO]:[MEGA LOTEO]]) -> 0 | LX11: =SUMIFS(FlujoVentasEtapas[09-2046],Etapas[[Tipo]:[Tipo]],MegaLoteo[[#This Row],[MEGA LOTEO]:[MEGA LOTEO]]) -> 0 | LY11: =SUMIFS(FlujoVentasEtapas[10-2046],Etapas[[Tipo]:[Tipo]],MegaLoteo[[#This Row],[MEGA LOTEO]:[MEGA LOTEO]]) -> 0 | LZ11: =SUMIFS(FlujoVentasEtapas[11-2046],Etapas[[Tipo]:[Tipo]],MegaLoteo[[#This Row],[MEGA LOTEO]:[MEGA LOTEO]]) -> 0 | MA11: =SUMIFS(FlujoVentasEtapas[12-2046],Etapas[[Tipo]:[Tipo]],MegaLoteo[[#This Row],[MEGA LOTEO]:[MEGA LOTEO]]) -> 0 | MB11: =SUMIFS(FlujoVentasEtapas[01-2047],Etapas[[Tipo]:[Tipo]],MegaLoteo[[#This Row],[MEGA LOTEO]:[MEGA LOTEO]]) -> 0 | MC11: =SUMIFS(FlujoVentasEtapas[02-2047],Etapas[[Tipo]:[Tipo]],MegaLoteo[[#This Row],[MEGA LOTEO]:[MEGA LOTEO]]) -> 0 | MD11: =SUMIFS(FlujoVentasEtapas[03-2047],Etapas[[Tipo]:[Tipo]],MegaLoteo[[#This Row],[MEGA LOTEO]:[MEGA LOTEO]]) -> 0 | ME11: =SUMIFS(FlujoVentasEtapas[04-2047],Etapas[[Tipo]:[Tipo]],MegaLoteo[[#This Row],[MEGA LOTEO]:[MEGA LOTEO]]) -> 0 | MF11: =SUMIFS(FlujoVentasEtapas[05-2047],Etapas[[Tipo]:[Tipo]],MegaLoteo[[#This Row],[MEGA LOTEO]:[MEGA LOTEO]]) -> 0 | MG11: =SUMIFS(FlujoVentasEtapas[06-2047],Etapas[[Tipo]:[Tipo]],MegaLoteo[[#This Row],[MEGA LOTEO]:[MEGA LOTEO]]) -> 0 | MH11: =SUMIFS(FlujoVentasEtapas[07-2047],Etapas[[Tipo]:[Tipo]],MegaLoteo[[#This Row],[MEGA LOTEO]:[MEGA LOTEO]]) -> 0 | MI11: =SUMIFS(FlujoVentasEtapas[08-2047],Etapas[[Tipo]:[Tipo]],MegaLoteo[[#This Row],[MEGA LOTEO]:[MEGA LOTEO]]) -> 0 | MJ11: =SUMIFS(FlujoVentasEtapas[09-2047],Etapas[[Tipo]:[Tipo]],MegaLoteo[[#This Row],[MEGA LOTEO]:[MEGA LOTEO]]) -> 0 | MK11: =SUMIFS(FlujoVentasEtapas[10-2047],Etapas[[Tipo]:[Tipo]],MegaLoteo[[#This Row],[MEGA LOTEO]:[MEGA LOTEO]]) -> 0 | ML11: =SUMIFS(FlujoVentasEtapas[11-2047],Etapas[[Tipo]:[Tipo]],MegaLoteo[[#This Row],[MEGA LOTEO]:[MEGA LOTEO]]) -> 0 | MM11: =SUMIFS(FlujoVentasEtapas[12-2047],Etapas[[Tipo]:[Tipo]],MegaLoteo[[#This Row],[MEGA LOTEO]:[MEGA LOTEO]]) -> 0 | MN11: =SUMIFS(FlujoVentasEtapas[01-2048],Etapas[[Tipo]:[Tipo]],MegaLoteo[[#This Row],[MEGA LOTEO]:[MEGA LOTEO]]) -> 0 | MO11: =SUMIFS(FlujoVentasEtapas[02-2048],Etapas[[Tipo]:[Tipo]],MegaLoteo[[#This Row],[MEGA LOTEO]:[MEGA LOTEO]]) -> 0 | MP11: =SUMIFS(FlujoVentasEtapas[03-2048],Etapas[[Tipo]:[Tipo]],MegaLoteo[[#This Row],[MEGA LOTEO]:[MEGA LOTEO]]) -> 0 | MQ11: =SUMIFS(FlujoVentasEtapas[04-2048],Etapas[[Tipo]:[Tipo]],MegaLoteo[[#This Row],[MEGA LOTEO]:[MEGA LOTEO]]) -> 0 | MR11: =SUMIFS(FlujoVentasEtapas[05-2048],Etapas[[Tipo]:[Tipo]],MegaLoteo[[#This Row],[MEGA LOTEO]:[MEGA LOTEO]]) -> 0 | MS11: =SUMIFS(FlujoVentasEtapas[06-2048],Etapas[[Tipo]:[Tipo]],MegaLoteo[[#This Row],[MEGA LOTEO]:[MEGA LOTEO]]) -> 0 | MT11: =SUMIFS(FlujoVentasEtapas[07-2048],Etapas[[Tipo]:[Tipo]],MegaLoteo[[#This Row],[MEGA LOTEO]:[MEGA LOTEO]]) -> 0 | MU11: =SUMIFS(FlujoVentasEtapas[08-2048],Etapas[[Tipo]:[Tipo]],MegaLoteo[[#This Row],[MEGA LOTEO]:[MEGA LOTEO]]) -> 0 | MV11: =SUMIFS(FlujoVentasEtapas[09-2048],Etapas[[Tipo]:[Tipo]],MegaLoteo[[#This Row],[MEGA LOTEO]:[MEGA LOTEO]]) -> 0 | MW11: =SUMIFS(FlujoVentasEtapas[10-2048],Etapas[[Tipo]:[Tipo]],MegaLoteo[[#This Row],[MEGA LOTEO]:[MEGA LOTEO]]) -> 0 | MX11: =SUMIFS(FlujoVentasEtapas[11-2048],Etapas[[Tipo]:[Tipo]],MegaLoteo[[#This Row],[MEGA LOTEO]:[MEGA LOTEO]]) -> 0 | MY11: =SUMIFS(FlujoVentasEtapas[12-2048],Etapas[[Tipo]:[Tipo]],MegaLoteo[[#This Row],[MEGA LOTEO]:[MEGA LOTEO]]) -> 0 | MZ11: =SUMIFS(FlujoVentasEtapas[01-2049],Etapas[[Tipo]:[Tipo]],MegaLoteo[[#This Row],[MEGA LOTEO]:[MEGA LOTEO]]) -> 0 | NA11: =SUMIFS(FlujoVentasEtapas[02-2049],Etapas[[Tipo]:[Tipo]],MegaLoteo[[#This Row],[MEGA LOTEO]:[MEGA LOTEO]]) -> 0 | NB11: =SUMIFS(FlujoVentasEtapas[03-2049],Etapas[[Tipo]:[Tipo]],MegaLoteo[[#This Row],[MEGA LOTEO]:[MEGA LOTEO]]) -> 0 | NC11: =SUMIFS(FlujoVentasEtapas[04-2049],Etapas[[Tipo]:[Tipo]],MegaLoteo[[#This Row],[MEGA LOTEO]:[MEGA LOTEO]]) -> 0 | ND11: =SUMIFS(FlujoVentasEtapas[05-2049],Etapas[[Tipo]:[Tipo]],MegaLoteo[[#This Row],[MEGA LOTEO]:[MEGA LOTEO]]) -> 0 | NE11: =SUMIFS(FlujoVentasEtapas[06-2049],Etapas[[Tipo]:[Tipo]],MegaLoteo[[#This Row],[MEGA LOTEO]:[MEGA LOTEO]]) -> 0 | NF11: =SUMIFS(FlujoVentasEtapas[07-2049],Etapas[[Tipo]:[Tipo]],MegaLoteo[[#This Row],[MEGA LOTEO]:[MEGA LOTEO]]) -> 0 | NG11: =SUMIFS(FlujoVentasEtapas[08-2049],Etapas[[Tipo]:[Tipo]],MegaLoteo[[#This Row],[MEGA LOTEO]:[MEGA LOTEO]]) -> 0 | NH11: =SUMIFS(FlujoVentasEtapas[09-2049],Etapas[[Tipo]:[Tipo]],MegaLoteo[[#This Row],[MEGA LOTEO]:[MEGA LOTEO]]) -> 0 | NI11: =SUMIFS(FlujoVentasEtapas[10-2049],Etapas[[Tipo]:[Tipo]],MegaLoteo[[#This Row],[MEGA LOTEO]:[MEGA LOTEO]]) -> 0 | NJ11: =SUMIFS(FlujoVentasEtapas[11-2049],Etapas[[Tipo]:[Tipo]],MegaLoteo[[#This Row],[MEGA LOTEO]:[MEGA LOTEO]]) -> 0 | NK11: =SUMIFS(FlujoVentasEtapas[12-2049],Etapas[[Tipo]:[Tipo]],MegaLoteo[[#This Row],[MEGA LOTEO]:[MEGA LOTEO]]) -> 0 | NL11: =SUMIFS(FlujoVentasEtapas[01-2050],Etapas[[Tipo]:[Tipo]],MegaLoteo[[#This Row],[MEGA LOTEO]:[MEGA LOTEO]]) -> 0 | NM11: =SUMIFS(FlujoVentasEtapas[02-2050],Etapas[[Tipo]:[Tipo]],MegaLoteo[[#This Row],[MEGA LOTEO]:[MEGA LOTEO]]) -> 0 | NN11: =SUMIFS(FlujoVentasEtapas[03-2050],Etapas[[Tipo]:[Tipo]],MegaLoteo[[#This Row],[MEGA LOTEO]:[MEGA LOTEO]]) -> 0 | NO11: =SUMIFS(FlujoVentasEtapas[04-2050],Etapas[[Tipo]:[Tipo]],MegaLoteo[[#This Row],[MEGA LOTEO]:[MEGA LOTEO]]) -> 0 | NP11: =SUMIFS(FlujoVentasEtapas[05-2050],Etapas[[Tipo]:[Tipo]],MegaLoteo[[#This Row],[MEGA LOTEO]:[MEGA LOTEO]]) -> 0 | NQ11: =SUMIFS(FlujoVentasEtapas[06-2050],Etapas[[Tipo]:[Tipo]],MegaLoteo[[#This Row],[MEGA LOTEO]:[MEGA LOTEO]]) -> 0 | NR11: =SUMIFS(FlujoVentasEtapas[07-2050],Etapas[[Tipo]:[Tipo]],MegaLoteo[[#This Row],[MEGA LOTEO]:[MEGA LOTEO]]) -> 0 | NS11: =SUMIFS(FlujoVentasEtapas[08-2050],Etapas[[Tipo]:[Tipo]],MegaLoteo[[#This Row],[MEGA LOTEO]:[MEGA LOTEO]]) -> 0 | NT11: =SUMIFS(FlujoVentasEtapas[09-2050],Etapas[[Tipo]:[Tipo]],MegaLoteo[[#This Row],[MEGA LOTEO]:[MEGA LOTEO]]) -> 0 | NU11: =SUMIFS(FlujoVentasEtapas[10-2050],Etapas[[Tipo]:[Tipo]],MegaLoteo[[#This Row],[MEGA LOTEO]:[MEGA LOTEO]]) -> 0 | NV11: =SUMIFS(FlujoVentasEtapas[11-2050],Etapas[[Tipo]:[Tipo]],MegaLoteo[[#This Row],[MEGA LOTEO]:[MEGA LOTEO]]) -> 0 | NW11: =SUMIFS(FlujoVentasEtapas[12-2050],Etapas[[Tipo]:[Tipo]],MegaLoteo[[#This Row],[MEGA LOTEO]:[MEGA LOTEO]]) -> 0 | NX11: =SUMIFS(FlujoVentasEtapas[01-2051],Etapas[[Tipo]:[Tipo]],MegaLoteo[[#This Row],[MEGA LOTEO]:[MEGA LOTEO]]) -> 0 | NY11: =SUMIFS(FlujoVentasEtapas[02-2051],Etapas[[Tipo]:[Tipo]],MegaLoteo[[#This Row],[MEGA LOTEO]:[MEGA LOTEO]]) -> 0 | NZ11: =SUMIFS(FlujoVentasEtapas[03-2051],Etapas[[Tipo]:[Tipo]],MegaLoteo[[#This Row],[MEGA LOTEO]:[MEGA LOTEO]]) -> 0 | OA11: =SUMIFS(FlujoVentasEtapas[04-2051],Etapas[[Tipo]:[Tipo]],MegaLoteo[[#This Row],[MEGA LOTEO]:[MEGA LOTEO]]) -> 0 | OB11: =SUMIFS(FlujoVentasEtapas[05-2051],Etapas[[Tipo]:[Tipo]],MegaLoteo[[#This Row],[MEGA LOTEO]:[MEGA LOTEO]]) -> 0 | OC11: =SUMIFS(FlujoVentasEtapas[06-2051],Etapas[[Tipo]:[Tipo]],MegaLoteo[[#This Row],[MEGA LOTEO]:[MEGA LOTEO]]) -> 0 | OD11: =SUMIFS(FlujoVentasEtapas[07-2051],Etapas[[Tipo]:[Tipo]],MegaLoteo[[#This Row],[MEGA LOTEO]:[MEGA LOTEO]]) -> 0 | OE11: =SUMIFS(FlujoVentasEtapas[08-2051],Etapas[[Tipo]:[Tipo]],MegaLoteo[[#This Row],[MEGA LOTEO]:[MEGA LOTEO]]) -> 0 | OF11: =SUMIFS(FlujoVentasEtapas[09-2051],Etapas[[Tipo]:[Tipo]],MegaLoteo[[#This Row],[MEGA LOTEO]:[MEGA LOTEO]]) -> 0 | OG11: =SUMIFS(FlujoVentasEtapas[10-2051],Etapas[[Tipo]:[Tipo]],MegaLoteo[[#This Row],[MEGA LOTEO]:[MEGA LOTEO]]) -> 0 | OH11: =SUMIFS(FlujoVentasEtapas[11-2051],Etapas[[Tipo]:[Tipo]],MegaLoteo[[#This Row],[MEGA LOTEO]:[MEGA LOTEO]]) -> 0 | OI11: =SUMIFS(FlujoVentasEtapas[12-2051],Etapas[[Tipo]:[Tipo]],MegaLoteo[[#This Row],[MEGA LOTEO]:[MEGA LOTEO]]) -> 0 | OJ11: =SUMIFS(FlujoVentasEtapas[01-2052],Etapas[[Tipo]:[Tipo]],MegaLoteo[[#This Row],[MEGA LOTEO]:[MEGA LOTEO]]) -> 0 | OK11: =SUMIFS(FlujoVentasEtapas[02-2052],Etapas[[Tipo]:[Tipo]],MegaLoteo[[#This Row],[MEGA LOTEO]:[MEGA LOTEO]]) -> 0 | OL11: =SUMIFS(FlujoVentasEtapas[03-2052],Etapas[[Tipo]:[Tipo]],MegaLoteo[[#This Row],[MEGA LOTEO]:[MEGA LOTEO]]) -> 0 | OM11: =SUMIFS(FlujoVentasEtapas[04-2052],Etapas[[Tipo]:[Tipo]],MegaLoteo[[#This Row],[MEGA LOTEO]:[MEGA LOTEO]]) -> 0 | ON11: =SUMIFS(FlujoVentasEtapas[05-2052],Etapas[[Tipo]:[Tipo]],MegaLoteo[[#This Row],[MEGA LOTEO]:[MEGA LOTEO]]) -> 0 | OO11: =SUMIFS(FlujoVentasEtapas[06-2052],Etapas[[Tipo]:[Tipo]],MegaLoteo[[#This Row],[MEGA LOTEO]:[MEGA LOTEO]]) -> 0 | OP11: =SUMIFS(FlujoVentasEtapas[07-2052],Etapas[[Tipo]:[Tipo]],MegaLoteo[[#This Row],[MEGA LOTEO]:[MEGA LOTEO]]) -> 0 | OQ11: =SUMIFS(FlujoVentasEtapas[08-2052],Etapas[[Tipo]:[Tipo]],MegaLoteo[[#This Row],[MEGA LOTEO]:[MEGA LOTEO]]) -> 0 | OR11: =SUMIFS(FlujoVentasEtapas[09-2052],Etapas[[Tipo]:[Tipo]],MegaLoteo[[#This Row],[MEGA LOTEO]:[MEGA LOTEO]]) -> 0 | OS11: =SUMIFS(FlujoVentasEtapas[10-2052],Etapas[[Tipo]:[Tipo]],MegaLoteo[[#This Row],[MEGA LOTEO]:[MEGA LOTEO]]) -> 0 | OT11: =SUMIFS(FlujoVentasEtapas[11-2052],Etapas[[Tipo]:[Tipo]],MegaLoteo[[#This Row],[MEGA LOTEO]:[MEGA LOTEO]]) -> 0 | OU11: =SUMIFS(FlujoVentasEtapas[12-2052],Etapas[[Tipo]:[Tipo]],MegaLoteo[[#This Row],[MEGA LOTEO]:[MEGA LOTEO]]) -> 0 | OV11: =SUMIFS(FlujoVentasEtapas[01-2053],Etapas[[Tipo]:[Tipo]],MegaLoteo[[#This Row],[MEGA LOTEO]:[MEGA LOTEO]]) -> 0 | OW11: =SUMIFS(FlujoVentasEtapas[02-2053],Etapas[[Tipo]:[Tipo]],MegaLoteo[[#This Row],[MEGA LOTEO]:[MEGA LOTEO]]) -> 0 | OX11: =SUMIFS(FlujoVentasEtapas[03-2053],Etapas[[Tipo]:[Tipo]],MegaLoteo[[#This Row],[MEGA LOTEO]:[MEGA LOTEO]]) -> 0 | OY11: =SUMIFS(FlujoVentasEtapas[04-2053],Etapas[[Tipo]:[Tipo]],MegaLoteo[[#This Row],[MEGA LOTEO]:[MEGA LOTEO]]) -> 0 | OZ11: =SUMIFS(FlujoVentasEtapas[05-2053],Etapas[[Tipo]:[Tipo]],MegaLoteo[[#This Row],[MEGA LOTEO]:[MEGA LOTEO]]) -> 0 | PA11: =SUMIFS(FlujoVentasEtapas[06-2053],Etapas[[Tipo]:[Tipo]],MegaLoteo[[#This Row],[MEGA LOTEO]:[MEGA LOTEO]]) -> 0 | PB11: =SUMIFS(FlujoVentasEtapas[07-2053],Etapas[[Tipo]:[Tipo]],MegaLoteo[[#This Row],[MEGA LOTEO]:[MEGA LOTEO]]) -> 0 | PC11: =SUMIFS(FlujoVentasEtapas[08-2053],Etapas[[Tipo]:[Tipo]],MegaLoteo[[#This Row],[MEGA LOTEO]:[MEGA LOTEO]]) -> 0 | PD11: =SUMIFS(FlujoVentasEtapas[09-2053],Etapas[[Tipo]:[Tipo]],MegaLoteo[[#This Row],[MEGA LOTEO]:[MEGA LOTEO]]) -> 0 | PE11: =SUMIFS(FlujoVentasEtapas[10-2053],Etapas[[Tipo]:[Tipo]],MegaLoteo[[#This Row],[MEGA LOTEO]:[MEGA LOTEO]]) -> 0 | PF11: =SUMIFS(FlujoVentasEtapas[11-2053],Etapas[[Tipo]:[Tipo]],MegaLoteo[[#This Row],[MEGA LOTEO]:[MEGA LOTEO]]) -> 0 | PG11: =SUMIFS(FlujoVentasEtapas[12-2053],Etapas[[Tipo]:[Tipo]],MegaLoteo[[#This Row],[MEGA LOTEO]:[MEGA LOTEO]]) -> 0 | PH11: =SUMIFS(FlujoVentasEtapas[01-2054],Etapas[[Tipo]:[Tipo]],MegaLoteo[[#This Row],[MEGA LOTEO]:[MEGA LOTEO]]) -> 0 | PI11: =SUMIFS(FlujoVentasEtapas[02-2054],Etapas[[Tipo]:[Tipo]],MegaLoteo[[#This Row],[MEGA LOTEO]:[MEGA LOTEO]]) -> 0 | PJ11: =SUMIFS(FlujoVentasEtapas[03-2054],Etapas[[Tipo]:[Tipo]],MegaLoteo[[#This Row],[MEGA LOTEO]:[MEGA LOTEO]]) -> 0 | PK11: =SUMIFS(FlujoVentasEtapas[04-2054],Etapas[[Tipo]:[Tipo]],MegaLoteo[[#This Row],[MEGA LOTEO]:[MEGA LOTEO]]) -> 0 | PL11: =SUMIFS(FlujoVentasEtapas[05-2054],Etapas[[Tipo]:[Tipo]],MegaLoteo[[#This Row],[MEGA LOTEO]:[MEGA LOTEO]]) -> 0 | PM11: =SUMIFS(FlujoVentasEtapas[06-2054],Etapas[[Tipo]:[Tipo]],MegaLoteo[[#This Row],[MEGA LOTEO]:[MEGA LOTEO]]) -> 0 | PN11: =SUMIFS(FlujoVentasEtapas[07-2054],Etapas[[Tipo]:[Tipo]],MegaLoteo[[#This Row],[MEGA LOTEO]:[MEGA LOTEO]]) -> 0 | PO11: =SUMIFS(FlujoVentasEtapas[08-2054],Etapas[[Tipo]:[Tipo]],MegaLoteo[[#This Row],[MEGA LOTEO]:[MEGA LOTEO]]) -> 0 | PP11: =SUMIFS(FlujoVentasEtapas[09-2054],Etapas[[Tipo]:[Tipo]],MegaLoteo[[#This Row],[MEGA LOTEO]:[MEGA LOTEO]]) -> 0 | PQ11: =SUMIFS(FlujoVentasEtapas[10-2054],Etapas[[Tipo]:[Tipo]],MegaLoteo[[#This Row],[MEGA LOTEO]:[MEGA LOTEO]]) -> 0 | PR11: =SUMIFS(FlujoVentasEtapas[11-2054],Etapas[[Tipo]:[Tipo]],MegaLoteo[[#This Row],[MEGA LOTEO]:[MEGA LOTEO]]) -> 0 | PS11: =SUMIFS(FlujoVentasEtapas[12-2054],Etapas[[Tipo]:[Tipo]],MegaLoteo[[#This Row],[MEGA LOTEO]:[MEGA LOTEO]]) -> 0 | PT11: =SUMIFS(FlujoVentasEtapas[01-2055],Etapas[[Tipo]:[Tipo]],MegaLoteo[[#This Row],[MEGA LOTEO]:[MEGA LOTEO]]) -> 0 | PU11: =SUMIFS(FlujoVentasEtapas[02-2055],Etapas[[Tipo]:[Tipo]],MegaLoteo[[#This Row],[MEGA LOTEO]:[MEGA LOTEO]]) -> 0 | PV11: =SUMIFS(FlujoVentasEtapas[03-2055],Etapas[[Tipo]:[Tipo]],MegaLoteo[[#This Row],[MEGA LOTEO]:[MEGA LOTEO]]) -> 0 | PW11: =SUMIFS(FlujoVentasEtapas[04-2055],Etapas[[Tipo]:[Tipo]],MegaLoteo[[#This Row],[MEGA LOTEO]:[MEGA LOTEO]]) -> 0 | PX11: =SUMIFS(FlujoVentasEtapas[05-2055],Etapas[[Tipo]:[Tipo]],MegaLoteo[[#This Row],[MEGA LOTEO]:[MEGA LOTEO]]) -> 0 | PY11: =SUMIFS(FlujoVentasEtapas[06-2055],Etapas[[Tipo]:[Tipo]],MegaLoteo[[#This Row],[MEGA LOTEO]:[MEGA LOTEO]]) -> 0 | PZ11: =SUMIFS(FlujoVentasEtapas[07-2055],Etapas[[Tipo]:[Tipo]],MegaLoteo[[#This Row],[MEGA LOTEO]:[MEGA LOTEO]]) -> 0 | QA11: =SUMIFS(FlujoVentasEtapas[08-2055],Etapas[[Tipo]:[Tipo]],MegaLoteo[[#This Row],[MEGA LOTEO]:[MEGA LOTEO]]) -> 0 | QB11: =SUMIFS(FlujoVentasEtapas[09-2055],Etapas[[Tipo]:[Tipo]],MegaLoteo[[#This Row],[MEGA LOTEO]:[MEGA LOTEO]]) -> 0 | QC11: =SUMIFS(FlujoVentasEtapas[10-2055],Etapas[[Tipo]:[Tipo]],MegaLoteo[[#This Row],[MEGA LOTEO]:[MEGA LOTEO]]) -> 0 | QD11: =SUMIFS(FlujoVentasEtapas[11-2055],Etapas[[Tipo]:[Tipo]],MegaLoteo[[#This Row],[MEGA LOTEO]:[MEGA LOTEO]]) -> 0 | QE11: =SUMIFS(FlujoVentasEtapas[12-2055],Etapas[[Tipo]:[Tipo]],MegaLoteo[[#This Row],[MEGA LOTEO]:[MEGA LOTEO]]) -> 0
B12: Comercial | C12: =SUMIFS(Etapas[Superficie (m2)],Etapas[Tipo],MegaLoteo[[#This Row],[MEGA LOTEO]])+SUMIFS(Etapas[Superficie (m2)],Etapas[PROYECTO],MegaLoteo[[#This Row],[MEGA LOTEO]]) -> 14458.54 | D12: =MegaLoteo[[#This Row],[Superficie total (m2)]]/MegaLoteo[[#Totals],[Superficie total (m2)]] -> 0.02665384842 | E12: =_xlfn.IFNA(IF(MATCH(MegaLoteo[[#This Row],[MEGA LOTEO]],TipoVivienda[TipoProyecto],0)>0,MegaLoteo[[#This Row],[Superficie total (m2)]]/SUM(SUMIFS(MegaLoteo[Superficie total (m2)],MegaLoteo[MEGA LOTEO],TipoVivienda[TipoProyecto])),0),0) -> 0.03599133263 | F12: =SUMIFS(Etapas[Cant. Unid.],Etapas[Tipo],MegaLoteo[[#This Row],[MEGA LOTEO]]) -> 67.865 | G12: =IFERROR(MegaLoteo[[#This Row],[Superficie total (m2)]]/MegaLoteo[[#This Row],[Cant. Unid.]],0) -> 213.0485523 | H12: =MegaLoteo[[#This Row],[Superficie (m2/Un.)]]*MegaLoteo[[#This Row],[UF/m2]] -> 6000 | I12: 100 | J12: 60 | K12: =IFERROR(MegaLoteo[[#This Row],[Cant. Unid.]]/COUNTIFS(FlujoVentasProductos[#This Row],">0"),0) -> 2.513518519 | L12: =MegaLoteo[[#This Row],[PPUnid (UF/un)]]*MegaLoteo[[#This Row],[Cant. Unid.]] -> 407190 | M12: =(MegaLoteo[[#This Row],[Ingresos por Ventas Brutas (UF)]]+(MegaLoteo[[#This Row],[Superficie total (m2)]]*Costos!$K$35)*0.19)/1.19 -> 343873.4731 | N12: 0.12 | O12: =MegaLoteo[[#This Row],[Incidencia Terreno sobre Vtas finales.]]*MegaLoteo[[#This Row],[Ingresos por Ventas Brutas (UF)]] -> 48862.8 | P12: =IFERROR(MegaLoteo[[#This Row],[Ingresos por Vta. Terreno (UF)]]/MegaLoteo[[#This Row],[Superficie total (m2)]],) -> 3.379511348 | Q12: =MegaLoteo[[#This Row],[Precio Venta Terreno (UF/m2)]]*Presentacion!$C$48 -> 1.959071932 | R12: =MegaLoteo[[#This Row],[Precio Venta Terreno (UF/m2)]]*Presentacion!$C$49 -> 1.420439416 | S12: =IFERROR(MegaLoteo[[#This Row],[PPUnid (UF/un)]]/MegaLoteo[[#This Row],[Viv+Circul.+Areas Comunes (m2)]],0) -> 28.16259456 | U12: =SUMIFS(FlujoVentasEtapas[06-2020],Etapas[[Tipo]:[Tipo]],MegaLoteo[[#This Row],[MEGA LOTEO]:[MEGA LOTEO]]) -> 0 | V12: =SUMIFS(FlujoVentasEtapas[07-2020],Etapas[[Tipo]:[Tipo]],MegaLoteo[[#This Row],[MEGA LOTEO]:[MEGA LOTEO]]) -> 0 | W12: =SUMIFS(FlujoVentasEtapas[08-2020],Etapas[[Tipo]:[Tipo]],MegaLoteo[[#This Row],[MEGA LOTEO]:[MEGA LOTEO]]) -> 0 | X12: =SUMIFS(FlujoVentasEtapas[09-2020],Etapas[[Tipo]:[Tipo]],MegaLoteo[[#This Row],[MEGA LOTEO]:[MEGA LOTEO]]) -> 0 | Y12: =SUMIFS(FlujoVentasEtapas[10-2020],Etapas[[Tipo]:[Tipo]],MegaLoteo[[#This Row],[MEGA LOTEO]:[MEGA LOTEO]]) -> 0 | Z12: =SUMIFS(FlujoVentasEtapas[11-2020],Etapas[[Tipo]:[Tipo]],MegaLoteo[[#This Row],[MEGA LOTEO]:[MEGA LOTEO]]) -> 0 | AA12: =SUMIFS(FlujoVentasEtapas[12-2020],Etapas[[Tipo]:[Tipo]],MegaLoteo[[#This Row],[MEGA LOTEO]:[MEGA LOTEO]]) -> 0 | AB12: =SUMIFS(FlujoVentasEtapas[01-2021],Etapas[[Tipo]:[Tipo]],MegaLoteo[[#This Row],[MEGA LOTEO]:[MEGA LOTEO]]) -> 0 | AC12: =SUMIFS(FlujoVentasEtapas[02-2021],Etapas[[Tipo]:[Tipo]],MegaLoteo[[#This Row],[MEGA LOTEO]:[MEGA LOTEO]]) -> 0 | AD12: =SUMIFS(FlujoVentasEtapas[03-2021],Etapas[[Tipo]:[Tipo]],MegaLoteo[[#This Row],[MEGA LOTEO]:[MEGA LOTEO]]) -> 0 | AE12: =SUMIFS(FlujoVentasEtapas[04-2021],Etapas[[Tipo]:[Tipo]],MegaLoteo[[#This Row],[MEGA LOTEO]:[MEGA LOTEO]]) -> 0 | AF12: =SUMIFS(FlujoVentasEtapas[05-2021],Etapas[[Tipo]:[Tipo]],MegaLoteo[[#This Row],[MEGA LOTEO]:[MEGA LOTEO]]) -> 0 | AG12: =SUMIFS(FlujoVentasEtapas[06-2021],Etapas[[Tipo]:[Tipo]],MegaLoteo[[#This Row],[MEGA LOTEO]:[MEGA LOTEO]]) -> 0 | AH12: =SUMIFS(FlujoVentasEtapas[07-2021],Etapas[[Tipo]:[Tipo]],MegaLoteo[[#This Row],[MEGA LOTEO]:[MEGA LOTEO]]) -> 0 | AI12: =SUMIFS(FlujoVentasEtapas[08-2021],Etapas[[Tipo]:[Tipo]],MegaLoteo[[#This Row],[MEGA LOTEO]:[MEGA LOTEO]]) -> 0 | AJ12: =SUMIFS(FlujoVentasEtapas[09-2021],Etapas[[Tipo]:[Tipo]],MegaLoteo[[#This Row],[MEGA LOTEO]:[MEGA LOTEO]]) -> 0 | AK12: =SUMIFS(FlujoVentasEtapas[10-2021],Etapas[[Tipo]:[Tipo]],MegaLoteo[[#This Row],[MEGA LOTEO]:[MEGA LOTEO]]) -> 0 | AL12: =SUMIFS(FlujoVentasEtapas[11-2021],Etapas[[Tipo]:[Tipo]],MegaLoteo[[#This Row],[MEGA LOTEO]:[MEGA LOTEO]]) -> 0 | AM12: =SUMIFS(FlujoVentasEtapas[12-2021],Etapas[[Tipo]:[Tipo]],MegaLoteo[[#This Row],[MEGA LOTEO]:[MEGA LOTEO]]) -> 0 | AN12: =SUMIFS(FlujoVentasEtapas[01-2022],Etapas[[Tipo]:[Tipo]],MegaLoteo[[#This Row],[MEGA LOTEO]:[MEGA LOTEO]]) -> 0 | AO12: =SUMIFS(FlujoVentasEtapas[02-2022],Etapas[[Tipo]:[Tipo]],MegaLoteo[[#This Row],[MEGA LOTEO]:[MEGA LOTEO]]) -> 0 | AP12: =SUMIFS(FlujoVentasEtapas[03-2022],Etapas[[Tipo]:[Tipo]],MegaLoteo[[#This Row],[MEGA LOTEO]:[MEGA LOTEO]]) -> 0 | AQ12: =SUMIFS(FlujoVentasEtapas[04-2022],Etapas[[Tipo]:[Tipo]],MegaLoteo[[#This Row],[MEGA LOTEO]:[MEGA LOTEO]]) -> 0 | AR12: =SUMIFS(FlujoVentasEtapas[05-2022],Etapas[[Tipo]:[Tipo]],MegaLoteo[[#This Row],[MEGA LOTEO]:[MEGA LOTEO]]) -> 0 | AS12: =SUMIFS(FlujoVentasEtapas[06-2022],Etapas[[Tipo]:[Tipo]],MegaLoteo[[#This Row],[MEGA LOTEO]:[MEGA LOTEO]]) -> 0 | AT12: =SUMIFS(FlujoVentasEtapas[07-2022],Etapas[[Tipo]:[Tipo]],MegaLoteo[[#This Row],[MEGA LOTEO]:[MEGA LOTEO]]) -> 0 | AU12: =SUMIFS(FlujoVentasEtapas[08-2022],Etapas[[Tipo]:[Tipo]],MegaLoteo[[#This Row],[MEGA LOTEO]:[MEGA LOTEO]]) -> 0 | AV12: =SUMIFS(FlujoVentasEtapas[09-2022],Etapas[[Tipo]:[Tipo]],MegaLoteo[[#This Row],[MEGA LOTEO]:[MEGA LOTEO]]) -> 0 | AW12: =SUMIFS(FlujoVentasEtapas[10-2022],Etapas[[Tipo]:[Tipo]],MegaLoteo[[#This Row],[MEGA LOTEO]:[MEGA LOTEO]]) -> 0 | AX12: =SUMIFS(FlujoVentasEtapas[11-2022],Etapas[[Tipo]:[Tipo]],MegaLoteo[[#This Row],[MEGA LOTEO]:[MEGA LOTEO]]) -> 0 | AY12: =SUMIFS(FlujoVentasEtapas[12-2022],Etapas[[Tipo]:[Tipo]],MegaLoteo[[#This Row],[MEGA LOTEO]:[MEGA LOTEO]]) -> 0 | AZ12: =SUMIFS(FlujoVentasEtapas[01-2023],Etapas[[Tipo]:[Tipo]],MegaLoteo[[#This Row],[MEGA LOTEO]:[MEGA LOTEO]]) -> 0 | BA12: =SUMIFS(FlujoVentasEtapas[02-2023],Etapas[[Tipo]:[Tipo]],MegaLoteo[[#This Row],[MEGA LOTEO]:[MEGA LOTEO]]) -> 0 | BB12: =SUMIFS(FlujoVentasEtapas[03-2023],Etapas[[Tipo]:[Tipo]],MegaLoteo[[#This Row],[MEGA LOTEO]:[MEGA LOTEO]]) -> 0 | BC12: =SUMIFS(FlujoVentasEtapas[04-2023],Etapas[[Tipo]:[Tipo]],MegaLoteo[[#This Row],[MEGA LOTEO]:[MEGA LOTEO]]) -> 0 | BD12: =SUMIFS(FlujoVentasEtapas[05-2023],Etapas[[Tipo]:[Tipo]],MegaLoteo[[#This Row],[MEGA LOTEO]:[MEGA LOTEO]]) -> 0 | BE12: =SUMIFS(FlujoVentasEtapas[06-2023],Etapas[[Tipo]:[Tipo]],MegaLoteo[[#This Row],[MEGA LOTEO]:[MEGA LOTEO]]) -> 0 | BF12: =SUMIFS(FlujoVentasEtapas[07-2023],Etapas[[Tipo]:[Tipo]],MegaLoteo[[#This Row],[MEGA LOTEO]:[MEGA LOTEO]]) -> 0 | BG12: =SUMIFS(FlujoVentasEtapas[08-2023],Etapas[[Tipo]:[Tipo]],MegaLoteo[[#This Row],[MEGA LOTEO]:[MEGA LOTEO]]) -> 0 | BH12: =SUMIFS(FlujoVentasEtapas[09-2023],Etapas[[Tipo]:[Tipo]],MegaLoteo[[#This Row],[MEGA LOTEO]:[MEGA LOTEO]]) -> 0 | BI12: =SUMIFS(FlujoVentasEtapas[10-2023],Etapas[[Tipo]:[Tipo]],MegaLoteo[[#This Row],[MEGA LOTEO]:[MEGA LOTEO]]) -> 0 | BJ12: =SUMIFS(FlujoVentasEtapas[11-2023],Etapas[[Tipo]:[Tipo]],MegaLoteo[[#This Row],[MEGA LOTEO]:[MEGA LOTEO]]) -> 0 | BK12: =SUMIFS(FlujoVentasEtapas[12-2023],Etapas[[Tipo]:[Tipo]],MegaLoteo[[#This Row],[MEGA LOTEO]:[MEGA LOTEO]]) -> 0 | BL12: =SUMIFS(FlujoVentasEtapas[01-2024],Etapas[[Tipo]:[Tipo]],MegaLoteo[[#This Row],[MEGA LOTEO]:[MEGA LOTEO]]) -> 0 | BM12: =SUMIFS(FlujoVentasEtapas[02-2024],Etapas[[Tipo]:[Tipo]],MegaLoteo[[#This Row],[MEGA LOTEO]:[MEGA LOTEO]]) -> 0 | BN12: =SUMIFS(FlujoVentasEtapas[03-2024],Etapas[[Tipo]:[Tipo]],MegaLoteo[[#This Row],[MEGA LOTEO]:[MEGA LOTEO]]) -> 0 | BO12: =SUMIFS(FlujoVentasEtapas[04-2024],Etapas[[Tipo]:[Tipo]],MegaLoteo[[#This Row],[MEGA LOTEO]:[MEGA LOTEO]]) -> 0 | BP12: =SUMIFS(FlujoVentasEtapas[05-2024],Etapas[[Tipo]:[Tipo]],MegaLoteo[[#This Row],[MEGA LOTEO]:[MEGA LOTEO]]) -> 0 | BQ12: =SUMIFS(FlujoVentasEtapas[06-2024],Etapas[[Tipo]:[Tipo]],MegaLoteo[[#This Row],[MEGA LOTEO]:[MEGA LOTEO]]) -> 0 | BR12: =SUMIFS(FlujoVentasEtapas[07-2024],Etapas[[Tipo]:[Tipo]],MegaLoteo[[#This Row],[MEGA LOTEO]:[MEGA LOTEO]]) -> 0 | BS12: =SUMIFS(FlujoVentasEtapas[08-2024],Etapas[[Tipo]:[Tipo]],MegaLoteo[[#This Row],[MEGA LOTEO]:[MEGA LOTEO]]) -> 0 | BT12: =SUMIFS(FlujoVentasEtapas[09-2024],Etapas[[Tipo]:[Tipo]],MegaLoteo[[#This Row],[MEGA LOTEO]:[MEGA LOTEO]]) -> 0 | BU12: =SUMIFS(FlujoVentasEtapas[10-2024],Etapas[[Tipo]:[Tipo]],MegaLoteo[[#This Row],[MEGA LOTEO]:[MEGA LOTEO]]) -> 0 | BV12: =SUMIFS(FlujoVentasEtapas[11-2024],Etapas[[Tipo]:[Tipo]],MegaLoteo[[#This Row],[MEGA LOTEO]:[MEGA LOTEO]]) -> 0 | BW12: =SUMIFS(FlujoVentasEtapas[12-2024],Etapas[[Tipo]:[Tipo]],MegaLoteo[[#This Row],[MEGA LOTEO]:[MEGA LOTEO]]) -> 0 | BX12: =SUMIFS(FlujoVentasEtapas[01-2025],Etapas[[Tipo]:[Tipo]],MegaLoteo[[#This Row],[MEGA LOTEO]:[MEGA LOTEO]]) -> 0 | BY12: =SUMIFS(FlujoVentasEtapas[02-2025],Etapas[[Tipo]:[Tipo]],MegaLoteo[[#This Row],[MEGA LOTEO]:[MEGA LOTEO]]) -> 0 | BZ12: =SUMIFS(FlujoVentasEtapas[03-2025],Etapas[[Tipo]:[Tipo]],MegaLoteo[[#This Row],[MEGA LOTEO]:[MEGA LOTEO]]) -> 0 | CA12: =SUMIFS(FlujoVentasEtapas[04-2025],Etapas[[Tipo]:[Tipo]],MegaLoteo[[#This Row],[MEGA LOTEO]:[MEGA LOTEO]]) -> 0 | CB12: =SUMIFS(FlujoVentasEtapas[05-2025],Etapas[[Tipo]:[Tipo]],MegaLoteo[[#This Row],[MEGA LOTEO]:[MEGA LOTEO]]) -> 0 | CC12: =SUMIFS(FlujoVentasEtapas[06-2025],Etapas[[Tipo]:[Tipo]],MegaLoteo[[#This Row],[MEGA LOTEO]:[MEGA LOTEO]]) -> 0 | CD12: =SUMIFS(FlujoVentasEtapas[07-2025],Etapas[[Tipo]:[Tipo]],MegaLoteo[[#This Row],[MEGA LOTEO]:[MEGA LOTEO]]) -> 0 | CE12: =SUMIFS(FlujoVentasEtapas[08-2025],Etapas[[Tipo]:[Tipo]],MegaLoteo[[#This Row],[MEGA LOTEO]:[MEGA LOTEO]]) -> 0 | CF12: =SUMIFS(FlujoVentasEtapas[09-2025],Etapas[[Tipo]:[Tipo]],MegaLoteo[[#This Row],[MEGA LOTEO]:[MEGA LOTEO]]) -> 0 | CG12: =SUMIFS(FlujoVentasEtapas[10-2025],Etapas[[Tipo]:[Tipo]],MegaLoteo[[#This Row],[MEGA LOTEO]:[MEGA LOTEO]]) -> 0 | CH12: =SUMIFS(FlujoVentasEtapas[11-2025],Etapas[[Tipo]:[Tipo]],MegaLoteo[[#This Row],[MEGA LOTEO]:[MEGA LOTEO]]) -> 0 | CI12: =SUMIFS(FlujoVentasEtapas[12-2025],Etapas[[Tipo]:[Tipo]],MegaLoteo[[#This Row],[MEGA LOTEO]:[MEGA LOTEO]]) -> 0 | CJ12: =SUMIFS(FlujoVentasEtapas[01-2026],Etapas[[Tipo]:[Tipo]],MegaLoteo[[#This Row],[MEGA LOTEO]:[MEGA LOTEO]]) -> 0 | CK12: =SUMIFS(FlujoVentasEtapas[02-2026],Etapas[[Tipo]:[Tipo]],MegaLoteo[[#This Row],[MEGA LOTEO]:[MEGA LOTEO]]) -> 0 | CL12: =SUMIFS(FlujoVentasEtapas[03-2026],Etapas[[Tipo]:[Tipo]],MegaLoteo[[#This Row],[MEGA LOTEO]:[MEGA LOTEO]]) -> 0 | CM12: =SUMIFS(FlujoVentasEtapas[04-2026],Etapas[[Tipo]:[Tipo]],MegaLoteo[[#This Row],[MEGA LOTEO]:[MEGA LOTEO]]) -> 0 | CN12: =SUMIFS(FlujoVentasEtapas[05-2026],Etapas[[Tipo]:[Tipo]],MegaLoteo[[#This Row],[MEGA LOTEO]:[MEGA LOTEO]]) -> 0 | CO12: =SUMIFS(FlujoVentasEtapas[06-2026],Etapas[[Tipo]:[Tipo]],MegaLoteo[[#This Row],[MEGA LOTEO]:[MEGA LOTEO]]) -> 0 | CP12: =SUMIFS(FlujoVentasEtapas[07-2026],Etapas[[Tipo]:[Tipo]],MegaLoteo[[#This Row],[MEGA LOTEO]:[MEGA LOTEO]]) -> 0 | CQ12: =SUMIFS(FlujoVentasEtapas[08-2026],Etapas[[Tipo]:[Tipo]],MegaLoteo[[#This Row],[MEGA LOTEO]:[MEGA LOTEO]]) -> 0 | CR12: =SUMIFS(FlujoVentasEtapas[09-2026],Etapas[[Tipo]:[Tipo]],MegaLoteo[[#This Row],[MEGA LOTEO]:[MEGA LOTEO]]) -> 0 | CS12: =SUMIFS(FlujoVentasEtapas[10-2026],Etapas[[Tipo]:[Tipo]],MegaLoteo[[#This Row],[MEGA LOTEO]:[MEGA LOTEO]]) -> 0 | CT12: =SUMIFS(FlujoVentasEtapas[11-2026],Etapas[[Tipo]:[Tipo]],MegaLoteo[[#This Row],[MEGA LOTEO]:[MEGA LOTEO]]) -> 0 | CU12: =SUMIFS(FlujoVentasEtapas[12-2026],Etapas[[Tipo]:[Tipo]],MegaLoteo[[#This Row],[MEGA LOTEO]:[MEGA LOTEO]]) -> 0 | CV12: =SUMIFS(FlujoVentasEtapas[01-2027],Etapas[[Tipo]:[Tipo]],MegaLoteo[[#This Row],[MEGA LOTEO]:[MEGA LOTEO]]) -> 0 | CW12: =SUMIFS(FlujoVentasEtapas[02-2027],Etapas[[Tipo]:[Tipo]],MegaLoteo[[#This Row],[MEGA LOTEO]:[MEGA LOTEO]]) -> 0 | CX12: =SUMIFS(FlujoVentasEtapas[03-2027],Etapas[[Tipo]:[Tipo]],MegaLoteo[[#This Row],[MEGA LOTEO]:[MEGA LOTEO]]) -> 0 | CY12: =SUMIFS(FlujoVentasEtapas[04-2027],Etapas[[Tipo]:[Tipo]],MegaLoteo[[#This Row],[MEGA LOTEO]:[MEGA LOTEO]]) -> 0.1 | CZ12: =SUMIFS(FlujoVentasEtapas[05-2027],Etapas[[Tipo]:[Tipo]],MegaLoteo[[#This Row],[MEGA LOTEO]:[MEGA LOTEO]]) -> 0.1 | DA12: =SUMIFS(FlujoVentasEtapas[06-2027],Etapas[[Tipo]:[Tipo]],MegaLoteo[[#This Row],[MEGA LOTEO]:[MEGA LOTEO]]) -> 0.1 | DB12: =SUMIFS(FlujoVentasEtapas[07-2027],Etapas[[Tipo]:[Tipo]],MegaLoteo[[#This Row],[MEGA LOTEO]:[MEGA LOTEO]]) -> 0.1 | DC12: =SUMIFS(FlujoVentasEtapas[08-2027],Etapas[[Tipo]:[Tipo]],MegaLoteo[[#This Row],[MEGA LOTEO]:[MEGA LOTEO]]) -> 0.1 | DD12: =SUMIFS(FlujoVentasEtapas[09-2027],Etapas[[Tipo]:[Tipo]],MegaLoteo[[#This Row],[MEGA LOTEO]:[MEGA LOTEO]]) -> 0.1 | DE12: =SUMIFS(FlujoVentasEtapas[10-2027],Etapas[[Tipo]:[Tipo]],MegaLoteo[[#This Row],[MEGA LOTEO]:[MEGA LOTEO]]) -> 0.1 | DF12: =SUMIFS(FlujoVentasEtapas[11-2027],Etapas[[Tipo]:[Tipo]],MegaLoteo[[#This Row],[MEGA LOTEO]:[MEGA LOTEO]]) -> 0.1 | DG12: =SUMIFS(FlujoVentasEtapas[12-2027],Etapas[[Tipo]:[Tipo]],MegaLoteo[[#This Row],[MEGA LOTEO]:[MEGA LOTEO]]) -> 0.1 | DH12: =SUMIFS(FlujoVentasEtapas[01-2028],Etapas[[Tipo]:[Tipo]],MegaLoteo[[#This Row],[MEGA LOTEO]:[MEGA LOTEO]]) -> 0.1 | DI12: =SUMIFS(FlujoVentasEtapas[02-2028],Etapas[[Tipo]:[Tipo]],MegaLoteo[[#This Row],[MEGA LOTEO]:[MEGA LOTEO]]) -> 0 | DJ12: =SUMIFS(FlujoVentasEtapas[03-2028],Etapas[[Tipo]:[Tipo]],MegaLoteo[[#This Row],[MEGA LOTEO]:[MEGA LOTEO]]) -> 0 | DK12: =SUMIFS(FlujoVentasEtapas[04-2028],Etapas[[Tipo]:[Tipo]],MegaLoteo[[#This Row],[MEGA LOTEO]:[MEGA LOTEO]]) -> 0 | DL12: =SUMIFS(FlujoVentasEtapas[05-2028],Etapas[[Tipo]:[Tipo]],MegaLoteo[[#This Row],[MEGA LOTEO]:[MEGA LOTEO]]) -> 0 | DM12: =SUMIFS(FlujoVentasEtapas[06-2028],Etapas[[Tipo]:[Tipo]],MegaLoteo[[#This Row],[MEGA LOTEO]:[MEGA LOTEO]]) -> 0 | DN12: =SUMIFS(FlujoVentasEtapas[07-2028],Etapas[[Tipo]:[Tipo]],MegaLoteo[[#This Row],[MEGA LOTEO]:[MEGA LOTEO]]) -> 0 | DO12: =SUMIFS(FlujoVentasEtapas[08-2028],Etapas[[Tipo]:[Tipo]],MegaLoteo[[#This Row],[MEGA LOTEO]:[MEGA LOTEO]]) -> 0 | DP12: =SUMIFS(FlujoVentasEtapas[09-2028],Etapas[[Tipo]:[Tipo]],MegaLoteo[[#This Row],[MEGA LOTEO]:[MEGA LOTEO]]) -> 0 | DQ12: =SUMIFS(FlujoVentasEtapas[10-2028],Etapas[[Tipo]:[Tipo]],MegaLoteo[[#This Row],[MEGA LOTEO]:[MEGA LOTEO]]) -> 0 | DR12: =SUMIFS(FlujoVentasEtapas[11-2028],Etapas[[Tipo]:[Tipo]],MegaLoteo[[#This Row],[MEGA LOTEO]:[MEGA LOTEO]]) -> 0 | DS12: =SUMIFS(FlujoVentasEtapas[12-2028],Etapas[[Tipo]:[Tipo]],MegaLoteo[[#This Row],[MEGA LOTEO]:[MEGA LOTEO]]) -> 0 | DT12: =SUMIFS(FlujoVentasEtapas[01-2029],Etapas[[Tipo]:[Tipo]],MegaLoteo[[#This Row],[MEGA LOTEO]:[MEGA LOTEO]]) -> 0 | DU12: =SUMIFS(FlujoVentasEtapas[02-2029],Etapas[[Tipo]:[Tipo]],MegaLoteo[[#This Row],[MEGA LOTEO]:[MEGA LOTEO]]) -> 0 | DV12: =SUMIFS(FlujoVentasEtapas[03-2029],Etapas[[Tipo]:[Tipo]],MegaLoteo[[#This Row],[MEGA LOTEO]:[MEGA LOTEO]]) -> 0 | DW12: =SUMIFS(FlujoVentasEtapas[04-2029],Etapas[[Tipo]:[Tipo]],MegaLoteo[[#This Row],[MEGA LOTEO]:[MEGA LOTEO]]) -> 0 | DX12: =SUMIFS(FlujoVentasEtapas[05-2029],Etapas[[Tipo]:[Tipo]],MegaLoteo[[#This Row],[MEGA LOTEO]:[MEGA LOTEO]]) -> 0 | DY12: =SUMIFS(FlujoVentasEtapas[06-2029],Etapas[[Tipo]:[Tipo]],MegaLoteo[[#This Row],[MEGA LOTEO]:[MEGA LOTEO]]) -> 0 | DZ12: =SUMIFS(FlujoVentasEtapas[07-2029],Etapas[[Tipo]:[Tipo]],MegaLoteo[[#This Row],[MEGA LOTEO]:[MEGA LOTEO]]) -> 0 | EA12: =SUMIFS(FlujoVentasEtapas[08-2029],Etapas[[Tipo]:[Tipo]],MegaLoteo[[#This Row],[MEGA LOTEO]:[MEGA LOTEO]]) -> 0 | EB12: =SUMIFS(FlujoVentasEtapas[09-2029],Etapas[[Tipo]:[Tipo]],MegaLoteo[[#This Row],[MEGA LOTEO]:[MEGA LOTEO]]) -> 0 | EC12: =SUMIFS(FlujoVentasEtapas[10-2029],Etapas[[Tipo]:[Tipo]],MegaLoteo[[#This Row],[MEGA LOTEO]:[MEGA LOTEO]]) -> 0 | ED12: =SUMIFS(FlujoVentasEtapas[11-2029],Etapas[[Tipo]:[Tipo]],MegaLoteo[[#This Row],[MEGA LOTEO]:[MEGA LOTEO]]) -> 0 | EE12: =SUMIFS(FlujoVentasEtapas[12-2029],Etapas[[Tipo]:[Tipo]],MegaLoteo[[#This Row],[MEGA LOTEO]:[MEGA LOTEO]]) -> 0 | EF12: =SUMIFS(FlujoVentasEtapas[01-2030],Etapas[[Tipo]:[Tipo]],MegaLoteo[[#This Row],[MEGA LOTEO]:[MEGA LOTEO]]) -> 0 | EG12: =SUMIFS(FlujoVentasEtapas[02-2030],Etapas[[Tipo]:[Tipo]],MegaLoteo[[#This Row],[MEGA LOTEO]:[MEGA LOTEO]]) -> 0 | EH12: =SUMIFS(FlujoVentasEtapas[03-2030],Etapas[[Tipo]:[Tipo]],MegaLoteo[[#This Row],[MEGA LOTEO]:[MEGA LOTEO]]) -> 0 | EI12: =SUMIFS(FlujoVentasEtapas[04-2030],Etapas[[Tipo]:[Tipo]],MegaLoteo[[#This Row],[MEGA LOTEO]:[MEGA LOTEO]]) -> 0 | EJ12: =SUMIFS(FlujoVentasEtapas[05-2030],Etapas[[Tipo]:[Tipo]],MegaLoteo[[#This Row],[MEGA LOTEO]:[MEGA LOTEO]]) -> 0 | EK12: =SUMIFS(FlujoVentasEtapas[06-2030],Etapas[[Tipo]:[Tipo]],MegaLoteo[[#This Row],[MEGA LOTEO]:[MEGA LOTEO]]) -> 0 | EL12: =SUMIFS(FlujoVentasEtapas[07-2030],Etapas[[Tipo]:[Tipo]],MegaLoteo[[#This Row],[MEGA LOTEO]:[MEGA LOTEO]]) -> 0 | EM12: =SUMIFS(FlujoVentasEtapas[08-2030],Etapas[[Tipo]:[Tipo]],MegaLoteo[[#This Row],[MEGA LOTEO]:[MEGA LOTEO]]) -> 0 | EN12: =SUMIFS(FlujoVentasEtapas[09-2030],Etapas[[Tipo]:[Tipo]],MegaLoteo[[#This Row],[MEGA LOTEO]:[MEGA LOTEO]]) -> 0 | EO12: =SUMIFS(FlujoVentasEtapas[10-2030],Etapas[[Tipo]:[Tipo]],MegaLoteo[[#This Row],[MEGA LOTEO]:[MEGA LOTEO]]) -> 0 | EP12: =SUMIFS(FlujoVentasEtapas[11-2030],Etapas[[Tipo]:[Tipo]],MegaLoteo[[#This Row],[MEGA LOTEO]:[MEGA LOTEO]]) -> 0 | EQ12: =SUMIFS(FlujoVentasEtapas[12-2030],Etapas[[Tipo]:[Tipo]],MegaLoteo[[#This Row],[MEGA LOTEO]:[MEGA LOTEO]]) -> 0 | ER12: =SUMIFS(FlujoVentasEtapas[01-2031],Etapas[[Tipo]:[Tipo]],MegaLoteo[[#This Row],[MEGA LOTEO]:[MEGA LOTEO]]) -> 0 | ES12: =SUMIFS(FlujoVentasEtapas[02-2031],Etapas[[Tipo]:[Tipo]],MegaLoteo[[#This Row],[MEGA LOTEO]:[MEGA LOTEO]]) -> 0 | ET12: =SUMIFS(FlujoVentasEtapas[03-2031],Etapas[[Tipo]:[Tipo]],MegaLoteo[[#This Row],[MEGA LOTEO]:[MEGA LOTEO]]) -> 0 | EU12: =SUMIFS(FlujoVentasEtapas[04-2031],Etapas[[Tipo]:[Tipo]],MegaLoteo[[#This Row],[MEGA LOTEO]:[MEGA LOTEO]]) -> 0 | EV12: =SUMIFS(FlujoVentasEtapas[05-2031],Etapas[[Tipo]:[Tipo]],MegaLoteo[[#This Row],[MEGA LOTEO]:[MEGA LOTEO]]) -> 0 | EW12: =SUMIFS(FlujoVentasEtapas[06-2031],Etapas[[Tipo]:[Tipo]],MegaLoteo[[#This Row],[MEGA LOTEO]:[MEGA LOTEO]]) -> 0 | EX12: =SUMIFS(FlujoVentasEtapas[07-2031],Etapas[[Tipo]:[Tipo]],MegaLoteo[[#This Row],[MEGA LOTEO]:[MEGA LOTEO]]) -> 0 | EY12: =SUMIFS(FlujoVentasEtapas[08-2031],Etapas[[Tipo]:[Tipo]],MegaLoteo[[#This Row],[MEGA LOTEO]:[MEGA LOTEO]]) -> 0 | EZ12: =SUMIFS(FlujoVentasEtapas[09-2031],Etapas[[Tipo]:[Tipo]],MegaLoteo[[#This Row],[MEGA LOTEO]:[MEGA LOTEO]]) -> 0 | FA12: =SUMIFS(FlujoVentasEtapas[10-2031],Etapas[[Tipo]:[Tipo]],MegaLoteo[[#This Row],[MEGA LOTEO]:[MEGA LOTEO]]) -> 0 | FB12: =SUMIFS(FlujoVentasEtapas[11-2031],Etapas[[Tipo]:[Tipo]],MegaLoteo[[#This Row],[MEGA LOTEO]:[MEGA LOTEO]]) -> 0 | FC12: =SUMIFS(FlujoVentasEtapas[12-2031],Etapas[[Tipo]:[Tipo]],MegaLoteo[[#This Row],[MEGA LOTEO]:[MEGA LOTEO]]) -> 0 | FD12: =SUMIFS(FlujoVentasEtapas[01-2032],Etapas[[Tipo]:[Tipo]],MegaLoteo[[#This Row],[MEGA LOTEO]:[MEGA LOTEO]]) -> 0 | FE12: =SUMIFS(FlujoVentasEtapas[02-2032],Etapas[[Tipo]:[Tipo]],MegaLoteo[[#This Row],[MEGA LOTEO]:[MEGA LOTEO]]) -> 0 | FF12: =SUMIFS(FlujoVentasEtapas[03-2032],Etapas[[Tipo]:[Tipo]],MegaLoteo[[#This Row],[MEGA LOTEO]:[MEGA LOTEO]]) -> 0 | FG12: =SUMIFS(FlujoVentasEtapas[04-2032],Etapas[[Tipo]:[Tipo]],MegaLoteo[[#This Row],[MEGA LOTEO]:[MEGA LOTEO]]) -> 0 | FH12: =SUMIFS(FlujoVentasEtapas[05-2032],Etapas[[Tipo]:[Tipo]],MegaLoteo[[#This Row],[MEGA LOTEO]:[MEGA LOTEO]]) -> 0 | FI12: =SUMIFS(FlujoVentasEtapas[06-2032],Etapas[[Tipo]:[Tipo]],MegaLoteo[[#This Row],[MEGA LOTEO]:[MEGA LOTEO]]) -> 0 | FJ12: =SUMIFS(FlujoVentasEtapas[07-2032],Etapas[[Tipo]:[Tipo]],MegaLoteo[[#This Row],[MEGA LOTEO]:[MEGA LOTEO]]) -> 0 | FK12: =SUMIFS(FlujoVentasEtapas[08-2032],Etapas[[Tipo]:[Tipo]],MegaLoteo[[#This Row],[MEGA LOTEO]:[MEGA LOTEO]]) -> 0 | FL12: =SUMIFS(FlujoVentasEtapas[09-2032],Etapas[[Tipo]:[Tipo]],MegaLoteo[[#This Row],[MEGA LOTEO]:[MEGA LOTEO]]) -> 0 | FM12: =SUMIFS(FlujoVentasEtapas[10-2032],Etapas[[Tipo]:[Tipo]],MegaLoteo[[#This Row],[MEGA LOTEO]:[MEGA LOTEO]]) -> 0 | FN12: =SUMIFS(FlujoVentasEtapas[11-2032],Etapas[[Tipo]:[Tipo]],MegaLoteo[[#This Row],[MEGA LOTEO]:[MEGA LOTEO]]) -> 0 | FO12: =SUMIFS(FlujoVentasEtapas[12-2032],Etapas[[Tipo]:[Tipo]],MegaLoteo[[#This Row],[MEGA LOTEO]:[MEGA LOTEO]]) -> 0 | FP12: =SUMIFS(FlujoVentasEtapas[01-2033],Etapas[[Tipo]:[Tipo]],MegaLoteo[[#This Row],[MEGA LOTEO]:[MEGA LOTEO]]) -> 0 | FQ12: =SUMIFS(FlujoVentasEtapas[02-2033],Etapas[[Tipo]:[Tipo]],MegaLoteo[[#This Row],[MEGA LOTEO]:[MEGA LOTEO]]) -> 0 | FR12: =SUMIFS(FlujoVentasEtapas[03-2033],Etapas[[Tipo]:[Tipo]],MegaLoteo[[#This Row],[MEGA LOTEO]:[MEGA LOTEO]]) -> 0 | FS12: =SUMIFS(FlujoVentasEtapas[04-2033],Etapas[[Tipo]:[Tipo]],MegaLoteo[[#This Row],[MEGA LOTEO]:[MEGA LOTEO]]) -> 0 | FT12: =SUMIFS(FlujoVentasEtapas[05-2033],Etapas[[Tipo]:[Tipo]],MegaLoteo[[#This Row],[MEGA LOTEO]:[MEGA LOTEO]]) -> 0 | FU12: =SUMIFS(FlujoVentasEtapas[06-2033],Etapas[[Tipo]:[Tipo]],MegaLoteo[[#This Row],[MEGA LOTEO]:[MEGA LOTEO]]) -> 0 | FV12: =SUMIFS(FlujoVentasEtapas[07-2033],Etapas[[Tipo]:[Tipo]],MegaLoteo[[#This Row],[MEGA LOTEO]:[MEGA LOTEO]]) -> 0 | FW12: =SUMIFS(FlujoVentasEtapas[08-2033],Etapas[[Tipo]:[Tipo]],MegaLoteo[[#This Row],[MEGA LOTEO]:[MEGA LOTEO]]) -> 0 | FX12: =SUMIFS(FlujoVentasEtapas[09-2033],Etapas[[Tipo]:[Tipo]],MegaLoteo[[#This Row],[MEGA LOTEO]:[MEGA LOTEO]]) -> 0 | FY12: =SUMIFS(FlujoVentasEtapas[10-2033],Etapas[[Tipo]:[Tipo]],MegaLoteo[[#This Row],[MEGA LOTEO]:[MEGA LOTEO]]) -> 0 | FZ12: =SUMIFS(FlujoVentasEtapas[11-2033],Etapas[[Tipo]:[Tipo]],MegaLoteo[[#This Row],[MEGA LOTEO]:[MEGA LOTEO]]) -> 0 | GA12: =SUMIFS(FlujoVentasEtapas[12-2033],Etapas[[Tipo]:[Tipo]],MegaLoteo[[#This Row],[MEGA LOTEO]:[MEGA LOTEO]]) -> 0 | GB12: =SUMIFS(FlujoVentasEtapas[01-2034],Etapas[[Tipo]:[Tipo]],MegaLoteo[[#This Row],[MEGA LOTEO]:[MEGA LOTEO]]) -> 0 | GC12: =SUMIFS(FlujoVentasEtapas[02-2034],Etapas[[Tipo]:[Tipo]],MegaLoteo[[#This Row],[MEGA LOTEO]:[MEGA LOTEO]]) -> 0 | GD12: =SUMIFS(FlujoVentasEtapas[03-2034],Etapas[[Tipo]:[Tipo]],MegaLoteo[[#This Row],[MEGA LOTEO]:[MEGA LOTEO]]) -> 0 | GE12: =SUMIFS(FlujoVentasEtapas[04-2034],Etapas[[Tipo]:[Tipo]],MegaLoteo[[#This Row],[MEGA LOTEO]:[MEGA LOTEO]]) -> 0 | GF12: =SUMIFS(FlujoVentasEtapas[05-2034],Etapas[[Tipo]:[Tipo]],MegaLoteo[[#This Row],[MEGA LOTEO]:[MEGA LOTEO]]) -> 0 | GG12: =SUMIFS(FlujoVentasEtapas[06-2034],Etapas[[Tipo]:[Tipo]],MegaLoteo[[#This Row],[MEGA LOTEO]:[MEGA LOTEO]]) -> 0 | GH12: =SUMIFS(FlujoVentasEtapas[07-2034],Etapas[[Tipo]:[Tipo]],MegaLoteo[[#This Row],[MEGA LOTEO]:[MEGA LOTEO]]) -> 0 | GI12: =SUMIFS(FlujoVentasEtapas[08-2034],Etapas[[Tipo]:[Tipo]],MegaLoteo[[#This Row],[MEGA LOTEO]:[MEGA LOTEO]]) -> 0 | GJ12: =SUMIFS(FlujoVentasEtapas[09-2034],Etapas[[Tipo]:[Tipo]],MegaLoteo[[#This Row],[MEGA LOTEO]:[MEGA LOTEO]]) -> 0 | GK12: =SUMIFS(FlujoVentasEtapas[10-2034],Etapas[[Tipo]:[Tipo]],MegaLoteo[[#This Row],[MEGA LOTEO]:[MEGA LOTEO]]) -> 0 | GL12: =SUMIFS(FlujoVentasEtapas[11-2034],Etapas[[Tipo]:[Tipo]],MegaLoteo[[#This Row],[MEGA LOTEO]:[MEGA LOTEO]]) -> 0 | GM12: =SUMIFS(FlujoVentasEtapas[12-2034],Etapas[[Tipo]:[Tipo]],MegaLoteo[[#This Row],[MEGA LOTEO]:[MEGA LOTEO]]) -> 0 | GN12: =SUMIFS(FlujoVentasEtapas[01-2035],Etapas[[Tipo]:[Tipo]],MegaLoteo[[#This Row],[MEGA LOTEO]:[MEGA LOTEO]]) -> 0 | GO12: =SUMIFS(FlujoVentasEtapas[02-2035],Etapas[[Tipo]:[Tipo]],MegaLoteo[[#This Row],[MEGA LOTEO]:[MEGA LOTEO]]) -> 0 | GP12: =SUMIFS(FlujoVentasEtapas[03-2035],Etapas[[Tipo]:[Tipo]],MegaLoteo[[#This Row],[MEGA LOTEO]:[MEGA LOTEO]]) -> 0 | GQ12: =SUMIFS(FlujoVentasEtapas[04-2035],Etapas[[Tipo]:[Tipo]],MegaLoteo[[#This Row],[MEGA LOTEO]:[MEGA LOTEO]]) -> 0 | GR12: =SUMIFS(FlujoVentasEtapas[05-2035],Etapas[[Tipo]:[Tipo]],MegaLoteo[[#This Row],[MEGA LOTEO]:[MEGA LOTEO]]) -> 0 | GS12: =SUMIFS(FlujoVentasEtapas[06-2035],Etapas[[Tipo]:[Tipo]],MegaLoteo[[#This Row],[MEGA LOTEO]:[MEGA LOTEO]]) -> 0 | GT12: =SUMIFS(FlujoVentasEtapas[07-2035],Etapas[[Tipo]:[Tipo]],MegaLoteo[[#This Row],[MEGA LOTEO]:[MEGA LOTEO]]) -> 0 | GU12: =SUMIFS(FlujoVentasEtapas[08-2035],Etapas[[Tipo]:[Tipo]],MegaLoteo[[#This Row],[MEGA LOTEO]:[MEGA LOTEO]]) -> 0 | GV12: =SUMIFS(FlujoVentasEtapas[09-2035],Etapas[[Tipo]:[Tipo]],MegaLoteo[[#This Row],[MEGA LOTEO]:[MEGA LOTEO]]) -> 0 | GW12: =SUMIFS(FlujoVentasEtapas[10-2035],Etapas[[Tipo]:[Tipo]],MegaLoteo[[#This Row],[MEGA LOTEO]:[MEGA LOTEO]]) -> 0 | GX12: =SUMIFS(FlujoVentasEtapas[11-2035],Etapas[[Tipo]:[Tipo]],MegaLoteo[[#This Row],[MEGA LOTEO]:[MEGA LOTEO]]) -> 0 | GY12: =SUMIFS(FlujoVentasEtapas[12-2035],Etapas[[Tipo]:[Tipo]],MegaLoteo[[#This Row],[MEGA LOTEO]:[MEGA LOTEO]]) -> 0 | GZ12: =SUMIFS(FlujoVentasEtapas[01-2036],Etapas[[Tipo]:[Tipo]],MegaLoteo[[#This Row],[MEGA LOTEO]:[MEGA LOTEO]]) -> 0 | HA12: =SUMIFS(FlujoVentasEtapas[02-2036],Etapas[[Tipo]:[Tipo]],MegaLoteo[[#This Row],[MEGA LOTEO]:[MEGA LOTEO]]) -> 0 | HB12: =SUMIFS(FlujoVentasEtapas[03-2036],Etapas[[Tipo]:[Tipo]],MegaLoteo[[#This Row],[MEGA LOTEO]:[MEGA LOTEO]]) -> 0 | HC12: =SUMIFS(FlujoVentasEtapas[04-2036],Etapas[[Tipo]:[Tipo]],MegaLoteo[[#This Row],[MEGA LOTEO]:[MEGA LOTEO]]) -> 0 | HD12: =SUMIFS(FlujoVentasEtapas[05-2036],Etapas[[Tipo]:[Tipo]],MegaLoteo[[#This Row],[MEGA LOTEO]:[MEGA LOTEO]]) -> 0 | HE12: =SUMIFS(FlujoVentasEtapas[06-2036],Etapas[[Tipo]:[Tipo]],MegaLoteo[[#This Row],[MEGA LOTEO]:[MEGA LOTEO]]) -> 0 | HF12: =SUMIFS(FlujoVentasEtapas[07-2036],Etapas[[Tipo]:[Tipo]],MegaLoteo[[#This Row],[MEGA LOTEO]:[MEGA LOTEO]]) -> 0 | HG12: =SUMIFS(FlujoVentasEtapas[08-2036],Etapas[[Tipo]:[Tipo]],MegaLoteo[[#This Row],[MEGA LOTEO]:[MEGA LOTEO]]) -> 0 | HH12: =SUMIFS(FlujoVentasEtapas[09-2036],Etapas[[Tipo]:[Tipo]],MegaLoteo[[#This Row],[MEGA LOTEO]:[MEGA LOTEO]]) -> 0 | HI12: =SUMIFS(FlujoVentasEtapas[10-2036],Etapas[[Tipo]:[Tipo]],MegaLoteo[[#This Row],[MEGA LOTEO]:[MEGA LOTEO]]) -> 0 | HJ12: =SUMIFS(FlujoVentasEtapas[11-2036],Etapas[[Tipo]:[Tipo]],MegaLoteo[[#This Row],[MEGA LOTEO]:[MEGA LOTEO]]) -> 0 | HK12: =SUMIFS(FlujoVentasEtapas[12-2036],Etapas[[Tipo]:[Tipo]],MegaLoteo[[#This Row],[MEGA LOTEO]:[MEGA LOTEO]]) -> 0 | HL12: =SUMIFS(FlujoVentasEtapas[01-2037],Etapas[[Tipo]:[Tipo]],MegaLoteo[[#This Row],[MEGA LOTEO]:[MEGA LOTEO]]) -> 0 | HM12: =SUMIFS(FlujoVentasEtapas[02-2037],Etapas[[Tipo]:[Tipo]],MegaLoteo[[#This Row],[MEGA LOTEO]:[MEGA LOTEO]]) -> 0 | HN12: =SUMIFS(FlujoVentasEtapas[03-2037],Etapas[[Tipo]:[Tipo]],MegaLoteo[[#This Row],[MEGA LOTEO]:[MEGA LOTEO]]) -> 0 | HO12: =SUMIFS(FlujoVentasEtapas[04-2037],Etapas[[Tipo]:[Tipo]],MegaLoteo[[#This Row],[MEGA LOTEO]:[MEGA LOTEO]]) -> 0 | HP12: =SUMIFS(FlujoVentasEtapas[05-2037],Etapas[[Tipo]:[Tipo]],MegaLoteo[[#This Row],[MEGA LOTEO]:[MEGA LOTEO]]) -> 0 | HQ12: =SUMIFS(FlujoVentasEtapas[06-2037],Etapas[[Tipo]:[Tipo]],MegaLoteo[[#This Row],[MEGA LOTEO]:[MEGA LOTEO]]) -> 0 | HR12: =SUMIFS(FlujoVentasEtapas[07-2037],Etapas[[Tipo]:[Tipo]],MegaLoteo[[#This Row],[MEGA LOTEO]:[MEGA LOTEO]]) -> 0 | HS12: =SUMIFS(FlujoVentasEtapas[08-2037],Etapas[[Tipo]:[Tipo]],MegaLoteo[[#This Row],[MEGA LOTEO]:[MEGA LOTEO]]) -> 0 | HT12: =SUMIFS(FlujoVentasEtapas[09-2037],Etapas[[Tipo]:[Tipo]],MegaLoteo[[#This Row],[MEGA LOTEO]:[MEGA LOTEO]]) -> 0 | HU12: =SUMIFS(FlujoVentasEtapas[10-2037],Etapas[[Tipo]:[Tipo]],MegaLoteo[[#This Row],[MEGA LOTEO]:[MEGA LOTEO]]) -> 0 | HV12: =SUMIFS(FlujoVentasEtapas[11-2037],Etapas[[Tipo]:[Tipo]],MegaLoteo[[#This Row],[MEGA LOTEO]:[MEGA LOTEO]]) -> 0 | HW12: =SUMIFS(FlujoVentasEtapas[12-2037],Etapas[[Tipo]:[Tipo]],MegaLoteo[[#This Row],[MEGA LOTEO]:[MEGA LOTEO]]) -> 0 | HX12: =SUMIFS(FlujoVentasEtapas[01-2038],Etapas[[Tipo]:[Tipo]],MegaLoteo[[#This Row],[MEGA LOTEO]:[MEGA LOTEO]]) -> 0 | HY12: =SUMIFS(FlujoVentasEtapas[02-2038],Etapas[[Tipo]:[Tipo]],MegaLoteo[[#This Row],[MEGA LOTEO]:[MEGA LOTEO]]) -> 0 | HZ12: =SUMIFS(FlujoVentasEtapas[03-2038],Etapas[[Tipo]:[Tipo]],MegaLoteo[[#This Row],[MEGA LOTEO]:[MEGA LOTEO]]) -> 0 | IA12: =SUMIFS(FlujoVentasEtapas[04-2038],Etapas[[Tipo]:[Tipo]],MegaLoteo[[#This Row],[MEGA LOTEO]:[MEGA LOTEO]]) -> 0 | IB12: =SUMIFS(FlujoVentasEtapas[05-2038],Etapas[[Tipo]:[Tipo]],MegaLoteo[[#This Row],[MEGA LOTEO]:[MEGA LOTEO]]) -> 0 | IC12: =SUMIFS(FlujoVentasEtapas[06-2038],Etapas[[Tipo]:[Tipo]],MegaLoteo[[#This Row],[MEGA LOTEO]:[MEGA LOTEO]]) -> 0 | ID12: =SUMIFS(FlujoVentasEtapas[07-2038],Etapas[[Tipo]:[Tipo]],MegaLoteo[[#This Row],[MEGA LOTEO]:[MEGA LOTEO]]) -> 0 | IE12: =SUMIFS(FlujoVentasEtapas[08-2038],Etapas[[Tipo]:[Tipo]],MegaLoteo[[#This Row],[MEGA LOTEO]:[MEGA LOTEO]]) -> 0 | IF12: =SUMIFS(FlujoVentasEtapas[09-2038],Etapas[[Tipo]:[Tipo]],MegaLoteo[[#This Row],[MEGA LOTEO]:[MEGA LOTEO]]) -> 0 | IG12: =SUMIFS(FlujoVentasEtapas[10-2038],Etapas[[Tipo]:[Tipo]],MegaLoteo[[#This Row],[MEGA LOTEO]:[MEGA LOTEO]]) -> 0 | IH12: =SUMIFS(FlujoVentasEtapas[11-2038],Etapas[[Tipo]:[Tipo]],MegaLoteo[[#This Row],[MEGA LOTEO]:[MEGA LOTEO]]) -> 0 | II12: =SUMIFS(FlujoVentasEtapas[12-2038],Etapas[[Tipo]:[Tipo]],MegaLoteo[[#This Row],[MEGA LOTEO]:[MEGA LOTEO]]) -> 0 | IJ12: =SUMIFS(FlujoVentasEtapas[01-2039],Etapas[[Tipo]:[Tipo]],MegaLoteo[[#This Row],[MEGA LOTEO]:[MEGA LOTEO]]) -> 0 | IK12: =SUMIFS(FlujoVentasEtapas[02-2039],Etapas[[Tipo]:[Tipo]],MegaLoteo[[#This Row],[MEGA LOTEO]:[MEGA LOTEO]]) -> 0 | IL12: =SUMIFS(FlujoVentasEtapas[03-2039],Etapas[[Tipo]:[Tipo]],MegaLoteo[[#This Row],[MEGA LOTEO]:[MEGA LOTEO]]) -> 0 | IM12: =SUMIFS(FlujoVentasEtapas[04-2039],Etapas[[Tipo]:[Tipo]],MegaLoteo[[#This Row],[MEGA LOTEO]:[MEGA LOTEO]]) -> 0 | IN12: =SUMIFS(FlujoVentasEtapas[05-2039],Etapas[[Tipo]:[Tipo]],MegaLoteo[[#This Row],[MEGA LOTEO]:[MEGA LOTEO]]) -> 0 | IO12: =SUMIFS(FlujoVentasEtapas[06-2039],Etapas[[Tipo]:[Tipo]],MegaLoteo[[#This Row],[MEGA LOTEO]:[MEGA LOTEO]]) -> 0 | IP12: =SUMIFS(FlujoVentasEtapas[07-2039],Etapas[[Tipo]:[Tipo]],MegaLoteo[[#This Row],[MEGA LOTEO]:[MEGA LOTEO]]) -> 0 | IQ12: =SUMIFS(FlujoVentasEtapas[08-2039],Etapas[[Tipo]:[Tipo]],MegaLoteo[[#This Row],[MEGA LOTEO]:[MEGA LOTEO]]) -> 0 | IR12: =SUMIFS(FlujoVentasEtapas[09-2039],Etapas[[Tipo]:[Tipo]],MegaLoteo[[#This Row],[MEGA LOTEO]:[MEGA LOTEO]]) -> 0 | IS12: =SUMIFS(FlujoVentasEtapas[10-2039],Etapas[[Tipo]:[Tipo]],MegaLoteo[[#This Row],[MEGA LOTEO]:[MEGA LOTEO]]) -> 0 | IT12: =SUMIFS(FlujoVentasEtapas[11-2039],Etapas[[Tipo]:[Tipo]],MegaLoteo[[#This Row],[MEGA LOTEO]:[MEGA LOTEO]]) -> 0 | IU12: =SUMIFS(FlujoVentasEtapas[12-2039],Etapas[[Tipo]:[Tipo]],MegaLoteo[[#This Row],[MEGA LOTEO]:[MEGA LOTEO]]) -> 0 | IV12: =SUMIFS(FlujoVentasEtapas[01-2040],Etapas[[Tipo]:[Tipo]],MegaLoteo[[#This Row],[MEGA LOTEO]:[MEGA LOTEO]]) -> 0 | IW12: =SUMIFS(FlujoVentasEtapas[02-2040],Etapas[[Tipo]:[Tipo]],MegaLoteo[[#This Row],[MEGA LOTEO]:[MEGA LOTEO]]) -> 0 | IX12: =SUMIFS(FlujoVentasEtapas[03-2040],Etapas[[Tipo]:[Tipo]],MegaLoteo[[#This Row],[MEGA LOTEO]:[MEGA LOTEO]]) -> 0 | IY12: =SUMIFS(FlujoVentasEtapas[04-2040],Etapas[[Tipo]:[Tipo]],MegaLoteo[[#This Row],[MEGA LOTEO]:[MEGA LOTEO]]) -> 0 | IZ12: =SUMIFS(FlujoVentasEtapas[05-2040],Etapas[[Tipo]:[Tipo]],MegaLoteo[[#This Row],[MEGA LOTEO]:[MEGA LOTEO]]) -> 0 | JA12: =SUMIFS(FlujoVentasEtapas[06-2040],Etapas[[Tipo]:[Tipo]],MegaLoteo[[#This Row],[MEGA LOTEO]:[MEGA LOTEO]]) -> 0 | JB12: =SUMIFS(FlujoVentasEtapas[07-2040],Etapas[[Tipo]:[Tipo]],MegaLoteo[[#This Row],[MEGA LOTEO]:[MEGA LOTEO]]) -> 3.933235294 | JC12: =SUMIFS(FlujoVentasEtapas[08-2040],Etapas[[Tipo]:[Tipo]],MegaLoteo[[#This Row],[MEGA LOTEO]:[MEGA LOTEO]]) -> 3.933235294 | JD12: =SUMIFS(FlujoVentasEtapas[09-2040],Etapas[[Tipo]:[Tipo]],MegaLoteo[[#This Row],[MEGA LOTEO]:[MEGA LOTEO]]) -> 3.933235294 | JE12: =SUMIFS(FlujoVentasEtapas[10-2040],Etapas[[Tipo]:[Tipo]],MegaLoteo[[#This Row],[MEGA LOTEO]:[MEGA LOTEO]]) -> 3.933235294 | JF12: =SUMIFS(FlujoVentasEtapas[11-2040],Etapas[[Tipo]:[Tipo]],MegaLoteo[[#This Row],[MEGA LOTEO]:[MEGA LOTEO]]) -> 3.933235294 | JG12: =SUMIFS(FlujoVentasEtapas[12-2040],Etapas[[Tipo]:[Tipo]],MegaLoteo[[#This Row],[MEGA LOTEO]:[MEGA LOTEO]]) -> 3.933235294 | JH12: =SUMIFS(FlujoVentasEtapas[01-2041],Etapas[[Tipo]:[Tipo]],MegaLoteo[[#This Row],[MEGA LOTEO]:[MEGA LOTEO]]) -> 3.933235294 | JI12: =SUMIFS(FlujoVentasEtapas[02-2041],Etapas[[Tipo]:[Tipo]],MegaLoteo[[#This Row],[MEGA LOTEO]:[MEGA LOTEO]]) -> 3.933235294 | JJ12: =SUMIFS(FlujoVentasEtapas[03-2041],Etapas[[Tipo]:[Tipo]],MegaLoteo[[#This Row],[MEGA LOTEO]:[MEGA LOTEO]]) -> 3.933235294 | JK12: =SUMIFS(FlujoVentasEtapas[04-2041],Etapas[[Tipo]:[Tipo]],MegaLoteo[[#This Row],[MEGA LOTEO]:[MEGA LOTEO]]) -> 3.933235294 | JL12: =SUMIFS(FlujoVentasEtapas[05-2041],Etapas[[Tipo]:[Tipo]],MegaLoteo[[#This Row],[MEGA LOTEO]:[MEGA LOTEO]]) -> 3.933235294 | JM12: =SUMIFS(FlujoVentasEtapas[06-2041],Etapas[[Tipo]:[Tipo]],MegaLoteo[[#This Row],[MEGA LOTEO]:[MEGA LOTEO]]) -> 3.933235294 | JN12: =SUMIFS(FlujoVentasEtapas[07-2041],Etapas[[Tipo]:[Tipo]],MegaLoteo[[#This Row],[MEGA LOTEO]:[MEGA LOTEO]]) -> 3.933235294 | JO12: =SUMIFS(FlujoVentasEtapas[08-2041],Etapas[[Tipo]:[Tipo]],MegaLoteo[[#This Row],[MEGA LOTEO]:[MEGA LOTEO]]) -> 3.933235294 | JP12: =SUMIFS(FlujoVentasEtapas[09-2041],Etapas[[Tipo]:[Tipo]],MegaLoteo[[#This Row],[MEGA LOTEO]:[MEGA LOTEO]]) -> 3.933235294 | JQ12: =SUMIFS(FlujoVentasEtapas[10-2041],Etapas[[Tipo]:[Tipo]],MegaLoteo[[#This Row],[MEGA LOTEO]:[MEGA LOTEO]]) -> 3.933235294 | JR12: =SUMIFS(FlujoVentasEtapas[11-2041],Etapas[[Tipo]:[Tipo]],MegaLoteo[[#This Row],[MEGA LOTEO]:[MEGA LOTEO]]) -> 3.933235294 | JS12: =SUMIFS(FlujoVentasEtapas[12-2041],Etapas[[Tipo]:[Tipo]],MegaLoteo[[#This Row],[MEGA LOTEO]:[MEGA LOTEO]]) -> 0 | JT12: =SUMIFS(FlujoVentasEtapas[01-2042],Etapas[[Tipo]:[Tipo]],MegaLoteo[[#This Row],[MEGA LOTEO]:[MEGA LOTEO]]) -> 0 | JU12: =SUMIFS(FlujoVentasEtapas[02-2042],Etapas[[Tipo]:[Tipo]],MegaLoteo[[#This Row],[MEGA LOTEO]:[MEGA LOTEO]]) -> 0 | JV12: =SUMIFS(FlujoVentasEtapas[03-2042],Etapas[[Tipo]:[Tipo]],MegaLoteo[[#This Row],[MEGA LOTEO]:[MEGA LOTEO]]) -> 0 | JW12: =SUMIFS(FlujoVentasEtapas[04-2042],Etapas[[Tipo]:[Tipo]],MegaLoteo[[#This Row],[MEGA LOTEO]:[MEGA LOTEO]]) -> 0 | JX12: =SUMIFS(FlujoVentasEtapas[05-2042],Etapas[[Tipo]:[Tipo]],MegaLoteo[[#This Row],[MEGA LOTEO]:[MEGA LOTEO]]) -> 0 | JY12: =SUMIFS(FlujoVentasEtapas[06-2042],Etapas[[Tipo]:[Tipo]],MegaLoteo[[#This Row],[MEGA LOTEO]:[MEGA LOTEO]]) -> 0 | JZ12: =SUMIFS(FlujoVentasEtapas[07-2042],Etapas[[Tipo]:[Tipo]],MegaLoteo[[#This Row],[MEGA LOTEO]:[MEGA LOTEO]]) -> 0 | KA12: =SUMIFS(FlujoVentasEtapas[08-2042],Etapas[[Tipo]:[Tipo]],MegaLoteo[[#This Row],[MEGA LOTEO]:[MEGA LOTEO]]) -> 0 | KB12: =SUMIFS(FlujoVentasEtapas[09-2042],Etapas[[Tipo]:[Tipo]],MegaLoteo[[#This Row],[MEGA LOTEO]:[MEGA LOTEO]]) -> 0 | KC12: =SUMIFS(FlujoVentasEtapas[10-2042],Etapas[[Tipo]:[Tipo]],MegaLoteo[[#This Row],[MEGA LOTEO]:[MEGA LOTEO]]) -> 0 | KD12: =SUMIFS(FlujoVentasEtapas[11-2042],Etapas[[Tipo]:[Tipo]],MegaLoteo[[#This Row],[MEGA LOTEO]:[MEGA LOTEO]]) -> 0 | KE12: =SUMIFS(FlujoVentasEtapas[12-2042],Etapas[[Tipo]:[Tipo]],MegaLoteo[[#This Row],[MEGA LOTEO]:[MEGA LOTEO]]) -> 0 | KF12: =SUMIFS(FlujoVentasEtapas[01-2043],Etapas[[Tipo]:[Tipo]],MegaLoteo[[#This Row],[MEGA LOTEO]:[MEGA LOTEO]]) -> 0 | KG12: =SUMIFS(FlujoVentasEtapas[02-2043],Etapas[[Tipo]:[Tipo]],MegaLoteo[[#This Row],[MEGA LOTEO]:[MEGA LOTEO]]) -> 0 | KH12: =SUMIFS(FlujoVentasEtapas[03-2043],Etapas[[Tipo]:[Tipo]],MegaLoteo[[#This Row],[MEGA LOTEO]:[MEGA LOTEO]]) -> 0 | KI12: =SUMIFS(FlujoVentasEtapas[04-2043],Etapas[[Tipo]:[Tipo]],MegaLoteo[[#This Row],[MEGA LOTEO]:[MEGA LOTEO]]) -> 0 | KJ12: =SUMIFS(FlujoVentasEtapas[05-2043],Etapas[[Tipo]:[Tipo]],MegaLoteo[[#This Row],[MEGA LOTEO]:[MEGA LOTEO]]) -> 0 | KK12: =SUMIFS(FlujoVentasEtapas[06-2043],Etapas[[Tipo]:[Tipo]],MegaLoteo[[#This Row],[MEGA LOTEO]:[MEGA LOTEO]]) -> 0 | KL12: =SUMIFS(FlujoVentasEtapas[07-2043],Etapas[[Tipo]:[Tipo]],MegaLoteo[[#This Row],[MEGA LOTEO]:[MEGA LOTEO]]) -> 0 | KM12: =SUMIFS(FlujoVentasEtapas[08-2043],Etapas[[Tipo]:[Tipo]],MegaLoteo[[#This Row],[MEGA LOTEO]:[MEGA LOTEO]]) -> 0 | KN12: =SUMIFS(FlujoVentasEtapas[09-2043],Etapas[[Tipo]:[Tipo]],MegaLoteo[[#This Row],[MEGA LOTEO]:[MEGA LOTEO]]) -> 0 | KO12: =SUMIFS(FlujoVentasEtapas[10-2043],Etapas[[Tipo]:[Tipo]],MegaLoteo[[#This Row],[MEGA LOTEO]:[MEGA LOTEO]]) -> 0 | KP12: =SUMIFS(FlujoVentasEtapas[11-2043],Etapas[[Tipo]:[Tipo]],MegaLoteo[[#This Row],[MEGA LOTEO]:[MEGA LOTEO]]) -> 0 | KQ12: =SUMIFS(FlujoVentasEtapas[12-2043],Etapas[[Tipo]:[Tipo]],MegaLoteo[[#This Row],[MEGA LOTEO]:[MEGA LOTEO]]) -> 0 | KR12: =SUMIFS(FlujoVentasEtapas[01-2044],Etapas[[Tipo]:[Tipo]],MegaLoteo[[#This Row],[MEGA LOTEO]:[MEGA LOTEO]]) -> 0 | KS12: =SUMIFS(FlujoVentasEtapas[02-2044],Etapas[[Tipo]:[Tipo]],MegaLoteo[[#This Row],[MEGA LOTEO]:[MEGA LOTEO]]) -> 0 | KT12: =SUMIFS(FlujoVentasEtapas[03-2044],Etapas[[Tipo]:[Tipo]],MegaLoteo[[#This Row],[MEGA LOTEO]:[MEGA LOTEO]]) -> 0 | KU12: =SUMIFS(FlujoVentasEtapas[04-2044],Etapas[[Tipo]:[Tipo]],MegaLoteo[[#This Row],[MEGA LOTEO]:[MEGA LOTEO]]) -> 0 | KV12: =SUMIFS(FlujoVentasEtapas[05-2044],Etapas[[Tipo]:[Tipo]],MegaLoteo[[#This Row],[MEGA LOTEO]:[MEGA LOTEO]]) -> 0 | KW12: =SUMIFS(FlujoVentasEtapas[06-2044],Etapas[[Tipo]:[Tipo]],MegaLoteo[[#This Row],[MEGA LOTEO]:[MEGA LOTEO]]) -> 0 | KX12: =SUMIFS(FlujoVentasEtapas[07-2044],Etapas[[Tipo]:[Tipo]],MegaLoteo[[#This Row],[MEGA LOTEO]:[MEGA LOTEO]]) -> 0 | KY12: =SUMIFS(FlujoVentasEtapas[08-2044],Etapas[[Tipo]:[Tipo]],MegaLoteo[[#This Row],[MEGA LOTEO]:[MEGA LOTEO]]) -> 0 | KZ12: =SUMIFS(FlujoVentasEtapas[09-2044],Etapas[[Tipo]:[Tipo]],MegaLoteo[[#This Row],[MEGA LOTEO]:[MEGA LOTEO]]) -> 0 | LA12: =SUMIFS(FlujoVentasEtapas[10-2044],Etapas[[Tipo]:[Tipo]],MegaLoteo[[#This Row],[MEGA LOTEO]:[MEGA LOTEO]]) -> 0 | LB12: =SUMIFS(FlujoVentasEtapas[11-2044],Etapas[[Tipo]:[Tipo]],MegaLoteo[[#This Row],[MEGA LOTEO]:[MEGA LOTEO]]) -> 0 | LC12: =SUMIFS(FlujoVentasEtapas[12-2044],Etapas[[Tipo]:[Tipo]],MegaLoteo[[#This Row],[MEGA LOTEO]:[MEGA LOTEO]]) -> 0 | LD12: =SUMIFS(FlujoVentasEtapas[01-2045],Etapas[[Tipo]:[Tipo]],MegaLoteo[[#This Row],[MEGA LOTEO]:[MEGA LOTEO]]) -> 0 | LE12: =SUMIFS(FlujoVentasEtapas[02-2045],Etapas[[Tipo]:[Tipo]],MegaLoteo[[#This Row],[MEGA LOTEO]:[MEGA LOTEO]]) -> 0 | LF12: =SUMIFS(FlujoVentasEtapas[03-2045],Etapas[[Tipo]:[Tipo]],MegaLoteo[[#This Row],[MEGA LOTEO]:[MEGA LOTEO]]) -> 0 | LG12: =SUMIFS(FlujoVentasEtapas[04-2045],Etapas[[Tipo]:[Tipo]],MegaLoteo[[#This Row],[MEGA LOTEO]:[MEGA LOTEO]]) -> 0 | LH12: =SUMIFS(FlujoVentasEtapas[05-2045],Etapas[[Tipo]:[Tipo]],MegaLoteo[[#This Row],[MEGA LOTEO]:[MEGA LOTEO]]) -> 0 | LI12: =SUMIFS(FlujoVentasEtapas[06-2045],Etapas[[Tipo]:[Tipo]],MegaLoteo[[#This Row],[MEGA LOTEO]:[MEGA LOTEO]]) -> 0 | LJ12: =SUMIFS(FlujoVentasEtapas[07-2045],Etapas[[Tipo]:[Tipo]],MegaLoteo[[#This Row],[MEGA LOTEO]:[MEGA LOTEO]]) -> 0 | LK12: =SUMIFS(FlujoVentasEtapas[08-2045],Etapas[[Tipo]:[Tipo]],MegaLoteo[[#This Row],[MEGA LOTEO]:[MEGA LOTEO]]) -> 0 | LL12: =SUMIFS(FlujoVentasEtapas[09-2045],Etapas[[Tipo]:[Tipo]],MegaLoteo[[#This Row],[MEGA LOTEO]:[MEGA LOTEO]]) -> 0 | LM12: =SUMIFS(FlujoVentasEtapas[10-2045],Etapas[[Tipo]:[Tipo]],MegaLoteo[[#This Row],[MEGA LOTEO]:[MEGA LOTEO]]) -> 0 | LN12: =SUMIFS(FlujoVentasEtapas[11-2045],Etapas[[Tipo]:[Tipo]],MegaLoteo[[#This Row],[MEGA LOTEO]:[MEGA LOTEO]]) -> 0 | LO12: =SUMIFS(FlujoVentasEtapas[12-2045],Etapas[[Tipo]:[Tipo]],MegaLoteo[[#This Row],[MEGA LOTEO]:[MEGA LOTEO]]) -> 0 | LP12: =SUMIFS(FlujoVentasEtapas[01-2046],Etapas[[Tipo]:[Tipo]],MegaLoteo[[#This Row],[MEGA LOTEO]:[MEGA LOTEO]]) -> 0 | LQ12: =SUMIFS(FlujoVentasEtapas[02-2046],Etapas[[Tipo]:[Tipo]],MegaLoteo[[#This Row],[MEGA LOTEO]:[MEGA LOTEO]]) -> 0 | LR12: =SUMIFS(FlujoVentasEtapas[03-2046],Etapas[[Tipo]:[Tipo]],MegaLoteo[[#This Row],[MEGA LOTEO]:[MEGA LOTEO]]) -> 0 | LS12: =SUMIFS(FlujoVentasEtapas[04-2046],Etapas[[Tipo]:[Tipo]],MegaLoteo[[#This Row],[MEGA LOTEO]:[MEGA LOTEO]]) -> 0 | LT12: =SUMIFS(FlujoVentasEtapas[05-2046],Etapas[[Tipo]:[Tipo]],MegaLoteo[[#This Row],[MEGA LOTEO]:[MEGA LOTEO]]) -> 0 | LU12: =SUMIFS(FlujoVentasEtapas[06-2046],Etapas[[Tipo]:[Tipo]],MegaLoteo[[#This Row],[MEGA LOTEO]:[MEGA LOTEO]]) -> 0 | LV12: =SUMIFS(FlujoVentasEtapas[07-2046],Etapas[[Tipo]:[Tipo]],MegaLoteo[[#This Row],[MEGA LOTEO]:[MEGA LOTEO]]) -> 0 | LW12: =SUMIFS(FlujoVentasEtapas[08-2046],Etapas[[Tipo]:[Tipo]],MegaLoteo[[#This Row],[MEGA LOTEO]:[MEGA LOTEO]]) -> 0 | LX12: =SUMIFS(FlujoVentasEtapas[09-2046],Etapas[[Tipo]:[Tipo]],MegaLoteo[[#This Row],[MEGA LOTEO]:[MEGA LOTEO]]) -> 0 | LY12: =SUMIFS(FlujoVentasEtapas[10-2046],Etapas[[Tipo]:[Tipo]],MegaLoteo[[#This Row],[MEGA LOTEO]:[MEGA LOTEO]]) -> 0 | LZ12: =SUMIFS(FlujoVentasEtapas[11-2046],Etapas[[Tipo]:[Tipo]],MegaLoteo[[#This Row],[MEGA LOTEO]:[MEGA LOTEO]]) -> 0 | MA12: =SUMIFS(FlujoVentasEtapas[12-2046],Etapas[[Tipo]:[Tipo]],MegaLoteo[[#This Row],[MEGA LOTEO]:[MEGA LOTEO]]) -> 0 | MB12: =SUMIFS(FlujoVentasEtapas[01-2047],Etapas[[Tipo]:[Tipo]],MegaLoteo[[#This Row],[MEGA LOTEO]:[MEGA LOTEO]]) -> 0 | MC12: =SUMIFS(FlujoVentasEtapas[02-2047],Etapas[[Tipo]:[Tipo]],MegaLoteo[[#This Row],[MEGA LOTEO]:[MEGA LOTEO]]) -> 0 | MD12: =SUMIFS(FlujoVentasEtapas[03-2047],Etapas[[Tipo]:[Tipo]],MegaLoteo[[#This Row],[MEGA LOTEO]:[MEGA LOTEO]]) -> 0 | ME12: =SUMIFS(FlujoVentasEtapas[04-2047],Etapas[[Tipo]:[Tipo]],MegaLoteo[[#This Row],[MEGA LOTEO]:[MEGA LOTEO]]) -> 0 | MF12: =SUMIFS(FlujoVentasEtapas[05-2047],Etapas[[Tipo]:[Tipo]],MegaLoteo[[#This Row],[MEGA LOTEO]:[MEGA LOTEO]]) -> 0 | MG12: =SUMIFS(FlujoVentasEtapas[06-2047],Etapas[[Tipo]:[Tipo]],MegaLoteo[[#This Row],[MEGA LOTEO]:[MEGA LOTEO]]) -> 0 | MH12: =SUMIFS(FlujoVentasEtapas[07-2047],Etapas[[Tipo]:[Tipo]],MegaLoteo[[#This Row],[MEGA LOTEO]:[MEGA LOTEO]]) -> 0 | MI12: =SUMIFS(FlujoVentasEtapas[08-2047],Etapas[[Tipo]:[Tipo]],MegaLoteo[[#This Row],[MEGA LOTEO]:[MEGA LOTEO]]) -> 0 | MJ12: =SUMIFS(FlujoVentasEtapas[09-2047],Etapas[[Tipo]:[Tipo]],MegaLoteo[[#This Row],[MEGA LOTEO]:[MEGA LOTEO]]) -> 0 | MK12: =SUMIFS(FlujoVentasEtapas[10-2047],Etapas[[Tipo]:[Tipo]],MegaLoteo[[#This Row],[MEGA LOTEO]:[MEGA LOTEO]]) -> 0 | ML12: =SUMIFS(FlujoVentasEtapas[11-2047],Etapas[[Tipo]:[Tipo]],MegaLoteo[[#This Row],[MEGA LOTEO]:[MEGA LOTEO]]) -> 0 | MM12: =SUMIFS(FlujoVentasEtapas[12-2047],Etapas[[Tipo]:[Tipo]],MegaLoteo[[#This Row],[MEGA LOTEO]:[MEGA LOTEO]]) -> 0 | MN12: =SUMIFS(FlujoVentasEtapas[01-2048],Etapas[[Tipo]:[Tipo]],MegaLoteo[[#This Row],[MEGA LOTEO]:[MEGA LOTEO]]) -> 0 | MO12: =SUMIFS(FlujoVentasEtapas[02-2048],Etapas[[Tipo]:[Tipo]],MegaLoteo[[#This Row],[MEGA LOTEO]:[MEGA LOTEO]]) -> 0 | MP12: =SUMIFS(FlujoVentasEtapas[03-2048],Etapas[[Tipo]:[Tipo]],MegaLoteo[[#This Row],[MEGA LOTEO]:[MEGA LOTEO]]) -> 0 | MQ12: =SUMIFS(FlujoVentasEtapas[04-2048],Etapas[[Tipo]:[Tipo]],MegaLoteo[[#This Row],[MEGA LOTEO]:[MEGA LOTEO]]) -> 0 | MR12: =SUMIFS(FlujoVentasEtapas[05-2048],Etapas[[Tipo]:[Tipo]],MegaLoteo[[#This Row],[MEGA LOTEO]:[MEGA LOTEO]]) -> 0 | MS12: =SUMIFS(FlujoVentasEtapas[06-2048],Etapas[[Tipo]:[Tipo]],MegaLoteo[[#This Row],[MEGA LOTEO]:[MEGA LOTEO]]) -> 0 | MT12: =SUMIFS(FlujoVentasEtapas[07-2048],Etapas[[Tipo]:[Tipo]],MegaLoteo[[#This Row],[MEGA LOTEO]:[MEGA LOTEO]]) -> 0 | MU12: =SUMIFS(FlujoVentasEtapas[08-2048],Etapas[[Tipo]:[Tipo]],MegaLoteo[[#This Row],[MEGA LOTEO]:[MEGA LOTEO]]) -> 0 | MV12: =SUMIFS(FlujoVentasEtapas[09-2048],Etapas[[Tipo]:[Tipo]],MegaLoteo[[#This Row],[MEGA LOTEO]:[MEGA LOTEO]]) -> 0 | MW12: =SUMIFS(FlujoVentasEtapas[10-2048],Etapas[[Tipo]:[Tipo]],MegaLoteo[[#This Row],[MEGA LOTEO]:[MEGA LOTEO]]) -> 0 | MX12: =SUMIFS(FlujoVentasEtapas[11-2048],Etapas[[Tipo]:[Tipo]],MegaLoteo[[#This Row],[MEGA LOTEO]:[MEGA LOTEO]]) -> 0 | MY12: =SUMIFS(FlujoVentasEtapas[12-2048],Etapas[[Tipo]:[Tipo]],MegaLoteo[[#This Row],[MEGA LOTEO]:[MEGA LOTEO]]) -> 0 | MZ12: =SUMIFS(FlujoVentasEtapas[01-2049],Etapas[[Tipo]:[Tipo]],MegaLoteo[[#This Row],[MEGA LOTEO]:[MEGA LOTEO]]) -> 0 | NA12: =SUMIFS(FlujoVentasEtapas[02-2049],Etapas[[Tipo]:[Tipo]],MegaLoteo[[#This Row],[MEGA LOTEO]:[MEGA LOTEO]]) -> 0 | NB12: =SUMIFS(FlujoVentasEtapas[03-2049],Etapas[[Tipo]:[Tipo]],MegaLoteo[[#This Row],[MEGA LOTEO]:[MEGA LOTEO]]) -> 0 | NC12: =SUMIFS(FlujoVentasEtapas[04-2049],Etapas[[Tipo]:[Tipo]],MegaLoteo[[#This Row],[MEGA LOTEO]:[MEGA LOTEO]]) -> 0 | ND12: =SUMIFS(FlujoVentasEtapas[05-2049],Etapas[[Tipo]:[Tipo]],MegaLoteo[[#This Row],[MEGA LOTEO]:[MEGA LOTEO]]) -> 0 | NE12: =SUMIFS(FlujoVentasEtapas[06-2049],Etapas[[Tipo]:[Tipo]],MegaLoteo[[#This Row],[MEGA LOTEO]:[MEGA LOTEO]]) -> 0 | NF12: =SUMIFS(FlujoVentasEtapas[07-2049],Etapas[[Tipo]:[Tipo]],MegaLoteo[[#This Row],[MEGA LOTEO]:[MEGA LOTEO]]) -> 0 | NG12: =SUMIFS(FlujoVentasEtapas[08-2049],Etapas[[Tipo]:[Tipo]],MegaLoteo[[#This Row],[MEGA LOTEO]:[MEGA LOTEO]]) -> 0 | NH12: =SUMIFS(FlujoVentasEtapas[09-2049],Etapas[[Tipo]:[Tipo]],MegaLoteo[[#This Row],[MEGA LOTEO]:[MEGA LOTEO]]) -> 0 | NI12: =SUMIFS(FlujoVentasEtapas[10-2049],Etapas[[Tipo]:[Tipo]],MegaLoteo[[#This Row],[MEGA LOTEO]:[MEGA LOTEO]]) -> 0 | NJ12: =SUMIFS(FlujoVentasEtapas[11-2049],Etapas[[Tipo]:[Tipo]],MegaLoteo[[#This Row],[MEGA LOTEO]:[MEGA LOTEO]]) -> 0 | NK12: =SUMIFS(FlujoVentasEtapas[12-2049],Etapas[[Tipo]:[Tipo]],MegaLoteo[[#This Row],[MEGA LOTEO]:[MEGA LOTEO]]) -> 0 | NL12: =SUMIFS(FlujoVentasEtapas[01-2050],Etapas[[Tipo]:[Tipo]],MegaLoteo[[#This Row],[MEGA LOTEO]:[MEGA LOTEO]]) -> 0 | NM12: =SUMIFS(FlujoVentasEtapas[02-2050],Etapas[[Tipo]:[Tipo]],MegaLoteo[[#This Row],[MEGA LOTEO]:[MEGA LOTEO]]) -> 0 | NN12: =SUMIFS(FlujoVentasEtapas[03-2050],Etapas[[Tipo]:[Tipo]],MegaLoteo[[#This Row],[MEGA LOTEO]:[MEGA LOTEO]]) -> 0 | NO12: =SUMIFS(FlujoVentasEtapas[04-2050],Etapas[[Tipo]:[Tipo]],MegaLoteo[[#This Row],[MEGA LOTEO]:[MEGA LOTEO]]) -> 0 | NP12: =SUMIFS(FlujoVentasEtapas[05-2050],Etapas[[Tipo]:[Tipo]],MegaLoteo[[#This Row],[MEGA LOTEO]:[MEGA LOTEO]]) -> 0 | NQ12: =SUMIFS(FlujoVentasEtapas[06-2050],Etapas[[Tipo]:[Tipo]],MegaLoteo[[#This Row],[MEGA LOTEO]:[MEGA LOTEO]]) -> 0 | NR12: =SUMIFS(FlujoVentasEtapas[07-2050],Etapas[[Tipo]:[Tipo]],MegaLoteo[[#This Row],[MEGA LOTEO]:[MEGA LOTEO]]) -> 0 | NS12: =SUMIFS(FlujoVentasEtapas[08-2050],Etapas[[Tipo]:[Tipo]],MegaLoteo[[#This Row],[MEGA LOTEO]:[MEGA LOTEO]]) -> 0 | NT12: =SUMIFS(FlujoVentasEtapas[09-2050],Etapas[[Tipo]:[Tipo]],MegaLoteo[[#This Row],[MEGA LOTEO]:[MEGA LOTEO]]) -> 0 | NU12: =SUMIFS(FlujoVentasEtapas[10-2050],Etapas[[Tipo]:[Tipo]],MegaLoteo[[#This Row],[MEGA LOTEO]:[MEGA LOTEO]]) -> 0 | NV12: =SUMIFS(FlujoVentasEtapas[11-2050],Etapas[[Tipo]:[Tipo]],MegaLoteo[[#This Row],[MEGA LOTEO]:[MEGA LOTEO]]) -> 0 | NW12: =SUMIFS(FlujoVentasEtapas[12-2050],Etapas[[Tipo]:[Tipo]],MegaLoteo[[#This Row],[MEGA LOTEO]:[MEGA LOTEO]]) -> 0 | NX12: =SUMIFS(FlujoVentasEtapas[01-2051],Etapas[[Tipo]:[Tipo]],MegaLoteo[[#This Row],[MEGA LOTEO]:[MEGA LOTEO]]) -> 0 | NY12: =SUMIFS(FlujoVentasEtapas[02-2051],Etapas[[Tipo]:[Tipo]],MegaLoteo[[#This Row],[MEGA LOTEO]:[MEGA LOTEO]]) -> 0 | NZ12: =SUMIFS(FlujoVentasEtapas[03-2051],Etapas[[Tipo]:[Tipo]],MegaLoteo[[#This Row],[MEGA LOTEO]:[MEGA LOTEO]]) -> 0 | OA12: =SUMIFS(FlujoVentasEtapas[04-2051],Etapas[[Tipo]:[Tipo]],MegaLoteo[[#This Row],[MEGA LOTEO]:[MEGA LOTEO]]) -> 0 | OB12: =SUMIFS(FlujoVentasEtapas[05-2051],Etapas[[Tipo]:[Tipo]],MegaLoteo[[#This Row],[MEGA LOTEO]:[MEGA LOTEO]]) -> 0 | OC12: =SUMIFS(FlujoVentasEtapas[06-2051],Etapas[[Tipo]:[Tipo]],MegaLoteo[[#This Row],[MEGA LOTEO]:[MEGA LOTEO]]) -> 0 | OD12: =SUMIFS(FlujoVentasEtapas[07-2051],Etapas[[Tipo]:[Tipo]],MegaLoteo[[#This Row],[MEGA LOTEO]:[MEGA LOTEO]]) -> 0 | OE12: =SUMIFS(FlujoVentasEtapas[08-2051],Etapas[[Tipo]:[Tipo]],MegaLoteo[[#This Row],[MEGA LOTEO]:[MEGA LOTEO]]) -> 0 | OF12: =SUMIFS(FlujoVentasEtapas[09-2051],Etapas[[Tipo]:[Tipo]],MegaLoteo[[#This Row],[MEGA LOTEO]:[MEGA LOTEO]]) -> 0 | OG12: =SUMIFS(FlujoVentasEtapas[10-2051],Etapas[[Tipo]:[Tipo]],MegaLoteo[[#This Row],[MEGA LOTEO]:[MEGA LOTEO]]) -> 0 | OH12: =SUMIFS(FlujoVentasEtapas[11-2051],Etapas[[Tipo]:[Tipo]],MegaLoteo[[#This Row],[MEGA LOTEO]:[MEGA LOTEO]]) -> 0 | OI12: =SUMIFS(FlujoVentasEtapas[12-2051],Etapas[[Tipo]:[Tipo]],MegaLoteo[[#This Row],[MEGA LOTEO]:[MEGA LOTEO]]) -> 0 | OJ12: =SUMIFS(FlujoVentasEtapas[01-2052],Etapas[[Tipo]:[Tipo]],MegaLoteo[[#This Row],[MEGA LOTEO]:[MEGA LOTEO]]) -> 0 | OK12: =SUMIFS(FlujoVentasEtapas[02-2052],Etapas[[Tipo]:[Tipo]],MegaLoteo[[#This Row],[MEGA LOTEO]:[MEGA LOTEO]]) -> 0 | OL12: =SUMIFS(FlujoVentasEtapas[03-2052],Etapas[[Tipo]:[Tipo]],MegaLoteo[[#This Row],[MEGA LOTEO]:[MEGA LOTEO]]) -> 0 | OM12: =SUMIFS(FlujoVentasEtapas[04-2052],Etapas[[Tipo]:[Tipo]],MegaLoteo[[#This Row],[MEGA LOTEO]:[MEGA LOTEO]]) -> 0 | ON12: =SUMIFS(FlujoVentasEtapas[05-2052],Etapas[[Tipo]:[Tipo]],MegaLoteo[[#This Row],[MEGA LOTEO]:[MEGA LOTEO]]) -> 0 | OO12: =SUMIFS(FlujoVentasEtapas[06-2052],Etapas[[Tipo]:[Tipo]],MegaLoteo[[#This Row],[MEGA LOTEO]:[MEGA LOTEO]]) -> 0 | OP12: =SUMIFS(FlujoVentasEtapas[07-2052],Etapas[[Tipo]:[Tipo]],MegaLoteo[[#This Row],[MEGA LOTEO]:[MEGA LOTEO]]) -> 0 | OQ12: =SUMIFS(FlujoVentasEtapas[08-2052],Etapas[[Tipo]:[Tipo]],MegaLoteo[[#This Row],[MEGA LOTEO]:[MEGA LOTEO]]) -> 0 | OR12: =SUMIFS(FlujoVentasEtapas[09-2052],Etapas[[Tipo]:[Tipo]],MegaLoteo[[#This Row],[MEGA LOTEO]:[MEGA LOTEO]]) -> 0 | OS12: =SUMIFS(FlujoVentasEtapas[10-2052],Etapas[[Tipo]:[Tipo]],MegaLoteo[[#This Row],[MEGA LOTEO]:[MEGA LOTEO]]) -> 0 | OT12: =SUMIFS(FlujoVentasEtapas[11-2052],Etapas[[Tipo]:[Tipo]],MegaLoteo[[#This Row],[MEGA LOTEO]:[MEGA LOTEO]]) -> 0 | OU12: =SUMIFS(FlujoVentasEtapas[12-2052],Etapas[[Tipo]:[Tipo]],MegaLoteo[[#This Row],[MEGA LOTEO]:[MEGA LOTEO]]) -> 0 | OV12: =SUMIFS(FlujoVentasEtapas[01-2053],Etapas[[Tipo]:[Tipo]],MegaLoteo[[#This Row],[MEGA LOTEO]:[MEGA LOTEO]]) -> 0 | OW12: =SUMIFS(FlujoVentasEtapas[02-2053],Etapas[[Tipo]:[Tipo]],MegaLoteo[[#This Row],[MEGA LOTEO]:[MEGA LOTEO]]) -> 0 | OX12: =SUMIFS(FlujoVentasEtapas[03-2053],Etapas[[Tipo]:[Tipo]],MegaLoteo[[#This Row],[MEGA LOTEO]:[MEGA LOTEO]]) -> 0 | OY12: =SUMIFS(FlujoVentasEtapas[04-2053],Etapas[[Tipo]:[Tipo]],MegaLoteo[[#This Row],[MEGA LOTEO]:[MEGA LOTEO]]) -> 0 | OZ12: =SUMIFS(FlujoVentasEtapas[05-2053],Etapas[[Tipo]:[Tipo]],MegaLoteo[[#This Row],[MEGA LOTEO]:[MEGA LOTEO]]) -> 0 | PA12: =SUMIFS(FlujoVentasEtapas[06-2053],Etapas[[Tipo]:[Tipo]],MegaLoteo[[#This Row],[MEGA LOTEO]:[MEGA LOTEO]]) -> 0 | PB12: =SUMIFS(FlujoVentasEtapas[07-2053],Etapas[[Tipo]:[Tipo]],MegaLoteo[[#This Row],[MEGA LOTEO]:[MEGA LOTEO]]) -> 0 | PC12: =SUMIFS(FlujoVentasEtapas[08-2053],Etapas[[Tipo]:[Tipo]],MegaLoteo[[#This Row],[MEGA LOTEO]:[MEGA LOTEO]]) -> 0 | PD12: =SUMIFS(FlujoVentasEtapas[09-2053],Etapas[[Tipo]:[Tipo]],MegaLoteo[[#This Row],[MEGA LOTEO]:[MEGA LOTEO]]) -> 0 | PE12: =SUMIFS(FlujoVentasEtapas[10-2053],Etapas[[Tipo]:[Tipo]],MegaLoteo[[#This Row],[MEGA LOTEO]:[MEGA LOTEO]]) -> 0 | PF12: =SUMIFS(FlujoVentasEtapas[11-2053],Etapas[[Tipo]:[Tipo]],MegaLoteo[[#This Row],[MEGA LOTEO]:[MEGA LOTEO]]) -> 0 | PG12: =SUMIFS(FlujoVentasEtapas[12-2053],Etapas[[Tipo]:[Tipo]],MegaLoteo[[#This Row],[MEGA LOTEO]:[MEGA LOTEO]]) -> 0 | PH12: =SUMIFS(FlujoVentasEtapas[01-2054],Etapas[[Tipo]:[Tipo]],MegaLoteo[[#This Row],[MEGA LOTEO]:[MEGA LOTEO]]) -> 0 | PI12: =SUMIFS(FlujoVentasEtapas[02-2054],Etapas[[Tipo]:[Tipo]],MegaLoteo[[#This Row],[MEGA LOTEO]:[MEGA LOTEO]]) -> 0 | PJ12: =SUMIFS(FlujoVentasEtapas[03-2054],Etapas[[Tipo]:[Tipo]],MegaLoteo[[#This Row],[MEGA LOTEO]:[MEGA LOTEO]]) -> 0 | PK12: =SUMIFS(FlujoVentasEtapas[04-2054],Etapas[[Tipo]:[Tipo]],MegaLoteo[[#This Row],[MEGA LOTEO]:[MEGA LOTEO]]) -> 0 | PL12: =SUMIFS(FlujoVentasEtapas[05-2054],Etapas[[Tipo]:[Tipo]],MegaLoteo[[#This Row],[MEGA LOTEO]:[MEGA LOTEO]]) -> 0 | PM12: =SUMIFS(FlujoVentasEtapas[06-2054],Etapas[[Tipo]:[Tipo]],MegaLoteo[[#This Row],[MEGA LOTEO]:[MEGA LOTEO]]) -> 0 | PN12: =SUMIFS(FlujoVentasEtapas[07-2054],Etapas[[Tipo]:[Tipo]],MegaLoteo[[#This Row],[MEGA LOTEO]:[MEGA LOTEO]]) -> 0 | PO12: =SUMIFS(FlujoVentasEtapas[08-2054],Etapas[[Tipo]:[Tipo]],MegaLoteo[[#This Row],[MEGA LOTEO]:[MEGA LOTEO]]) -> 0 | PP12: =SUMIFS(FlujoVentasEtapas[09-2054],Etapas[[Tipo]:[Tipo]],MegaLoteo[[#This Row],[MEGA LOTEO]:[MEGA LOTEO]]) -> 0 | PQ12: =SUMIFS(FlujoVentasEtapas[10-2054],Etapas[[Tipo]:[Tipo]],MegaLoteo[[#This Row],[MEGA LOTEO]:[MEGA LOTEO]]) -> 0 | PR12: =SUMIFS(FlujoVentasEtapas[11-2054],Etapas[[Tipo]:[Tipo]],MegaLoteo[[#This Row],[MEGA LOTEO]:[MEGA LOTEO]]) -> 0 | PS12: =SUMIFS(FlujoVentasEtapas[12-2054],Etapas[[Tipo]:[Tipo]],MegaLoteo[[#This Row],[MEGA LOTEO]:[MEGA LOTEO]]) -> 0 | PT12: =SUMIFS(FlujoVentasEtapas[01-2055],Etapas[[Tipo]:[Tipo]],MegaLoteo[[#This Row],[MEGA LOTEO]:[MEGA LOTEO]]) -> 0 | PU12: =SUMIFS(FlujoVentasEtapas[02-2055],Etapas[[Tipo]:[Tipo]],MegaLoteo[[#This Row],[MEGA LOTEO]:[MEGA LOTEO]]) -> 0 | PV12: =SUMIFS(FlujoVentasEtapas[03-2055],Etapas[[Tipo]:[Tipo]],MegaLoteo[[#This Row],[MEGA LOTEO]:[MEGA LOTEO]]) -> 0 | PW12: =SUMIFS(FlujoVentasEtapas[04-2055],Etapas[[Tipo]:[Tipo]],MegaLoteo[[#This Row],[MEGA LOTEO]:[MEGA LOTEO]]) -> 0 | PX12: =SUMIFS(FlujoVentasEtapas[05-2055],Etapas[[Tipo]:[Tipo]],MegaLoteo[[#This Row],[MEGA LOTEO]:[MEGA LOTEO]]) -> 0 | PY12: =SUMIFS(FlujoVentasEtapas[06-2055],Etapas[[Tipo]:[Tipo]],MegaLoteo[[#This Row],[MEGA LOTEO]:[MEGA LOTEO]]) -> 0 | PZ12: =SUMIFS(FlujoVentasEtapas[07-2055],Etapas[[Tipo]:[Tipo]],MegaLoteo[[#This Row],[MEGA LOTEO]:[MEGA LOTEO]]) -> 0 | QA12: =SUMIFS(FlujoVentasEtapas[08-2055],Etapas[[Tipo]:[Tipo]],MegaLoteo[[#This Row],[MEGA LOTEO]:[MEGA LOTEO]]) -> 0 | QB12: =SUMIFS(FlujoVentasEtapas[09-2055],Etapas[[Tipo]:[Tipo]],MegaLoteo[[#This Row],[MEGA LOTEO]:[MEGA LOTEO]]) -> 0 | QC12: =SUMIFS(FlujoVentasEtapas[10-2055],Etapas[[Tipo]:[Tipo]],MegaLoteo[[#This Row],[MEGA LOTEO]:[MEGA LOTEO]]) -> 0 | QD12: =SUMIFS(FlujoVentasEtapas[11-2055],Etapas[[Tipo]:[Tipo]],MegaLoteo[[#This Row],[MEGA LOTEO]:[MEGA LOTEO]]) -> 0 | QE12: =SUMIFS(FlujoVentasEtapas[12-2055],Etapas[[Tipo]:[Tipo]],MegaLoteo[[#This Row],[MEGA LOTEO]:[MEGA LOTEO]]) -> 0
B13: Oficina | C13: =SUMIFS(Etapas[Superficie (m2)],Etapas[Tipo],MegaLoteo[[#This Row],[MEGA LOTEO]])+SUMIFS(Etapas[Superficie (m2)],Etapas[PROYECTO],MegaLoteo[[#This Row],[MEGA LOTEO]]) -> 0 | D13: =MegaLoteo[[#This Row],[Superficie total (m2)]]/MegaLoteo[[#Totals],[Superficie total (m2)]] -> 0 | E13: =_xlfn.IFNA(IF(MATCH(MegaLoteo[[#This Row],[MEGA LOTEO]],TipoVivienda[TipoProyecto],0)>0,MegaLoteo[[#This Row],[Superficie total (m2)]]/SUM(SUMIFS(MegaLoteo[Superficie total (m2)],MegaLoteo[MEGA LOTEO],TipoVivienda[TipoProyecto])),0),0) -> 0 | F13: =SUMIFS(Etapas[Cant. Unid.],Etapas[Tipo],MegaLoteo[[#This Row],[MEGA LOTEO]]) -> 0 | G13: =IFERROR(MegaLoteo[[#This Row],[Superficie total (m2)]]/MegaLoteo[[#This Row],[Cant. Unid.]],0) -> 0 | H13: =MegaLoteo[[#This Row],[Superficie (m2/Un.)]]*MegaLoteo[[#This Row],[UF/m2]] -> 0 | K13: =IFERROR(MegaLoteo[[#This Row],[Cant. Unid.]]/COUNTIFS(FlujoVentasProductos[#This Row],">0"),0) -> 0 | L13: =MegaLoteo[[#This Row],[PPUnid (UF/un)]]*MegaLoteo[[#This Row],[Cant. Unid.]] -> 0 | M13: =(MegaLoteo[[#This Row],[Ingresos por Ventas Brutas (UF)]]+(MegaLoteo[[#This Row],[Superficie total (m2)]]*Costos!$K$35)*0.19)/1.19 -> 0 | O13: =MegaLoteo[[#This Row],[Incidencia Terreno sobre Vtas finales.]]*MegaLoteo[[#This Row],[Ingresos por Ventas Brutas (UF)]] -> 0 | P13: =IFERROR(MegaLoteo[[#This Row],[Ingresos por Vta. Terreno (UF)]]/MegaLoteo[[#This Row],[Superficie total (m2)]],) -> 0 | Q13: =MegaLoteo[[#This Row],[Precio Venta Terreno (UF/m2)]]*Presentacion!$C$48 -> 0 | R13: =MegaLoteo[[#This Row],[Precio Venta Terreno (UF/m2)]]*Presentacion!$C$49 -> 0 | S13: =IFERROR(MegaLoteo[[#This Row],[PPUnid (UF/un)]]/MegaLoteo[[#This Row],[Viv+Circul.+Areas Comunes (m2)]],0) -> 0 | U13: =SUMIFS(FlujoVentasEtapas[06-2020],Etapas[[Tipo]:[Tipo]],MegaLoteo[[#This Row],[MEGA LOTEO]:[MEGA LOTEO]]) -> 0 | V13: =SUMIFS(FlujoVentasEtapas[07-2020],Etapas[[Tipo]:[Tipo]],MegaLoteo[[#This Row],[MEGA LOTEO]:[MEGA LOTEO]]) -> 0 | W13: =SUMIFS(FlujoVentasEtapas[08-2020],Etapas[[Tipo]:[Tipo]],MegaLoteo[[#This Row],[MEGA LOTEO]:[MEGA LOTEO]]) -> 0 | X13: =SUMIFS(FlujoVentasEtapas[09-2020],Etapas[[Tipo]:[Tipo]],MegaLoteo[[#This Row],[MEGA LOTEO]:[MEGA LOTEO]]) -> 0 | Y13: =SUMIFS(FlujoVentasEtapas[10-2020],Etapas[[Tipo]:[Tipo]],MegaLoteo[[#This Row],[MEGA LOTEO]:[MEGA LOTEO]]) -> 0 | Z13: =SUMIFS(FlujoVentasEtapas[11-2020],Etapas[[Tipo]:[Tipo]],MegaLoteo[[#This Row],[MEGA LOTEO]:[MEGA LOTEO]]) -> 0 | AA13: =SUMIFS(FlujoVentasEtapas[12-2020],Etapas[[Tipo]:[Tipo]],MegaLoteo[[#This Row],[MEGA LOTEO]:[MEGA LOTEO]]) -> 0 | AB13: =SUMIFS(FlujoVentasEtapas[01-2021],Etapas[[Tipo]:[Tipo]],MegaLoteo[[#This Row],[MEGA LOTEO]:[MEGA LOTEO]]) -> 0 | AC13: =SUMIFS(FlujoVentasEtapas[02-2021],Etapas[[Tipo]:[Tipo]],MegaLoteo[[#This Row],[MEGA LOTEO]:[MEGA LOTEO]]) -> 0 | AD13: =SUMIFS(FlujoVentasEtapas[03-2021],Etapas[[Tipo]:[Tipo]],MegaLoteo[[#This Row],[MEGA LOTEO]:[MEGA LOTEO]]) -> 0 | AE13: =SUMIFS(FlujoVentasEtapas[04-2021],Etapas[[Tipo]:[Tipo]],MegaLoteo[[#This Row],[MEGA LOTEO]:[MEGA LOTEO]]) -> 0 | AF13: =SUMIFS(FlujoVentasEtapas[05-2021],Etapas[[Tipo]:[Tipo]],MegaLoteo[[#This Row],[MEGA LOTEO]:[MEGA LOTEO]]) -> 0 | AG13: =SUMIFS(FlujoVentasEtapas[06-2021],Etapas[[Tipo]:[Tipo]],MegaLoteo[[#This Row],[MEGA LOTEO]:[MEGA LOTEO]]) -> 0 | AH13: =SUMIFS(FlujoVentasEtapas[07-2021],Etapas[[Tipo]:[Tipo]],MegaLoteo[[#This Row],[MEGA LOTEO]:[MEGA LOTEO]]) -> 0 | AI13: =SUMIFS(FlujoVentasEtapas[08-2021],Etapas[[Tipo]:[Tipo]],MegaLoteo[[#This Row],[MEGA LOTEO]:[MEGA LOTEO]]) -> 0 | AJ13: =SUMIFS(FlujoVentasEtapas[09-2021],Etapas[[Tipo]:[Tipo]],MegaLoteo[[#This Row],[MEGA LOTEO]:[MEGA LOTEO]]) -> 0 | AK13: =SUMIFS(FlujoVentasEtapas[10-2021],Etapas[[Tipo]:[Tipo]],MegaLoteo[[#This Row],[MEGA LOTEO]:[MEGA LOTEO]]) -> 0 | AL13: =SUMIFS(FlujoVentasEtapas[11-2021],Etapas[[Tipo]:[Tipo]],MegaLoteo[[#This Row],[MEGA LOTEO]:[MEGA LOTEO]]) -> 0 | AM13: =SUMIFS(FlujoVentasEtapas[12-2021],Etapas[[Tipo]:[Tipo]],MegaLoteo[[#This Row],[MEGA LOTEO]:[MEGA LOTEO]]) -> 0 | AN13: =SUMIFS(FlujoVentasEtapas[01-2022],Etapas[[Tipo]:[Tipo]],MegaLoteo[[#This Row],[MEGA LOTEO]:[MEGA LOTEO]]) -> 0 | AO13: =SUMIFS(FlujoVentasEtapas[02-2022],Etapas[[Tipo]:[Tipo]],MegaLoteo[[#This Row],[MEGA LOTEO]:[MEGA LOTEO]]) -> 0 | AP13: =SUMIFS(FlujoVentasEtapas[03-2022],Etapas[[Tipo]:[Tipo]],MegaLoteo[[#This Row],[MEGA LOTEO]:[MEGA LOTEO]]) -> 0 | AQ13: =SUMIFS(FlujoVentasEtapas[04-2022],Etapas[[Tipo]:[Tipo]],MegaLoteo[[#This Row],[MEGA LOTEO]:[MEGA LOTEO]]) -> 0 | AR13: =SUMIFS(FlujoVentasEtapas[05-2022],Etapas[[Tipo]:[Tipo]],MegaLoteo[[#This Row],[MEGA LOTEO]:[MEGA LOTEO]]) -> 0 | AS13: =SUMIFS(FlujoVentasEtapas[06-2022],Etapas[[Tipo]:[Tipo]],MegaLoteo[[#This Row],[MEGA LOTEO]:[MEGA LOTEO]]) -> 0 | AT13: =SUMIFS(FlujoVentasEtapas[07-2022],Etapas[[Tipo]:[Tipo]],MegaLoteo[[#This Row],[MEGA LOTEO]:[MEGA LOTEO]]) -> 0 | AU13: =SUMIFS(FlujoVentasEtapas[08-2022],Etapas[[Tipo]:[Tipo]],MegaLoteo[[#This Row],[MEGA LOTEO]:[MEGA LOTEO]]) -> 0 | AV13: =SUMIFS(FlujoVentasEtapas[09-2022],Etapas[[Tipo]:[Tipo]],MegaLoteo[[#This Row],[MEGA LOTEO]:[MEGA LOTEO]]) -> 0 | AW13: =SUMIFS(FlujoVentasEtapas[10-2022],Etapas[[Tipo]:[Tipo]],MegaLoteo[[#This Row],[MEGA LOTEO]:[MEGA LOTEO]]) -> 0 | AX13: =SUMIFS(FlujoVentasEtapas[11-2022],Etapas[[Tipo]:[Tipo]],MegaLoteo[[#This Row],[MEGA LOTEO]:[MEGA LOTEO]]) -> 0 | AY13: =SUMIFS(FlujoVentasEtapas[12-2022],Etapas[[Tipo]:[Tipo]],MegaLoteo[[#This Row],[MEGA LOTEO]:[MEGA LOTEO]]) -> 0 | AZ13: =SUMIFS(FlujoVentasEtapas[01-2023],Etapas[[Tipo]:[Tipo]],MegaLoteo[[#This Row],[MEGA LOTEO]:[MEGA LOTEO]]) -> 0 | BA13: =SUMIFS(FlujoVentasEtapas[02-2023],Etapas[[Tipo]:[Tipo]],MegaLoteo[[#This Row],[MEGA LOTEO]:[MEGA LOTEO]]) -> 0 | BB13: =SUMIFS(FlujoVentasEtapas[03-2023],Etapas[[Tipo]:[Tipo]],MegaLoteo[[#This Row],[MEGA LOTEO]:[MEGA LOTEO]]) -> 0 | BC13: =SUMIFS(FlujoVentasEtapas[04-2023],Etapas[[Tipo]:[Tipo]],MegaLoteo[[#This Row],[MEGA LOTEO]:[MEGA LOTEO]]) -> 0 | BD13: =SUMIFS(FlujoVentasEtapas[05-2023],Etapas[[Tipo]:[Tipo]],MegaLoteo[[#This Row],[MEGA LOTEO]:[MEGA LOTEO]]) -> 0 | BE13: =SUMIFS(FlujoVentasEtapas[06-2023],Etapas[[Tipo]:[Tipo]],MegaLoteo[[#This Row],[MEGA LOTEO]:[MEGA LOTEO]]) -> 0 | BF13: =SUMIFS(FlujoVentasEtapas[07-2023],Etapas[[Tipo]:[Tipo]],MegaLoteo[[#This Row],[MEGA LOTEO]:[MEGA LOTEO]]) -> 0 | BG13: =SUMIFS(FlujoVentasEtapas[08-2023],Etapas[[Tipo]:[Tipo]],MegaLoteo[[#This Row],[MEGA LOTEO]:[MEGA LOTEO]]) -> 0 | BH13: =SUMIFS(FlujoVentasEtapas[09-2023],Etapas[[Tipo]:[Tipo]],MegaLoteo[[#This Row],[MEGA LOTEO]:[MEGA LOTEO]]) -> 0 | BI13: =SUMIFS(FlujoVentasEtapas[10-2023],Etapas[[Tipo]:[Tipo]],MegaLoteo[[#This Row],[MEGA LOTEO]:[MEGA LOTEO]]) -> 0 | BJ13: =SUMIFS(FlujoVentasEtapas[11-2023],Etapas[[Tipo]:[Tipo]],MegaLoteo[[#This Row],[MEGA LOTEO]:[MEGA LOTEO]]) -> 0 | BK13: =SUMIFS(FlujoVentasEtapas[12-2023],Etapas[[Tipo]:[Tipo]],MegaLoteo[[#This Row],[MEGA LOTEO]:[MEGA LOTEO]]) -> 0 | BL13: =SUMIFS(FlujoVentasEtapas[01-2024],Etapas[[Tipo]:[Tipo]],MegaLoteo[[#This Row],[MEGA LOTEO]:[MEGA LOTEO]]) -> 0 | BM13: =SUMIFS(FlujoVentasEtapas[02-2024],Etapas[[Tipo]:[Tipo]],MegaLoteo[[#This Row],[MEGA LOTEO]:[MEGA LOTEO]]) -> 0 | BN13: =SUMIFS(FlujoVentasEtapas[03-2024],Etapas[[Tipo]:[Tipo]],MegaLoteo[[#This Row],[MEGA LOTEO]:[MEGA LOTEO]]) -> 0 | BO13: =SUMIFS(FlujoVentasEtapas[04-2024],Etapas[[Tipo]:[Tipo]],MegaLoteo[[#This Row],[MEGA LOTEO]:[MEGA LOTEO]]) -> 0 | BP13: =SUMIFS(FlujoVentasEtapas[05-2024],Etapas[[Tipo]:[Tipo]],MegaLoteo[[#This Row],[MEGA LOTEO]:[MEGA LOTEO]]) -> 0 | BQ13: =SUMIFS(FlujoVentasEtapas[06-2024],Etapas[[Tipo]:[Tipo]],MegaLoteo[[#This Row],[MEGA LOTEO]:[MEGA LOTEO]]) -> 0 | BR13: =SUMIFS(FlujoVentasEtapas[07-2024],Etapas[[Tipo]:[Tipo]],MegaLoteo[[#This Row],[MEGA LOTEO]:[MEGA LOTEO]]) -> 0 | BS13: =SUMIFS(FlujoVentasEtapas[08-2024],Etapas[[Tipo]:[Tipo]],MegaLoteo[[#This Row],[MEGA LOTEO]:[MEGA LOTEO]]) -> 0 | BT13: =SUMIFS(FlujoVentasEtapas[09-2024],Etapas[[Tipo]:[Tipo]],MegaLoteo[[#This Row],[MEGA LOTEO]:[MEGA LOTEO]]) -> 0 | BU13: =SUMIFS(FlujoVentasEtapas[10-2024],Etapas[[Tipo]:[Tipo]],MegaLoteo[[#This Row],[MEGA LOTEO]:[MEGA LOTEO]]) -> 0 | BV13: =SUMIFS(FlujoVentasEtapas[11-2024],Etapas[[Tipo]:[Tipo]],MegaLoteo[[#This Row],[MEGA LOTEO]:[MEGA LOTEO]]) -> 0 | BW13: =SUMIFS(FlujoVentasEtapas[12-2024],Etapas[[Tipo]:[Tipo]],MegaLoteo[[#This Row],[MEGA LOTEO]:[MEGA LOTEO]]) -> 0 | BX13: =SUMIFS(FlujoVentasEtapas[01-2025],Etapas[[Tipo]:[Tipo]],MegaLoteo[[#This Row],[MEGA LOTEO]:[MEGA LOTEO]]) -> 0 | BY13: =SUMIFS(FlujoVentasEtapas[02-2025],Etapas[[Tipo]:[Tipo]],MegaLoteo[[#This Row],[MEGA LOTEO]:[MEGA LOTEO]]) -> 0 | BZ13: =SUMIFS(FlujoVentasEtapas[03-2025],Etapas[[Tipo]:[Tipo]],MegaLoteo[[#This Row],[MEGA LOTEO]:[MEGA LOTEO]]) -> 0 | CA13: =SUMIFS(FlujoVentasEtapas[04-2025],Etapas[[Tipo]:[Tipo]],MegaLoteo[[#This Row],[MEGA LOTEO]:[MEGA LOTEO]]) -> 0 | CB13: =SUMIFS(FlujoVentasEtapas[05-2025],Etapas[[Tipo]:[Tipo]],MegaLoteo[[#This Row],[MEGA LOTEO]:[MEGA LOTEO]]) -> 0 | CC13: =SUMIFS(FlujoVentasEtapas[06-2025],Etapas[[Tipo]:[Tipo]],MegaLoteo[[#This Row],[MEGA LOTEO]:[MEGA LOTEO]]) -> 0 | CD13: =SUMIFS(FlujoVentasEtapas[07-2025],Etapas[[Tipo]:[Tipo]],MegaLoteo[[#This Row],[MEGA LOTEO]:[MEGA LOTEO]]) -> 0 | CE13: =SUMIFS(FlujoVentasEtapas[08-2025],Etapas[[Tipo]:[Tipo]],MegaLoteo[[#This Row],[MEGA LOTEO]:[MEGA LOTEO]]) -> 0 | CF13: =SUMIFS(FlujoVentasEtapas[09-2025],Etapas[[Tipo]:[Tipo]],MegaLoteo[[#This Row],[MEGA LOTEO]:[MEGA LOTEO]]) -> 0 | CG13: =SUMIFS(FlujoVentasEtapas[10-2025],Etapas[[Tipo]:[Tipo]],MegaLoteo[[#This Row],[MEGA LOTEO]:[MEGA LOTEO]]) -> 0 | CH13: =SUMIFS(FlujoVentasEtapas[11-2025],Etapas[[Tipo]:[Tipo]],MegaLoteo[[#This Row],[MEGA LOTEO]:[MEGA LOTEO]]) -> 0 | CI13: =SUMIFS(FlujoVentasEtapas[12-2025],Etapas[[Tipo]:[Tipo]],MegaLoteo[[#This Row],[MEGA LOTEO]:[MEGA LOTEO]]) -> 0 | CJ13: =SUMIFS(FlujoVentasEtapas[01-2026],Etapas[[Tipo]:[Tipo]],MegaLoteo[[#This Row],[MEGA LOTEO]:[MEGA LOTEO]]) -> 0 | CK13: =SUMIFS(FlujoVentasEtapas[02-2026],Etapas[[Tipo]:[Tipo]],MegaLoteo[[#This Row],[MEGA LOTEO]:[MEGA LOTEO]]) -> 0 | CL13: =SUMIFS(FlujoVentasEtapas[03-2026],Etapas[[Tipo]:[Tipo]],MegaLoteo[[#This Row],[MEGA LOTEO]:[MEGA LOTEO]]) -> 0 | CM13: =SUMIFS(FlujoVentasEtapas[04-2026],Etapas[[Tipo]:[Tipo]],MegaLoteo[[#This Row],[MEGA LOTEO]:[MEGA LOTEO]]) -> 0 | CN13: =SUMIFS(FlujoVentasEtapas[05-2026],Etapas[[Tipo]:[Tipo]],MegaLoteo[[#This Row],[MEGA LOTEO]:[MEGA LOTEO]]) -> 0 | CO13: =SUMIFS(FlujoVentasEtapas[06-2026],Etapas[[Tipo]:[Tipo]],MegaLoteo[[#This Row],[MEGA LOTEO]:[MEGA LOTEO]]) -> 0 | CP13: =SUMIFS(FlujoVentasEtapas[07-2026],Etapas[[Tipo]:[Tipo]],MegaLoteo[[#This Row],[MEGA LOTEO]:[MEGA LOTEO]]) -> 0 | CQ13: =SUMIFS(FlujoVentasEtapas[08-2026],Etapas[[Tipo]:[Tipo]],MegaLoteo[[#This Row],[MEGA LOTEO]:[MEGA LOTEO]]) -> 0 | CR13: =SUMIFS(FlujoVentasEtapas[09-2026],Etapas[[Tipo]:[Tipo]],MegaLoteo[[#This Row],[MEGA LOTEO]:[MEGA LOTEO]]) -> 0 | CS13: =SUMIFS(FlujoVentasEtapas[10-2026],Etapas[[Tipo]:[Tipo]],MegaLoteo[[#This Row],[MEGA LOTEO]:[MEGA LOTEO]]) -> 0 | CT13: =SUMIFS(FlujoVentasEtapas[11-2026],Etapas[[Tipo]:[Tipo]],MegaLoteo[[#This Row],[MEGA LOTEO]:[MEGA LOTEO]]) -> 0 | CU13: =SUMIFS(FlujoVentasEtapas[12-2026],Etapas[[Tipo]:[Tipo]],MegaLoteo[[#This Row],[MEGA LOTEO]:[MEGA LOTEO]]) -> 0 | CV13: =SUMIFS(FlujoVentasEtapas[01-2027],Etapas[[Tipo]:[Tipo]],MegaLoteo[[#This Row],[MEGA LOTEO]:[MEGA LOTEO]]) -> 0 | CW13: =SUMIFS(FlujoVentasEtapas[02-2027],Etapas[[Tipo]:[Tipo]],MegaLoteo[[#This Row],[MEGA LOTEO]:[MEGA LOTEO]]) -> 0 | CX13: =SUMIFS(FlujoVentasEtapas[03-2027],Etapas[[Tipo]:[Tipo]],MegaLoteo[[#This Row],[MEGA LOTEO]:[MEGA LOTEO]]) -> 0 | CY13: =SUMIFS(FlujoVentasEtapas[04-2027],Etapas[[Tipo]:[Tipo]],MegaLoteo[[#This Row],[MEGA LOTEO]:[MEGA LOTEO]]) -> 0 | CZ13: =SUMIFS(FlujoVentasEtapas[05-2027],Etapas[[Tipo]:[Tipo]],MegaLoteo[[#This Row],[MEGA LOTEO]:[MEGA LOTEO]]) -> 0 | DA13: =SUMIFS(FlujoVentasEtapas[06-2027],Etapas[[Tipo]:[Tipo]],MegaLoteo[[#This Row],[MEGA LOTEO]:[MEGA LOTEO]]) -> 0 | DB13: =SUMIFS(FlujoVentasEtapas[07-2027],Etapas[[Tipo]:[Tipo]],MegaLoteo[[#This Row],[MEGA LOTEO]:[MEGA LOTEO]]) -> 0 | DC13: =SUMIFS(FlujoVentasEtapas[08-2027],Etapas[[Tipo]:[Tipo]],MegaLoteo[[#This Row],[MEGA LOTEO]:[MEGA LOTEO]]) -> 0 | DD13: =SUMIFS(FlujoVentasEtapas[09-2027],Etapas[[Tipo]:[Tipo]],MegaLoteo[[#This Row],[MEGA LOTEO]:[MEGA LOTEO]]) -> 0 | DE13: =SUMIFS(FlujoVentasEtapas[10-2027],Etapas[[Tipo]:[Tipo]],MegaLoteo[[#This Row],[MEGA LOTEO]:[MEGA LOTEO]]) -> 0 | DF13: =SUMIFS(FlujoVentasEtapas[11-2027],Etapas[[Tipo]:[Tipo]],MegaLoteo[[#This Row],[MEGA LOTEO]:[MEGA LOTEO]]) -> 0 | DG13: =SUMIFS(FlujoVentasEtapas[12-2027],Etapas[[Tipo]:[Tipo]],MegaLoteo[[#This Row],[MEGA LOTEO]:[MEGA LOTEO]]) -> 0 | DH13: =SUMIFS(FlujoVentasEtapas[01-2028],Etapas[[Tipo]:[Tipo]],MegaLoteo[[#This Row],[MEGA LOTEO]:[MEGA LOTEO]]) -> 0 | DI13: =SUMIFS(FlujoVentasEtapas[02-2028],Etapas[[Tipo]:[Tipo]],MegaLoteo[[#This Row],[MEGA LOTEO]:[MEGA LOTEO]]) -> 0 | DJ13: =SUMIFS(FlujoVentasEtapas[03-2028],Etapas[[Tipo]:[Tipo]],MegaLoteo[[#This Row],[MEGA LOTEO]:[MEGA LOTEO]]) -> 0 | DK13: =SUMIFS(FlujoVentasEtapas[04-2028],Etapas[[Tipo]:[Tipo]],MegaLoteo[[#This Row],[MEGA LOTEO]:[MEGA LOTEO]]) -> 0 | DL13: =SUMIFS(FlujoVentasEtapas[05-2028],Etapas[[Tipo]:[Tipo]],MegaLoteo[[#This Row],[MEGA LOTEO]:[MEGA LOTEO]]) -> 0 | DM13: =SUMIFS(FlujoVentasEtapas[06-2028],Etapas[[Tipo]:[Tipo]],MegaLoteo[[#This Row],[MEGA LOTEO]:[MEGA LOTEO]]) -> 0 | DN13: =SUMIFS(FlujoVentasEtapas[07-2028],Etapas[[Tipo]:[Tipo]],MegaLoteo[[#This Row],[MEGA LOTEO]:[MEGA LOTEO]]) -> 0 | DO13: =SUMIFS(FlujoVentasEtapas[08-2028],Etapas[[Tipo]:[Tipo]],MegaLoteo[[#This Row],[MEGA LOTEO]:[MEGA LOTEO]]) -> 0 | DP13: =SUMIFS(FlujoVentasEtapas[09-2028],Etapas[[Tipo]:[Tipo]],MegaLoteo[[#This Row],[MEGA LOTEO]:[MEGA LOTEO]]) -> 0 | DQ13: =SUMIFS(FlujoVentasEtapas[10-2028],Etapas[[Tipo]:[Tipo]],MegaLoteo[[#This Row],[MEGA LOTEO]:[MEGA LOTEO]]) -> 0 | DR13: =SUMIFS(FlujoVentasEtapas[11-2028],Etapas[[Tipo]:[Tipo]],MegaLoteo[[#This Row],[MEGA LOTEO]:[MEGA LOTEO]]) -> 0 | DS13: =SUMIFS(FlujoVentasEtapas[12-2028],Etapas[[Tipo]:[Tipo]],MegaLoteo[[#This Row],[MEGA LOTEO]:[MEGA LOTEO]]) -> 0 | DT13: =SUMIFS(FlujoVentasEtapas[01-2029],Etapas[[Tipo]:[Tipo]],MegaLoteo[[#This Row],[MEGA LOTEO]:[MEGA LOTEO]]) -> 0 | DU13: =SUMIFS(FlujoVentasEtapas[02-2029],Etapas[[Tipo]:[Tipo]],MegaLoteo[[#This Row],[MEGA LOTEO]:[MEGA LOTEO]]) -> 0 | DV13: =SUMIFS(FlujoVentasEtapas[03-2029],Etapas[[Tipo]:[Tipo]],MegaLoteo[[#This Row],[MEGA LOTEO]:[MEGA LOTEO]]) -> 0 | DW13: =SUMIFS(FlujoVentasEtapas[04-2029],Etapas[[Tipo]:[Tipo]],MegaLoteo[[#This Row],[MEGA LOTEO]:[MEGA LOTEO]]) -> 0 | DX13: =SUMIFS(FlujoVentasEtapas[05-2029],Etapas[[Tipo]:[Tipo]],MegaLoteo[[#This Row],[MEGA LOTEO]:[MEGA LOTEO]]) -> 0 | DY13: =SUMIFS(FlujoVentasEtapas[06-2029],Etapas[[Tipo]:[Tipo]],MegaLoteo[[#This Row],[MEGA LOTEO]:[MEGA LOTEO]]) -> 0 | DZ13: =SUMIFS(FlujoVentasEtapas[07-2029],Etapas[[Tipo]:[Tipo]],MegaLoteo[[#This Row],[MEGA LOTEO]:[MEGA LOTEO]]) -> 0 | EA13: =SUMIFS(FlujoVentasEtapas[08-2029],Etapas[[Tipo]:[Tipo]],MegaLoteo[[#This Row],[MEGA LOTEO]:[MEGA LOTEO]]) -> 0 | EB13: =SUMIFS(FlujoVentasEtapas[09-2029],Etapas[[Tipo]:[Tipo]],MegaLoteo[[#This Row],[MEGA LOTEO]:[MEGA LOTEO]]) -> 0 | EC13: =SUMIFS(FlujoVentasEtapas[10-2029],Etapas[[Tipo]:[Tipo]],MegaLoteo[[#This Row],[MEGA LOTEO]:[MEGA LOTEO]]) -> 0 | ED13: =SUMIFS(FlujoVentasEtapas[11-2029],Etapas[[Tipo]:[Tipo]],MegaLoteo[[#This Row],[MEGA LOTEO]:[MEGA LOTEO]]) -> 0 | EE13: =SUMIFS(FlujoVentasEtapas[12-2029],Etapas[[Tipo]:[Tipo]],MegaLoteo[[#This Row],[MEGA LOTEO]:[MEGA LOTEO]]) -> 0 | EF13: =SUMIFS(FlujoVentasEtapas[01-2030],Etapas[[Tipo]:[Tipo]],MegaLoteo[[#This Row],[MEGA LOTEO]:[MEGA LOTEO]]) -> 0 | EG13: =SUMIFS(FlujoVentasEtapas[02-2030],Etapas[[Tipo]:[Tipo]],MegaLoteo[[#This Row],[MEGA LOTEO]:[MEGA LOTEO]]) -> 0 | EH13: =SUMIFS(FlujoVentasEtapas[03-2030],Etapas[[Tipo]:[Tipo]],MegaLoteo[[#This Row],[MEGA LOTEO]:[MEGA LOTEO]]) -> 0 | EI13: =SUMIFS(FlujoVentasEtapas[04-2030],Etapas[[Tipo]:[Tipo]],MegaLoteo[[#This Row],[MEGA LOTEO]:[MEGA LOTEO]]) -> 0 | EJ13: =SUMIFS(FlujoVentasEtapas[05-2030],Etapas[[Tipo]:[Tipo]],MegaLoteo[[#This Row],[MEGA LOTEO]:[MEGA LOTEO]]) -> 0 | EK13: =SUMIFS(FlujoVentasEtapas[06-2030],Etapas[[Tipo]:[Tipo]],MegaLoteo[[#This Row],[MEGA LOTEO]:[MEGA LOTEO]]) -> 0 | EL13: =SUMIFS(FlujoVentasEtapas[07-2030],Etapas[[Tipo]:[Tipo]],MegaLoteo[[#This Row],[MEGA LOTEO]:[MEGA LOTEO]]) -> 0 | EM13: =SUMIFS(FlujoVentasEtapas[08-2030],Etapas[[Tipo]:[Tipo]],MegaLoteo[[#This Row],[MEGA LOTEO]:[MEGA LOTEO]]) -> 0 | EN13: =SUMIFS(FlujoVentasEtapas[09-2030],Etapas[[Tipo]:[Tipo]],MegaLoteo[[#This Row],[MEGA LOTEO]:[MEGA LOTEO]]) -> 0 | EO13: =SUMIFS(FlujoVentasEtapas[10-2030],Etapas[[Tipo]:[Tipo]],MegaLoteo[[#This Row],[MEGA LOTEO]:[MEGA LOTEO]]) -> 0 | EP13: =SUMIFS(FlujoVentasEtapas[11-2030],Etapas[[Tipo]:[Tipo]],MegaLoteo[[#This Row],[MEGA LOTEO]:[MEGA LOTEO]]) -> 0 | EQ13: =SUMIFS(FlujoVentasEtapas[12-2030],Etapas[[Tipo]:[Tipo]],MegaLoteo[[#This Row],[MEGA LOTEO]:[MEGA LOTEO]]) -> 0 | ER13: =SUMIFS(FlujoVentasEtapas[01-2031],Etapas[[Tipo]:[Tipo]],MegaLoteo[[#This Row],[MEGA LOTEO]:[MEGA LOTEO]]) -> 0 | ES13: =SUMIFS(FlujoVentasEtapas[02-2031],Etapas[[Tipo]:[Tipo]],MegaLoteo[[#This Row],[MEGA LOTEO]:[MEGA LOTEO]]) -> 0 | ET13: =SUMIFS(FlujoVentasEtapas[03-2031],Etapas[[Tipo]:[Tipo]],MegaLoteo[[#This Row],[MEGA LOTEO]:[MEGA LOTEO]]) -> 0 | EU13: =SUMIFS(FlujoVentasEtapas[04-2031],Etapas[[Tipo]:[Tipo]],MegaLoteo[[#This Row],[MEGA LOTEO]:[MEGA LOTEO]]) -> 0 | EV13: =SUMIFS(FlujoVentasEtapas[05-2031],Etapas[[Tipo]:[Tipo]],MegaLoteo[[#This Row],[MEGA LOTEO]:[MEGA LOTEO]]) -> 0 | EW13: =SUMIFS(FlujoVentasEtapas[06-2031],Etapas[[Tipo]:[Tipo]],MegaLoteo[[#This Row],[MEGA LOTEO]:[MEGA LOTEO]]) -> 0 | EX13: =SUMIFS(FlujoVentasEtapas[07-2031],Etapas[[Tipo]:[Tipo]],MegaLoteo[[#This Row],[MEGA LOTEO]:[MEGA LOTEO]]) -> 0 | EY13: =SUMIFS(FlujoVentasEtapas[08-2031],Etapas[[Tipo]:[Tipo]],MegaLoteo[[#This Row],[MEGA LOTEO]:[MEGA LOTEO]]) -> 0 | EZ13: =SUMIFS(FlujoVentasEtapas[09-2031],Etapas[[Tipo]:[Tipo]],MegaLoteo[[#This Row],[MEGA LOTEO]:[MEGA LOTEO]]) -> 0 | FA13: =SUMIFS(FlujoVentasEtapas[10-2031],Etapas[[Tipo]:[Tipo]],MegaLoteo[[#This Row],[MEGA LOTEO]:[MEGA LOTEO]]) -> 0 | FB13: =SUMIFS(FlujoVentasEtapas[11-2031],Etapas[[Tipo]:[Tipo]],MegaLoteo[[#This Row],[MEGA LOTEO]:[MEGA LOTEO]]) -> 0 | FC13: =SUMIFS(FlujoVentasEtapas[12-2031],Etapas[[Tipo]:[Tipo]],MegaLoteo[[#This Row],[MEGA LOTEO]:[MEGA LOTEO]]) -> 0 | FD13: =SUMIFS(FlujoVentasEtapas[01-2032],Etapas[[Tipo]:[Tipo]],MegaLoteo[[#This Row],[MEGA LOTEO]:[MEGA LOTEO]]) -> 0 | FE13: =SUMIFS(FlujoVentasEtapas[02-2032],Etapas[[Tipo]:[Tipo]],MegaLoteo[[#This Row],[MEGA LOTEO]:[MEGA LOTEO]]) -> 0 | FF13: =SUMIFS(FlujoVentasEtapas[03-2032],Etapas[[Tipo]:[Tipo]],MegaLoteo[[#This Row],[MEGA LOTEO]:[MEGA LOTEO]]) -> 0 | FG13: =SUMIFS(FlujoVentasEtapas[04-2032],Etapas[[Tipo]:[Tipo]],MegaLoteo[[#This Row],[MEGA LOTEO]:[MEGA LOTEO]]) -> 0 | FH13: =SUMIFS(FlujoVentasEtapas[05-2032],Etapas[[Tipo]:[Tipo]],MegaLoteo[[#This Row],[MEGA LOTEO]:[MEGA LOTEO]]) -> 0 | FI13: =SUMIFS(FlujoVentasEtapas[06-2032],Etapas[[Tipo]:[Tipo]],MegaLoteo[[#This Row],[MEGA LOTEO]:[MEGA LOTEO]]) -> 0 | FJ13: =SUMIFS(FlujoVentasEtapas[07-2032],Etapas[[Tipo]:[Tipo]],MegaLoteo[[#This Row],[MEGA LOTEO]:[MEGA LOTEO]]) -> 0 | FK13: =SUMIFS(FlujoVentasEtapas[08-2032],Etapas[[Tipo]:[Tipo]],MegaLoteo[[#This Row],[MEGA LOTEO]:[MEGA LOTEO]]) -> 0 | FL13: =SUMIFS(FlujoVentasEtapas[09-2032],Etapas[[Tipo]:[Tipo]],MegaLoteo[[#This Row],[MEGA LOTEO]:[MEGA LOTEO]]) -> 0 | FM13: =SUMIFS(FlujoVentasEtapas[10-2032],Etapas[[Tipo]:[Tipo]],MegaLoteo[[#This Row],[MEGA LOTEO]:[MEGA LOTEO]]) -> 0 | FN13: =SUMIFS(FlujoVentasEtapas[11-2032],Etapas[[Tipo]:[Tipo]],MegaLoteo[[#This Row],[MEGA LOTEO]:[MEGA LOTEO]]) -> 0 | FO13: =SUMIFS(FlujoVentasEtapas[12-2032],Etapas[[Tipo]:[Tipo]],MegaLoteo[[#This Row],[MEGA LOTEO]:[MEGA LOTEO]]) -> 0 | FP13: =SUMIFS(FlujoVentasEtapas[01-2033],Etapas[[Tipo]:[Tipo]],MegaLoteo[[#This Row],[MEGA LOTEO]:[MEGA LOTEO]]) -> 0 | FQ13: =SUMIFS(FlujoVentasEtapas[02-2033],Etapas[[Tipo]:[Tipo]],MegaLoteo[[#This Row],[MEGA LOTEO]:[MEGA LOTEO]]) -> 0 | FR13: =SUMIFS(FlujoVentasEtapas[03-2033],Etapas[[Tipo]:[Tipo]],MegaLoteo[[#This Row],[MEGA LOTEO]:[MEGA LOTEO]]) -> 0 | FS13: =SUMIFS(FlujoVentasEtapas[04-2033],Etapas[[Tipo]:[Tipo]],MegaLoteo[[#This Row],[MEGA LOTEO]:[MEGA LOTEO]]) -> 0 | FT13: =SUMIFS(FlujoVentasEtapas[05-2033],Etapas[[Tipo]:[Tipo]],MegaLoteo[[#This Row],[MEGA LOTEO]:[MEGA LOTEO]]) -> 0 | FU13: =SUMIFS(FlujoVentasEtapas[06-2033],Etapas[[Tipo]:[Tipo]],MegaLoteo[[#This Row],[MEGA LOTEO]:[MEGA LOTEO]]) -> 0 | FV13: =SUMIFS(FlujoVentasEtapas[07-2033],Etapas[[Tipo]:[Tipo]],MegaLoteo[[#This Row],[MEGA LOTEO]:[MEGA LOTEO]]) -> 0 | FW13: =SUMIFS(FlujoVentasEtapas[08-2033],Etapas[[Tipo]:[Tipo]],MegaLoteo[[#This Row],[MEGA LOTEO]:[MEGA LOTEO]]) -> 0 | FX13: =SUMIFS(FlujoVentasEtapas[09-2033],Etapas[[Tipo]:[Tipo]],MegaLoteo[[#This Row],[MEGA LOTEO]:[MEGA LOTEO]]) -> 0 | FY13: =SUMIFS(FlujoVentasEtapas[10-2033],Etapas[[Tipo]:[Tipo]],MegaLoteo[[#This Row],[MEGA LOTEO]:[MEGA LOTEO]]) -> 0 | FZ13: =SUMIFS(FlujoVentasEtapas[11-2033],Etapas[[Tipo]:[Tipo]],MegaLoteo[[#This Row],[MEGA LOTEO]:[MEGA LOTEO]]) -> 0 | GA13: =SUMIFS(FlujoVentasEtapas[12-2033],Etapas[[Tipo]:[Tipo]],MegaLoteo[[#This Row],[MEGA LOTEO]:[MEGA LOTEO]]) -> 0 | GB13: =SUMIFS(FlujoVentasEtapas[01-2034],Etapas[[Tipo]:[Tipo]],MegaLoteo[[#This Row],[MEGA LOTEO]:[MEGA LOTEO]]) -> 0 | GC13: =SUMIFS(FlujoVentasEtapas[02-2034],Etapas[[Tipo]:[Tipo]],MegaLoteo[[#This Row],[MEGA LOTEO]:[MEGA LOTEO]]) -> 0 | GD13: =SUMIFS(FlujoVentasEtapas[03-2034],Etapas[[Tipo]:[Tipo]],MegaLoteo[[#This Row],[MEGA LOTEO]:[MEGA LOTEO]]) -> 0 | GE13: =SUMIFS(FlujoVentasEtapas[04-2034],Etapas[[Tipo]:[Tipo]],MegaLoteo[[#This Row],[MEGA LOTEO]:[MEGA LOTEO]]) -> 0 | GF13: =SUMIFS(FlujoVentasEtapas[05-2034],Etapas[[Tipo]:[Tipo]],MegaLoteo[[#This Row],[MEGA LOTEO]:[MEGA LOTEO]]) -> 0 | GG13: =SUMIFS(FlujoVentasEtapas[06-2034],Etapas[[Tipo]:[Tipo]],MegaLoteo[[#This Row],[MEGA LOTEO]:[MEGA LOTEO]]) -> 0 | GH13: =SUMIFS(FlujoVentasEtapas[07-2034],Etapas[[Tipo]:[Tipo]],MegaLoteo[[#This Row],[MEGA LOTEO]:[MEGA LOTEO]]) -> 0 | GI13: =SUMIFS(FlujoVentasEtapas[08-2034],Etapas[[Tipo]:[Tipo]],MegaLoteo[[#This Row],[MEGA LOTEO]:[MEGA LOTEO]]) -> 0 | GJ13: =SUMIFS(FlujoVentasEtapas[09-2034],Etapas[[Tipo]:[Tipo]],MegaLoteo[[#This Row],[MEGA LOTEO]:[MEGA LOTEO]]) -> 0 | GK13: =SUMIFS(FlujoVentasEtapas[10-2034],Etapas[[Tipo]:[Tipo]],MegaLoteo[[#This Row],[MEGA LOTEO]:[MEGA LOTEO]]) -> 0 | GL13: =SUMIFS(FlujoVentasEtapas[11-2034],Etapas[[Tipo]:[Tipo]],MegaLoteo[[#This Row],[MEGA LOTEO]:[MEGA LOTEO]]) -> 0 | GM13: =SUMIFS(FlujoVentasEtapas[12-2034],Etapas[[Tipo]:[Tipo]],MegaLoteo[[#This Row],[MEGA LOTEO]:[MEGA LOTEO]]) -> 0 | GN13: =SUMIFS(FlujoVentasEtapas[01-2035],Etapas[[Tipo]:[Tipo]],MegaLoteo[[#This Row],[MEGA LOTEO]:[MEGA LOTEO]]) -> 0 | GO13: =SUMIFS(FlujoVentasEtapas[02-2035],Etapas[[Tipo]:[Tipo]],MegaLoteo[[#This Row],[MEGA LOTEO]:[MEGA LOTEO]]) -> 0 | GP13: =SUMIFS(FlujoVentasEtapas[03-2035],Etapas[[Tipo]:[Tipo]],MegaLoteo[[#This Row],[MEGA LOTEO]:[MEGA LOTEO]]) -> 0 | GQ13: =SUMIFS(FlujoVentasEtapas[04-2035],Etapas[[Tipo]:[Tipo]],MegaLoteo[[#This Row],[MEGA LOTEO]:[MEGA LOTEO]]) -> 0 | GR13: =SUMIFS(FlujoVentasEtapas[05-2035],Etapas[[Tipo]:[Tipo]],MegaLoteo[[#This Row],[MEGA LOTEO]:[MEGA LOTEO]]) -> 0 | GS13: =SUMIFS(FlujoVentasEtapas[06-2035],Etapas[[Tipo]:[Tipo]],MegaLoteo[[#This Row],[MEGA LOTEO]:[MEGA LOTEO]]) -> 0 | GT13: =SUMIFS(FlujoVentasEtapas[07-2035],Etapas[[Tipo]:[Tipo]],MegaLoteo[[#This Row],[MEGA LOTEO]:[MEGA LOTEO]]) -> 0 | GU13: =SUMIFS(FlujoVentasEtapas[08-2035],Etapas[[Tipo]:[Tipo]],MegaLoteo[[#This Row],[MEGA LOTEO]:[MEGA LOTEO]]) -> 0 | GV13: =SUMIFS(FlujoVentasEtapas[09-2035],Etapas[[Tipo]:[Tipo]],MegaLoteo[[#This Row],[MEGA LOTEO]:[MEGA LOTEO]]) -> 0 | GW13: =SUMIFS(FlujoVentasEtapas[10-2035],Etapas[[Tipo]:[Tipo]],MegaLoteo[[#This Row],[MEGA LOTEO]:[MEGA LOTEO]]) -> 0 | GX13: =SUMIFS(FlujoVentasEtapas[11-2035],Etapas[[Tipo]:[Tipo]],MegaLoteo[[#This Row],[MEGA LOTEO]:[MEGA LOTEO]]) -> 0 | GY13: =SUMIFS(FlujoVentasEtapas[12-2035],Etapas[[Tipo]:[Tipo]],MegaLoteo[[#This Row],[MEGA LOTEO]:[MEGA LOTEO]]) -> 0 | GZ13: =SUMIFS(FlujoVentasEtapas[01-2036],Etapas[[Tipo]:[Tipo]],MegaLoteo[[#This Row],[MEGA LOTEO]:[MEGA LOTEO]]) -> 0 | HA13: =SUMIFS(FlujoVentasEtapas[02-2036],Etapas[[Tipo]:[Tipo]],MegaLoteo[[#This Row],[MEGA LOTEO]:[MEGA LOTEO]]) -> 0 | HB13: =SUMIFS(FlujoVentasEtapas[03-2036],Etapas[[Tipo]:[Tipo]],MegaLoteo[[#This Row],[MEGA LOTEO]:[MEGA LOTEO]]) -> 0 | HC13: =SUMIFS(FlujoVentasEtapas[04-2036],Etapas[[Tipo]:[Tipo]],MegaLoteo[[#This Row],[MEGA LOTEO]:[MEGA LOTEO]]) -> 0 | HD13: =SUMIFS(FlujoVentasEtapas[05-2036],Etapas[[Tipo]:[Tipo]],MegaLoteo[[#This Row],[MEGA LOTEO]:[MEGA LOTEO]]) -> 0 | HE13: =SUMIFS(FlujoVentasEtapas[06-2036],Etapas[[Tipo]:[Tipo]],MegaLoteo[[#This Row],[MEGA LOTEO]:[MEGA LOTEO]]) -> 0 | HF13: =SUMIFS(FlujoVentasEtapas[07-2036],Etapas[[Tipo]:[Tipo]],MegaLoteo[[#This Row],[MEGA LOTEO]:[MEGA LOTEO]]) -> 0 | HG13: =SUMIFS(FlujoVentasEtapas[08-2036],Etapas[[Tipo]:[Tipo]],MegaLoteo[[#This Row],[MEGA LOTEO]:[MEGA LOTEO]]) -> 0 | HH13: =SUMIFS(FlujoVentasEtapas[09-2036],Etapas[[Tipo]:[Tipo]],MegaLoteo[[#This Row],[MEGA LOTEO]:[MEGA LOTEO]]) -> 0 | HI13: =SUMIFS(FlujoVentasEtapas[10-2036],Etapas[[Tipo]:[Tipo]],MegaLoteo[[#This Row],[MEGA LOTEO]:[MEGA LOTEO]]) -> 0 | HJ13: =SUMIFS(FlujoVentasEtapas[11-2036],Etapas[[Tipo]:[Tipo]],MegaLoteo[[#This Row],[MEGA LOTEO]:[MEGA LOTEO]]) -> 0 | HK13: =SUMIFS(FlujoVentasEtapas[12-2036],Etapas[[Tipo]:[Tipo]],MegaLoteo[[#This Row],[MEGA LOTEO]:[MEGA LOTEO]]) -> 0 | HL13: =SUMIFS(FlujoVentasEtapas[01-2037],Etapas[[Tipo]:[Tipo]],MegaLoteo[[#This Row],[MEGA LOTEO]:[MEGA LOTEO]]) -> 0 | HM13: =SUMIFS(FlujoVentasEtapas[02-2037],Etapas[[Tipo]:[Tipo]],MegaLoteo[[#This Row],[MEGA LOTEO]:[MEGA LOTEO]]) -> 0 | HN13: =SUMIFS(FlujoVentasEtapas[03-2037],Etapas[[Tipo]:[Tipo]],MegaLoteo[[#This Row],[MEGA LOTEO]:[MEGA LOTEO]]) -> 0 | HO13: =SUMIFS(FlujoVentasEtapas[04-2037],Etapas[[Tipo]:[Tipo]],MegaLoteo[[#This Row],[MEGA LOTEO]:[MEGA LOTEO]]) -> 0 | HP13: =SUMIFS(FlujoVentasEtapas[05-2037],Etapas[[Tipo]:[Tipo]],MegaLoteo[[#This Row],[MEGA LOTEO]:[MEGA LOTEO]]) -> 0 | HQ13: =SUMIFS(FlujoVentasEtapas[06-2037],Etapas[[Tipo]:[Tipo]],MegaLoteo[[#This Row],[MEGA LOTEO]:[MEGA LOTEO]]) -> 0 | HR13: =SUMIFS(FlujoVentasEtapas[07-2037],Etapas[[Tipo]:[Tipo]],MegaLoteo[[#This Row],[MEGA LOTEO]:[MEGA LOTEO]]) -> 0 | HS13: =SUMIFS(FlujoVentasEtapas[08-2037],Etapas[[Tipo]:[Tipo]],MegaLoteo[[#This Row],[MEGA LOTEO]:[MEGA LOTEO]]) -> 0 | HT13: =SUMIFS(FlujoVentasEtapas[09-2037],Etapas[[Tipo]:[Tipo]],MegaLoteo[[#This Row],[MEGA LOTEO]:[MEGA LOTEO]]) -> 0 | HU13: =SUMIFS(FlujoVentasEtapas[10-2037],Etapas[[Tipo]:[Tipo]],MegaLoteo[[#This Row],[MEGA LOTEO]:[MEGA LOTEO]]) -> 0 | HV13: =SUMIFS(FlujoVentasEtapas[11-2037],Etapas[[Tipo]:[Tipo]],MegaLoteo[[#This Row],[MEGA LOTEO]:[MEGA LOTEO]]) -> 0 | HW13: =SUMIFS(FlujoVentasEtapas[12-2037],Etapas[[Tipo]:[Tipo]],MegaLoteo[[#This Row],[MEGA LOTEO]:[MEGA LOTEO]]) -> 0 | HX13: =SUMIFS(FlujoVentasEtapas[01-2038],Etapas[[Tipo]:[Tipo]],MegaLoteo[[#This Row],[MEGA LOTEO]:[MEGA LOTEO]]) -> 0 | HY13: =SUMIFS(FlujoVentasEtapas[02-2038],Etapas[[Tipo]:[Tipo]],MegaLoteo[[#This Row],[MEGA LOTEO]:[MEGA LOTEO]]) -> 0 | HZ13: =SUMIFS(FlujoVentasEtapas[03-2038],Etapas[[Tipo]:[Tipo]],MegaLoteo[[#This Row],[MEGA LOTEO]:[MEGA LOTEO]]) -> 0 | IA13: =SUMIFS(FlujoVentasEtapas[04-2038],Etapas[[Tipo]:[Tipo]],MegaLoteo[[#This Row],[MEGA LOTEO]:[MEGA LOTEO]]) -> 0 | IB13: =SUMIFS(FlujoVentasEtapas[05-2038],Etapas[[Tipo]:[Tipo]],MegaLoteo[[#This Row],[MEGA LOTEO]:[MEGA LOTEO]]) -> 0 | IC13: =SUMIFS(FlujoVentasEtapas[06-2038],Etapas[[Tipo]:[Tipo]],MegaLoteo[[#This Row],[MEGA LOTEO]:[MEGA LOTEO]]) -> 0 | ID13: =SUMIFS(FlujoVentasEtapas[07-2038],Etapas[[Tipo]:[Tipo]],MegaLoteo[[#This Row],[MEGA LOTEO]:[MEGA LOTEO]]) -> 0 | IE13: =SUMIFS(FlujoVentasEtapas[08-2038],Etapas[[Tipo]:[Tipo]],MegaLoteo[[#This Row],[MEGA LOTEO]:[MEGA LOTEO]]) -> 0 | IF13: =SUMIFS(FlujoVentasEtapas[09-2038],Etapas[[Tipo]:[Tipo]],MegaLoteo[[#This Row],[MEGA LOTEO]:[MEGA LOTEO]]) -> 0 | IG13: =SUMIFS(FlujoVentasEtapas[10-2038],Etapas[[Tipo]:[Tipo]],MegaLoteo[[#This Row],[MEGA LOTEO]:[MEGA LOTEO]]) -> 0 | IH13: =SUMIFS(FlujoVentasEtapas[11-2038],Etapas[[Tipo]:[Tipo]],MegaLoteo[[#This Row],[MEGA LOTEO]:[MEGA LOTEO]]) -> 0 | II13: =SUMIFS(FlujoVentasEtapas[12-2038],Etapas[[Tipo]:[Tipo]],MegaLoteo[[#This Row],[MEGA LOTEO]:[MEGA LOTEO]]) -> 0 | IJ13: =SUMIFS(FlujoVentasEtapas[01-2039],Etapas[[Tipo]:[Tipo]],MegaLoteo[[#This Row],[MEGA LOTEO]:[MEGA LOTEO]]) -> 0 | IK13: =SUMIFS(FlujoVentasEtapas[02-2039],Etapas[[Tipo]:[Tipo]],MegaLoteo[[#This Row],[MEGA LOTEO]:[MEGA LOTEO]]) -> 0 | IL13: =SUMIFS(FlujoVentasEtapas[03-2039],Etapas[[Tipo]:[Tipo]],MegaLoteo[[#This Row],[MEGA LOTEO]:[MEGA LOTEO]]) -> 0 | IM13: =SUMIFS(FlujoVentasEtapas[04-2039],Etapas[[Tipo]:[Tipo]],MegaLoteo[[#This Row],[MEGA LOTEO]:[MEGA LOTEO]]) -> 0 | IN13: =SUMIFS(FlujoVentasEtapas[05-2039],Etapas[[Tipo]:[Tipo]],MegaLoteo[[#This Row],[MEGA LOTEO]:[MEGA LOTEO]]) -> 0 | IO13: =SUMIFS(FlujoVentasEtapas[06-2039],Etapas[[Tipo]:[Tipo]],MegaLoteo[[#This Row],[MEGA LOTEO]:[MEGA LOTEO]]) -> 0 | IP13: =SUMIFS(FlujoVentasEtapas[07-2039],Etapas[[Tipo]:[Tipo]],MegaLoteo[[#This Row],[MEGA LOTEO]:[MEGA LOTEO]]) -> 0 | IQ13: =SUMIFS(FlujoVentasEtapas[08-2039],Etapas[[Tipo]:[Tipo]],MegaLoteo[[#This Row],[MEGA LOTEO]:[MEGA LOTEO]]) -> 0 | IR13: =SUMIFS(FlujoVentasEtapas[09-2039],Etapas[[Tipo]:[Tipo]],MegaLoteo[[#This Row],[MEGA LOTEO]:[MEGA LOTEO]]) -> 0 | IS13: =SUMIFS(FlujoVentasEtapas[10-2039],Etapas[[Tipo]:[Tipo]],MegaLoteo[[#This Row],[MEGA LOTEO]:[MEGA LOTEO]]) -> 0 | IT13: =SUMIFS(FlujoVentasEtapas[11-2039],Etapas[[Tipo]:[Tipo]],MegaLoteo[[#This Row],[MEGA LOTEO]:[MEGA LOTEO]]) -> 0 | IU13: =SUMIFS(FlujoVentasEtapas[12-2039],Etapas[[Tipo]:[Tipo]],MegaLoteo[[#This Row],[MEGA LOTEO]:[MEGA LOTEO]]) -> 0 | IV13: =SUMIFS(FlujoVentasEtapas[01-2040],Etapas[[Tipo]:[Tipo]],MegaLoteo[[#This Row],[MEGA LOTEO]:[MEGA LOTEO]]) -> 0 | IW13: =SUMIFS(FlujoVentasEtapas[02-2040],Etapas[[Tipo]:[Tipo]],MegaLoteo[[#This Row],[MEGA LOTEO]:[MEGA LOTEO]]) -> 0 | IX13: =SUMIFS(FlujoVentasEtapas[03-2040],Etapas[[Tipo]:[Tipo]],MegaLoteo[[#This Row],[MEGA LOTEO]:[MEGA LOTEO]]) -> 0 | IY13: =SUMIFS(FlujoVentasEtapas[04-2040],Etapas[[Tipo]:[Tipo]],MegaLoteo[[#This Row],[MEGA LOTEO]:[MEGA LOTEO]]) -> 0 | IZ13: =SUMIFS(FlujoVentasEtapas[05-2040],Etapas[[Tipo]:[Tipo]],MegaLoteo[[#This Row],[MEGA LOTEO]:[MEGA LOTEO]]) -> 0 | JA13: =SUMIFS(FlujoVentasEtapas[06-2040],Etapas[[Tipo]:[Tipo]],MegaLoteo[[#This Row],[MEGA LOTEO]:[MEGA LOTEO]]) -> 0 | JB13: =SUMIFS(FlujoVentasEtapas[07-2040],Etapas[[Tipo]:[Tipo]],MegaLoteo[[#This Row],[MEGA LOTEO]:[MEGA LOTEO]]) -> 0 | JC13: =SUMIFS(FlujoVentasEtapas[08-2040],Etapas[[Tipo]:[Tipo]],MegaLoteo[[#This Row],[MEGA LOTEO]:[MEGA LOTEO]]) -> 0 | JD13: =SUMIFS(FlujoVentasEtapas[09-2040],Etapas[[Tipo]:[Tipo]],MegaLoteo[[#This Row],[MEGA LOTEO]:[MEGA LOTEO]]) -> 0 | JE13: =SUMIFS(FlujoVentasEtapas[10-2040],Etapas[[Tipo]:[Tipo]],MegaLoteo[[#This Row],[MEGA LOTEO]:[MEGA LOTEO]]) -> 0 | JF13: =SUMIFS(FlujoVentasEtapas[11-2040],Etapas[[Tipo]:[Tipo]],MegaLoteo[[#This Row],[MEGA LOTEO]:[MEGA LOTEO]]) -> 0 | JG13: =SUMIFS(FlujoVentasEtapas[12-2040],Etapas[[Tipo]:[Tipo]],MegaLoteo[[#This Row],[MEGA LOTEO]:[MEGA LOTEO]]) -> 0 | JH13: =SUMIFS(FlujoVentasEtapas[01-2041],Etapas[[Tipo]:[Tipo]],MegaLoteo[[#This Row],[MEGA LOTEO]:[MEGA LOTEO]]) -> 0 | JI13: =SUMIFS(FlujoVentasEtapas[02-2041],Etapas[[Tipo]:[Tipo]],MegaLoteo[[#This Row],[MEGA LOTEO]:[MEGA LOTEO]]) -> 0 | JJ13: =SUMIFS(FlujoVentasEtapas[03-2041],Etapas[[Tipo]:[Tipo]],MegaLoteo[[#This Row],[MEGA LOTEO]:[MEGA LOTEO]]) -> 0 | JK13: =SUMIFS(FlujoVentasEtapas[04-2041],Etapas[[Tipo]:[Tipo]],MegaLoteo[[#This Row],[MEGA LOTEO]:[MEGA LOTEO]]) -> 0 | JL13: =SUMIFS(FlujoVentasEtapas[05-2041],Etapas[[Tipo]:[Tipo]],MegaLoteo[[#This Row],[MEGA LOTEO]:[MEGA LOTEO]]) -> 0 | JM13: =SUMIFS(FlujoVentasEtapas[06-2041],Etapas[[Tipo]:[Tipo]],MegaLoteo[[#This Row],[MEGA LOTEO]:[MEGA LOTEO]]) -> 0 | JN13: =SUMIFS(FlujoVentasEtapas[07-2041],Etapas[[Tipo]:[Tipo]],MegaLoteo[[#This Row],[MEGA LOTEO]:[MEGA LOTEO]]) -> 0 | JO13: =SUMIFS(FlujoVentasEtapas[08-2041],Etapas[[Tipo]:[Tipo]],MegaLoteo[[#This Row],[MEGA LOTEO]:[MEGA LOTEO]]) -> 0 | JP13: =SUMIFS(FlujoVentasEtapas[09-2041],Etapas[[Tipo]:[Tipo]],MegaLoteo[[#This Row],[MEGA LOTEO]:[MEGA LOTEO]]) -> 0 | JQ13: =SUMIFS(FlujoVentasEtapas[10-2041],Etapas[[Tipo]:[Tipo]],MegaLoteo[[#This Row],[MEGA LOTEO]:[MEGA LOTEO]]) -> 0 | JR13: =SUMIFS(FlujoVentasEtapas[11-2041],Etapas[[Tipo]:[Tipo]],MegaLoteo[[#This Row],[MEGA LOTEO]:[MEGA LOTEO]]) -> 0 | JS13: =SUMIFS(FlujoVentasEtapas[12-2041],Etapas[[Tipo]:[Tipo]],MegaLoteo[[#This Row],[MEGA LOTEO]:[MEGA LOTEO]]) -> 0 | JT13: =SUMIFS(FlujoVentasEtapas[01-2042],Etapas[[Tipo]:[Tipo]],MegaLoteo[[#This Row],[MEGA LOTEO]:[MEGA LOTEO]]) -> 0 | JU13: =SUMIFS(FlujoVentasEtapas[02-2042],Etapas[[Tipo]:[Tipo]],MegaLoteo[[#This Row],[MEGA LOTEO]:[MEGA LOTEO]]) -> 0 | JV13: =SUMIFS(FlujoVentasEtapas[03-2042],Etapas[[Tipo]:[Tipo]],MegaLoteo[[#This Row],[MEGA LOTEO]:[MEGA LOTEO]]) -> 0 | JW13: =SUMIFS(FlujoVentasEtapas[04-2042],Etapas[[Tipo]:[Tipo]],MegaLoteo[[#This Row],[MEGA LOTEO]:[MEGA LOTEO]]) -> 0 | JX13: =SUMIFS(FlujoVentasEtapas[05-2042],Etapas[[Tipo]:[Tipo]],MegaLoteo[[#This Row],[MEGA LOTEO]:[MEGA LOTEO]]) -> 0 | JY13: =SUMIFS(FlujoVentasEtapas[06-2042],Etapas[[Tipo]:[Tipo]],MegaLoteo[[#This Row],[MEGA LOTEO]:[MEGA LOTEO]]) -> 0 | JZ13: =SUMIFS(FlujoVentasEtapas[07-2042],Etapas[[Tipo]:[Tipo]],MegaLoteo[[#This Row],[MEGA LOTEO]:[MEGA LOTEO]]) -> 0 | KA13: =SUMIFS(FlujoVentasEtapas[08-2042],Etapas[[Tipo]:[Tipo]],MegaLoteo[[#This Row],[MEGA LOTEO]:[MEGA LOTEO]]) -> 0 | KB13: =SUMIFS(FlujoVentasEtapas[09-2042],Etapas[[Tipo]:[Tipo]],MegaLoteo[[#This Row],[MEGA LOTEO]:[MEGA LOTEO]]) -> 0 | KC13: =SUMIFS(FlujoVentasEtapas[10-2042],Etapas[[Tipo]:[Tipo]],MegaLoteo[[#This Row],[MEGA LOTEO]:[MEGA LOTEO]]) -> 0 | KD13: =SUMIFS(FlujoVentasEtapas[11-2042],Etapas[[Tipo]:[Tipo]],MegaLoteo[[#This Row],[MEGA LOTEO]:[MEGA LOTEO]]) -> 0 | KE13: =SUMIFS(FlujoVentasEtapas[12-2042],Etapas[[Tipo]:[Tipo]],MegaLoteo[[#This Row],[MEGA LOTEO]:[MEGA LOTEO]]) -> 0 | KF13: =SUMIFS(FlujoVentasEtapas[01-2043],Etapas[[Tipo]:[Tipo]],MegaLoteo[[#This Row],[MEGA LOTEO]:[MEGA LOTEO]]) -> 0 | KG13: =SUMIFS(FlujoVentasEtapas[02-2043],Etapas[[Tipo]:[Tipo]],MegaLoteo[[#This Row],[MEGA LOTEO]:[MEGA LOTEO]]) -> 0 | KH13: =SUMIFS(FlujoVentasEtapas[03-2043],Etapas[[Tipo]:[Tipo]],MegaLoteo[[#This Row],[MEGA LOTEO]:[MEGA LOTEO]]) -> 0 | KI13: =SUMIFS(FlujoVentasEtapas[04-2043],Etapas[[Tipo]:[Tipo]],MegaLoteo[[#This Row],[MEGA LOTEO]:[MEGA LOTEO]]) -> 0 | KJ13: =SUMIFS(FlujoVentasEtapas[05-2043],Etapas[[Tipo]:[Tipo]],MegaLoteo[[#This Row],[MEGA LOTEO]:[MEGA LOTEO]]) -> 0 | KK13: =SUMIFS(FlujoVentasEtapas[06-2043],Etapas[[Tipo]:[Tipo]],MegaLoteo[[#This Row],[MEGA LOTEO]:[MEGA LOTEO]]) -> 0 | KL13: =SUMIFS(FlujoVentasEtapas[07-2043],Etapas[[Tipo]:[Tipo]],MegaLoteo[[#This Row],[MEGA LOTEO]:[MEGA LOTEO]]) -> 0 | KM13: =SUMIFS(FlujoVentasEtapas[08-2043],Etapas[[Tipo]:[Tipo]],MegaLoteo[[#This Row],[MEGA LOTEO]:[MEGA LOTEO]]) -> 0 | KN13: =SUMIFS(FlujoVentasEtapas[09-2043],Etapas[[Tipo]:[Tipo]],MegaLoteo[[#This Row],[MEGA LOTEO]:[MEGA LOTEO]]) -> 0 | KO13: =SUMIFS(FlujoVentasEtapas[10-2043],Etapas[[Tipo]:[Tipo]],MegaLoteo[[#This Row],[MEGA LOTEO]:[MEGA LOTEO]]) -> 0 | KP13: =SUMIFS(FlujoVentasEtapas[11-2043],Etapas[[Tipo]:[Tipo]],MegaLoteo[[#This Row],[MEGA LOTEO]:[MEGA LOTEO]]) -> 0 | KQ13: =SUMIFS(FlujoVentasEtapas[12-2043],Etapas[[Tipo]:[Tipo]],MegaLoteo[[#This Row],[MEGA LOTEO]:[MEGA LOTEO]]) -> 0 | KR13: =SUMIFS(FlujoVentasEtapas[01-2044],Etapas[[Tipo]:[Tipo]],MegaLoteo[[#This Row],[MEGA LOTEO]:[MEGA LOTEO]]) -> 0 | KS13: =SUMIFS(FlujoVentasEtapas[02-2044],Etapas[[Tipo]:[Tipo]],MegaLoteo[[#This Row],[MEGA LOTEO]:[MEGA LOTEO]]) -> 0 | KT13: =SUMIFS(FlujoVentasEtapas[03-2044],Etapas[[Tipo]:[Tipo]],MegaLoteo[[#This Row],[MEGA LOTEO]:[MEGA LOTEO]]) -> 0 | KU13: =SUMIFS(FlujoVentasEtapas[04-2044],Etapas[[Tipo]:[Tipo]],MegaLoteo[[#This Row],[MEGA LOTEO]:[MEGA LOTEO]]) -> 0 | KV13: =SUMIFS(FlujoVentasEtapas[05-2044],Etapas[[Tipo]:[Tipo]],MegaLoteo[[#This Row],[MEGA LOTEO]:[MEGA LOTEO]]) -> 0 | KW13: =SUMIFS(FlujoVentasEtapas[06-2044],Etapas[[Tipo]:[Tipo]],MegaLoteo[[#This Row],[MEGA LOTEO]:[MEGA LOTEO]]) -> 0 | KX13: =SUMIFS(FlujoVentasEtapas[07-2044],Etapas[[Tipo]:[Tipo]],MegaLoteo[[#This Row],[MEGA LOTEO]:[MEGA LOTEO]]) -> 0 | KY13: =SUMIFS(FlujoVentasEtapas[08-2044],Etapas[[Tipo]:[Tipo]],MegaLoteo[[#This Row],[MEGA LOTEO]:[MEGA LOTEO]]) -> 0 | KZ13: =SUMIFS(FlujoVentasEtapas[09-2044],Etapas[[Tipo]:[Tipo]],MegaLoteo[[#This Row],[MEGA LOTEO]:[MEGA LOTEO]]) -> 0 | LA13: =SUMIFS(FlujoVentasEtapas[10-2044],Etapas[[Tipo]:[Tipo]],MegaLoteo[[#This Row],[MEGA LOTEO]:[MEGA LOTEO]]) -> 0 | LB13: =SUMIFS(FlujoVentasEtapas[11-2044],Etapas[[Tipo]:[Tipo]],MegaLoteo[[#This Row],[MEGA LOTEO]:[MEGA LOTEO]]) -> 0 | LC13: =SUMIFS(FlujoVentasEtapas[12-2044],Etapas[[Tipo]:[Tipo]],MegaLoteo[[#This Row],[MEGA LOTEO]:[MEGA LOTEO]]) -> 0 | LD13: =SUMIFS(FlujoVentasEtapas[01-2045],Etapas[[Tipo]:[Tipo]],MegaLoteo[[#This Row],[MEGA LOTEO]:[MEGA LOTEO]]) -> 0 | LE13: =SUMIFS(FlujoVentasEtapas[02-2045],Etapas[[Tipo]:[Tipo]],MegaLoteo[[#This Row],[MEGA LOTEO]:[MEGA LOTEO]]) -> 0 | LF13: =SUMIFS(FlujoVentasEtapas[03-2045],Etapas[[Tipo]:[Tipo]],MegaLoteo[[#This Row],[MEGA LOTEO]:[MEGA LOTEO]]) -> 0 | LG13: =SUMIFS(FlujoVentasEtapas[04-2045],Etapas[[Tipo]:[Tipo]],MegaLoteo[[#This Row],[MEGA LOTEO]:[MEGA LOTEO]]) -> 0 | LH13: =SUMIFS(FlujoVentasEtapas[05-2045],Etapas[[Tipo]:[Tipo]],MegaLoteo[[#This Row],[MEGA LOTEO]:[MEGA LOTEO]]) -> 0 | LI13: =SUMIFS(FlujoVentasEtapas[06-2045],Etapas[[Tipo]:[Tipo]],MegaLoteo[[#This Row],[MEGA LOTEO]:[MEGA LOTEO]]) -> 0 | LJ13: =SUMIFS(FlujoVentasEtapas[07-2045],Etapas[[Tipo]:[Tipo]],MegaLoteo[[#This Row],[MEGA LOTEO]:[MEGA LOTEO]]) -> 0 | LK13: =SUMIFS(FlujoVentasEtapas[08-2045],Etapas[[Tipo]:[Tipo]],MegaLoteo[[#This Row],[MEGA LOTEO]:[MEGA LOTEO]]) -> 0 | LL13: =SUMIFS(FlujoVentasEtapas[09-2045],Etapas[[Tipo]:[Tipo]],MegaLoteo[[#This Row],[MEGA LOTEO]:[MEGA LOTEO]]) -> 0 | LM13: =SUMIFS(FlujoVentasEtapas[10-2045],Etapas[[Tipo]:[Tipo]],MegaLoteo[[#This Row],[MEGA LOTEO]:[MEGA LOTEO]]) -> 0 | LN13: =SUMIFS(FlujoVentasEtapas[11-2045],Etapas[[Tipo]:[Tipo]],MegaLoteo[[#This Row],[MEGA LOTEO]:[MEGA LOTEO]]) -> 0 | LO13: =SUMIFS(FlujoVentasEtapas[12-2045],Etapas[[Tipo]:[Tipo]],MegaLoteo[[#This Row],[MEGA LOTEO]:[MEGA LOTEO]]) -> 0 | LP13: =SUMIFS(FlujoVentasEtapas[01-2046],Etapas[[Tipo]:[Tipo]],MegaLoteo[[#This Row],[MEGA LOTEO]:[MEGA LOTEO]]) -> 0 | LQ13: =SUMIFS(FlujoVentasEtapas[02-2046],Etapas[[Tipo]:[Tipo]],MegaLoteo[[#This Row],[MEGA LOTEO]:[MEGA LOTEO]]) -> 0 | LR13: =SUMIFS(FlujoVentasEtapas[03-2046],Etapas[[Tipo]:[Tipo]],MegaLoteo[[#This Row],[MEGA LOTEO]:[MEGA LOTEO]]) -> 0 | LS13: =SUMIFS(FlujoVentasEtapas[04-2046],Etapas[[Tipo]:[Tipo]],MegaLoteo[[#This Row],[MEGA LOTEO]:[MEGA LOTEO]]) -> 0 | LT13: =SUMIFS(FlujoVentasEtapas[05-2046],Etapas[[Tipo]:[Tipo]],MegaLoteo[[#This Row],[MEGA LOTEO]:[MEGA LOTEO]]) -> 0 | LU13: =SUMIFS(FlujoVentasEtapas[06-2046],Etapas[[Tipo]:[Tipo]],MegaLoteo[[#This Row],[MEGA LOTEO]:[MEGA LOTEO]]) -> 0 | LV13: =SUMIFS(FlujoVentasEtapas[07-2046],Etapas[[Tipo]:[Tipo]],MegaLoteo[[#This Row],[MEGA LOTEO]:[MEGA LOTEO]]) -> 0 | LW13: =SUMIFS(FlujoVentasEtapas[08-2046],Etapas[[Tipo]:[Tipo]],MegaLoteo[[#This Row],[MEGA LOTEO]:[MEGA LOTEO]]) -> 0 | LX13: =SUMIFS(FlujoVentasEtapas[09-2046],Etapas[[Tipo]:[Tipo]],MegaLoteo[[#This Row],[MEGA LOTEO]:[MEGA LOTEO]]) -> 0 | LY13: =SUMIFS(FlujoVentasEtapas[10-2046],Etapas[[Tipo]:[Tipo]],MegaLoteo[[#This Row],[MEGA LOTEO]:[MEGA LOTEO]]) -> 0 | LZ13: =SUMIFS(FlujoVentasEtapas[11-2046],Etapas[[Tipo]:[Tipo]],MegaLoteo[[#This Row],[MEGA LOTEO]:[MEGA LOTEO]]) -> 0 | MA13: =SUMIFS(FlujoVentasEtapas[12-2046],Etapas[[Tipo]:[Tipo]],MegaLoteo[[#This Row],[MEGA LOTEO]:[MEGA LOTEO]]) -> 0 | MB13: =SUMIFS(FlujoVentasEtapas[01-2047],Etapas[[Tipo]:[Tipo]],MegaLoteo[[#This Row],[MEGA LOTEO]:[MEGA LOTEO]]) -> 0 | MC13: =SUMIFS(FlujoVentasEtapas[02-2047],Etapas[[Tipo]:[Tipo]],MegaLoteo[[#This Row],[MEGA LOTEO]:[MEGA LOTEO]]) -> 0 | MD13: =SUMIFS(FlujoVentasEtapas[03-2047],Etapas[[Tipo]:[Tipo]],MegaLoteo[[#This Row],[MEGA LOTEO]:[MEGA LOTEO]]) -> 0 | ME13: =SUMIFS(FlujoVentasEtapas[04-2047],Etapas[[Tipo]:[Tipo]],MegaLoteo[[#This Row],[MEGA LOTEO]:[MEGA LOTEO]]) -> 0 | MF13: =SUMIFS(FlujoVentasEtapas[05-2047],Etapas[[Tipo]:[Tipo]],MegaLoteo[[#This Row],[MEGA LOTEO]:[MEGA LOTEO]]) -> 0 | MG13: =SUMIFS(FlujoVentasEtapas[06-2047],Etapas[[Tipo]:[Tipo]],MegaLoteo[[#This Row],[MEGA LOTEO]:[MEGA LOTEO]]) -> 0 | MH13: =SUMIFS(FlujoVentasEtapas[07-2047],Etapas[[Tipo]:[Tipo]],MegaLoteo[[#This Row],[MEGA LOTEO]:[MEGA LOTEO]]) -> 0 | MI13: =SUMIFS(FlujoVentasEtapas[08-2047],Etapas[[Tipo]:[Tipo]],MegaLoteo[[#This Row],[MEGA LOTEO]:[MEGA LOTEO]]) -> 0 | MJ13: =SUMIFS(FlujoVentasEtapas[09-2047],Etapas[[Tipo]:[Tipo]],MegaLoteo[[#This Row],[MEGA LOTEO]:[MEGA LOTEO]]) -> 0 | MK13: =SUMIFS(FlujoVentasEtapas[10-2047],Etapas[[Tipo]:[Tipo]],MegaLoteo[[#This Row],[MEGA LOTEO]:[MEGA LOTEO]]) -> 0 | ML13: =SUMIFS(FlujoVentasEtapas[11-2047],Etapas[[Tipo]:[Tipo]],MegaLoteo[[#This Row],[MEGA LOTEO]:[MEGA LOTEO]]) -> 0 | MM13: =SUMIFS(FlujoVentasEtapas[12-2047],Etapas[[Tipo]:[Tipo]],MegaLoteo[[#This Row],[MEGA LOTEO]:[MEGA LOTEO]]) -> 0 | MN13: =SUMIFS(FlujoVentasEtapas[01-2048],Etapas[[Tipo]:[Tipo]],MegaLoteo[[#This Row],[MEGA LOTEO]:[MEGA LOTEO]]) -> 0 | MO13: =SUMIFS(FlujoVentasEtapas[02-2048],Etapas[[Tipo]:[Tipo]],MegaLoteo[[#This Row],[MEGA LOTEO]:[MEGA LOTEO]]) -> 0 | MP13: =SUMIFS(FlujoVentasEtapas[03-2048],Etapas[[Tipo]:[Tipo]],MegaLoteo[[#This Row],[MEGA LOTEO]:[MEGA LOTEO]]) -> 0 | MQ13: =SUMIFS(FlujoVentasEtapas[04-2048],Etapas[[Tipo]:[Tipo]],MegaLoteo[[#This Row],[MEGA LOTEO]:[MEGA LOTEO]]) -> 0 | MR13: =SUMIFS(FlujoVentasEtapas[05-2048],Etapas[[Tipo]:[Tipo]],MegaLoteo[[#This Row],[MEGA LOTEO]:[MEGA LOTEO]]) -> 0 | MS13: =SUMIFS(FlujoVentasEtapas[06-2048],Etapas[[Tipo]:[Tipo]],MegaLoteo[[#This Row],[MEGA LOTEO]:[MEGA LOTEO]]) -> 0 | MT13: =SUMIFS(FlujoVentasEtapas[07-2048],Etapas[[Tipo]:[Tipo]],MegaLoteo[[#This Row],[MEGA LOTEO]:[MEGA LOTEO]]) -> 0 | MU13: =SUMIFS(FlujoVentasEtapas[08-2048],Etapas[[Tipo]:[Tipo]],MegaLoteo[[#This Row],[MEGA LOTEO]:[MEGA LOTEO]]) -> 0 | MV13: =SUMIFS(FlujoVentasEtapas[09-2048],Etapas[[Tipo]:[Tipo]],MegaLoteo[[#This Row],[MEGA LOTEO]:[MEGA LOTEO]]) -> 0 | MW13: =SUMIFS(FlujoVentasEtapas[10-2048],Etapas[[Tipo]:[Tipo]],MegaLoteo[[#This Row],[MEGA LOTEO]:[MEGA LOTEO]]) -> 0 | MX13: =SUMIFS(FlujoVentasEtapas[11-2048],Etapas[[Tipo]:[Tipo]],MegaLoteo[[#This Row],[MEGA LOTEO]:[MEGA LOTEO]]) -> 0 | MY13: =SUMIFS(FlujoVentasEtapas[12-2048],Etapas[[Tipo]:[Tipo]],MegaLoteo[[#This Row],[MEGA LOTEO]:[MEGA LOTEO]]) -> 0 | MZ13: =SUMIFS(FlujoVentasEtapas[01-2049],Etapas[[Tipo]:[Tipo]],MegaLoteo[[#This Row],[MEGA LOTEO]:[MEGA LOTEO]]) -> 0 | NA13: =SUMIFS(FlujoVentasEtapas[02-2049],Etapas[[Tipo]:[Tipo]],MegaLoteo[[#This Row],[MEGA LOTEO]:[MEGA LOTEO]]) -> 0 | NB13: =SUMIFS(FlujoVentasEtapas[03-2049],Etapas[[Tipo]:[Tipo]],MegaLoteo[[#This Row],[MEGA LOTEO]:[MEGA LOTEO]]) -> 0 | NC13: =SUMIFS(FlujoVentasEtapas[04-2049],Etapas[[Tipo]:[Tipo]],MegaLoteo[[#This Row],[MEGA LOTEO]:[MEGA LOTEO]]) -> 0 | ND13: =SUMIFS(FlujoVentasEtapas[05-2049],Etapas[[Tipo]:[Tipo]],MegaLoteo[[#This Row],[MEGA LOTEO]:[MEGA LOTEO]]) -> 0 | NE13: =SUMIFS(FlujoVentasEtapas[06-2049],Etapas[[Tipo]:[Tipo]],MegaLoteo[[#This Row],[MEGA LOTEO]:[MEGA LOTEO]]) -> 0 | NF13: =SUMIFS(FlujoVentasEtapas[07-2049],Etapas[[Tipo]:[Tipo]],MegaLoteo[[#This Row],[MEGA LOTEO]:[MEGA LOTEO]]) -> 0 | NG13: =SUMIFS(FlujoVentasEtapas[08-2049],Etapas[[Tipo]:[Tipo]],MegaLoteo[[#This Row],[MEGA LOTEO]:[MEGA LOTEO]]) -> 0 | NH13: =SUMIFS(FlujoVentasEtapas[09-2049],Etapas[[Tipo]:[Tipo]],MegaLoteo[[#This Row],[MEGA LOTEO]:[MEGA LOTEO]]) -> 0 | NI13: =SUMIFS(FlujoVentasEtapas[10-2049],Etapas[[Tipo]:[Tipo]],MegaLoteo[[#This Row],[MEGA LOTEO]:[MEGA LOTEO]]) -> 0 | NJ13: =SUMIFS(FlujoVentasEtapas[11-2049],Etapas[[Tipo]:[Tipo]],MegaLoteo[[#This Row],[MEGA LOTEO]:[MEGA LOTEO]]) -> 0 | NK13: =SUMIFS(FlujoVentasEtapas[12-2049],Etapas[[Tipo]:[Tipo]],MegaLoteo[[#This Row],[MEGA LOTEO]:[MEGA LOTEO]]) -> 0 | NL13: =SUMIFS(FlujoVentasEtapas[01-2050],Etapas[[Tipo]:[Tipo]],MegaLoteo[[#This Row],[MEGA LOTEO]:[MEGA LOTEO]]) -> 0 | NM13: =SUMIFS(FlujoVentasEtapas[02-2050],Etapas[[Tipo]:[Tipo]],MegaLoteo[[#This Row],[MEGA LOTEO]:[MEGA LOTEO]]) -> 0 | NN13: =SUMIFS(FlujoVentasEtapas[03-2050],Etapas[[Tipo]:[Tipo]],MegaLoteo[[#This Row],[MEGA LOTEO]:[MEGA LOTEO]]) -> 0 | NO13: =SUMIFS(FlujoVentasEtapas[04-2050],Etapas[[Tipo]:[Tipo]],MegaLoteo[[#This Row],[MEGA LOTEO]:[MEGA LOTEO]]) -> 0 | NP13: =SUMIFS(FlujoVentasEtapas[05-2050],Etapas[[Tipo]:[Tipo]],MegaLoteo[[#This Row],[MEGA LOTEO]:[MEGA LOTEO]]) -> 0 | NQ13: =SUMIFS(FlujoVentasEtapas[06-2050],Etapas[[Tipo]:[Tipo]],MegaLoteo[[#This Row],[MEGA LOTEO]:[MEGA LOTEO]]) -> 0 | NR13: =SUMIFS(FlujoVentasEtapas[07-2050],Etapas[[Tipo]:[Tipo]],MegaLoteo[[#This Row],[MEGA LOTEO]:[MEGA LOTEO]]) -> 0 | NS13: =SUMIFS(FlujoVentasEtapas[08-2050],Etapas[[Tipo]:[Tipo]],MegaLoteo[[#This Row],[MEGA LOTEO]:[MEGA LOTEO]]) -> 0 | NT13: =SUMIFS(FlujoVentasEtapas[09-2050],Etapas[[Tipo]:[Tipo]],MegaLoteo[[#This Row],[MEGA LOTEO]:[MEGA LOTEO]]) -> 0 | NU13: =SUMIFS(FlujoVentasEtapas[10-2050],Etapas[[Tipo]:[Tipo]],MegaLoteo[[#This Row],[MEGA LOTEO]:[MEGA LOTEO]]) -> 0 | NV13: =SUMIFS(FlujoVentasEtapas[11-2050],Etapas[[Tipo]:[Tipo]],MegaLoteo[[#This Row],[MEGA LOTEO]:[MEGA LOTEO]]) -> 0 | NW13: =SUMIFS(FlujoVentasEtapas[12-2050],Etapas[[Tipo]:[Tipo]],MegaLoteo[[#This Row],[MEGA LOTEO]:[MEGA LOTEO]]) -> 0 | NX13: =SUMIFS(FlujoVentasEtapas[01-2051],Etapas[[Tipo]:[Tipo]],MegaLoteo[[#This Row],[MEGA LOTEO]:[MEGA LOTEO]]) -> 0 | NY13: =SUMIFS(FlujoVentasEtapas[02-2051],Etapas[[Tipo]:[Tipo]],MegaLoteo[[#This Row],[MEGA LOTEO]:[MEGA LOTEO]]) -> 0 | NZ13: =SUMIFS(FlujoVentasEtapas[03-2051],Etapas[[Tipo]:[Tipo]],MegaLoteo[[#This Row],[MEGA LOTEO]:[MEGA LOTEO]]) -> 0 | OA13: =SUMIFS(FlujoVentasEtapas[04-2051],Etapas[[Tipo]:[Tipo]],MegaLoteo[[#This Row],[MEGA LOTEO]:[MEGA LOTEO]]) -> 0 | OB13: =SUMIFS(FlujoVentasEtapas[05-2051],Etapas[[Tipo]:[Tipo]],MegaLoteo[[#This Row],[MEGA LOTEO]:[MEGA LOTEO]]) -> 0 | OC13: =SUMIFS(FlujoVentasEtapas[06-2051],Etapas[[Tipo]:[Tipo]],MegaLoteo[[#This Row],[MEGA LOTEO]:[MEGA LOTEO]]) -> 0 | OD13: =SUMIFS(FlujoVentasEtapas[07-2051],Etapas[[Tipo]:[Tipo]],MegaLoteo[[#This Row],[MEGA LOTEO]:[MEGA LOTEO]]) -> 0 | OE13: =SUMIFS(FlujoVentasEtapas[08-2051],Etapas[[Tipo]:[Tipo]],MegaLoteo[[#This Row],[MEGA LOTEO]:[MEGA LOTEO]]) -> 0 | OF13: =SUMIFS(FlujoVentasEtapas[09-2051],Etapas[[Tipo]:[Tipo]],MegaLoteo[[#This Row],[MEGA LOTEO]:[MEGA LOTEO]]) -> 0 | OG13: =SUMIFS(FlujoVentasEtapas[10-2051],Etapas[[Tipo]:[Tipo]],MegaLoteo[[#This Row],[MEGA LOTEO]:[MEGA LOTEO]]) -> 0 | OH13: =SUMIFS(FlujoVentasEtapas[11-2051],Etapas[[Tipo]:[Tipo]],MegaLoteo[[#This Row],[MEGA LOTEO]:[MEGA LOTEO]]) -> 0 | OI13: =SUMIFS(FlujoVentasEtapas[12-2051],Etapas[[Tipo]:[Tipo]],MegaLoteo[[#This Row],[MEGA LOTEO]:[MEGA LOTEO]]) -> 0 | OJ13: =SUMIFS(FlujoVentasEtapas[01-2052],Etapas[[Tipo]:[Tipo]],MegaLoteo[[#This Row],[MEGA LOTEO]:[MEGA LOTEO]]) -> 0 | OK13: =SUMIFS(FlujoVentasEtapas[02-2052],Etapas[[Tipo]:[Tipo]],MegaLoteo[[#This Row],[MEGA LOTEO]:[MEGA LOTEO]]) -> 0 | OL13: =SUMIFS(FlujoVentasEtapas[03-2052],Etapas[[Tipo]:[Tipo]],MegaLoteo[[#This Row],[MEGA LOTEO]:[MEGA LOTEO]]) -> 0 | OM13: =SUMIFS(FlujoVentasEtapas[04-2052],Etapas[[Tipo]:[Tipo]],MegaLoteo[[#This Row],[MEGA LOTEO]:[MEGA LOTEO]]) -> 0 | ON13: =SUMIFS(FlujoVentasEtapas[05-2052],Etapas[[Tipo]:[Tipo]],MegaLoteo[[#This Row],[MEGA LOTEO]:[MEGA LOTEO]]) -> 0 | OO13: =SUMIFS(FlujoVentasEtapas[06-2052],Etapas[[Tipo]:[Tipo]],MegaLoteo[[#This Row],[MEGA LOTEO]:[MEGA LOTEO]]) -> 0 | OP13: =SUMIFS(FlujoVentasEtapas[07-2052],Etapas[[Tipo]:[Tipo]],MegaLoteo[[#This Row],[MEGA LOTEO]:[MEGA LOTEO]]) -> 0 | OQ13: =SUMIFS(FlujoVentasEtapas[08-2052],Etapas[[Tipo]:[Tipo]],MegaLoteo[[#This Row],[MEGA LOTEO]:[MEGA LOTEO]]) -> 0 | OR13: =SUMIFS(FlujoVentasEtapas[09-2052],Etapas[[Tipo]:[Tipo]],MegaLoteo[[#This Row],[MEGA LOTEO]:[MEGA LOTEO]]) -> 0 | OS13: =SUMIFS(FlujoVentasEtapas[10-2052],Etapas[[Tipo]:[Tipo]],MegaLoteo[[#This Row],[MEGA LOTEO]:[MEGA LOTEO]]) -> 0 | OT13: =SUMIFS(FlujoVentasEtapas[11-2052],Etapas[[Tipo]:[Tipo]],MegaLoteo[[#This Row],[MEGA LOTEO]:[MEGA LOTEO]]) -> 0 | OU13: =SUMIFS(FlujoVentasEtapas[12-2052],Etapas[[Tipo]:[Tipo]],MegaLoteo[[#This Row],[MEGA LOTEO]:[MEGA LOTEO]]) -> 0 | OV13: =SUMIFS(FlujoVentasEtapas[01-2053],Etapas[[Tipo]:[Tipo]],MegaLoteo[[#This Row],[MEGA LOTEO]:[MEGA LOTEO]]) -> 0 | OW13: =SUMIFS(FlujoVentasEtapas[02-2053],Etapas[[Tipo]:[Tipo]],MegaLoteo[[#This Row],[MEGA LOTEO]:[MEGA LOTEO]]) -> 0 | OX13: =SUMIFS(FlujoVentasEtapas[03-2053],Etapas[[Tipo]:[Tipo]],MegaLoteo[[#This Row],[MEGA LOTEO]:[MEGA LOTEO]]) -> 0 | OY13: =SUMIFS(FlujoVentasEtapas[04-2053],Etapas[[Tipo]:[Tipo]],MegaLoteo[[#This Row],[MEGA LOTEO]:[MEGA LOTEO]]) -> 0 | OZ13: =SUMIFS(FlujoVentasEtapas[05-2053],Etapas[[Tipo]:[Tipo]],MegaLoteo[[#This Row],[MEGA LOTEO]:[MEGA LOTEO]]) -> 0 | PA13: =SUMIFS(FlujoVentasEtapas[06-2053],Etapas[[Tipo]:[Tipo]],MegaLoteo[[#This Row],[MEGA LOTEO]:[MEGA LOTEO]]) -> 0 | PB13: =SUMIFS(FlujoVentasEtapas[07-2053],Etapas[[Tipo]:[Tipo]],MegaLoteo[[#This Row],[MEGA LOTEO]:[MEGA LOTEO]]) -> 0 | PC13: =SUMIFS(FlujoVentasEtapas[08-2053],Etapas[[Tipo]:[Tipo]],MegaLoteo[[#This Row],[MEGA LOTEO]:[MEGA LOTEO]]) -> 0 | PD13: =SUMIFS(FlujoVentasEtapas[09-2053],Etapas[[Tipo]:[Tipo]],MegaLoteo[[#This Row],[MEGA LOTEO]:[MEGA LOTEO]]) -> 0 | PE13: =SUMIFS(FlujoVentasEtapas[10-2053],Etapas[[Tipo]:[Tipo]],MegaLoteo[[#This Row],[MEGA LOTEO]:[MEGA LOTEO]]) -> 0 | PF13: =SUMIFS(FlujoVentasEtapas[11-2053],Etapas[[Tipo]:[Tipo]],MegaLoteo[[#This Row],[MEGA LOTEO]:[MEGA LOTEO]]) -> 0 | PG13: =SUMIFS(FlujoVentasEtapas[12-2053],Etapas[[Tipo]:[Tipo]],MegaLoteo[[#This Row],[MEGA LOTEO]:[MEGA LOTEO]]) -> 0 | PH13: =SUMIFS(FlujoVentasEtapas[01-2054],Etapas[[Tipo]:[Tipo]],MegaLoteo[[#This Row],[MEGA LOTEO]:[MEGA LOTEO]]) -> 0 | PI13: =SUMIFS(FlujoVentasEtapas[02-2054],Etapas[[Tipo]:[Tipo]],MegaLoteo[[#This Row],[MEGA LOTEO]:[MEGA LOTEO]]) -> 0 | PJ13: =SUMIFS(FlujoVentasEtapas[03-2054],Etapas[[Tipo]:[Tipo]],MegaLoteo[[#This Row],[MEGA LOTEO]:[MEGA LOTEO]]) -> 0 | PK13: =SUMIFS(FlujoVentasEtapas[04-2054],Etapas[[Tipo]:[Tipo]],MegaLoteo[[#This Row],[MEGA LOTEO]:[MEGA LOTEO]]) -> 0 | PL13: =SUMIFS(FlujoVentasEtapas[05-2054],Etapas[[Tipo]:[Tipo]],MegaLoteo[[#This Row],[MEGA LOTEO]:[MEGA LOTEO]]) -> 0 | PM13: =SUMIFS(FlujoVentasEtapas[06-2054],Etapas[[Tipo]:[Tipo]],MegaLoteo[[#This Row],[MEGA LOTEO]:[MEGA LOTEO]]) -> 0 | PN13: =SUMIFS(FlujoVentasEtapas[07-2054],Etapas[[Tipo]:[Tipo]],MegaLoteo[[#This Row],[MEGA LOTEO]:[MEGA LOTEO]]) -> 0 | PO13: =SUMIFS(FlujoVentasEtapas[08-2054],Etapas[[Tipo]:[Tipo]],MegaLoteo[[#This Row],[MEGA LOTEO]:[MEGA LOTEO]]) -> 0 | PP13: =SUMIFS(FlujoVentasEtapas[09-2054],Etapas[[Tipo]:[Tipo]],MegaLoteo[[#This Row],[MEGA LOTEO]:[MEGA LOTEO]]) -> 0 | PQ13: =SUMIFS(FlujoVentasEtapas[10-2054],Etapas[[Tipo]:[Tipo]],MegaLoteo[[#This Row],[MEGA LOTEO]:[MEGA LOTEO]]) -> 0 | PR13: =SUMIFS(FlujoVentasEtapas[11-2054],Etapas[[Tipo]:[Tipo]],MegaLoteo[[#This Row],[MEGA LOTEO]:[MEGA LOTEO]]) -> 0 | PS13: =SUMIFS(FlujoVentasEtapas[12-2054],Etapas[[Tipo]:[Tipo]],MegaLoteo[[#This Row],[MEGA LOTEO]:[MEGA LOTEO]]) -> 0 | PT13: =SUMIFS(FlujoVentasEtapas[01-2055],Etapas[[Tipo]:[Tipo]],MegaLoteo[[#This Row],[MEGA LOTEO]:[MEGA LOTEO]]) -> 0 | PU13: =SUMIFS(FlujoVentasEtapas[02-2055],Etapas[[Tipo]:[Tipo]],MegaLoteo[[#This Row],[MEGA LOTEO]:[MEGA LOTEO]]) -> 0 | PV13: =SUMIFS(FlujoVentasEtapas[03-2055],Etapas[[Tipo]:[Tipo]],MegaLoteo[[#This Row],[MEGA LOTEO]:[MEGA LOTEO]]) -> 0 | PW13: =SUMIFS(FlujoVentasEtapas[04-2055],Etapas[[Tipo]:[Tipo]],MegaLoteo[[#This Row],[MEGA LOTEO]:[MEGA LOTEO]]) -> 0 | PX13: =SUMIFS(FlujoVentasEtapas[05-2055],Etapas[[Tipo]:[Tipo]],MegaLoteo[[#This Row],[MEGA LOTEO]:[MEGA LOTEO]]) -> 0 | PY13: =SUMIFS(FlujoVentasEtapas[06-2055],Etapas[[Tipo]:[Tipo]],MegaLoteo[[#This Row],[MEGA LOTEO]:[MEGA LOTEO]]) -> 0 | PZ13: =SUMIFS(FlujoVentasEtapas[07-2055],Etapas[[Tipo]:[Tipo]],MegaLoteo[[#This Row],[MEGA LOTEO]:[MEGA LOTEO]]) -> 0 | QA13: =SUMIFS(FlujoVentasEtapas[08-2055],Etapas[[Tipo]:[Tipo]],MegaLoteo[[#This Row],[MEGA LOTEO]:[MEGA LOTEO]]) -> 0 | QB13: =SUMIFS(FlujoVentasEtapas[09-2055],Etapas[[Tipo]:[Tipo]],MegaLoteo[[#This Row],[MEGA LOTEO]:[MEGA LOTEO]]) -> 0 | QC13: =SUMIFS(FlujoVentasEtapas[10-2055],Etapas[[Tipo]:[Tipo]],MegaLoteo[[#This Row],[MEGA LOTEO]:[MEGA LOTEO]]) -> 0 | QD13: =SUMIFS(FlujoVentasEtapas[11-2055],Etapas[[Tipo]:[Tipo]],MegaLoteo[[#This Row],[MEGA LOTEO]:[MEGA LOTEO]]) -> 0 | QE13: =SUMIFS(FlujoVentasEtapas[12-2055],Etapas[[Tipo]:[Tipo]],MegaLoteo[[#This Row],[MEGA LOTEO]:[MEGA LOTEO]]) -> 0
